Workbook

Sheet Setting_Panel
B4: C:\Users\Chawanwit\Desktop\Export\Export\
B8: Date_List | D8: Branches | G8: Product_List
B9: =TODAY()-23+ROW() -> 2019-02-02 | D9: BCode | E9: Bname | G9: 01-ขนมปังไส้สังขยาเล็ก
B10: =TODAY()-23+ROW() -> 2019-02-03 | D10: 03-KB | E10: กบินทร์บุรี | G10: 02-ขนมปังไส้เผือก
B11: 2019-02-04 | D11: 04-KR | E11: โคราช | G11: 03-ขนมปังไส้ถั่วแดง
B12: 2019-02-05 | D12: 05-NP | E12: นครปฐม | G12: 04-โมจิไส้ถั่ว
B13: 2019-02-06 | D13: 06-KK | E13: ขอนแก่น | G13: 05-ขนมปังไส้สังขยาใหญ่
B14: 2019-02-07 | D14: 07-AY | E14: อยุธยา | G14: 06-ขนมปังไส้หมูหยองเล็ก
B15: 2019-02-08 | D15: 08-BK | E15: กรุงเทพฯ | G15: 07-เค้กกล้วยหอม
B16: 2019-02-09 | D16: 09-RY | E16: ระยอง | G16: 08-เค้กบัตเตอร์
B17: 2019-02-10 | D17: 10-SK | E17: สมุทรปราการ | G17: 09-ขนมปังโรลมันเทศ
B18: 2019-02-11 | D18: 12-PY | E18: พัทยา | G18: 10-ขนมปังโรลถั่วแดง
B19: 2019-02-12 | D19: 13-SR | E19: สุรินทร์ | G19: 11-ขนมปังหมูหยองมายองเนส
B20: 2019-02-13 | D20: 14-CB | E20: จันทบุรี | G20: 12-ขนมปังพิซซ่า
B21: 2019-02-14 | D21: 15-UB | E21: อุบลราชธานี | G21: 13-ขนมปังหมูหยองน้ำสลัด
B22: 2019-02-15 | D22: 16-KL | E22: คลองหลวง | G22: 14-ขนมปังไส้กรอก
B23: 2019-02-16 | D23: 17-LA | E23: ร้อยเอ็ด | G23: 15-ขนมก้านบัว
B24: 2019-02-17 | D24: 19-UD | E24: อุดรธานี | G24: 16-ขนมปังไส้หมูหยองใหญ่
B25: 2019-02-18 | D25: 20-PC | E25: ปากช่อง | G25: 17-ขนมปังไส้ครีมสลัด
B26: 2019-02-19 | D26: 21-BR | E26: บุรีรัมย์ | G26: 18-ขนมปังไก่หยองน้ำสลัด
B27: 2019-02-20 | D27: 22-LB | E27: ลพบุรี | G27: 19-ขนมก้านบัว 90 กรัม
B28: 2019-02-21 | G28: 20-ปังกรอบเนยสด
B29: 2019-02-22 | G29: 21-ปังกรอบกระเทียม
B30: 2019-02-23 | G30: 22-โมจิไส้ถั่วแดง
B31: 2019-02-24 | G31: 23-ขนมปังหมูหยองน้ำพริกเผา
B32: 2019-02-25 | G32: 24-ขนมปังเนยสด
B33: 2019-02-26 | G33: 25-ขนมปังปอนด์ใหญ่ (L)
B34: 2019-02-27 | G34: 26-ขนมก้านบัวบาร์บีคิว
B35: 2019-02-28 | G35: 27-ขนมปังเนยสดอัลมอนด์
B36: 2019-03-01 | G36: 28-ขนมปังชนิดแผ่น (460 กรัม)
B37: 2019-03-02 | G37: 29-ขนมปังโรลฟักทอง
B38: 2019-03-03 | G38: 30-ขนมปังโรลงาดำ
B39: 2019-03-04 | G39: 31-ขนมปังแผ่นหน้าเนยสด
B40: 2019-03-05 | G40: 32-ขนมโมจิไส้เผือก แพ็ค 4 ชิ้น
G41: 33-แซนด์วิชหมูหยองน้ำสลัด
G42: 34-แซนด์วิชไก่หยองน้ำสลัด
G43: 35-ขนมปังโรลมันม่วง
G44: 36-ขนมปังโรลมันส้มผสมแครอท
G45: 37-ขนมก้านบัวน้ำขิง
G46: 38-ขนมปังพิซซ่าปูอัดแฮม
G47: 39-ขนมปังไส้กรอกคอกเทลหมู
G48: 40-บัตเตอร์เค้กสไลด์
G49: 41-บัตเตอร์เค้กมิกซ์ฟรุต
G50: 42-ขนมปังไส้มันม่วง
G51: 43-ขนมปังโรลเนยสดหมูหยอง
G52: 44-มินิเค้กกล้วยหอม
G53: 45-บันเตยหอมไส้มันเทศ
G54: 46-มินิปังไส้หมูหยองมายองเนส
G55: 47-โมจิไส้ถั่วไข่เค็ม
G59: 80-ขนมปังไส้สังขยา (8บาท)
G60: 81-ขนมปังไส้เผือก (8บาท)
G61: 82-ขนมปังไส้ถั่วแดง (8บาท)
G62: สินค้าพิเศษ 1
G63: สินค้าพิเศษ 2

Sheet BPU_Report
B2: ::: BPU Stock In-Out Report | Daily Check
B5: Date : | C5: 2019-02-02 | H5: 1 | I5: =IF(Selector=1,"E",IF(Selector=2,"F",IF(Selector=3,"G",IF(Selector=4,"M",IF(Selector=5,"Q",IF(Selector=6,"W","K")))))) -> E
B7: Branch : | C7: นครปฐม | D7: =RIGHT(INDEX(Branch_Code,MATCH(SL_Branch,Branch_Name,0)),2) -> NP | O7: =Percent_Waste -> 
C9: =IFERROR(INDEX(FR_FileNameList,1),"No File In Folder") -> DV_FRK_NP-620202_สำหรับสาขา.xls
C10: =IFERROR(INDEX(FR_FileNameList,2),"") -> DV_FRY_NP-620202_สำหรับสาขา.xls
C11: ::: รายการเบิกจากโรงงาน | D11: =IF(ISERROR(MATCH("Total",Check_Header,0)),"","Collapse<<") -> Collapse<< | E11: ::: รายการจ่ายให้สายวิ่ง | AF11: =IF(SUMPRODUCT((MID($C$9:$C$10,4,3)="FRY")*1)=1,"FRY","") -> FRY | AL11: =IF(SUMPRODUCT((MID($C$9:$C$10,4,3)="FRK")*1)=1,"FRK","") -> FRK | AS11: FRY+FRK
B12: ลำดับ | C12: Product | D12: จำนวนเบิก | E12: Branch_File_List | F12: SheetName | G12: =IFERROR(IF(COLUMNS($N:N)=ROWS(SheetName_List)+1,"Total",IF(COLUMNS($N:N)>ROWS(SheetName_List),"",INDEX(SheetName_List,COLUMNS($N:N)))),"") -> NP-01 | H12: =IFERROR(IF(COLUMNS($N:O)=ROWS(SheetName_List)+1,"Total",IF(COLUMNS($N:O)>ROWS(SheetName_List),"",INDEX(SheetName_List,COLUMNS($N:O)))),"") -> NP-02 | I12: =IFERROR(IF(COLUMNS($N:P)=ROWS(SheetName_List)+1,"Total",IF(COLUMNS($N:P)>ROWS(SheetName_List),"",INDEX(SheetName_List,COLUMNS($N:P)))),"") -> NP-03 | J12: =IFERROR(IF(COLUMNS($N:Q)=ROWS(SheetName_List)+1,"Total",IF(COLUMNS($N:Q)>ROWS(SheetName_List),"",INDEX(SheetName_List,COLUMNS($N:Q)))),"") -> NP-04 | K12: =IFERROR(IF(COLUMNS($N:R)=ROWS(SheetName_List)+1,"Total",IF(COLUMNS($N:R)>ROWS(SheetName_List),"",INDEX(SheetName_List,COLUMNS($N:R)))),"") -> NP-05 | L12: =IFERROR(IF(COLUMNS($N:S)=ROWS(SheetName_List)+1,"Total",IF(COLUMNS($N:S)>ROWS(SheetName_List),"",INDEX(SheetName_List,COLUMNS($N:S)))),"") -> NP-06 | M12: =IFERROR(IF(COLUMNS($N:T)=ROWS(SheetName_List)+1,"Total",IF(COLUMNS($N:T)>ROWS(SheetName_List),"",INDEX(SheetName_List,COLUMNS($N:T)))),"") -> NP-07 | N12: =IFERROR(IF(COLUMNS($N:U)=ROWS(SheetName_List)+1,"Total",IF(COLUMNS($N:U)>ROWS(SheetName_List),"",INDEX(SheetName_List,COLUMNS($N:U)))),"") -> NP-09 | O12: =IFERROR(IF(COLUMNS($N:V)=ROWS(SheetName_List)+1,"Total",IF(COLUMNS($N:V)>ROWS(SheetName_List),"",INDEX(SheetName_List,COLUMNS($N:V)))),"") -> NP-10 | P12: =IFERROR(IF(COLUMNS($N:W)=ROWS(SheetName_List)+1,"Total",IF(COLUMNS($N:W)>ROWS(SheetName_List),"",INDEX(SheetName_List,COLUMNS($N:W)))),"") -> NP-11 | Q12: =IFERROR(IF(COLUMNS($N:X)=ROWS(SheetName_List)+1,"Total",IF(COLUMNS($N:X)>ROWS(SheetName_List),"",INDEX(SheetName_List,COLUMNS($N:X)))),"") -> Total | R12: =IFERROR(IF(COLUMNS($N:Y)=ROWS(SheetName_List)+1,"Total",IF(COLUMNS($N:Y)>ROWS(SheetName_List),"",INDEX(SheetName_List,COLUMNS($N:Y)))),"") ->  | S12: =IFERROR(IF(COLUMNS($N:Z)=ROWS(SheetName_List)+1,"Total",IF(COLUMNS($N:Z)>ROWS(SheetName_List),"",INDEX(SheetName_List,COLUMNS($N:Z)))),"") ->  | T12: =IFERROR(IF(COLUMNS($N:AA)=ROWS(SheetName_List)+1,"Total",IF(COLUMNS($N:AA)>ROWS(SheetName_List),"",INDEX(SheetName_List,COLUMNS($N:AA)))),"") ->  | U12: =IFERROR(IF(COLUMNS($N:AB)=ROWS(SheetName_List)+1,"Total",IF(COLUMNS($N:AB)>ROWS(SheetName_List),"",INDEX(SheetName_List,COLUMNS($N:AB)))),"") ->  | V12: =IFERROR(IF(COLUMNS($N:AC)=ROWS(SheetName_List)+1,"Total",IF(COLUMNS($N:AC)>ROWS(SheetName_List),"",INDEX(SheetName_List,COLUMNS($N:AC)))),"") ->  | W12: =IFERROR(IF(COLUMNS($N:AD)=ROWS(SheetName_List)+1,"Total",IF(COLUMNS($N:AD)>ROWS(SheetName_List),"",INDEX(SheetName_List,COLUMNS($N:AD)))),"") ->  | X12: =IFERROR(IF(COLUMNS($N:AE)=ROWS(SheetName_List)+1,"Total",IF(COLUMNS($N:AE)>ROWS(SheetName_List),"",INDEX(SheetName_List,COLUMNS($N:AE)))),"") ->  | Y12: =IFERROR(IF(COLUMNS($N:AF)=ROWS(SheetName_List)+1,"Total",IF(COLUMNS($N:AF)>ROWS(SheetName_List),"",INDEX(SheetName_List,COLUMNS($N:AF)))),"") ->  | Z12: =IFERROR(IF(COLUMNS($N:AG)=ROWS(SheetName_List)+1,"Total",IF(COLUMNS($N:AG)>ROWS(SheetName_List),"",INDEX(SheetName_List,COLUMNS($N:AG)))),"") ->  | AA12: =IF(OR(Selector<>1,$G$12=""),"","ผลต่าง") -> ผลต่าง | AF12: Date | AG12: Route | AH12: Type | AI12: Products | AJ12: Qty In-Out | AL12: Date | AM12: Route | AN12: Type | AO12: Products | AP12: Qty In-Out | AS12: Date | AT12: Route | AU12: Type | AV12: Products | AW12: Qty In-Out
B13: =IF(OR($C13="",$C13=0,ROWS($13:13)>ROWS(Product_List)),"",COUNTIF($C$13:$C13,"*?")) -> 1 | C13: =IFERROR(IF($C$9="No File In Folder","",INDEX(Product_List,ROWS($13:13))),"") -> 01-ขนมปังไส้สังขยาเล็ก | D13: =IF($C$13="","",IF(C13=0,0,IFERROR(INDEX(FR_Qty,MATCH($C13,FR_Product,0)),0))) -> 450 | E13: =IFERROR(INDEX(Brch_FileNameList,ROWS($11:11)),"") -> BPU_NP01-190202.xlsx | F13: =IF(E13="","",SL_BranchCode&"-"&MID(E13,7,2)) -> NP-01 | G13: =IFERROR(IF(OR($C13=0,G$12=""),"",IF(G$12="Total",IF(SUM(F13:$G13)=0,0,SUM(F13:$G13)),IF(Selector=8,Percent_Waste,Ref_Result))),"") -> 50 | H13: =IFERROR(IF(OR($C13=0,H$12=""),"",IF(H$12="Total",IF(SUM(G13:$G13)=0,0,SUM(G13:$G13)),IF(Selector=8,Percent_Waste,Ref_Result))),"") -> 40 | I13: =IFERROR(IF(OR($C13=0,I$12=""),"",IF(I$12="Total",IF(SUM($G13:H13)=0,0,SUM($G13:H13)),IF(Selector=8,Percent_Waste,Ref_Result))),"") -> 40 | J13: =IFERROR(IF(OR($C13=0,J$12=""),"",IF(J$12="Total",IF(SUM($G13:I13)=0,0,SUM($G13:I13)),IF(Selector=8,Percent_Waste,Ref_Result))),"") -> 50 | K13: =IFERROR(IF(OR($C13=0,K$12=""),"",IF(K$12="Total",IF(SUM($G13:J13)=0,0,SUM($G13:J13)),IF(Selector=8,Percent_Waste,Ref_Result))),"") -> 50 | L13: =IFERROR(IF(OR($C13=0,L$12=""),"",IF(L$12="Total",IF(SUM($G13:K13)=0,0,SUM($G13:K13)),IF(Selector=8,Percent_Waste,Ref_Result))),"") -> 30 | M13: =IFERROR(IF(OR($C13=0,M$12=""),"",IF(M$12="Total",IF(SUM($G13:L13)=0,0,SUM($G13:L13)),IF(Selector=8,Percent_Waste,Ref_Result))),"") -> 40 | N13: =IFERROR(IF(OR($C13=0,N$12=""),"",IF(N$12="Total",IF(SUM($G13:M13)=0,0,SUM($G13:M13)),IF(Selector=8,Percent_Waste,Ref_Result))),"") -> 30 | O13: =IFERROR(IF(OR($C13=0,O$12=""),"",IF(O$12="Total",IF(SUM($G13:N13)=0,0,SUM($G13:N13)),IF(Selector=8,Percent_Waste,Ref_Result))),"") -> 30 | P13: =IFERROR(IF(OR($C13=0,P$12=""),"",IF(P$12="Total",IF(SUM($G13:O13)=0,0,SUM($G13:O13)),IF(Selector=8,Percent_Waste,Ref_Result))),"") -> 50 | Q13: =IFERROR(IF(OR($C13=0,Q$12=""),"",IF(Q$12="Total",IF(SUM($G13:P13)=0,0,SUM($G13:P13)),IF(Selector=8,Percent_Waste,Ref_Result))),"") -> 410 | R13: =IFERROR(IF(OR($C13=0,R$12=""),"",IF(R$12="Total",IF(SUM($G13:Q13)=0,0,SUM($G13:Q13)),IF(Selector=8,Percent_Waste,Ref_Result))),"") ->  | S13: =IFERROR(IF(OR($C13=0,S$12=""),"",IF(S$12="Total",IF(SUM($G13:R13)=0,0,SUM($G13:R13)),IF(Selector=8,Percent_Waste,Ref_Result))),"") ->  | T13: =IFERROR(IF(OR($C13=0,T$12=""),"",IF(T$12="Total",IF(SUM($G13:S13)=0,0,SUM($G13:S13)),IF(Selector=8,Percent_Waste,Ref_Result))),"") ->  | U13: =IFERROR(IF(OR($C13=0,U$12=""),"",IF(U$12="Total",IF(SUM($G13:T13)=0,0,SUM($G13:T13)),IF(Selector=8,Percent_Waste,Ref_Result))),"") ->  | V13: =IFERROR(IF(OR($C13=0,V$12=""),"",IF(V$12="Total",IF(SUM($G13:U13)=0,0,SUM($G13:U13)),IF(Selector=8,Percent_Waste,Ref_Result))),"") ->  | W13: =IFERROR(IF(OR($C13=0,W$12=""),"",IF(W$12="Total",IF(SUM($G13:V13)=0,0,SUM($G13:V13)),IF(Selector=8,Percent_Waste,Ref_Result))),"") ->  | X13: =IFERROR(IF(OR($C13=0,X$12=""),"",IF(X$12="Total",IF(SUM($G13:W13)=0,0,SUM($G13:W13)),IF(Selector=8,Percent_Waste,Ref_Result))),"") ->  | Y13: =IFERROR(IF(OR($C13=0,Y$12=""),"",IF(Y$12="Total",IF(SUM($G13:X13)=0,0,SUM($G13:X13)),IF(Selector=8,Percent_Waste,Ref_Result))),"") ->  | Z13: =IFERROR(IF(OR($C13=0,Z$12=""),"",IF(Z$12="Total",IF(SUM($G13:Y13)=0,0,SUM($G13:Y13)),IF(Selector=8,Percent_Waste,Ref_Result))),"") ->  | AA13: =IF(OR(Selector<>1,$G13=""),"",D13-INDEX(G13:Z13,MATCH("Total",$G$12:$Z$12,0))) -> 40 | AF13: =IFERROR(IF($AF$11="FRY",INDEX(Conn_FRY_Delivery,ROWS($13:13),COLUMNS($A:A)),""),"") -> 2019-02-02 | AG13: =IFERROR(IF($AF$11="FRY",INDEX(Conn_FRY_Delivery,ROWS($13:13),COLUMNS($A:B)),""),"") -> FRY | AH13: =IFERROR(IF($AF$11="FRY",INDEX(Conn_FRY_Delivery,ROWS($13:13),COLUMNS($A:C)),""),"") -> รับ | AI13: =IFERROR(IF($AF$11="FRY",INDEX(Conn_FRY_Delivery,ROWS($13:13),COLUMNS($A:D)),""),"") -> 01-ขนมปังไส้สังขยาเล็ก | AJ13: =IFERROR(IF($AF$11="FRY",INDEX(Conn_FRY_Delivery,ROWS($13:13),COLUMNS($A:E)),""),"") -> 450 | AL13: =IFERROR(IF($AL$11="FRK",INDEX(Conn_FRK_Delivery,ROWS($13:13),COLUMNS($A:A)),""),"") -> 2019-02-21 | AM13: =IFERROR(IF($AL$11="FRK",INDEX(Conn_FRK_Delivery,ROWS($13:13),COLUMNS($A:B)),""),"") -> FRK | AN13: =IFERROR(IF($AL$11="FRK",INDEX(Conn_FRK_Delivery,ROWS($13:13),COLUMNS($A:C)),""),"") -> รับ | AO13: =IFERROR(IF($AL$11="FRK",INDEX(Conn_FRK_Delivery,ROWS($13:13),COLUMNS($A:D)),""),"") -> 33-แซนด์วิชหมูหยองน้ำสลัด | AP13: =IFERROR(IF($AL$11="FRK",INDEX(Conn_FRK_Delivery,ROWS($13:13),COLUMNS($A:E)),""),"") -> 300 | AR13: =IF(ROWS($13:13)<=IFERROR(ROWS(FRY_Delivery_Data),0),"FRY",IF(ROWS($13:13)<=IFERROR(ROWS(FRY_Delivery_Data),0)+IFERROR(ROWS(FRK_Delivery_Data),0),"FRK","")) -> FRY | AS13: =IF($AR13="FRY",INDEX(FRY_Delivery_Data,COUNTIF($AR$13:$AR13,$AR13),COLUMNS($A:A)),IF($AR13="FRK",INDEX(FRK_Delivery_Data,COUNTIF($AR$13:$AR13,$AR13),COLUMNS($A:A)),"")) -> 2019-02-02 | AT13: =IF($AR13="FRY",INDEX(FRY_Delivery_Data,COUNTIF($AR$13:$AR13,$AR13),COLUMNS($A:B)),IF($AR13="FRK",INDEX(FRK_Delivery_Data,COUNTIF($AR$13:$AR13,$AR13),COLUMNS($A:B)),"")) -> FRY | AU13: =IF($AR13="FRY",INDEX(FRY_Delivery_Data,COUNTIF($AR$13:$AR13,$AR13),COLUMNS($A:C)),IF($AR13="FRK",INDEX(FRK_Delivery_Data,COUNTIF($AR$13:$AR13,$AR13),COLUMNS($A:C)),"")) -> รับ | AV13: =IF($AR13="FRY",INDEX(FRY_Delivery_Data,COUNTIF($AR$13:$AR13,$AR13),COLUMNS($A:D)),IF($AR13="FRK",INDEX(FRK_Delivery_Data,COUNTIF($AR$13:$AR13,$AR13),COLUMNS($A:D)),"")) -> 01-ขนมปังไส้สังขยาเล็ก | AW13: =IF($AR13="FRY",INDEX(FRY_Delivery_Data,COUNTIF($AR$13:$AR13,$AR13),COLUMNS($A:E)),IF($AR13="FRK",INDEX(FRK_Delivery_Data,COUNTIF($AR$13:$AR13,$AR13),COLUMNS($A:E)),"")) -> 450
B14: =IF(OR($C14="",$C14=0,ROWS($13:14)>ROWS(Product_List)),"",COUNTIF($C$13:$C14,"*?")) -> 2 | C14: =IFERROR(IF($C$9="No File In Folder","",INDEX(Product_List,ROWS($13:14))),"") -> 02-ขนมปังไส้เผือก | D14: 450 | E14: =IFERROR(INDEX(Brch_FileNameList,ROWS($11:12)),"") -> BPU_NP02-190202.xlsx | F14: =IF(E14="","",SL_BranchCode&"-"&MID(E14,7,2)) -> NP-02 | G14: =IFERROR(IF(OR($C14=0,G$12=""),"",IF(G$12="Total",IF(SUM(F14:$G14)=0,0,SUM(F14:$G14)),IF(Selector=8,Percent_Waste,Ref_Result))),"") -> 50 | H14: =IFERROR(IF(OR($C14=0,H$12=""),"",IF(H$12="Total",IF(SUM(G14:$G14)=0,0,SUM(G14:$G14)),IF(Selector=8,Percent_Waste,Ref_Result))),"") -> 40 | I14: =IFERROR(IF(OR($C14=0,I$12=""),"",IF(I$12="Total",IF(SUM($G14:H14)=0,0,SUM($G14:H14)),IF(Selector=8,Percent_Waste,Ref_Result))),"") -> 40 | J14: =IFERROR(IF(OR($C14=0,J$12=""),"",IF(J$12="Total",IF(SUM($G14:I14)=0,0,SUM($G14:I14)),IF(Selector=8,Percent_Waste,Ref_Result))),"") -> 50 | K14: =IFERROR(IF(OR($C14=0,K$12=""),"",IF(K$12="Total",IF(SUM($G14:J14)=0,0,SUM($G14:J14)),IF(Selector=8,Percent_Waste,Ref_Result))),"") -> 50 | L14: =IFERROR(IF(OR($C14=0,L$12=""),"",IF(L$12="Total",IF(SUM($G14:K14)=0,0,SUM($G14:K14)),IF(Selector=8,Percent_Waste,Ref_Result))),"") -> 30 | M14: =IFERROR(IF(OR($C14=0,M$12=""),"",IF(M$12="Total",IF(SUM($G14:L14)=0,0,SUM($G14:L14)),IF(Selector=8,Percent_Waste,Ref_Result))),"") -> 40 | N14: =IFERROR(IF(OR($C14=0,N$12=""),"",IF(N$12="Total",IF(SUM($G14:M14)=0,0,SUM($G14:M14)),IF(Selector=8,Percent_Waste,Ref_Result))),"") -> 30 | O14: =IFERROR(IF(OR($C14=0,O$12=""),"",IF(O$12="Total",IF(SUM($G14:N14)=0,0,SUM($G14:N14)),IF(Selector=8,Percent_Waste,Ref_Result))),"") -> 30 | P14: =IFERROR(IF(OR($C14=0,P$12=""),"",IF(P$12="Total",IF(SUM($G14:O14)=0,0,SUM($G14:O14)),IF(Selector=8,Percent_Waste,Ref_Result))),"") -> 50 | Q14: =IFERROR(IF(OR($C14=0,Q$12=""),"",IF(Q$12="Total",IF(SUM($G14:P14)=0,0,SUM($G14:P14)),IF(Selector=8,Percent_Waste,Ref_Result))),"") -> 410 | R14: =IFERROR(IF(OR($C14=0,R$12=""),"",IF(R$12="Total",IF(SUM($G14:Q14)=0,0,SUM($G14:Q14)),IF(Selector=8,Percent_Waste,Ref_Result))),"") ->  | S14: =IFERROR(IF(OR($C14=0,S$12=""),"",IF(S$12="Total",IF(SUM($G14:R14)=0,0,SUM($G14:R14)),IF(Selector=8,Percent_Waste,Ref_Result))),"") ->  | T14: =IFERROR(IF(OR($C14=0,T$12=""),"",IF(T$12="Total",IF(SUM($G14:S14)=0,0,SUM($G14:S14)),IF(Selector=8,Percent_Waste,Ref_Result))),"") ->  | U14: =IFERROR(IF(OR($C14=0,U$12=""),"",IF(U$12="Total",IF(SUM($G14:T14)=0,0,SUM($G14:T14)),IF(Selector=8,Percent_Waste,Ref_Result))),"") ->  | V14: =IFERROR(IF(OR($C14=0,V$12=""),"",IF(V$12="Total",IF(SUM($G14:U14)=0,0,SUM($G14:U14)),IF(Selector=8,Percent_Waste,Ref_Result))),"") ->  | W14: =IFERROR(IF(OR($C14=0,W$12=""),"",IF(W$12="Total",IF(SUM($G14:V14)=0,0,SUM($G14:V14)),IF(Selector=8,Percent_Waste,Ref_Result))),"") ->  | X14: =IFERROR(IF(OR($C14=0,X$12=""),"",IF(X$12="Total",IF(SUM($G14:W14)=0,0,SUM($G14:W14)),IF(Selector=8,Percent_Waste,Ref_Result))),"") ->  | Y14: =IFERROR(IF(OR($C14=0,Y$12=""),"",IF(Y$12="Total",IF(SUM($G14:X14)=0,0,SUM($G14:X14)),IF(Selector=8,Percent_Waste,Ref_Result))),"") ->  | Z14: =IFERROR(IF(OR($C14=0,Z$12=""),"",IF(Z$12="Total",IF(SUM($G14:Y14)=0,0,SUM($G14:Y14)),IF(Selector=8,Percent_Waste,Ref_Result))),"") ->  | AA14: 40 | AF14: =IFERROR(IF($AF$11="FRY",INDEX(Conn_FRY_Delivery,ROWS($13:14),COLUMNS($A:A)),""),"") -> 2019-02-02 | AG14: =IFERROR(IF($AF$11="FRY",INDEX(Conn_FRY_Delivery,ROWS($13:14),COLUMNS($A:B)),""),"") -> FRY | AH14: =IFERROR(IF($AF$11="FRY",INDEX(Conn_FRY_Delivery,ROWS($13:14),COLUMNS($A:C)),""),"") -> รับ | AI14: =IFERROR(IF($AF$11="FRY",INDEX(Conn_FRY_Delivery,ROWS($13:14),COLUMNS($A:D)),""),"") -> 02-ขนมปังไส้เผือก | AJ14: =IFERROR(IF($AF$11="FRY",INDEX(Conn_FRY_Delivery,ROWS($13:14),COLUMNS($A:E)),""),"") -> 450 | AL14: =IFERROR(IF($AL$11="FRK",INDEX(Conn_FRK_Delivery,ROWS($13:14),COLUMNS($A:A)),""),"") -> 2019-02-21 | AM14: =IFERROR(IF($AL$11="FRK",INDEX(Conn_FRK_Delivery,ROWS($13:14),COLUMNS($A:B)),""),"") -> FRK | AN14: =IFERROR(IF($AL$11="FRK",INDEX(Conn_FRK_Delivery,ROWS($13:14),COLUMNS($A:C)),""),"") -> รับ | AO14: =IFERROR(IF($AL$11="FRK",INDEX(Conn_FRK_Delivery,ROWS($13:14),COLUMNS($A:D)),""),"") -> 34-แซนด์วิชไก่หยองน้ำสลัด | AP14: =IFERROR(IF($AL$11="FRK",INDEX(Conn_FRK_Delivery,ROWS($13:14),COLUMNS($A:E)),""),"") -> 300 | AR14: =IF(ROWS($13:14)<=IFERROR(ROWS(FRY_Delivery_Data),0),"FRY",IF(ROWS($13:14)<=IFERROR(ROWS(FRY_Delivery_Data),0)+IFERROR(ROWS(FRK_Delivery_Data),0),"FRK","")) -> FRY | AS14: =IF($AR14="FRY",INDEX(FRY_Delivery_Data,COUNTIF($AR$13:$AR14,$AR14),COLUMNS($A:A)),IF($AR14="FRK",INDEX(FRK_Delivery_Data,COUNTIF($AR$13:$AR14,$AR14),COLUMNS($A:A)),"")) -> 2019-02-02 | AT14: =IF($AR14="FRY",INDEX(FRY_Delivery_Data,COUNTIF($AR$13:$AR14,$AR14),COLUMNS($A:B)),IF($AR14="FRK",INDEX(FRK_Delivery_Data,COUNTIF($AR$13:$AR14,$AR14),COLUMNS($A:B)),"")) -> FRY | AU14: =IF($AR14="FRY",INDEX(FRY_Delivery_Data,COUNTIF($AR$13:$AR14,$AR14),COLUMNS($A:C)),IF($AR14="FRK",INDEX(FRK_Delivery_Data,COUNTIF($AR$13:$AR14,$AR14),COLUMNS($A:C)),"")) -> รับ | AV14: =IF($AR14="FRY",INDEX(FRY_Delivery_Data,COUNTIF($AR$13:$AR14,$AR14),COLUMNS($A:D)),IF($AR14="FRK",INDEX(FRK_Delivery_Data,COUNTIF($AR$13:$AR14,$AR14),COLUMNS($A:D)),"")) -> 02-ขนมปังไส้เผือก | AW14: =IF($AR14="FRY",INDEX(FRY_Delivery_Data,COUNTIF($AR$13:$AR14,$AR14),COLUMNS($A:E)),IF($AR14="FRK",INDEX(FRK_Delivery_Data,COUNTIF($AR$13:$AR14,$AR14),COLUMNS($A:E)),"")) -> 450
B15: =IF(OR($C15="",$C15=0,ROWS($13:15)>ROWS(Product_List)),"",COUNTIF($C$13:$C15,"*?")) -> 3 | C15: =IFERROR(IF($C$9="No File In Folder","",INDEX(Product_List,ROWS($13:15))),"") -> 03-ขนมปังไส้ถั่วแดง | D15: 450 | E15: =IFERROR(INDEX(Brch_FileNameList,ROWS($11:13)),"") -> BPU_NP03-190202.xlsx | F15: =IF(E15="","",SL_BranchCode&"-"&MID(E15,7,2)) -> NP-03 | G15: =IFERROR(IF(OR($C15=0,G$12=""),"",IF(G$12="Total",IF(SUM(F15:$G15)=0,0,SUM(F15:$G15)),IF(Selector=8,Percent_Waste,Ref_Result))),"") -> 50 | H15: =IFERROR(IF(OR($C15=0,H$12=""),"",IF(H$12="Total",IF(SUM(G15:$G15)=0,0,SUM(G15:$G15)),IF(Selector=8,Percent_Waste,Ref_Result))),"") -> 40 | I15: =IFERROR(IF(OR($C15=0,I$12=""),"",IF(I$12="Total",IF(SUM($G15:H15)=0,0,SUM($G15:H15)),IF(Selector=8,Percent_Waste,Ref_Result))),"") -> 40 | J15: =IFERROR(IF(OR($C15=0,J$12=""),"",IF(J$12="Total",IF(SUM($G15:I15)=0,0,SUM($G15:I15)),IF(Selector=8,Percent_Waste,Ref_Result))),"") -> 50 | K15: =IFERROR(IF(OR($C15=0,K$12=""),"",IF(K$12="Total",IF(SUM($G15:J15)=0,0,SUM($G15:J15)),IF(Selector=8,Percent_Waste,Ref_Result))),"") -> 50 | L15: =IFERROR(IF(OR($C15=0,L$12=""),"",IF(L$12="Total",IF(SUM($G15:K15)=0,0,SUM($G15:K15)),IF(Selector=8,Percent_Waste,Ref_Result))),"") -> 30 | M15: =IFERROR(IF(OR($C15=0,M$12=""),"",IF(M$12="Total",IF(SUM($G15:L15)=0,0,SUM($G15:L15)),IF(Selector=8,Percent_Waste,Ref_Result))),"") -> 40 | N15: =IFERROR(IF(OR($C15=0,N$12=""),"",IF(N$12="Total",IF(SUM($G15:M15)=0,0,SUM($G15:M15)),IF(Selector=8,Percent_Waste,Ref_Result))),"") -> 30 | O15: =IFERROR(IF(OR($C15=0,O$12=""),"",IF(O$12="Total",IF(SUM($G15:N15)=0,0,SUM($G15:N15)),IF(Selector=8,Percent_Waste,Ref_Result))),"") -> 30 | P15: =IFERROR(IF(OR($C15=0,P$12=""),"",IF(P$12="Total",IF(SUM($G15:O15)=0,0,SUM($G15:O15)),IF(Selector=8,Percent_Waste,Ref_Result))),"") -> 50 | Q15: =IFERROR(IF(OR($C15=0,Q$12=""),"",IF(Q$12="Total",IF(SUM($G15:P15)=0,0,SUM($G15:P15)),IF(Selector=8,Percent_Waste,Ref_Result))),"") -> 410 | R15: =IFERROR(IF(OR($C15=0,R$12=""),"",IF(R$12="Total",IF(SUM($G15:Q15)=0,0,SUM($G15:Q15)),IF(Selector=8,Percent_Waste,Ref_Result))),"") ->  | S15: =IFERROR(IF(OR($C15=0,S$12=""),"",IF(S$12="Total",IF(SUM($G15:R15)=0,0,SUM($G15:R15)),IF(Selector=8,Percent_Waste,Ref_Result))),"") ->  | T15: =IFERROR(IF(OR($C15=0,T$12=""),"",IF(T$12="Total",IF(SUM($G15:S15)=0,0,SUM($G15:S15)),IF(Selector=8,Percent_Waste,Ref_Result))),"") ->  | U15: =IFERROR(IF(OR($C15=0,U$12=""),"",IF(U$12="Total",IF(SUM($G15:T15)=0,0,SUM($G15:T15)),IF(Selector=8,Percent_Waste,Ref_Result))),"") ->  | V15: =IFERROR(IF(OR($C15=0,V$12=""),"",IF(V$12="Total",IF(SUM($G15:U15)=0,0,SUM($G15:U15)),IF(Selector=8,Percent_Waste,Ref_Result))),"") ->  | W15: =IFERROR(IF(OR($C15=0,W$12=""),"",IF(W$12="Total",IF(SUM($G15:V15)=0,0,SUM($G15:V15)),IF(Selector=8,Percent_Waste,Ref_Result))),"") ->  | X15: =IFERROR(IF(OR($C15=0,X$12=""),"",IF(X$12="Total",IF(SUM($G15:W15)=0,0,SUM($G15:W15)),IF(Selector=8,Percent_Waste,Ref_Result))),"") ->  | Y15: =IFERROR(IF(OR($C15=0,Y$12=""),"",IF(Y$12="Total",IF(SUM($G15:X15)=0,0,SUM($G15:X15)),IF(Selector=8,Percent_Waste,Ref_Result))),"") ->  | Z15: =IFERROR(IF(OR($C15=0,Z$12=""),"",IF(Z$12="Total",IF(SUM($G15:Y15)=0,0,SUM($G15:Y15)),IF(Selector=8,Percent_Waste,Ref_Result))),"") ->  | AA15: 40 | AF15: =IFERROR(IF($AF$11="FRY",INDEX(Conn_FRY_Delivery,ROWS($13:15),COLUMNS($A:A)),""),"") -> 2019-02-02 | AG15: =IFERROR(IF($AF$11="FRY",INDEX(Conn_FRY_Delivery,ROWS($13:15),COLUMNS($A:B)),""),"") -> FRY | AH15: =IFERROR(IF($AF$11="FRY",INDEX(Conn_FRY_Delivery,ROWS($13:15),COLUMNS($A:C)),""),"") -> รับ | AI15: =IFERROR(IF($AF$11="FRY",INDEX(Conn_FRY_Delivery,ROWS($13:15),COLUMNS($A:D)),""),"") -> 03-ขนมปังไส้ถั่วแดง | AJ15: =IFERROR(IF($AF$11="FRY",INDEX(Conn_FRY_Delivery,ROWS($13:15),COLUMNS($A:E)),""),"") -> 450 | AL15: =IFERROR(IF($AL$11="FRK",INDEX(Conn_FRK_Delivery,ROWS($13:15),COLUMNS($A:A)),""),"") ->  | AM15: =IFERROR(IF($AL$11="FRK",INDEX(Conn_FRK_Delivery,ROWS($13:15),COLUMNS($A:B)),""),"") ->  | AN15: =IFERROR(IF($AL$11="FRK",INDEX(Conn_FRK_Delivery,ROWS($13:15),COLUMNS($A:C)),""),"") ->  | AO15: =IFERROR(IF($AL$11="FRK",INDEX(Conn_FRK_Delivery,ROWS($13:15),COLUMNS($A:D)),""),"") ->  | AP15: =IFERROR(IF($AL$11="FRK",INDEX(Conn_FRK_Delivery,ROWS($13:15),COLUMNS($A:E)),""),"") ->  | AR15: =IF(ROWS($13:15)<=IFERROR(ROWS(FRY_Delivery_Data),0),"FRY",IF(ROWS($13:15)<=IFERROR(ROWS(FRY_Delivery_Data),0)+IFERROR(ROWS(FRK_Delivery_Data),0),"FRK","")) -> FRY | AS15: =IF($AR15="FRY",INDEX(FRY_Delivery_Data,COUNTIF($AR$13:$AR15,$AR15),COLUMNS($A:A)),IF($AR15="FRK",INDEX(FRK_Delivery_Data,COUNTIF($AR$13:$AR15,$AR15),COLUMNS($A:A)),"")) -> 2019-02-02 | AT15: =IF($AR15="FRY",INDEX(FRY_Delivery_Data,COUNTIF($AR$13:$AR15,$AR15),COLUMNS($A:B)),IF($AR15="FRK",INDEX(FRK_Delivery_Data,COUNTIF($AR$13:$AR15,$AR15),COLUMNS($A:B)),"")) -> FRY | AU15: =IF($AR15="FRY",INDEX(FRY_Delivery_Data,COUNTIF($AR$13:$AR15,$AR15),COLUMNS($A:C)),IF($AR15="FRK",INDEX(FRK_Delivery_Data,COUNTIF($AR$13:$AR15,$AR15),COLUMNS($A:C)),"")) -> รับ | AV15: =IF($AR15="FRY",INDEX(FRY_Delivery_Data,COUNTIF($AR$13:$AR15,$AR15),COLUMNS($A:D)),IF($AR15="FRK",INDEX(FRK_Delivery_Data,COUNTIF($AR$13:$AR15,$AR15),COLUMNS($A:D)),"")) -> 03-ขนมปังไส้ถั่วแดง | AW15: =IF($AR15="FRY",INDEX(FRY_Delivery_Data,COUNTIF($AR$13:$AR15,$AR15),COLUMNS($A:E)),IF($AR15="FRK",INDEX(FRK_Delivery_Data,COUNTIF($AR$13:$AR15,$AR15),COLUMNS($A:E)),"")) -> 450
B16: =IF(OR($C16="",$C16=0,ROWS($13:16)>ROWS(Product_List)),"",COUNTIF($C$13:$C16,"*?")) -> 4 | C16: =IFERROR(IF($C$9="No File In Folder","",INDEX(Product_List,ROWS($13:16))),"") -> 04-โมจิไส้ถั่ว | D16: 400 | E16: =IFERROR(INDEX(Brch_FileNameList,ROWS($11:14)),"") -> BPU_NP04-190202.xlsx | F16: =IF(E16="","",SL_BranchCode&"-"&MID(E16,7,2)) -> NP-04 | G16: =IFERROR(IF(OR($C16=0,G$12=""),"",IF(G$12="Total",IF(SUM(F16:$G16)=0,0,SUM(F16:$G16)),IF(Selector=8,Percent_Waste,Ref_Result))),"") -> 40 | H16: =IFERROR(IF(OR($C16=0,H$12=""),"",IF(H$12="Total",IF(SUM(G16:$G16)=0,0,SUM(G16:$G16)),IF(Selector=8,Percent_Waste,Ref_Result))),"") -> 50 | I16: =IFERROR(IF(OR($C16=0,I$12=""),"",IF(I$12="Total",IF(SUM($G16:H16)=0,0,SUM($G16:H16)),IF(Selector=8,Percent_Waste,Ref_Result))),"") -> 30 | J16: =IFERROR(IF(OR($C16=0,J$12=""),"",IF(J$12="Total",IF(SUM($G16:I16)=0,0,SUM($G16:I16)),IF(Selector=8,Percent_Waste,Ref_Result))),"") -> 40 | K16: =IFERROR(IF(OR($C16=0,K$12=""),"",IF(K$12="Total",IF(SUM($G16:J16)=0,0,SUM($G16:J16)),IF(Selector=8,Percent_Waste,Ref_Result))),"") -> 50 | L16: =IFERROR(IF(OR($C16=0,L$12=""),"",IF(L$12="Total",IF(SUM($G16:K16)=0,0,SUM($G16:K16)),IF(Selector=8,Percent_Waste,Ref_Result))),"") -> 40 | M16: =IFERROR(IF(OR($C16=0,M$12=""),"",IF(M$12="Total",IF(SUM($G16:L16)=0,0,SUM($G16:L16)),IF(Selector=8,Percent_Waste,Ref_Result))),"") -> 20 | N16: =IFERROR(IF(OR($C16=0,N$12=""),"",IF(N$12="Total",IF(SUM($G16:M16)=0,0,SUM($G16:M16)),IF(Selector=8,Percent_Waste,Ref_Result))),"") -> 30 | O16: =IFERROR(IF(OR($C16=0,O$12=""),"",IF(O$12="Total",IF(SUM($G16:N16)=0,0,SUM($G16:N16)),IF(Selector=8,Percent_Waste,Ref_Result))),"") -> 20 | P16: =IFERROR(IF(OR($C16=0,P$12=""),"",IF(P$12="Total",IF(SUM($G16:O16)=0,0,SUM($G16:O16)),IF(Selector=8,Percent_Waste,Ref_Result))),"") -> 50 | Q16: =IFERROR(IF(OR($C16=0,Q$12=""),"",IF(Q$12="Total",IF(SUM($G16:P16)=0,0,SUM($G16:P16)),IF(Selector=8,Percent_Waste,Ref_Result))),"") -> 370 | R16: =IFERROR(IF(OR($C16=0,R$12=""),"",IF(R$12="Total",IF(SUM($G16:Q16)=0,0,SUM($G16:Q16)),IF(Selector=8,Percent_Waste,Ref_Result))),"") ->  | S16: =IFERROR(IF(OR($C16=0,S$12=""),"",IF(S$12="Total",IF(SUM($G16:R16)=0,0,SUM($G16:R16)),IF(Selector=8,Percent_Waste,Ref_Result))),"") ->  | T16: =IFERROR(IF(OR($C16=0,T$12=""),"",IF(T$12="Total",IF(SUM($G16:S16)=0,0,SUM($G16:S16)),IF(Selector=8,Percent_Waste,Ref_Result))),"") ->  | U16: =IFERROR(IF(OR($C16=0,U$12=""),"",IF(U$12="Total",IF(SUM($G16:T16)=0,0,SUM($G16:T16)),IF(Selector=8,Percent_Waste,Ref_Result))),"") ->  | V16: =IFERROR(IF(OR($C16=0,V$12=""),"",IF(V$12="Total",IF(SUM($G16:U16)=0,0,SUM($G16:U16)),IF(Selector=8,Percent_Waste,Ref_Result))),"") ->  | W16: =IFERROR(IF(OR($C16=0,W$12=""),"",IF(W$12="Total",IF(SUM($G16:V16)=0,0,SUM($G16:V16)),IF(Selector=8,Percent_Waste,Ref_Result))),"") ->  | X16: =IFERROR(IF(OR($C16=0,X$12=""),"",IF(X$12="Total",IF(SUM($G16:W16)=0,0,SUM($G16:W16)),IF(Selector=8,Percent_Waste,Ref_Result))),"") ->  | Y16: =IFERROR(IF(OR($C16=0,Y$12=""),"",IF(Y$12="Total",IF(SUM($G16:X16)=0,0,SUM($G16:X16)),IF(Selector=8,Percent_Waste,Ref_Result))),"") ->  | Z16: =IFERROR(IF(OR($C16=0,Z$12=""),"",IF(Z$12="Total",IF(SUM($G16:Y16)=0,0,SUM($G16:Y16)),IF(Selector=8,Percent_Waste,Ref_Result))),"") ->  | AA16: 30 | AF16: =IFERROR(IF($AF$11="FRY",INDEX(Conn_FRY_Delivery,ROWS($13:16),COLUMNS($A:A)),""),"") -> 2019-02-02 | AG16: =IFERROR(IF($AF$11="FRY",INDEX(Conn_FRY_Delivery,ROWS($13:16),COLUMNS($A:B)),""),"") -> FRY | AH16: =IFERROR(IF($AF$11="FRY",INDEX(Conn_FRY_Delivery,ROWS($13:16),COLUMNS($A:C)),""),"") -> รับ | AI16: =IFERROR(IF($AF$11="FRY",INDEX(Conn_FRY_Delivery,ROWS($13:16),COLUMNS($A:D)),""),"") -> 04-โมจิไส้ถั่ว | AJ16: =IFERROR(IF($AF$11="FRY",INDEX(Conn_FRY_Delivery,ROWS($13:16),COLUMNS($A:E)),""),"") -> 400 | AL16: =IFERROR(IF($AL$11="FRK",INDEX(Conn_FRK_Delivery,ROWS($13:16),COLUMNS($A:A)),""),"") ->  | AM16: =IFERROR(IF($AL$11="FRK",INDEX(Conn_FRK_Delivery,ROWS($13:16),COLUMNS($A:B)),""),"") ->  | AN16: =IFERROR(IF($AL$11="FRK",INDEX(Conn_FRK_Delivery,ROWS($13:16),COLUMNS($A:C)),""),"") ->  | AO16: =IFERROR(IF($AL$11="FRK",INDEX(Conn_FRK_Delivery,ROWS($13:16),COLUMNS($A:D)),""),"") ->  | AP16: =IFERROR(IF($AL$11="FRK",INDEX(Conn_FRK_Delivery,ROWS($13:16),COLUMNS($A:E)),""),"") ->  | AR16: =IF(ROWS($13:16)<=IFERROR(ROWS(FRY_Delivery_Data),0),"FRY",IF(ROWS($13:16)<=IFERROR(ROWS(FRY_Delivery_Data),0)+IFERROR(ROWS(FRK_Delivery_Data),0),"FRK","")) -> FRY | AS16: =IF($AR16="FRY",INDEX(FRY_Delivery_Data,COUNTIF($AR$13:$AR16,$AR16),COLUMNS($A:A)),IF($AR16="FRK",INDEX(FRK_Delivery_Data,COUNTIF($AR$13:$AR16,$AR16),COLUMNS($A:A)),"")) -> 2019-02-02 | AT16: =IF($AR16="FRY",INDEX(FRY_Delivery_Data,COUNTIF($AR$13:$AR16,$AR16),COLUMNS($A:B)),IF($AR16="FRK",INDEX(FRK_Delivery_Data,COUNTIF($AR$13:$AR16,$AR16),COLUMNS($A:B)),"")) -> FRY | AU16: =IF($AR16="FRY",INDEX(FRY_Delivery_Data,COUNTIF($AR$13:$AR16,$AR16),COLUMNS($A:C)),IF($AR16="FRK",INDEX(FRK_Delivery_Data,COUNTIF($AR$13:$AR16,$AR16),COLUMNS($A:C)),"")) -> รับ | AV16: =IF($AR16="FRY",INDEX(FRY_Delivery_Data,COUNTIF($AR$13:$AR16,$AR16),COLUMNS($A:D)),IF($AR16="FRK",INDEX(FRK_Delivery_Data,COUNTIF($AR$13:$AR16,$AR16),COLUMNS($A:D)),"")) -> 04-โมจิไส้ถั่ว | AW16: =IF($AR16="FRY",INDEX(FRY_Delivery_Data,COUNTIF($AR$13:$AR16,$AR16),COLUMNS($A:E)),IF($AR16="FRK",INDEX(FRK_Delivery_Data,COUNTIF($AR$13:$AR16,$AR16),COLUMNS($A:E)),"")) -> 400
B17: =IF(OR($C17="",$C17=0,ROWS($13:17)>ROWS(Product_List)),"",COUNTIF($C$13:$C17,"*?")) -> 5 | C17: =IFERROR(IF($C$9="No File In Folder","",INDEX(Product_List,ROWS($13:17))),"") -> 05-ขนมปังไส้สังขยาใหญ่ | D17: 350 | E17: =IFERROR(INDEX(Brch_FileNameList,ROWS($11:15)),"") -> BPU_NP05-190202.xlsx | F17: =IF(E17="","",SL_BranchCode&"-"&MID(E17,7,2)) -> NP-05 | G17: =IFERROR(IF(OR($C17=0,G$12=""),"",IF(G$12="Total",IF(SUM(F17:$G17)=0,0,SUM(F17:$G17)),IF(Selector=8,Percent_Waste,Ref_Result))),"") -> 30 | H17: =IFERROR(IF(OR($C17=0,H$12=""),"",IF(H$12="Total",IF(SUM(G17:$G17)=0,0,SUM(G17:$G17)),IF(Selector=8,Percent_Waste,Ref_Result))),"") -> 40 | I17: =IFERROR(IF(OR($C17=0,I$12=""),"",IF(I$12="Total",IF(SUM($G17:H17)=0,0,SUM($G17:H17)),IF(Selector=8,Percent_Waste,Ref_Result))),"") -> 20 | J17: =IFERROR(IF(OR($C17=0,J$12=""),"",IF(J$12="Total",IF(SUM($G17:I17)=0,0,SUM($G17:I17)),IF(Selector=8,Percent_Waste,Ref_Result))),"") -> 40 | K17: =IFERROR(IF(OR($C17=0,K$12=""),"",IF(K$12="Total",IF(SUM($G17:J17)=0,0,SUM($G17:J17)),IF(Selector=8,Percent_Waste,Ref_Result))),"") -> 40 | L17: =IFERROR(IF(OR($C17=0,L$12=""),"",IF(L$12="Total",IF(SUM($G17:K17)=0,0,SUM($G17:K17)),IF(Selector=8,Percent_Waste,Ref_Result))),"") -> 20 | M17: =IFERROR(IF(OR($C17=0,M$12=""),"",IF(M$12="Total",IF(SUM($G17:L17)=0,0,SUM($G17:L17)),IF(Selector=8,Percent_Waste,Ref_Result))),"") -> 30 | N17: =IFERROR(IF(OR($C17=0,N$12=""),"",IF(N$12="Total",IF(SUM($G17:M17)=0,0,SUM($G17:M17)),IF(Selector=8,Percent_Waste,Ref_Result))),"") -> 30 | O17: =IFERROR(IF(OR($C17=0,O$12=""),"",IF(O$12="Total",IF(SUM($G17:N17)=0,0,SUM($G17:N17)),IF(Selector=8,Percent_Waste,Ref_Result))),"") -> 20 | P17: =IFERROR(IF(OR($C17=0,P$12=""),"",IF(P$12="Total",IF(SUM($G17:O17)=0,0,SUM($G17:O17)),IF(Selector=8,Percent_Waste,Ref_Result))),"") -> 50 | Q17: =IFERROR(IF(OR($C17=0,Q$12=""),"",IF(Q$12="Total",IF(SUM($G17:P17)=0,0,SUM($G17:P17)),IF(Selector=8,Percent_Waste,Ref_Result))),"") -> 320 | R17: =IFERROR(IF(OR($C17=0,R$12=""),"",IF(R$12="Total",IF(SUM($G17:Q17)=0,0,SUM($G17:Q17)),IF(Selector=8,Percent_Waste,Ref_Result))),"") ->  | S17: =IFERROR(IF(OR($C17=0,S$12=""),"",IF(S$12="Total",IF(SUM($G17:R17)=0,0,SUM($G17:R17)),IF(Selector=8,Percent_Waste,Ref_Result))),"") ->  | T17: =IFERROR(IF(OR($C17=0,T$12=""),"",IF(T$12="Total",IF(SUM($G17:S17)=0,0,SUM($G17:S17)),IF(Selector=8,Percent_Waste,Ref_Result))),"") ->  | U17: =IFERROR(IF(OR($C17=0,U$12=""),"",IF(U$12="Total",IF(SUM($G17:T17)=0,0,SUM($G17:T17)),IF(Selector=8,Percent_Waste,Ref_Result))),"") ->  | V17: =IFERROR(IF(OR($C17=0,V$12=""),"",IF(V$12="Total",IF(SUM($G17:U17)=0,0,SUM($G17:U17)),IF(Selector=8,Percent_Waste,Ref_Result))),"") ->  | W17: =IFERROR(IF(OR($C17=0,W$12=""),"",IF(W$12="Total",IF(SUM($G17:V17)=0,0,SUM($G17:V17)),IF(Selector=8,Percent_Waste,Ref_Result))),"") ->  | X17: =IFERROR(IF(OR($C17=0,X$12=""),"",IF(X$12="Total",IF(SUM($G17:W17)=0,0,SUM($G17:W17)),IF(Selector=8,Percent_Waste,Ref_Result))),"") ->  | Y17: =IFERROR(IF(OR($C17=0,Y$12=""),"",IF(Y$12="Total",IF(SUM($G17:X17)=0,0,SUM($G17:X17)),IF(Selector=8,Percent_Waste,Ref_Result))),"") ->  | Z17: =IFERROR(IF(OR($C17=0,Z$12=""),"",IF(Z$12="Total",IF(SUM($G17:Y17)=0,0,SUM($G17:Y17)),IF(Selector=8,Percent_Waste,Ref_Result))),"") ->  | AA17: 30 | AF17: =IFERROR(IF($AF$11="FRY",INDEX(Conn_FRY_Delivery,ROWS($13:17),COLUMNS($A:A)),""),"") -> 2019-02-02 | AG17: =IFERROR(IF($AF$11="FRY",INDEX(Conn_FRY_Delivery,ROWS($13:17),COLUMNS($A:B)),""),"") -> FRY | AH17: =IFERROR(IF($AF$11="FRY",INDEX(Conn_FRY_Delivery,ROWS($13:17),COLUMNS($A:C)),""),"") -> รับ | AI17: =IFERROR(IF($AF$11="FRY",INDEX(Conn_FRY_Delivery,ROWS($13:17),COLUMNS($A:D)),""),"") -> 05-ขนมปังไส้สังขยาใหญ่ | AJ17: =IFERROR(IF($AF$11="FRY",INDEX(Conn_FRY_Delivery,ROWS($13:17),COLUMNS($A:E)),""),"") -> 350 | AL17: =IFERROR(IF($AL$11="FRK",INDEX(Conn_FRK_Delivery,ROWS($13:17),COLUMNS($A:A)),""),"") ->  | AM17: =IFERROR(IF($AL$11="FRK",INDEX(Conn_FRK_Delivery,ROWS($13:17),COLUMNS($A:B)),""),"") ->  | AN17: =IFERROR(IF($AL$11="FRK",INDEX(Conn_FRK_Delivery,ROWS($13:17),COLUMNS($A:C)),""),"") ->  | AO17: =IFERROR(IF($AL$11="FRK",INDEX(Conn_FRK_Delivery,ROWS($13:17),COLUMNS($A:D)),""),"") ->  | AP17: =IFERROR(IF($AL$11="FRK",INDEX(Conn_FRK_Delivery,ROWS($13:17),COLUMNS($A:E)),""),"") ->  | AR17: =IF(ROWS($13:17)<=IFERROR(ROWS(FRY_Delivery_Data),0),"FRY",IF(ROWS($13:17)<=IFERROR(ROWS(FRY_Delivery_Data),0)+IFERROR(ROWS(FRK_Delivery_Data),0),"FRK","")) -> FRY | AS17: =IF($AR17="FRY",INDEX(FRY_Delivery_Data,COUNTIF($AR$13:$AR17,$AR17),COLUMNS($A:A)),IF($AR17="FRK",INDEX(FRK_Delivery_Data,COUNTIF($AR$13:$AR17,$AR17),COLUMNS($A:A)),"")) -> 2019-02-02 | AT17: =IF($AR17="FRY",INDEX(FRY_Delivery_Data,COUNTIF($AR$13:$AR17,$AR17),COLUMNS($A:B)),IF($AR17="FRK",INDEX(FRK_Delivery_Data,COUNTIF($AR$13:$AR17,$AR17),COLUMNS($A:B)),"")) -> FRY | AU17: =IF($AR17="FRY",INDEX(FRY_Delivery_Data,COUNTIF($AR$13:$AR17,$AR17),COLUMNS($A:C)),IF($AR17="FRK",INDEX(FRK_Delivery_Data,COUNTIF($AR$13:$AR17,$AR17),COLUMNS($A:C)),"")) -> รับ | AV17: =IF($AR17="FRY",INDEX(FRY_Delivery_Data,COUNTIF($AR$13:$AR17,$AR17),COLUMNS($A:D)),IF($AR17="FRK",INDEX(FRK_Delivery_Data,COUNTIF($AR$13:$AR17,$AR17),COLUMNS($A:D)),"")) -> 05-ขนมปังไส้สังขยาใหญ่ | AW17: =IF($AR17="FRY",INDEX(FRY_Delivery_Data,COUNTIF($AR$13:$AR17,$AR17),COLUMNS($A:E)),IF($AR17="FRK",INDEX(FRK_Delivery_Data,COUNTIF($AR$13:$AR17,$AR17),COLUMNS($A:E)),"")) -> 350
B18: =IF(OR($C18="",$C18=0,ROWS($13:18)>ROWS(Product_List)),"",COUNTIF($C$13:$C18,"*?")) -> 6 | C18: =IFERROR(IF($C$9="No File In Folder","",INDEX(Product_List,ROWS($13:18))),"") -> 06-ขนมปังไส้หมูหยองเล็ก | D18: 300 | E18: =IFERROR(INDEX(Brch_FileNameList,ROWS($11:16)),"") -> BPU_NP06-190202.xlsx | F18: =IF(E18="","",SL_BranchCode&"-"&MID(E18,7,2)) -> NP-06 | G18: =IFERROR(IF(OR($C18=0,G$12=""),"",IF(G$12="Total",IF(SUM(F18:$G18)=0,0,SUM(F18:$G18)),IF(Selector=8,Percent_Waste,Ref_Result))),"") -> 30 | H18: =IFERROR(IF(OR($C18=0,H$12=""),"",IF(H$12="Total",IF(SUM(G18:$G18)=0,0,SUM(G18:$G18)),IF(Selector=8,Percent_Waste,Ref_Result))),"") -> 30 | I18: =IFERROR(IF(OR($C18=0,I$12=""),"",IF(I$12="Total",IF(SUM($G18:H18)=0,0,SUM($G18:H18)),IF(Selector=8,Percent_Waste,Ref_Result))),"") -> 20 | J18: =IFERROR(IF(OR($C18=0,J$12=""),"",IF(J$12="Total",IF(SUM($G18:I18)=0,0,SUM($G18:I18)),IF(Selector=8,Percent_Waste,Ref_Result))),"") -> 40 | K18: =IFERROR(IF(OR($C18=0,K$12=""),"",IF(K$12="Total",IF(SUM($G18:J18)=0,0,SUM($G18:J18)),IF(Selector=8,Percent_Waste,Ref_Result))),"") -> 40 | L18: =IFERROR(IF(OR($C18=0,L$12=""),"",IF(L$12="Total",IF(SUM($G18:K18)=0,0,SUM($G18:K18)),IF(Selector=8,Percent_Waste,Ref_Result))),"") -> 20 | M18: =IFERROR(IF(OR($C18=0,M$12=""),"",IF(M$12="Total",IF(SUM($G18:L18)=0,0,SUM($G18:L18)),IF(Selector=8,Percent_Waste,Ref_Result))),"") -> 20 | N18: =IFERROR(IF(OR($C18=0,N$12=""),"",IF(N$12="Total",IF(SUM($G18:M18)=0,0,SUM($G18:M18)),IF(Selector=8,Percent_Waste,Ref_Result))),"") -> 30 | O18: =IFERROR(IF(OR($C18=0,O$12=""),"",IF(O$12="Total",IF(SUM($G18:N18)=0,0,SUM($G18:N18)),IF(Selector=8,Percent_Waste,Ref_Result))),"") -> 20 | P18: =IFERROR(IF(OR($C18=0,P$12=""),"",IF(P$12="Total",IF(SUM($G18:O18)=0,0,SUM($G18:O18)),IF(Selector=8,Percent_Waste,Ref_Result))),"") -> 30 | Q18: =IFERROR(IF(OR($C18=0,Q$12=""),"",IF(Q$12="Total",IF(SUM($G18:P18)=0,0,SUM($G18:P18)),IF(Selector=8,Percent_Waste,Ref_Result))),"") -> 280 | R18: =IFERROR(IF(OR($C18=0,R$12=""),"",IF(R$12="Total",IF(SUM($G18:Q18)=0,0,SUM($G18:Q18)),IF(Selector=8,Percent_Waste,Ref_Result))),"") ->  | S18: =IFERROR(IF(OR($C18=0,S$12=""),"",IF(S$12="Total",IF(SUM($G18:R18)=0,0,SUM($G18:R18)),IF(Selector=8,Percent_Waste,Ref_Result))),"") ->  | T18: =IFERROR(IF(OR($C18=0,T$12=""),"",IF(T$12="Total",IF(SUM($G18:S18)=0,0,SUM($G18:S18)),IF(Selector=8,Percent_Waste,Ref_Result))),"") ->  | U18: =IFERROR(IF(OR($C18=0,U$12=""),"",IF(U$12="Total",IF(SUM($G18:T18)=0,0,SUM($G18:T18)),IF(Selector=8,Percent_Waste,Ref_Result))),"") ->  | V18: =IFERROR(IF(OR($C18=0,V$12=""),"",IF(V$12="Total",IF(SUM($G18:U18)=0,0,SUM($G18:U18)),IF(Selector=8,Percent_Waste,Ref_Result))),"") ->  | W18: =IFERROR(IF(OR($C18=0,W$12=""),"",IF(W$12="Total",IF(SUM($G18:V18)=0,0,SUM($G18:V18)),IF(Selector=8,Percent_Waste,Ref_Result))),"") ->  | X18: =IFERROR(IF(OR($C18=0,X$12=""),"",IF(X$12="Total",IF(SUM($G18:W18)=0,0,SUM($G18:W18)),IF(Selector=8,Percent_Waste,Ref_Result))),"") ->  | Y18: =IFERROR(IF(OR($C18=0,Y$12=""),"",IF(Y$12="Total",IF(SUM($G18:X18)=0,0,SUM($G18:X18)),IF(Selector=8,Percent_Waste,Ref_Result))),"") ->  | Z18: =IFERROR(IF(OR($C18=0,Z$12=""),"",IF(Z$12="Total",IF(SUM($G18:Y18)=0,0,SUM($G18:Y18)),IF(Selector=8,Percent_Waste,Ref_Result))),"") ->  | AA18: 20 | AF18: =IFERROR(IF($AF$11="FRY",INDEX(Conn_FRY_Delivery,ROWS($13:18),COLUMNS($A:A)),""),"") -> 2019-02-02 | AG18: =IFERROR(IF($AF$11="FRY",INDEX(Conn_FRY_Delivery,ROWS($13:18),COLUMNS($A:B)),""),"") -> FRY | AH18: =IFERROR(IF($AF$11="FRY",INDEX(Conn_FRY_Delivery,ROWS($13:18),COLUMNS($A:C)),""),"") -> รับ | AI18: =IFERROR(IF($AF$11="FRY",INDEX(Conn_FRY_Delivery,ROWS($13:18),COLUMNS($A:D)),""),"") -> 06-ขนมปังไส้หมูหยองเล็ก | AJ18: =IFERROR(IF($AF$11="FRY",INDEX(Conn_FRY_Delivery,ROWS($13:18),COLUMNS($A:E)),""),"") -> 300 | AL18: =IFERROR(IF($AL$11="FRK",INDEX(Conn_FRK_Delivery,ROWS($13:18),COLUMNS($A:A)),""),"") ->  | AM18: =IFERROR(IF($AL$11="FRK",INDEX(Conn_FRK_Delivery,ROWS($13:18),COLUMNS($A:B)),""),"") ->  | AN18: =IFERROR(IF($AL$11="FRK",INDEX(Conn_FRK_Delivery,ROWS($13:18),COLUMNS($A:C)),""),"") ->  | AO18: =IFERROR(IF($AL$11="FRK",INDEX(Conn_FRK_Delivery,ROWS($13:18),COLUMNS($A:D)),""),"") ->  | AP18: =IFERROR(IF($AL$11="FRK",INDEX(Conn_FRK_Delivery,ROWS($13:18),COLUMNS($A:E)),""),"") ->  | AR18: =IF(ROWS($13:18)<=IFERROR(ROWS(FRY_Delivery_Data),0),"FRY",IF(ROWS($13:18)<=IFERROR(ROWS(FRY_Delivery_Data),0)+IFERROR(ROWS(FRK_Delivery_Data),0),"FRK","")) -> FRY | AS18: =IF($AR18="FRY",INDEX(FRY_Delivery_Data,COUNTIF($AR$13:$AR18,$AR18),COLUMNS($A:A)),IF($AR18="FRK",INDEX(FRK_Delivery_Data,COUNTIF($AR$13:$AR18,$AR18),COLUMNS($A:A)),"")) -> 2019-02-02 | AT18: =IF($AR18="FRY",INDEX(FRY_Delivery_Data,COUNTIF($AR$13:$AR18,$AR18),COLUMNS($A:B)),IF($AR18="FRK",INDEX(FRK_Delivery_Data,COUNTIF($AR$13:$AR18,$AR18),COLUMNS($A:B)),"")) -> FRY | AU18: =IF($AR18="FRY",INDEX(FRY_Delivery_Data,COUNTIF($AR$13:$AR18,$AR18),COLUMNS($A:C)),IF($AR18="FRK",INDEX(FRK_Delivery_Data,COUNTIF($AR$13:$AR18,$AR18),COLUMNS($A:C)),"")) -> รับ | AV18: =IF($AR18="FRY",INDEX(FRY_Delivery_Data,COUNTIF($AR$13:$AR18,$AR18),COLUMNS($A:D)),IF($AR18="FRK",INDEX(FRK_Delivery_Data,COUNTIF($AR$13:$AR18,$AR18),COLUMNS($A:D)),"")) -> 06-ขนมปังไส้หมูหยองเล็ก | AW18: =IF($AR18="FRY",INDEX(FRY_Delivery_Data,COUNTIF($AR$13:$AR18,$AR18),COLUMNS($A:E)),IF($AR18="FRK",INDEX(FRK_Delivery_Data,COUNTIF($AR$13:$AR18,$AR18),COLUMNS($A:E)),"")) -> 300
B19: =IF(OR($C19="",$C19=0,ROWS($13:19)>ROWS(Product_List)),"",COUNTIF($C$13:$C19,"*?")) -> 7 | C19: =IFERROR(IF($C$9="No File In Folder","",INDEX(Product_List,ROWS($13:19))),"") -> 07-เค้กกล้วยหอม | D19: 550 | E19: =IFERROR(INDEX(Brch_FileNameList,ROWS($11:17)),"") -> BPU_NP07-190202.xlsx | F19: =IF(E19="","",SL_BranchCode&"-"&MID(E19,7,2)) -> NP-07 | G19: =IFERROR(IF(OR($C19=0,G$12=""),"",IF(G$12="Total",IF(SUM(F19:$G19)=0,0,SUM(F19:$G19)),IF(Selector=8,Percent_Waste,Ref_Result))),"") -> 50 | H19: =IFERROR(IF(OR($C19=0,H$12=""),"",IF(H$12="Total",IF(SUM(G19:$G19)=0,0,SUM(G19:$G19)),IF(Selector=8,Percent_Waste,Ref_Result))),"") -> 60 | I19: =IFERROR(IF(OR($C19=0,I$12=""),"",IF(I$12="Total",IF(SUM($G19:H19)=0,0,SUM($G19:H19)),IF(Selector=8,Percent_Waste,Ref_Result))),"") -> 50 | J19: =IFERROR(IF(OR($C19=0,J$12=""),"",IF(J$12="Total",IF(SUM($G19:I19)=0,0,SUM($G19:I19)),IF(Selector=8,Percent_Waste,Ref_Result))),"") -> 50 | K19: =IFERROR(IF(OR($C19=0,K$12=""),"",IF(K$12="Total",IF(SUM($G19:J19)=0,0,SUM($G19:J19)),IF(Selector=8,Percent_Waste,Ref_Result))),"") -> 60 | L19: =IFERROR(IF(OR($C19=0,L$12=""),"",IF(L$12="Total",IF(SUM($G19:K19)=0,0,SUM($G19:K19)),IF(Selector=8,Percent_Waste,Ref_Result))),"") -> 50 | M19: =IFERROR(IF(OR($C19=0,M$12=""),"",IF(M$12="Total",IF(SUM($G19:L19)=0,0,SUM($G19:L19)),IF(Selector=8,Percent_Waste,Ref_Result))),"") -> 50 | N19: =IFERROR(IF(OR($C19=0,N$12=""),"",IF(N$12="Total",IF(SUM($G19:M19)=0,0,SUM($G19:M19)),IF(Selector=8,Percent_Waste,Ref_Result))),"") -> 50 | O19: =IFERROR(IF(OR($C19=0,O$12=""),"",IF(O$12="Total",IF(SUM($G19:N19)=0,0,SUM($G19:N19)),IF(Selector=8,Percent_Waste,Ref_Result))),"") -> 30 | P19: =IFERROR(IF(OR($C19=0,P$12=""),"",IF(P$12="Total",IF(SUM($G19:O19)=0,0,SUM($G19:O19)),IF(Selector=8,Percent_Waste,Ref_Result))),"") -> 50 | Q19: =IFERROR(IF(OR($C19=0,Q$12=""),"",IF(Q$12="Total",IF(SUM($G19:P19)=0,0,SUM($G19:P19)),IF(Selector=8,Percent_Waste,Ref_Result))),"") -> 500 | R19: =IFERROR(IF(OR($C19=0,R$12=""),"",IF(R$12="Total",IF(SUM($G19:Q19)=0,0,SUM($G19:Q19)),IF(Selector=8,Percent_Waste,Ref_Result))),"") ->  | S19: =IFERROR(IF(OR($C19=0,S$12=""),"",IF(S$12="Total",IF(SUM($G19:R19)=0,0,SUM($G19:R19)),IF(Selector=8,Percent_Waste,Ref_Result))),"") ->  | T19: =IFERROR(IF(OR($C19=0,T$12=""),"",IF(T$12="Total",IF(SUM($G19:S19)=0,0,SUM($G19:S19)),IF(Selector=8,Percent_Waste,Ref_Result))),"") ->  | U19: =IFERROR(IF(OR($C19=0,U$12=""),"",IF(U$12="Total",IF(SUM($G19:T19)=0,0,SUM($G19:T19)),IF(Selector=8,Percent_Waste,Ref_Result))),"") ->  | V19: =IFERROR(IF(OR($C19=0,V$12=""),"",IF(V$12="Total",IF(SUM($G19:U19)=0,0,SUM($G19:U19)),IF(Selector=8,Percent_Waste,Ref_Result))),"") ->  | W19: =IFERROR(IF(OR($C19=0,W$12=""),"",IF(W$12="Total",IF(SUM($G19:V19)=0,0,SUM($G19:V19)),IF(Selector=8,Percent_Waste,Ref_Result))),"") ->  | X19: =IFERROR(IF(OR($C19=0,X$12=""),"",IF(X$12="Total",IF(SUM($G19:W19)=0,0,SUM($G19:W19)),IF(Selector=8,Percent_Waste,Ref_Result))),"") ->  | Y19: =IFERROR(IF(OR($C19=0,Y$12=""),"",IF(Y$12="Total",IF(SUM($G19:X19)=0,0,SUM($G19:X19)),IF(Selector=8,Percent_Waste,Ref_Result))),"") ->  | Z19: =IFERROR(IF(OR($C19=0,Z$12=""),"",IF(Z$12="Total",IF(SUM($G19:Y19)=0,0,SUM($G19:Y19)),IF(Selector=8,Percent_Waste,Ref_Result))),"") ->  | AA19: 50 | AF19: =IFERROR(IF($AF$11="FRY",INDEX(Conn_FRY_Delivery,ROWS($13:19),COLUMNS($A:A)),""),"") -> 2019-02-02 | AG19: =IFERROR(IF($AF$11="FRY",INDEX(Conn_FRY_Delivery,ROWS($13:19),COLUMNS($A:B)),""),"") -> FRY | AH19: =IFERROR(IF($AF$11="FRY",INDEX(Conn_FRY_Delivery,ROWS($13:19),COLUMNS($A:C)),""),"") -> รับ | AI19: =IFERROR(IF($AF$11="FRY",INDEX(Conn_FRY_Delivery,ROWS($13:19),COLUMNS($A:D)),""),"") -> 07-เค้กกล้วยหอม | AJ19: =IFERROR(IF($AF$11="FRY",INDEX(Conn_FRY_Delivery,ROWS($13:19),COLUMNS($A:E)),""),"") -> 550 | AL19: =IFERROR(IF($AL$11="FRK",INDEX(Conn_FRK_Delivery,ROWS($13:19),COLUMNS($A:A)),""),"") ->  | AM19: =IFERROR(IF($AL$11="FRK",INDEX(Conn_FRK_Delivery,ROWS($13:19),COLUMNS($A:B)),""),"") ->  | AN19: =IFERROR(IF($AL$11="FRK",INDEX(Conn_FRK_Delivery,ROWS($13:19),COLUMNS($A:C)),""),"") ->  | AO19: =IFERROR(IF($AL$11="FRK",INDEX(Conn_FRK_Delivery,ROWS($13:19),COLUMNS($A:D)),""),"") ->  | AP19: =IFERROR(IF($AL$11="FRK",INDEX(Conn_FRK_Delivery,ROWS($13:19),COLUMNS($A:E)),""),"") ->  | AR19: =IF(ROWS($13:19)<=IFERROR(ROWS(FRY_Delivery_Data),0),"FRY",IF(ROWS($13:19)<=IFERROR(ROWS(FRY_Delivery_Data),0)+IFERROR(ROWS(FRK_Delivery_Data),0),"FRK","")) -> FRY | AS19: =IF($AR19="FRY",INDEX(FRY_Delivery_Data,COUNTIF($AR$13:$AR19,$AR19),COLUMNS($A:A)),IF($AR19="FRK",INDEX(FRK_Delivery_Data,COUNTIF($AR$13:$AR19,$AR19),COLUMNS($A:A)),"")) -> 2019-02-02 | AT19: =IF($AR19="FRY",INDEX(FRY_Delivery_Data,COUNTIF($AR$13:$AR19,$AR19),COLUMNS($A:B)),IF($AR19="FRK",INDEX(FRK_Delivery_Data,COUNTIF($AR$13:$AR19,$AR19),COLUMNS($A:B)),"")) -> FRY | AU19: =IF($AR19="FRY",INDEX(FRY_Delivery_Data,COUNTIF($AR$13:$AR19,$AR19),COLUMNS($A:C)),IF($AR19="FRK",INDEX(FRK_Delivery_Data,COUNTIF($AR$13:$AR19,$AR19),COLUMNS($A:C)),"")) -> รับ | AV19: =IF($AR19="FRY",INDEX(FRY_Delivery_Data,COUNTIF($AR$13:$AR19,$AR19),COLUMNS($A:D)),IF($AR19="FRK",INDEX(FRK_Delivery_Data,COUNTIF($AR$13:$AR19,$AR19),COLUMNS($A:D)),"")) -> 07-เค้กกล้วยหอม | AW19: =IF($AR19="FRY",INDEX(FRY_Delivery_Data,COUNTIF($AR$13:$AR19,$AR19),COLUMNS($A:E)),IF($AR19="FRK",INDEX(FRK_Delivery_Data,COUNTIF($AR$13:$AR19,$AR19),COLUMNS($A:E)),"")) -> 550
B20: =IF(OR($C20="",$C20=0,ROWS($13:20)>ROWS(Product_List)),"",COUNTIF($C$13:$C20,"*?")) -> 8 | C20: =IFERROR(IF($C$9="No File In Folder","",INDEX(Product_List,ROWS($13:20))),"") -> 08-เค้กบัตเตอร์ | D20: 200 | E20: =IFERROR(INDEX(Brch_FileNameList,ROWS($11:18)),"") -> BPU_NP09-190202.xlsx | F20: =IF(E20="","",SL_BranchCode&"-"&MID(E20,7,2)) -> NP-09 | G20: =IFERROR(IF(OR($C20=0,G$12=""),"",IF(G$12="Total",IF(SUM(F20:$G20)=0,0,SUM(F20:$G20)),IF(Selector=8,Percent_Waste,Ref_Result))),"") -> 20 | H20: =IFERROR(IF(OR($C20=0,H$12=""),"",IF(H$12="Total",IF(SUM(G20:$G20)=0,0,SUM(G20:$G20)),IF(Selector=8,Percent_Waste,Ref_Result))),"") -> 20 | I20: =IFERROR(IF(OR($C20=0,I$12=""),"",IF(I$12="Total",IF(SUM($G20:H20)=0,0,SUM($G20:H20)),IF(Selector=8,Percent_Waste,Ref_Result))),"") -> 10 | J20: =IFERROR(IF(OR($C20=0,J$12=""),"",IF(J$12="Total",IF(SUM($G20:I20)=0,0,SUM($G20:I20)),IF(Selector=8,Percent_Waste,Ref_Result))),"") -> 20 | K20: =IFERROR(IF(OR($C20=0,K$12=""),"",IF(K$12="Total",IF(SUM($G20:J20)=0,0,SUM($G20:J20)),IF(Selector=8,Percent_Waste,Ref_Result))),"") -> 30 | L20: =IFERROR(IF(OR($C20=0,L$12=""),"",IF(L$12="Total",IF(SUM($G20:K20)=0,0,SUM($G20:K20)),IF(Selector=8,Percent_Waste,Ref_Result))),"") -> 20 | M20: =IFERROR(IF(OR($C20=0,M$12=""),"",IF(M$12="Total",IF(SUM($G20:L20)=0,0,SUM($G20:L20)),IF(Selector=8,Percent_Waste,Ref_Result))),"") -> 20 | N20: =IFERROR(IF(OR($C20=0,N$12=""),"",IF(N$12="Total",IF(SUM($G20:M20)=0,0,SUM($G20:M20)),IF(Selector=8,Percent_Waste,Ref_Result))),"") -> 20 | O20: =IFERROR(IF(OR($C20=0,O$12=""),"",IF(O$12="Total",IF(SUM($G20:N20)=0,0,SUM($G20:N20)),IF(Selector=8,Percent_Waste,Ref_Result))),"") -> 0 | P20: =IFERROR(IF(OR($C20=0,P$12=""),"",IF(P$12="Total",IF(SUM($G20:O20)=0,0,SUM($G20:O20)),IF(Selector=8,Percent_Waste,Ref_Result))),"") -> 20 | Q20: =IFERROR(IF(OR($C20=0,Q$12=""),"",IF(Q$12="Total",IF(SUM($G20:P20)=0,0,SUM($G20:P20)),IF(Selector=8,Percent_Waste,Ref_Result))),"") -> 180 | R20: =IFERROR(IF(OR($C20=0,R$12=""),"",IF(R$12="Total",IF(SUM($G20:Q20)=0,0,SUM($G20:Q20)),IF(Selector=8,Percent_Waste,Ref_Result))),"") ->  | S20: =IFERROR(IF(OR($C20=0,S$12=""),"",IF(S$12="Total",IF(SUM($G20:R20)=0,0,SUM($G20:R20)),IF(Selector=8,Percent_Waste,Ref_Result))),"") ->  | T20: =IFERROR(IF(OR($C20=0,T$12=""),"",IF(T$12="Total",IF(SUM($G20:S20)=0,0,SUM($G20:S20)),IF(Selector=8,Percent_Waste,Ref_Result))),"") ->  | U20: =IFERROR(IF(OR($C20=0,U$12=""),"",IF(U$12="Total",IF(SUM($G20:T20)=0,0,SUM($G20:T20)),IF(Selector=8,Percent_Waste,Ref_Result))),"") ->  | V20: =IFERROR(IF(OR($C20=0,V$12=""),"",IF(V$12="Total",IF(SUM($G20:U20)=0,0,SUM($G20:U20)),IF(Selector=8,Percent_Waste,Ref_Result))),"") ->  | W20: =IFERROR(IF(OR($C20=0,W$12=""),"",IF(W$12="Total",IF(SUM($G20:V20)=0,0,SUM($G20:V20)),IF(Selector=8,Percent_Waste,Ref_Result))),"") ->  | X20: =IFERROR(IF(OR($C20=0,X$12=""),"",IF(X$12="Total",IF(SUM($G20:W20)=0,0,SUM($G20:W20)),IF(Selector=8,Percent_Waste,Ref_Result))),"") ->  | Y20: =IFERROR(IF(OR($C20=0,Y$12=""),"",IF(Y$12="Total",IF(SUM($G20:X20)=0,0,SUM($G20:X20)),IF(Selector=8,Percent_Waste,Ref_Result))),"") ->  | Z20: =IFERROR(IF(OR($C20=0,Z$12=""),"",IF(Z$12="Total",IF(SUM($G20:Y20)=0,0,SUM($G20:Y20)),IF(Selector=8,Percent_Waste,Ref_Result))),"") ->  | AA20: 20 | AF20: =IFERROR(IF($AF$11="FRY",INDEX(Conn_FRY_Delivery,ROWS($13:20),COLUMNS($A:A)),""),"") -> 2019-02-02 | AG20: =IFERROR(IF($AF$11="FRY",INDEX(Conn_FRY_Delivery,ROWS($13:20),COLUMNS($A:B)),""),"") -> FRY | AH20: =IFERROR(IF($AF$11="FRY",INDEX(Conn_FRY_Delivery,ROWS($13:20),COLUMNS($A:C)),""),"") -> รับ | AI20: =IFERROR(IF($AF$11="FRY",INDEX(Conn_FRY_Delivery,ROWS($13:20),COLUMNS($A:D)),""),"") -> 08-เค้กบัตเตอร์ | AJ20: =IFERROR(IF($AF$11="FRY",INDEX(Conn_FRY_Delivery,ROWS($13:20),COLUMNS($A:E)),""),"") -> 200 | AL20: =IFERROR(IF($AL$11="FRK",INDEX(Conn_FRK_Delivery,ROWS($13:20),COLUMNS($A:A)),""),"") ->  | AM20: =IFERROR(IF($AL$11="FRK",INDEX(Conn_FRK_Delivery,ROWS($13:20),COLUMNS($A:B)),""),"") ->  | AN20: =IFERROR(IF($AL$11="FRK",INDEX(Conn_FRK_Delivery,ROWS($13:20),COLUMNS($A:C)),""),"") ->  | AO20: =IFERROR(IF($AL$11="FRK",INDEX(Conn_FRK_Delivery,ROWS($13:20),COLUMNS($A:D)),""),"") ->  | AP20: =IFERROR(IF($AL$11="FRK",INDEX(Conn_FRK_Delivery,ROWS($13:20),COLUMNS($A:E)),""),"") ->  | AR20: =IF(ROWS($13:20)<=IFERROR(ROWS(FRY_Delivery_Data),0),"FRY",IF(ROWS($13:20)<=IFERROR(ROWS(FRY_Delivery_Data),0)+IFERROR(ROWS(FRK_Delivery_Data),0),"FRK","")) -> FRY | AS20: =IF($AR20="FRY",INDEX(FRY_Delivery_Data,COUNTIF($AR$13:$AR20,$AR20),COLUMNS($A:A)),IF($AR20="FRK",INDEX(FRK_Delivery_Data,COUNTIF($AR$13:$AR20,$AR20),COLUMNS($A:A)),"")) -> 2019-02-02 | AT20: =IF($AR20="FRY",INDEX(FRY_Delivery_Data,COUNTIF($AR$13:$AR20,$AR20),COLUMNS($A:B)),IF($AR20="FRK",INDEX(FRK_Delivery_Data,COUNTIF($AR$13:$AR20,$AR20),COLUMNS($A:B)),"")) -> FRY | AU20: =IF($AR20="FRY",INDEX(FRY_Delivery_Data,COUNTIF($AR$13:$AR20,$AR20),COLUMNS($A:C)),IF($AR20="FRK",INDEX(FRK_Delivery_Data,COUNTIF($AR$13:$AR20,$AR20),COLUMNS($A:C)),"")) -> รับ | AV20: =IF($AR20="FRY",INDEX(FRY_Delivery_Data,COUNTIF($AR$13:$AR20,$AR20),COLUMNS($A:D)),IF($AR20="FRK",INDEX(FRK_Delivery_Data,COUNTIF($AR$13:$AR20,$AR20),COLUMNS($A:D)),"")) -> 08-เค้กบัตเตอร์ | AW20: =IF($AR20="FRY",INDEX(FRY_Delivery_Data,COUNTIF($AR$13:$AR20,$AR20),COLUMNS($A:E)),IF($AR20="FRK",INDEX(FRK_Delivery_Data,COUNTIF($AR$13:$AR20,$AR20),COLUMNS($A:E)),"")) -> 200
B21: =IF(OR($C21="",$C21=0,ROWS($13:21)>ROWS(Product_List)),"",COUNTIF($C$13:$C21,"*?")) -> 9 | C21: =IFERROR(IF($C$9="No File In Folder","",INDEX(Product_List,ROWS($13:21))),"") -> 09-ขนมปังโรลมันเทศ | D21: 120 | E21: =IFERROR(INDEX(Brch_FileNameList,ROWS($11:19)),"") -> BPU_NP10-190202.xlsx | F21: =IF(E21="","",SL_BranchCode&"-"&MID(E21,7,2)) -> NP-10 | G21: =IFERROR(IF(OR($C21=0,G$12=""),"",IF(G$12="Total",IF(SUM(F21:$G21)=0,0,SUM(F21:$G21)),IF(Selector=8,Percent_Waste,Ref_Result))),"") -> 20 | H21: =IFERROR(IF(OR($C21=0,H$12=""),"",IF(H$12="Total",IF(SUM(G21:$G21)=0,0,SUM(G21:$G21)),IF(Selector=8,Percent_Waste,Ref_Result))),"") -> 10 | I21: =IFERROR(IF(OR($C21=0,I$12=""),"",IF(I$12="Total",IF(SUM($G21:H21)=0,0,SUM($G21:H21)),IF(Selector=8,Percent_Waste,Ref_Result))),"") -> 20 | J21: =IFERROR(IF(OR($C21=0,J$12=""),"",IF(J$12="Total",IF(SUM($G21:I21)=0,0,SUM($G21:I21)),IF(Selector=8,Percent_Waste,Ref_Result))),"") -> 30 | K21: =IFERROR(IF(OR($C21=0,K$12=""),"",IF(K$12="Total",IF(SUM($G21:J21)=0,0,SUM($G21:J21)),IF(Selector=8,Percent_Waste,Ref_Result))),"") -> 20 | L21: =IFERROR(IF(OR($C21=0,L$12=""),"",IF(L$12="Total",IF(SUM($G21:K21)=0,0,SUM($G21:K21)),IF(Selector=8,Percent_Waste,Ref_Result))),"") -> 0 | M21: =IFERROR(IF(OR($C21=0,M$12=""),"",IF(M$12="Total",IF(SUM($G21:L21)=0,0,SUM($G21:L21)),IF(Selector=8,Percent_Waste,Ref_Result))),"") -> 10 | N21: =IFERROR(IF(OR($C21=0,N$12=""),"",IF(N$12="Total",IF(SUM($G21:M21)=0,0,SUM($G21:M21)),IF(Selector=8,Percent_Waste,Ref_Result))),"") -> 0 | O21: =IFERROR(IF(OR($C21=0,O$12=""),"",IF(O$12="Total",IF(SUM($G21:N21)=0,0,SUM($G21:N21)),IF(Selector=8,Percent_Waste,Ref_Result))),"") -> 0 | P21: =IFERROR(IF(OR($C21=0,P$12=""),"",IF(P$12="Total",IF(SUM($G21:O21)=0,0,SUM($G21:O21)),IF(Selector=8,Percent_Waste,Ref_Result))),"") -> 0 | Q21: =IFERROR(IF(OR($C21=0,Q$12=""),"",IF(Q$12="Total",IF(SUM($G21:P21)=0,0,SUM($G21:P21)),IF(Selector=8,Percent_Waste,Ref_Result))),"") -> 110 | R21: =IFERROR(IF(OR($C21=0,R$12=""),"",IF(R$12="Total",IF(SUM($G21:Q21)=0,0,SUM($G21:Q21)),IF(Selector=8,Percent_Waste,Ref_Result))),"") ->  | S21: =IFERROR(IF(OR($C21=0,S$12=""),"",IF(S$12="Total",IF(SUM($G21:R21)=0,0,SUM($G21:R21)),IF(Selector=8,Percent_Waste,Ref_Result))),"") ->  | T21: =IFERROR(IF(OR($C21=0,T$12=""),"",IF(T$12="Total",IF(SUM($G21:S21)=0,0,SUM($G21:S21)),IF(Selector=8,Percent_Waste,Ref_Result))),"") ->  | U21: =IFERROR(IF(OR($C21=0,U$12=""),"",IF(U$12="Total",IF(SUM($G21:T21)=0,0,SUM($G21:T21)),IF(Selector=8,Percent_Waste,Ref_Result))),"") ->  | V21: =IFERROR(IF(OR($C21=0,V$12=""),"",IF(V$12="Total",IF(SUM($G21:U21)=0,0,SUM($G21:U21)),IF(Selector=8,Percent_Waste,Ref_Result))),"") ->  | W21: =IFERROR(IF(OR($C21=0,W$12=""),"",IF(W$12="Total",IF(SUM($G21:V21)=0,0,SUM($G21:V21)),IF(Selector=8,Percent_Waste,Ref_Result))),"") ->  | X21: =IFERROR(IF(OR($C21=0,X$12=""),"",IF(X$12="Total",IF(SUM($G21:W21)=0,0,SUM($G21:W21)),IF(Selector=8,Percent_Waste,Ref_Result))),"") ->  | Y21: =IFERROR(IF(OR($C21=0,Y$12=""),"",IF(Y$12="Total",IF(SUM($G21:X21)=0,0,SUM($G21:X21)),IF(Selector=8,Percent_Waste,Ref_Result))),"") ->  | Z21: =IFERROR(IF(OR($C21=0,Z$12=""),"",IF(Z$12="Total",IF(SUM($G21:Y21)=0,0,SUM($G21:Y21)),IF(Selector=8,Percent_Waste,Ref_Result))),"") ->  | AA21: 10 | AF21: =IFERROR(IF($AF$11="FRY",INDEX(Conn_FRY_Delivery,ROWS($13:21),COLUMNS($A:A)),""),"") -> 2019-02-02 | AG21: =IFERROR(IF($AF$11="FRY",INDEX(Conn_FRY_Delivery,ROWS($13:21),COLUMNS($A:B)),""),"") -> FRY | AH21: =IFERROR(IF($AF$11="FRY",INDEX(Conn_FRY_Delivery,ROWS($13:21),COLUMNS($A:C)),""),"") -> รับ | AI21: =IFERROR(IF($AF$11="FRY",INDEX(Conn_FRY_Delivery,ROWS($13:21),COLUMNS($A:D)),""),"") -> 09-ขนมปังโรลมันเทศ | AJ21: =IFERROR(IF($AF$11="FRY",INDEX(Conn_FRY_Delivery,ROWS($13:21),COLUMNS($A:E)),""),"") -> 120 | AL21: =IFERROR(IF($AL$11="FRK",INDEX(Conn_FRK_Delivery,ROWS($13:21),COLUMNS($A:A)),""),"") ->  | AM21: =IFERROR(IF($AL$11="FRK",INDEX(Conn_FRK_Delivery,ROWS($13:21),COLUMNS($A:B)),""),"") ->  | AN21: =IFERROR(IF($AL$11="FRK",INDEX(Conn_FRK_Delivery,ROWS($13:21),COLUMNS($A:C)),""),"") ->  | AO21: =IFERROR(IF($AL$11="FRK",INDEX(Conn_FRK_Delivery,ROWS($13:21),COLUMNS($A:D)),""),"") ->  | AP21: =IFERROR(IF($AL$11="FRK",INDEX(Conn_FRK_Delivery,ROWS($13:21),COLUMNS($A:E)),""),"") ->  | AR21: =IF(ROWS($13:21)<=IFERROR(ROWS(FRY_Delivery_Data),0),"FRY",IF(ROWS($13:21)<=IFERROR(ROWS(FRY_Delivery_Data),0)+IFERROR(ROWS(FRK_Delivery_Data),0),"FRK","")) -> FRY | AS21: =IF($AR21="FRY",INDEX(FRY_Delivery_Data,COUNTIF($AR$13:$AR21,$AR21),COLUMNS($A:A)),IF($AR21="FRK",INDEX(FRK_Delivery_Data,COUNTIF($AR$13:$AR21,$AR21),COLUMNS($A:A)),"")) -> 2019-02-02 | AT21: =IF($AR21="FRY",INDEX(FRY_Delivery_Data,COUNTIF($AR$13:$AR21,$AR21),COLUMNS($A:B)),IF($AR21="FRK",INDEX(FRK_Delivery_Data,COUNTIF($AR$13:$AR21,$AR21),COLUMNS($A:B)),"")) -> FRY | AU21: =IF($AR21="FRY",INDEX(FRY_Delivery_Data,COUNTIF($AR$13:$AR21,$AR21),COLUMNS($A:C)),IF($AR21="FRK",INDEX(FRK_Delivery_Data,COUNTIF($AR$13:$AR21,$AR21),COLUMNS($A:C)),"")) -> รับ | AV21: =IF($AR21="FRY",INDEX(FRY_Delivery_Data,COUNTIF($AR$13:$AR21,$AR21),COLUMNS($A:D)),IF($AR21="FRK",INDEX(FRK_Delivery_Data,COUNTIF($AR$13:$AR21,$AR21),COLUMNS($A:D)),"")) -> 09-ขนมปังโรลมันเทศ | AW21: =IF($AR21="FRY",INDEX(FRY_Delivery_Data,COUNTIF($AR$13:$AR21,$AR21),COLUMNS($A:E)),IF($AR21="FRK",INDEX(FRK_Delivery_Data,COUNTIF($AR$13:$AR21,$AR21),COLUMNS($A:E)),"")) -> 120
B22: =IF(OR($C22="",$C22=0,ROWS($13:22)>ROWS(Product_List)),"",COUNTIF($C$13:$C22,"*?")) -> 10 | C22: =IFERROR(IF($C$9="No File In Folder","",INDEX(Product_List,ROWS($13:22))),"") -> 10-ขนมปังโรลถั่วแดง | D22: 440 | E22: =IFERROR(INDEX(Brch_FileNameList,ROWS($11:20)),"") -> BPU_NP11-190202.xlsx | F22: =IF(E22="","",SL_BranchCode&"-"&MID(E22,7,2)) -> NP-11 | G22: =IFERROR(IF(OR($C22=0,G$12=""),"",IF(G$12="Total",IF(SUM(F22:$G22)=0,0,SUM(F22:$G22)),IF(Selector=8,Percent_Waste,Ref_Result))),"") -> 50 | H22: =IFERROR(IF(OR($C22=0,H$12=""),"",IF(H$12="Total",IF(SUM(G22:$G22)=0,0,SUM(G22:$G22)),IF(Selector=8,Percent_Waste,Ref_Result))),"") -> 40 | I22: =IFERROR(IF(OR($C22=0,I$12=""),"",IF(I$12="Total",IF(SUM($G22:H22)=0,0,SUM($G22:H22)),IF(Selector=8,Percent_Waste,Ref_Result))),"") -> 40 | J22: =IFERROR(IF(OR($C22=0,J$12=""),"",IF(J$12="Total",IF(SUM($G22:I22)=0,0,SUM($G22:I22)),IF(Selector=8,Percent_Waste,Ref_Result))),"") -> 40 | K22: =IFERROR(IF(OR($C22=0,K$12=""),"",IF(K$12="Total",IF(SUM($G22:J22)=0,0,SUM($G22:J22)),IF(Selector=8,Percent_Waste,Ref_Result))),"") -> 40 | L22: =IFERROR(IF(OR($C22=0,L$12=""),"",IF(L$12="Total",IF(SUM($G22:K22)=0,0,SUM($G22:K22)),IF(Selector=8,Percent_Waste,Ref_Result))),"") -> 40 | M22: =IFERROR(IF(OR($C22=0,M$12=""),"",IF(M$12="Total",IF(SUM($G22:L22)=0,0,SUM($G22:L22)),IF(Selector=8,Percent_Waste,Ref_Result))),"") -> 30 | N22: =IFERROR(IF(OR($C22=0,N$12=""),"",IF(N$12="Total",IF(SUM($G22:M22)=0,0,SUM($G22:M22)),IF(Selector=8,Percent_Waste,Ref_Result))),"") -> 40 | O22: =IFERROR(IF(OR($C22=0,O$12=""),"",IF(O$12="Total",IF(SUM($G22:N22)=0,0,SUM($G22:N22)),IF(Selector=8,Percent_Waste,Ref_Result))),"") -> 30 | P22: =IFERROR(IF(OR($C22=0,P$12=""),"",IF(P$12="Total",IF(SUM($G22:O22)=0,0,SUM($G22:O22)),IF(Selector=8,Percent_Waste,Ref_Result))),"") -> 50 | Q22: =IFERROR(IF(OR($C22=0,Q$12=""),"",IF(Q$12="Total",IF(SUM($G22:P22)=0,0,SUM($G22:P22)),IF(Selector=8,Percent_Waste,Ref_Result))),"") -> 400 | R22: =IFERROR(IF(OR($C22=0,R$12=""),"",IF(R$12="Total",IF(SUM($G22:Q22)=0,0,SUM($G22:Q22)),IF(Selector=8,Percent_Waste,Ref_Result))),"") ->  | S22: =IFERROR(IF(OR($C22=0,S$12=""),"",IF(S$12="Total",IF(SUM($G22:R22)=0,0,SUM($G22:R22)),IF(Selector=8,Percent_Waste,Ref_Result))),"") ->  | T22: =IFERROR(IF(OR($C22=0,T$12=""),"",IF(T$12="Total",IF(SUM($G22:S22)=0,0,SUM($G22:S22)),IF(Selector=8,Percent_Waste,Ref_Result))),"") ->  | U22: =IFERROR(IF(OR($C22=0,U$12=""),"",IF(U$12="Total",IF(SUM($G22:T22)=0,0,SUM($G22:T22)),IF(Selector=8,Percent_Waste,Ref_Result))),"") ->  | V22: =IFERROR(IF(OR($C22=0,V$12=""),"",IF(V$12="Total",IF(SUM($G22:U22)=0,0,SUM($G22:U22)),IF(Selector=8,Percent_Waste,Ref_Result))),"") ->  | W22: =IFERROR(IF(OR($C22=0,W$12=""),"",IF(W$12="Total",IF(SUM($G22:V22)=0,0,SUM($G22:V22)),IF(Selector=8,Percent_Waste,Ref_Result))),"") ->  | X22: =IFERROR(IF(OR($C22=0,X$12=""),"",IF(X$12="Total",IF(SUM($G22:W22)=0,0,SUM($G22:W22)),IF(Selector=8,Percent_Waste,Ref_Result))),"") ->  | Y22: =IFERROR(IF(OR($C22=0,Y$12=""),"",IF(Y$12="Total",IF(SUM($G22:X22)=0,0,SUM($G22:X22)),IF(Selector=8,Percent_Waste,Ref_Result))),"") ->  | Z22: =IFERROR(IF(OR($C22=0,Z$12=""),"",IF(Z$12="Total",IF(SUM($G22:Y22)=0,0,SUM($G22:Y22)),IF(Selector=8,Percent_Waste,Ref_Result))),"") ->  | AA22: 40 | AF22: =IFERROR(IF($AF$11="FRY",INDEX(Conn_FRY_Delivery,ROWS($13:22),COLUMNS($A:A)),""),"") -> 2019-02-02 | AG22: =IFERROR(IF($AF$11="FRY",INDEX(Conn_FRY_Delivery,ROWS($13:22),COLUMNS($A:B)),""),"") -> FRY | AH22: =IFERROR(IF($AF$11="FRY",INDEX(Conn_FRY_Delivery,ROWS($13:22),COLUMNS($A:C)),""),"") -> รับ | AI22: =IFERROR(IF($AF$11="FRY",INDEX(Conn_FRY_Delivery,ROWS($13:22),COLUMNS($A:D)),""),"") -> 10-ขนมปังโรลถั่วแดง | AJ22: =IFERROR(IF($AF$11="FRY",INDEX(Conn_FRY_Delivery,ROWS($13:22),COLUMNS($A:E)),""),"") -> 440 | AL22: =IFERROR(IF($AL$11="FRK",INDEX(Conn_FRK_Delivery,ROWS($13:22),COLUMNS($A:A)),""),"") ->  | AM22: =IFERROR(IF($AL$11="FRK",INDEX(Conn_FRK_Delivery,ROWS($13:22),COLUMNS($A:B)),""),"") ->  | AN22: =IFERROR(IF($AL$11="FRK",INDEX(Conn_FRK_Delivery,ROWS($13:22),COLUMNS($A:C)),""),"") ->  | AO22: =IFERROR(IF($AL$11="FRK",INDEX(Conn_FRK_Delivery,ROWS($13:22),COLUMNS($A:D)),""),"") ->  | AP22: =IFERROR(IF($AL$11="FRK",INDEX(Conn_FRK_Delivery,ROWS($13:22),COLUMNS($A:E)),""),"") ->  | AR22: =IF(ROWS($13:22)<=IFERROR(ROWS(FRY_Delivery_Data),0),"FRY",IF(ROWS($13:22)<=IFERROR(ROWS(FRY_Delivery_Data),0)+IFERROR(ROWS(FRK_Delivery_Data),0),"FRK","")) -> FRY | AS22: =IF($AR22="FRY",INDEX(FRY_Delivery_Data,COUNTIF($AR$13:$AR22,$AR22),COLUMNS($A:A)),IF($AR22="FRK",INDEX(FRK_Delivery_Data,COUNTIF($AR$13:$AR22,$AR22),COLUMNS($A:A)),"")) -> 2019-02-02 | AT22: =IF($AR22="FRY",INDEX(FRY_Delivery_Data,COUNTIF($AR$13:$AR22,$AR22),COLUMNS($A:B)),IF($AR22="FRK",INDEX(FRK_Delivery_Data,COUNTIF($AR$13:$AR22,$AR22),COLUMNS($A:B)),"")) -> FRY | AU22: =IF($AR22="FRY",INDEX(FRY_Delivery_Data,COUNTIF($AR$13:$AR22,$AR22),COLUMNS($A:C)),IF($AR22="FRK",INDEX(FRK_Delivery_Data,COUNTIF($AR$13:$AR22,$AR22),COLUMNS($A:C)),"")) -> รับ | AV22: =IF($AR22="FRY",INDEX(FRY_Delivery_Data,COUNTIF($AR$13:$AR22,$AR22),COLUMNS($A:D)),IF($AR22="FRK",INDEX(FRK_Delivery_Data,COUNTIF($AR$13:$AR22,$AR22),COLUMNS($A:D)),"")) -> 10-ขนมปังโรลถั่วแดง | AW22: =IF($AR22="FRY",INDEX(FRY_Delivery_Data,COUNTIF($AR$13:$AR22,$AR22),COLUMNS($A:E)),IF($AR22="FRK",INDEX(FRK_Delivery_Data,COUNTIF($AR$13:$AR22,$AR22),COLUMNS($A:E)),"")) -> 440
B23: =IF(OR($C23="",$C23=0,ROWS($13:23)>ROWS(Product_List)),"",COUNTIF($C$13:$C23,"*?")) -> 11 | C23: =IFERROR(IF($C$9="No File In Folder","",INDEX(Product_List,ROWS($13:23))),"") -> 11-ขนมปังหมูหยองมายองเนส | D23: 100 | E23: =IFERROR(INDEX(Brch_FileNameList,ROWS($11:21)),"") ->  | F23: =IF(E23="","",SL_BranchCode&"-"&MID(E23,7,2)) ->  | G23: =IFERROR(IF(OR($C23=0,G$12=""),"",IF(G$12="Total",IF(SUM(F23:$G23)=0,0,SUM(F23:$G23)),IF(Selector=8,Percent_Waste,Ref_Result))),"") -> 10 | H23: =IFERROR(IF(OR($C23=0,H$12=""),"",IF(H$12="Total",IF(SUM(G23:$G23)=0,0,SUM(G23:$G23)),IF(Selector=8,Percent_Waste,Ref_Result))),"") -> 10 | I23: =IFERROR(IF(OR($C23=0,I$12=""),"",IF(I$12="Total",IF(SUM($G23:H23)=0,0,SUM($G23:H23)),IF(Selector=8,Percent_Waste,Ref_Result))),"") -> 10 | J23: =IFERROR(IF(OR($C23=0,J$12=""),"",IF(J$12="Total",IF(SUM($G23:I23)=0,0,SUM($G23:I23)),IF(Selector=8,Percent_Waste,Ref_Result))),"") -> 20 | K23: =IFERROR(IF(OR($C23=0,K$12=""),"",IF(K$12="Total",IF(SUM($G23:J23)=0,0,SUM($G23:J23)),IF(Selector=8,Percent_Waste,Ref_Result))),"") -> 20 | L23: =IFERROR(IF(OR($C23=0,L$12=""),"",IF(L$12="Total",IF(SUM($G23:K23)=0,0,SUM($G23:K23)),IF(Selector=8,Percent_Waste,Ref_Result))),"") -> 0 | M23: =IFERROR(IF(OR($C23=0,M$12=""),"",IF(M$12="Total",IF(SUM($G23:L23)=0,0,SUM($G23:L23)),IF(Selector=8,Percent_Waste,Ref_Result))),"") -> 10 | N23: =IFERROR(IF(OR($C23=0,N$12=""),"",IF(N$12="Total",IF(SUM($G23:M23)=0,0,SUM($G23:M23)),IF(Selector=8,Percent_Waste,Ref_Result))),"") -> 0 | O23: =IFERROR(IF(OR($C23=0,O$12=""),"",IF(O$12="Total",IF(SUM($G23:N23)=0,0,SUM($G23:N23)),IF(Selector=8,Percent_Waste,Ref_Result))),"") -> 0 | P23: =IFERROR(IF(OR($C23=0,P$12=""),"",IF(P$12="Total",IF(SUM($G23:O23)=0,0,SUM($G23:O23)),IF(Selector=8,Percent_Waste,Ref_Result))),"") -> 10 | Q23: =IFERROR(IF(OR($C23=0,Q$12=""),"",IF(Q$12="Total",IF(SUM($G23:P23)=0,0,SUM($G23:P23)),IF(Selector=8,Percent_Waste,Ref_Result))),"") -> 90 | R23: =IFERROR(IF(OR($C23=0,R$12=""),"",IF(R$12="Total",IF(SUM($G23:Q23)=0,0,SUM($G23:Q23)),IF(Selector=8,Percent_Waste,Ref_Result))),"") ->  | S23: =IFERROR(IF(OR($C23=0,S$12=""),"",IF(S$12="Total",IF(SUM($G23:R23)=0,0,SUM($G23:R23)),IF(Selector=8,Percent_Waste,Ref_Result))),"") ->  | T23: =IFERROR(IF(OR($C23=0,T$12=""),"",IF(T$12="Total",IF(SUM($G23:S23)=0,0,SUM($G23:S23)),IF(Selector=8,Percent_Waste,Ref_Result))),"") ->  | U23: =IFERROR(IF(OR($C23=0,U$12=""),"",IF(U$12="Total",IF(SUM($G23:T23)=0,0,SUM($G23:T23)),IF(Selector=8,Percent_Waste,Ref_Result))),"") ->  | V23: =IFERROR(IF(OR($C23=0,V$12=""),"",IF(V$12="Total",IF(SUM($G23:U23)=0,0,SUM($G23:U23)),IF(Selector=8,Percent_Waste,Ref_Result))),"") ->  | W23: =IFERROR(IF(OR($C23=0,W$12=""),"",IF(W$12="Total",IF(SUM($G23:V23)=0,0,SUM($G23:V23)),IF(Selector=8,Percent_Waste,Ref_Result))),"") ->  | X23: =IFERROR(IF(OR($C23=0,X$12=""),"",IF(X$12="Total",IF(SUM($G23:W23)=0,0,SUM($G23:W23)),IF(Selector=8,Percent_Waste,Ref_Result))),"") ->  | Y23: =IFERROR(IF(OR($C23=0,Y$12=""),"",IF(Y$12="Total",IF(SUM($G23:X23)=0,0,SUM($G23:X23)),IF(Selector=8,Percent_Waste,Ref_Result))),"") ->  | Z23: =IFERROR(IF(OR($C23=0,Z$12=""),"",IF(Z$12="Total",IF(SUM($G23:Y23)=0,0,SUM($G23:Y23)),IF(Selector=8,Percent_Waste,Ref_Result))),"") ->  | AA23: 10 | AF23: =IFERROR(IF($AF$11="FRY",INDEX(Conn_FRY_Delivery,ROWS($13:23),COLUMNS($A:A)),""),"") -> 2019-02-02 | AG23: =IFERROR(IF($AF$11="FRY",INDEX(Conn_FRY_Delivery,ROWS($13:23),COLUMNS($A:B)),""),"") -> FRY | AH23: =IFERROR(IF($AF$11="FRY",INDEX(Conn_FRY_Delivery,ROWS($13:23),COLUMNS($A:C)),""),"") -> รับ | AI23: =IFERROR(IF($AF$11="FRY",INDEX(Conn_FRY_Delivery,ROWS($13:23),COLUMNS($A:D)),""),"") -> 11-ขนมปังหมูหยองมายองเนส | AJ23: =IFERROR(IF($AF$11="FRY",INDEX(Conn_FRY_Delivery,ROWS($13:23),COLUMNS($A:E)),""),"") -> 100 | AL23: =IFERROR(IF($AL$11="FRK",INDEX(Conn_FRK_Delivery,ROWS($13:23),COLUMNS($A:A)),""),"") ->  | AM23: =IFERROR(IF($AL$11="FRK",INDEX(Conn_FRK_Delivery,ROWS($13:23),COLUMNS($A:B)),""),"") ->  | AN23: =IFERROR(IF($AL$11="FRK",INDEX(Conn_FRK_Delivery,ROWS($13:23),COLUMNS($A:C)),""),"") ->  | AO23: =IFERROR(IF($AL$11="FRK",INDEX(Conn_FRK_Delivery,ROWS($13:23),COLUMNS($A:D)),""),"") ->  | AP23: =IFERROR(IF($AL$11="FRK",INDEX(Conn_FRK_Delivery,ROWS($13:23),COLUMNS($A:E)),""),"") ->  | AR23: =IF(ROWS($13:23)<=IFERROR(ROWS(FRY_Delivery_Data),0),"FRY",IF(ROWS($13:23)<=IFERROR(ROWS(FRY_Delivery_Data),0)+IFERROR(ROWS(FRK_Delivery_Data),0),"FRK","")) -> FRY | AS23: =IF($AR23="FRY",INDEX(FRY_Delivery_Data,COUNTIF($AR$13:$AR23,$AR23),COLUMNS($A:A)),IF($AR23="FRK",INDEX(FRK_Delivery_Data,COUNTIF($AR$13:$AR23,$AR23),COLUMNS($A:A)),"")) -> 2019-02-02 | AT23: =IF($AR23="FRY",INDEX(FRY_Delivery_Data,COUNTIF($AR$13:$AR23,$AR23),COLUMNS($A:B)),IF($AR23="FRK",INDEX(FRK_Delivery_Data,COUNTIF($AR$13:$AR23,$AR23),COLUMNS($A:B)),"")) -> FRY | AU23: =IF($AR23="FRY",INDEX(FRY_Delivery_Data,COUNTIF($AR$13:$AR23,$AR23),COLUMNS($A:C)),IF($AR23="FRK",INDEX(FRK_Delivery_Data,COUNTIF($AR$13:$AR23,$AR23),COLUMNS($A:C)),"")) -> รับ | AV23: =IF($AR23="FRY",INDEX(FRY_Delivery_Data,COUNTIF($AR$13:$AR23,$AR23),COLUMNS($A:D)),IF($AR23="FRK",INDEX(FRK_Delivery_Data,COUNTIF($AR$13:$AR23,$AR23),COLUMNS($A:D)),"")) -> 11-ขนมปังหมูหยองมายองเนส | AW23: =IF($AR23="FRY",INDEX(FRY_Delivery_Data,COUNTIF($AR$13:$AR23,$AR23),COLUMNS($A:E)),IF($AR23="FRK",INDEX(FRK_Delivery_Data,COUNTIF($AR$13:$AR23,$AR23),COLUMNS($A:E)),"")) -> 100
B24: =IF(OR($C24="",$C24=0,ROWS($13:24)>ROWS(Product_List)),"",COUNTIF($C$13:$C24,"*?")) -> 12 | C24: =IFERROR(IF($C$9="No File In Folder","",INDEX(Product_List,ROWS($13:24))),"") -> 12-ขนมปังพิซซ่า | D24: 600 | E24: =IFERROR(INDEX(Brch_FileNameList,ROWS($11:22)),"") ->  | F24: =IF(E24="","",SL_BranchCode&"-"&MID(E24,7,2)) ->  | G24: =IFERROR(IF(OR($C24=0,G$12=""),"",IF(G$12="Total",IF(SUM(F24:$G24)=0,0,SUM(F24:$G24)),IF(Selector=8,Percent_Waste,Ref_Result))),"") -> 50 | H24: =IFERROR(IF(OR($C24=0,H$12=""),"",IF(H$12="Total",IF(SUM(G24:$G24)=0,0,SUM(G24:$G24)),IF(Selector=8,Percent_Waste,Ref_Result))),"") -> 50 | I24: =IFERROR(IF(OR($C24=0,I$12=""),"",IF(I$12="Total",IF(SUM($G24:H24)=0,0,SUM($G24:H24)),IF(Selector=8,Percent_Waste,Ref_Result))),"") -> 60 | J24: =IFERROR(IF(OR($C24=0,J$12=""),"",IF(J$12="Total",IF(SUM($G24:I24)=0,0,SUM($G24:I24)),IF(Selector=8,Percent_Waste,Ref_Result))),"") -> 70 | K24: =IFERROR(IF(OR($C24=0,K$12=""),"",IF(K$12="Total",IF(SUM($G24:J24)=0,0,SUM($G24:J24)),IF(Selector=8,Percent_Waste,Ref_Result))),"") -> 50 | L24: =IFERROR(IF(OR($C24=0,L$12=""),"",IF(L$12="Total",IF(SUM($G24:K24)=0,0,SUM($G24:K24)),IF(Selector=8,Percent_Waste,Ref_Result))),"") -> 50 | M24: =IFERROR(IF(OR($C24=0,M$12=""),"",IF(M$12="Total",IF(SUM($G24:L24)=0,0,SUM($G24:L24)),IF(Selector=8,Percent_Waste,Ref_Result))),"") -> 50 | N24: =IFERROR(IF(OR($C24=0,N$12=""),"",IF(N$12="Total",IF(SUM($G24:M24)=0,0,SUM($G24:M24)),IF(Selector=8,Percent_Waste,Ref_Result))),"") -> 50 | O24: =IFERROR(IF(OR($C24=0,O$12=""),"",IF(O$12="Total",IF(SUM($G24:N24)=0,0,SUM($G24:N24)),IF(Selector=8,Percent_Waste,Ref_Result))),"") -> 50 | P24: =IFERROR(IF(OR($C24=0,P$12=""),"",IF(P$12="Total",IF(SUM($G24:O24)=0,0,SUM($G24:O24)),IF(Selector=8,Percent_Waste,Ref_Result))),"") -> 60 | Q24: =IFERROR(IF(OR($C24=0,Q$12=""),"",IF(Q$12="Total",IF(SUM($G24:P24)=0,0,SUM($G24:P24)),IF(Selector=8,Percent_Waste,Ref_Result))),"") -> 540 | R24: =IFERROR(IF(OR($C24=0,R$12=""),"",IF(R$12="Total",IF(SUM($G24:Q24)=0,0,SUM($G24:Q24)),IF(Selector=8,Percent_Waste,Ref_Result))),"") ->  | S24: =IFERROR(IF(OR($C24=0,S$12=""),"",IF(S$12="Total",IF(SUM($G24:R24)=0,0,SUM($G24:R24)),IF(Selector=8,Percent_Waste,Ref_Result))),"") ->  | T24: =IFERROR(IF(OR($C24=0,T$12=""),"",IF(T$12="Total",IF(SUM($G24:S24)=0,0,SUM($G24:S24)),IF(Selector=8,Percent_Waste,Ref_Result))),"") ->  | U24: =IFERROR(IF(OR($C24=0,U$12=""),"",IF(U$12="Total",IF(SUM($G24:T24)=0,0,SUM($G24:T24)),IF(Selector=8,Percent_Waste,Ref_Result))),"") ->  | V24: =IFERROR(IF(OR($C24=0,V$12=""),"",IF(V$12="Total",IF(SUM($G24:U24)=0,0,SUM($G24:U24)),IF(Selector=8,Percent_Waste,Ref_Result))),"") ->  | W24: =IFERROR(IF(OR($C24=0,W$12=""),"",IF(W$12="Total",IF(SUM($G24:V24)=0,0,SUM($G24:V24)),IF(Selector=8,Percent_Waste,Ref_Result))),"") ->  | X24: =IFERROR(IF(OR($C24=0,X$12=""),"",IF(X$12="Total",IF(SUM($G24:W24)=0,0,SUM($G24:W24)),IF(Selector=8,Percent_Waste,Ref_Result))),"") ->  | Y24: =IFERROR(IF(OR($C24=0,Y$12=""),"",IF(Y$12="Total",IF(SUM($G24:X24)=0,0,SUM($G24:X24)),IF(Selector=8,Percent_Waste,Ref_Result))),"") ->  | Z24: =IFERROR(IF(OR($C24=0,Z$12=""),"",IF(Z$12="Total",IF(SUM($G24:Y24)=0,0,SUM($G24:Y24)),IF(Selector=8,Percent_Waste,Ref_Result))),"") ->  | AA24: 60 | AF24: =IFERROR(IF($AF$11="FRY",INDEX(Conn_FRY_Delivery,ROWS($13:24),COLUMNS($A:A)),""),"") -> 2019-02-02 | AG24: =IFERROR(IF($AF$11="FRY",INDEX(Conn_FRY_Delivery,ROWS($13:24),COLUMNS($A:B)),""),"") -> FRY | AH24: =IFERROR(IF($AF$11="FRY",INDEX(Conn_FRY_Delivery,ROWS($13:24),COLUMNS($A:C)),""),"") -> รับ | AI24: =IFERROR(IF($AF$11="FRY",INDEX(Conn_FRY_Delivery,ROWS($13:24),COLUMNS($A:D)),""),"") -> 12-ขนมปังพิซซ่า | AJ24: =IFERROR(IF($AF$11="FRY",INDEX(Conn_FRY_Delivery,ROWS($13:24),COLUMNS($A:E)),""),"") -> 600 | AL24: =IFERROR(IF($AL$11="FRK",INDEX(Conn_FRK_Delivery,ROWS($13:24),COLUMNS($A:A)),""),"") ->  | AM24: =IFERROR(IF($AL$11="FRK",INDEX(Conn_FRK_Delivery,ROWS($13:24),COLUMNS($A:B)),""),"") ->  | AN24: =IFERROR(IF($AL$11="FRK",INDEX(Conn_FRK_Delivery,ROWS($13:24),COLUMNS($A:C)),""),"") ->  | AO24: =IFERROR(IF($AL$11="FRK",INDEX(Conn_FRK_Delivery,ROWS($13:24),COLUMNS($A:D)),""),"") ->  | AP24: =IFERROR(IF($AL$11="FRK",INDEX(Conn_FRK_Delivery,ROWS($13:24),COLUMNS($A:E)),""),"") ->  | AR24: =IF(ROWS($13:24)<=IFERROR(ROWS(FRY_Delivery_Data),0),"FRY",IF(ROWS($13:24)<=IFERROR(ROWS(FRY_Delivery_Data),0)+IFERROR(ROWS(FRK_Delivery_Data),0),"FRK","")) -> FRY | AS24: =IF($AR24="FRY",INDEX(FRY_Delivery_Data,COUNTIF($AR$13:$AR24,$AR24),COLUMNS($A:A)),IF($AR24="FRK",INDEX(FRK_Delivery_Data,COUNTIF($AR$13:$AR24,$AR24),COLUMNS($A:A)),"")) -> 2019-02-02 | AT24: =IF($AR24="FRY",INDEX(FRY_Delivery_Data,COUNTIF($AR$13:$AR24,$AR24),COLUMNS($A:B)),IF($AR24="FRK",INDEX(FRK_Delivery_Data,COUNTIF($AR$13:$AR24,$AR24),COLUMNS($A:B)),"")) -> FRY | AU24: =IF($AR24="FRY",INDEX(FRY_Delivery_Data,COUNTIF($AR$13:$AR24,$AR24),COLUMNS($A:C)),IF($AR24="FRK",INDEX(FRK_Delivery_Data,COUNTIF($AR$13:$AR24,$AR24),COLUMNS($A:C)),"")) -> รับ | AV24: =IF($AR24="FRY",INDEX(FRY_Delivery_Data,COUNTIF($AR$13:$AR24,$AR24),COLUMNS($A:D)),IF($AR24="FRK",INDEX(FRK_Delivery_Data,COUNTIF($AR$13:$AR24,$AR24),COLUMNS($A:D)),"")) -> 12-ขนมปังพิซซ่า | AW24: =IF($AR24="FRY",INDEX(FRY_Delivery_Data,COUNTIF($AR$13:$AR24,$AR24),COLUMNS($A:E)),IF($AR24="FRK",INDEX(FRK_Delivery_Data,COUNTIF($AR$13:$AR24,$AR24),COLUMNS($A:E)),"")) -> 600
B25: =IF(OR($C25="",$C25=0,ROWS($13:25)>ROWS(Product_List)),"",COUNTIF($C$13:$C25,"*?")) -> 13 | C25: =IFERROR(IF($C$9="No File In Folder","",INDEX(Product_List,ROWS($13:25))),"") -> 13-ขนมปังหมูหยองน้ำสลัด | D25: 1160 | E25: =IFERROR(INDEX(Brch_FileNameList,ROWS($11:23)),"") ->  | F25: =IF(E25="","",SL_BranchCode&"-"&MID(E25,7,2)) ->  | G25: =IFERROR(IF(OR($C25=0,G$12=""),"",IF(G$12="Total",IF(SUM(F25:$G25)=0,0,SUM(F25:$G25)),IF(Selector=8,Percent_Waste,Ref_Result))),"") -> 100 | H25: =IFERROR(IF(OR($C25=0,H$12=""),"",IF(H$12="Total",IF(SUM(G25:$G25)=0,0,SUM(G25:$G25)),IF(Selector=8,Percent_Waste,Ref_Result))),"") -> 100 | I25: =IFERROR(IF(OR($C25=0,I$12=""),"",IF(I$12="Total",IF(SUM($G25:H25)=0,0,SUM($G25:H25)),IF(Selector=8,Percent_Waste,Ref_Result))),"") -> 120 | J25: =IFERROR(IF(OR($C25=0,J$12=""),"",IF(J$12="Total",IF(SUM($G25:I25)=0,0,SUM($G25:I25)),IF(Selector=8,Percent_Waste,Ref_Result))),"") -> 100 | K25: =IFERROR(IF(OR($C25=0,K$12=""),"",IF(K$12="Total",IF(SUM($G25:J25)=0,0,SUM($G25:J25)),IF(Selector=8,Percent_Waste,Ref_Result))),"") -> 120 | L25: =IFERROR(IF(OR($C25=0,L$12=""),"",IF(L$12="Total",IF(SUM($G25:K25)=0,0,SUM($G25:K25)),IF(Selector=8,Percent_Waste,Ref_Result))),"") -> 80 | M25: =IFERROR(IF(OR($C25=0,M$12=""),"",IF(M$12="Total",IF(SUM($G25:L25)=0,0,SUM($G25:L25)),IF(Selector=8,Percent_Waste,Ref_Result))),"") -> 120 | N25: =IFERROR(IF(OR($C25=0,N$12=""),"",IF(N$12="Total",IF(SUM($G25:M25)=0,0,SUM($G25:M25)),IF(Selector=8,Percent_Waste,Ref_Result))),"") -> 100 | O25: =IFERROR(IF(OR($C25=0,O$12=""),"",IF(O$12="Total",IF(SUM($G25:N25)=0,0,SUM($G25:N25)),IF(Selector=8,Percent_Waste,Ref_Result))),"") -> 60 | P25: =IFERROR(IF(OR($C25=0,P$12=""),"",IF(P$12="Total",IF(SUM($G25:O25)=0,0,SUM($G25:O25)),IF(Selector=8,Percent_Waste,Ref_Result))),"") -> 140 | Q25: =IFERROR(IF(OR($C25=0,Q$12=""),"",IF(Q$12="Total",IF(SUM($G25:P25)=0,0,SUM($G25:P25)),IF(Selector=8,Percent_Waste,Ref_Result))),"") -> 1040 | R25: =IFERROR(IF(OR($C25=0,R$12=""),"",IF(R$12="Total",IF(SUM($G25:Q25)=0,0,SUM($G25:Q25)),IF(Selector=8,Percent_Waste,Ref_Result))),"") ->  | S25: =IFERROR(IF(OR($C25=0,S$12=""),"",IF(S$12="Total",IF(SUM($G25:R25)=0,0,SUM($G25:R25)),IF(Selector=8,Percent_Waste,Ref_Result))),"") ->  | T25: =IFERROR(IF(OR($C25=0,T$12=""),"",IF(T$12="Total",IF(SUM($G25:S25)=0,0,SUM($G25:S25)),IF(Selector=8,Percent_Waste,Ref_Result))),"") ->  | U25: =IFERROR(IF(OR($C25=0,U$12=""),"",IF(U$12="Total",IF(SUM($G25:T25)=0,0,SUM($G25:T25)),IF(Selector=8,Percent_Waste,Ref_Result))),"") ->  | V25: =IFERROR(IF(OR($C25=0,V$12=""),"",IF(V$12="Total",IF(SUM($G25:U25)=0,0,SUM($G25:U25)),IF(Selector=8,Percent_Waste,Ref_Result))),"") ->  | W25: =IFERROR(IF(OR($C25=0,W$12=""),"",IF(W$12="Total",IF(SUM($G25:V25)=0,0,SUM($G25:V25)),IF(Selector=8,Percent_Waste,Ref_Result))),"") ->  | X25: =IFERROR(IF(OR($C25=0,X$12=""),"",IF(X$12="Total",IF(SUM($G25:W25)=0,0,SUM($G25:W25)),IF(Selector=8,Percent_Waste,Ref_Result))),"") ->  | Y25: =IFERROR(IF(OR($C25=0,Y$12=""),"",IF(Y$12="Total",IF(SUM($G25:X25)=0,0,SUM($G25:X25)),IF(Selector=8,Percent_Waste,Ref_Result))),"") ->  | Z25: =IFERROR(IF(OR($C25=0,Z$12=""),"",IF(Z$12="Total",IF(SUM($G25:Y25)=0,0,SUM($G25:Y25)),IF(Selector=8,Percent_Waste,Ref_Result))),"") ->  | AA25: 120 | AF25: =IFERROR(IF($AF$11="FRY",INDEX(Conn_FRY_Delivery,ROWS($13:25),COLUMNS($A:A)),""),"") -> 2019-02-02 | AG25: =IFERROR(IF($AF$11="FRY",INDEX(Conn_FRY_Delivery,ROWS($13:25),COLUMNS($A:B)),""),"") -> FRY | AH25: =IFERROR(IF($AF$11="FRY",INDEX(Conn_FRY_Delivery,ROWS($13:25),COLUMNS($A:C)),""),"") -> รับ | AI25: =IFERROR(IF($AF$11="FRY",INDEX(Conn_FRY_Delivery,ROWS($13:25),COLUMNS($A:D)),""),"") -> 13-ขนมปังหมูหยองน้ำสลัด | AJ25: =IFERROR(IF($AF$11="FRY",INDEX(Conn_FRY_Delivery,ROWS($13:25),COLUMNS($A:E)),""),"") -> 1160 | AL25: =IFERROR(IF($AL$11="FRK",INDEX(Conn_FRK_Delivery,ROWS($13:25),COLUMNS($A:A)),""),"") ->  | AM25: =IFERROR(IF($AL$11="FRK",INDEX(Conn_FRK_Delivery,ROWS($13:25),COLUMNS($A:B)),""),"") ->  | AN25: =IFERROR(IF($AL$11="FRK",INDEX(Conn_FRK_Delivery,ROWS($13:25),COLUMNS($A:C)),""),"") ->  | AO25: =IFERROR(IF($AL$11="FRK",INDEX(Conn_FRK_Delivery,ROWS($13:25),COLUMNS($A:D)),""),"") ->  | AP25: =IFERROR(IF($AL$11="FRK",INDEX(Conn_FRK_Delivery,ROWS($13:25),COLUMNS($A:E)),""),"") ->  | AR25: =IF(ROWS($13:25)<=IFERROR(ROWS(FRY_Delivery_Data),0),"FRY",IF(ROWS($13:25)<=IFERROR(ROWS(FRY_Delivery_Data),0)+IFERROR(ROWS(FRK_Delivery_Data),0),"FRK","")) -> FRY | AS25: =IF($AR25="FRY",INDEX(FRY_Delivery_Data,COUNTIF($AR$13:$AR25,$AR25),COLUMNS($A:A)),IF($AR25="FRK",INDEX(FRK_Delivery_Data,COUNTIF($AR$13:$AR25,$AR25),COLUMNS($A:A)),"")) -> 2019-02-02 | AT25: =IF($AR25="FRY",INDEX(FRY_Delivery_Data,COUNTIF($AR$13:$AR25,$AR25),COLUMNS($A:B)),IF($AR25="FRK",INDEX(FRK_Delivery_Data,COUNTIF($AR$13:$AR25,$AR25),COLUMNS($A:B)),"")) -> FRY | AU25: =IF($AR25="FRY",INDEX(FRY_Delivery_Data,COUNTIF($AR$13:$AR25,$AR25),COLUMNS($A:C)),IF($AR25="FRK",INDEX(FRK_Delivery_Data,COUNTIF($AR$13:$AR25,$AR25),COLUMNS($A:C)),"")) -> รับ | AV25: =IF($AR25="FRY",INDEX(FRY_Delivery_Data,COUNTIF($AR$13:$AR25,$AR25),COLUMNS($A:D)),IF($AR25="FRK",INDEX(FRK_Delivery_Data,COUNTIF($AR$13:$AR25,$AR25),COLUMNS($A:D)),"")) -> 13-ขนมปังหมูหยองน้ำสลัด | AW25: =IF($AR25="FRY",INDEX(FRY_Delivery_Data,COUNTIF($AR$13:$AR25,$AR25),COLUMNS($A:E)),IF($AR25="FRK",INDEX(FRK_Delivery_Data,COUNTIF($AR$13:$AR25,$AR25),COLUMNS($A:E)),"")) -> 1160
B26: =IF(OR($C26="",$C26=0,ROWS($13:26)>ROWS(Product_List)),"",COUNTIF($C$13:$C26,"*?")) -> 14 | C26: =IFERROR(IF($C$9="No File In Folder","",INDEX(Product_List,ROWS($13:26))),"") -> 14-ขนมปังไส้กรอก | D26: 700 | E26: =IFERROR(INDEX(Brch_FileNameList,ROWS($11:24)),"") ->  | F26: =IF(E26="","",SL_BranchCode&"-"&MID(E26,7,2)) ->  | G26: =IFERROR(IF(OR($C26=0,G$12=""),"",IF(G$12="Total",IF(SUM(F26:$G26)=0,0,SUM(F26:$G26)),IF(Selector=8,Percent_Waste,Ref_Result))),"") -> 80 | H26: =IFERROR(IF(OR($C26=0,H$12=""),"",IF(H$12="Total",IF(SUM(G26:$G26)=0,0,SUM(G26:$G26)),IF(Selector=8,Percent_Waste,Ref_Result))),"") -> 50 | I26: =IFERROR(IF(OR($C26=0,I$12=""),"",IF(I$12="Total",IF(SUM($G26:H26)=0,0,SUM($G26:H26)),IF(Selector=8,Percent_Waste,Ref_Result))),"") -> 70 | J26: =IFERROR(IF(OR($C26=0,J$12=""),"",IF(J$12="Total",IF(SUM($G26:I26)=0,0,SUM($G26:I26)),IF(Selector=8,Percent_Waste,Ref_Result))),"") -> 100 | K26: =IFERROR(IF(OR($C26=0,K$12=""),"",IF(K$12="Total",IF(SUM($G26:J26)=0,0,SUM($G26:J26)),IF(Selector=8,Percent_Waste,Ref_Result))),"") -> 80 | L26: =IFERROR(IF(OR($C26=0,L$12=""),"",IF(L$12="Total",IF(SUM($G26:K26)=0,0,SUM($G26:K26)),IF(Selector=8,Percent_Waste,Ref_Result))),"") -> 50 | M26: =IFERROR(IF(OR($C26=0,M$12=""),"",IF(M$12="Total",IF(SUM($G26:L26)=0,0,SUM($G26:L26)),IF(Selector=8,Percent_Waste,Ref_Result))),"") -> 50 | N26: =IFERROR(IF(OR($C26=0,N$12=""),"",IF(N$12="Total",IF(SUM($G26:M26)=0,0,SUM($G26:M26)),IF(Selector=8,Percent_Waste,Ref_Result))),"") -> 50 | O26: =IFERROR(IF(OR($C26=0,O$12=""),"",IF(O$12="Total",IF(SUM($G26:N26)=0,0,SUM($G26:N26)),IF(Selector=8,Percent_Waste,Ref_Result))),"") -> 50 | P26: =IFERROR(IF(OR($C26=0,P$12=""),"",IF(P$12="Total",IF(SUM($G26:O26)=0,0,SUM($G26:O26)),IF(Selector=8,Percent_Waste,Ref_Result))),"") -> 60 | Q26: =IFERROR(IF(OR($C26=0,Q$12=""),"",IF(Q$12="Total",IF(SUM($G26:P26)=0,0,SUM($G26:P26)),IF(Selector=8,Percent_Waste,Ref_Result))),"") -> 640 | R26: =IFERROR(IF(OR($C26=0,R$12=""),"",IF(R$12="Total",IF(SUM($G26:Q26)=0,0,SUM($G26:Q26)),IF(Selector=8,Percent_Waste,Ref_Result))),"") ->  | S26: =IFERROR(IF(OR($C26=0,S$12=""),"",IF(S$12="Total",IF(SUM($G26:R26)=0,0,SUM($G26:R26)),IF(Selector=8,Percent_Waste,Ref_Result))),"") ->  | T26: =IFERROR(IF(OR($C26=0,T$12=""),"",IF(T$12="Total",IF(SUM($G26:S26)=0,0,SUM($G26:S26)),IF(Selector=8,Percent_Waste,Ref_Result))),"") ->  | U26: =IFERROR(IF(OR($C26=0,U$12=""),"",IF(U$12="Total",IF(SUM($G26:T26)=0,0,SUM($G26:T26)),IF(Selector=8,Percent_Waste,Ref_Result))),"") ->  | V26: =IFERROR(IF(OR($C26=0,V$12=""),"",IF(V$12="Total",IF(SUM($G26:U26)=0,0,SUM($G26:U26)),IF(Selector=8,Percent_Waste,Ref_Result))),"") ->  | W26: =IFERROR(IF(OR($C26=0,W$12=""),"",IF(W$12="Total",IF(SUM($G26:V26)=0,0,SUM($G26:V26)),IF(Selector=8,Percent_Waste,Ref_Result))),"") ->  | X26: =IFERROR(IF(OR($C26=0,X$12=""),"",IF(X$12="Total",IF(SUM($G26:W26)=0,0,SUM($G26:W26)),IF(Selector=8,Percent_Waste,Ref_Result))),"") ->  | Y26: =IFERROR(IF(OR($C26=0,Y$12=""),"",IF(Y$12="Total",IF(SUM($G26:X26)=0,0,SUM($G26:X26)),IF(Selector=8,Percent_Waste,Ref_Result))),"") ->  | Z26: =IFERROR(IF(OR($C26=0,Z$12=""),"",IF(Z$12="Total",IF(SUM($G26:Y26)=0,0,SUM($G26:Y26)),IF(Selector=8,Percent_Waste,Ref_Result))),"") ->  | AA26: 60 | AF26: =IFERROR(IF($AF$11="FRY",INDEX(Conn_FRY_Delivery,ROWS($13:26),COLUMNS($A:A)),""),"") -> 2019-02-02 | AG26: =IFERROR(IF($AF$11="FRY",INDEX(Conn_FRY_Delivery,ROWS($13:26),COLUMNS($A:B)),""),"") -> FRY | AH26: =IFERROR(IF($AF$11="FRY",INDEX(Conn_FRY_Delivery,ROWS($13:26),COLUMNS($A:C)),""),"") -> รับ | AI26: =IFERROR(IF($AF$11="FRY",INDEX(Conn_FRY_Delivery,ROWS($13:26),COLUMNS($A:D)),""),"") -> 14-ขนมปังไส้กรอก | AJ26: =IFERROR(IF($AF$11="FRY",INDEX(Conn_FRY_Delivery,ROWS($13:26),COLUMNS($A:E)),""),"") -> 700 | AL26: =IFERROR(IF($AL$11="FRK",INDEX(Conn_FRK_Delivery,ROWS($13:26),COLUMNS($A:A)),""),"") ->  | AM26: =IFERROR(IF($AL$11="FRK",INDEX(Conn_FRK_Delivery,ROWS($13:26),COLUMNS($A:B)),""),"") ->  | AN26: =IFERROR(IF($AL$11="FRK",INDEX(Conn_FRK_Delivery,ROWS($13:26),COLUMNS($A:C)),""),"") ->  | AO26: =IFERROR(IF($AL$11="FRK",INDEX(Conn_FRK_Delivery,ROWS($13:26),COLUMNS($A:D)),""),"") ->  | AP26: =IFERROR(IF($AL$11="FRK",INDEX(Conn_FRK_Delivery,ROWS($13:26),COLUMNS($A:E)),""),"") ->  | AR26: =IF(ROWS($13:26)<=IFERROR(ROWS(FRY_Delivery_Data),0),"FRY",IF(ROWS($13:26)<=IFERROR(ROWS(FRY_Delivery_Data),0)+IFERROR(ROWS(FRK_Delivery_Data),0),"FRK","")) -> FRY | AS26: =IF($AR26="FRY",INDEX(FRY_Delivery_Data,COUNTIF($AR$13:$AR26,$AR26),COLUMNS($A:A)),IF($AR26="FRK",INDEX(FRK_Delivery_Data,COUNTIF($AR$13:$AR26,$AR26),COLUMNS($A:A)),"")) -> 2019-02-02 | AT26: =IF($AR26="FRY",INDEX(FRY_Delivery_Data,COUNTIF($AR$13:$AR26,$AR26),COLUMNS($A:B)),IF($AR26="FRK",INDEX(FRK_Delivery_Data,COUNTIF($AR$13:$AR26,$AR26),COLUMNS($A:B)),"")) -> FRY | AU26: =IF($AR26="FRY",INDEX(FRY_Delivery_Data,COUNTIF($AR$13:$AR26,$AR26),COLUMNS($A:C)),IF($AR26="FRK",INDEX(FRK_Delivery_Data,COUNTIF($AR$13:$AR26,$AR26),COLUMNS($A:C)),"")) -> รับ | AV26: =IF($AR26="FRY",INDEX(FRY_Delivery_Data,COUNTIF($AR$13:$AR26,$AR26),COLUMNS($A:D)),IF($AR26="FRK",INDEX(FRK_Delivery_Data,COUNTIF($AR$13:$AR26,$AR26),COLUMNS($A:D)),"")) -> 14-ขนมปังไส้กรอก | AW26: =IF($AR26="FRY",INDEX(FRY_Delivery_Data,COUNTIF($AR$13:$AR26,$AR26),COLUMNS($A:E)),IF($AR26="FRK",INDEX(FRK_Delivery_Data,COUNTIF($AR$13:$AR26,$AR26),COLUMNS($A:E)),"")) -> 700
B27: =IF(OR($C27="",$C27=0,ROWS($13:27)>ROWS(Product_List)),"",COUNTIF($C$13:$C27,"*?")) -> 15 | C27: =IFERROR(IF($C$9="No File In Folder","",INDEX(Product_List,ROWS($13:27))),"") -> 15-ขนมก้านบัว | D27: 360 | E27: =IFERROR(INDEX(Brch_FileNameList,ROWS($11:25)),"") ->  | F27: =IF(E27="","",SL_BranchCode&"-"&MID(E27,7,2)) ->  | G27: =IFERROR(IF(OR($C27=0,G$12=""),"",IF(G$12="Total",IF(SUM(F27:$G27)=0,0,SUM(F27:$G27)),IF(Selector=8,Percent_Waste,Ref_Result))),"") -> 40 | H27: =IFERROR(IF(OR($C27=0,H$12=""),"",IF(H$12="Total",IF(SUM(G27:$G27)=0,0,SUM(G27:$G27)),IF(Selector=8,Percent_Waste,Ref_Result))),"") -> 40 | I27: =IFERROR(IF(OR($C27=0,I$12=""),"",IF(I$12="Total",IF(SUM($G27:H27)=0,0,SUM($G27:H27)),IF(Selector=8,Percent_Waste,Ref_Result))),"") -> 0 | J27: =IFERROR(IF(OR($C27=0,J$12=""),"",IF(J$12="Total",IF(SUM($G27:I27)=0,0,SUM($G27:I27)),IF(Selector=8,Percent_Waste,Ref_Result))),"") -> 40 | K27: =IFERROR(IF(OR($C27=0,K$12=""),"",IF(K$12="Total",IF(SUM($G27:J27)=0,0,SUM($G27:J27)),IF(Selector=8,Percent_Waste,Ref_Result))),"") -> 40 | L27: =IFERROR(IF(OR($C27=0,L$12=""),"",IF(L$12="Total",IF(SUM($G27:K27)=0,0,SUM($G27:K27)),IF(Selector=8,Percent_Waste,Ref_Result))),"") -> 40 | M27: =IFERROR(IF(OR($C27=0,M$12=""),"",IF(M$12="Total",IF(SUM($G27:L27)=0,0,SUM($G27:L27)),IF(Selector=8,Percent_Waste,Ref_Result))),"") -> 40 | N27: =IFERROR(IF(OR($C27=0,N$12=""),"",IF(N$12="Total",IF(SUM($G27:M27)=0,0,SUM($G27:M27)),IF(Selector=8,Percent_Waste,Ref_Result))),"") -> 40 | O27: =IFERROR(IF(OR($C27=0,O$12=""),"",IF(O$12="Total",IF(SUM($G27:N27)=0,0,SUM($G27:N27)),IF(Selector=8,Percent_Waste,Ref_Result))),"") -> 0 | P27: =IFERROR(IF(OR($C27=0,P$12=""),"",IF(P$12="Total",IF(SUM($G27:O27)=0,0,SUM($G27:O27)),IF(Selector=8,Percent_Waste,Ref_Result))),"") -> 40 | Q27: =IFERROR(IF(OR($C27=0,Q$12=""),"",IF(Q$12="Total",IF(SUM($G27:P27)=0,0,SUM($G27:P27)),IF(Selector=8,Percent_Waste,Ref_Result))),"") -> 320 | R27: =IFERROR(IF(OR($C27=0,R$12=""),"",IF(R$12="Total",IF(SUM($G27:Q27)=0,0,SUM($G27:Q27)),IF(Selector=8,Percent_Waste,Ref_Result))),"") ->  | S27: =IFERROR(IF(OR($C27=0,S$12=""),"",IF(S$12="Total",IF(SUM($G27:R27)=0,0,SUM($G27:R27)),IF(Selector=8,Percent_Waste,Ref_Result))),"") ->  | T27: =IFERROR(IF(OR($C27=0,T$12=""),"",IF(T$12="Total",IF(SUM($G27:S27)=0,0,SUM($G27:S27)),IF(Selector=8,Percent_Waste,Ref_Result))),"") ->  | U27: =IFERROR(IF(OR($C27=0,U$12=""),"",IF(U$12="Total",IF(SUM($G27:T27)=0,0,SUM($G27:T27)),IF(Selector=8,Percent_Waste,Ref_Result))),"") ->  | V27: =IFERROR(IF(OR($C27=0,V$12=""),"",IF(V$12="Total",IF(SUM($G27:U27)=0,0,SUM($G27:U27)),IF(Selector=8,Percent_Waste,Ref_Result))),"") ->  | W27: =IFERROR(IF(OR($C27=0,W$12=""),"",IF(W$12="Total",IF(SUM($G27:V27)=0,0,SUM($G27:V27)),IF(Selector=8,Percent_Waste,Ref_Result))),"") ->  | X27: =IFERROR(IF(OR($C27=0,X$12=""),"",IF(X$12="Total",IF(SUM($G27:W27)=0,0,SUM($G27:W27)),IF(Selector=8,Percent_Waste,Ref_Result))),"") ->  | Y27: =IFERROR(IF(OR($C27=0,Y$12=""),"",IF(Y$12="Total",IF(SUM($G27:X27)=0,0,SUM($G27:X27)),IF(Selector=8,Percent_Waste,Ref_Result))),"") ->  | Z27: =IFERROR(IF(OR($C27=0,Z$12=""),"",IF(Z$12="Total",IF(SUM($G27:Y27)=0,0,SUM($G27:Y27)),IF(Selector=8,Percent_Waste,Ref_Result))),"") ->  | AA27: 40 | AF27: =IFERROR(IF($AF$11="FRY",INDEX(Conn_FRY_Delivery,ROWS($13:27),COLUMNS($A:A)),""),"") -> 2019-02-02 | AG27: =IFERROR(IF($AF$11="FRY",INDEX(Conn_FRY_Delivery,ROWS($13:27),COLUMNS($A:B)),""),"") -> FRY | AH27: =IFERROR(IF($AF$11="FRY",INDEX(Conn_FRY_Delivery,ROWS($13:27),COLUMNS($A:C)),""),"") -> รับ | AI27: =IFERROR(IF($AF$11="FRY",INDEX(Conn_FRY_Delivery,ROWS($13:27),COLUMNS($A:D)),""),"") -> 15-ขนมก้านบัว | AJ27: =IFERROR(IF($AF$11="FRY",INDEX(Conn_FRY_Delivery,ROWS($13:27),COLUMNS($A:E)),""),"") -> 360 | AL27: =IFERROR(IF($AL$11="FRK",INDEX(Conn_FRK_Delivery,ROWS($13:27),COLUMNS($A:A)),""),"") ->  | AM27: =IFERROR(IF($AL$11="FRK",INDEX(Conn_FRK_Delivery,ROWS($13:27),COLUMNS($A:B)),""),"") ->  | AN27: =IFERROR(IF($AL$11="FRK",INDEX(Conn_FRK_Delivery,ROWS($13:27),COLUMNS($A:C)),""),"") ->  | AO27: =IFERROR(IF($AL$11="FRK",INDEX(Conn_FRK_Delivery,ROWS($13:27),COLUMNS($A:D)),""),"") ->  | AP27: =IFERROR(IF($AL$11="FRK",INDEX(Conn_FRK_Delivery,ROWS($13:27),COLUMNS($A:E)),""),"") ->  | AR27: =IF(ROWS($13:27)<=IFERROR(ROWS(FRY_Delivery_Data),0),"FRY",IF(ROWS($13:27)<=IFERROR(ROWS(FRY_Delivery_Data),0)+IFERROR(ROWS(FRK_Delivery_Data),0),"FRK","")) -> FRY | AS27: =IF($AR27="FRY",INDEX(FRY_Delivery_Data,COUNTIF($AR$13:$AR27,$AR27),COLUMNS($A:A)),IF($AR27="FRK",INDEX(FRK_Delivery_Data,COUNTIF($AR$13:$AR27,$AR27),COLUMNS($A:A)),"")) -> 2019-02-02 | AT27: =IF($AR27="FRY",INDEX(FRY_Delivery_Data,COUNTIF($AR$13:$AR27,$AR27),COLUMNS($A:B)),IF($AR27="FRK",INDEX(FRK_Delivery_Data,COUNTIF($AR$13:$AR27,$AR27),COLUMNS($A:B)),"")) -> FRY | AU27: =IF($AR27="FRY",INDEX(FRY_Delivery_Data,COUNTIF($AR$13:$AR27,$AR27),COLUMNS($A:C)),IF($AR27="FRK",INDEX(FRK_Delivery_Data,COUNTIF($AR$13:$AR27,$AR27),COLUMNS($A:C)),"")) -> รับ | AV27: =IF($AR27="FRY",INDEX(FRY_Delivery_Data,COUNTIF($AR$13:$AR27,$AR27),COLUMNS($A:D)),IF($AR27="FRK",INDEX(FRK_Delivery_Data,COUNTIF($AR$13:$AR27,$AR27),COLUMNS($A:D)),"")) -> 15-ขนมก้านบัว | AW27: =IF($AR27="FRY",INDEX(FRY_Delivery_Data,COUNTIF($AR$13:$AR27,$AR27),COLUMNS($A:E)),IF($AR27="FRK",INDEX(FRK_Delivery_Data,COUNTIF($AR$13:$AR27,$AR27),COLUMNS($A:E)),"")) -> 360
B28: =IF(OR($C28="",$C28=0,ROWS($13:28)>ROWS(Product_List)),"",COUNTIF($C$13:$C28,"*?")) -> 16 | C28: =IFERROR(IF($C$9="No File In Folder","",INDEX(Product_List,ROWS($13:28))),"") -> 16-ขนมปังไส้หมูหยองใหญ่ | D28: 60 | E28: =IFERROR(INDEX(Brch_FileNameList,ROWS($11:26)),"") ->  | F28: =IF(E28="","",SL_BranchCode&"-"&MID(E28,7,2)) ->  | G28: =IFERROR(IF(OR($C28=0,G$12=""),"",IF(G$12="Total",IF(SUM(F28:$G28)=0,0,SUM(F28:$G28)),IF(Selector=8,Percent_Waste,Ref_Result))),"") -> 0 | H28: =IFERROR(IF(OR($C28=0,H$12=""),"",IF(H$12="Total",IF(SUM(G28:$G28)=0,0,SUM(G28:$G28)),IF(Selector=8,Percent_Waste,Ref_Result))),"") -> 0 | I28: =IFERROR(IF(OR($C28=0,I$12=""),"",IF(I$12="Total",IF(SUM($G28:H28)=0,0,SUM($G28:H28)),IF(Selector=8,Percent_Waste,Ref_Result))),"") -> 10 | J28: =IFERROR(IF(OR($C28=0,J$12=""),"",IF(J$12="Total",IF(SUM($G28:I28)=0,0,SUM($G28:I28)),IF(Selector=8,Percent_Waste,Ref_Result))),"") -> 10 | K28: =IFERROR(IF(OR($C28=0,K$12=""),"",IF(K$12="Total",IF(SUM($G28:J28)=0,0,SUM($G28:J28)),IF(Selector=8,Percent_Waste,Ref_Result))),"") -> 10 | L28: =IFERROR(IF(OR($C28=0,L$12=""),"",IF(L$12="Total",IF(SUM($G28:K28)=0,0,SUM($G28:K28)),IF(Selector=8,Percent_Waste,Ref_Result))),"") -> 10 | M28: =IFERROR(IF(OR($C28=0,M$12=""),"",IF(M$12="Total",IF(SUM($G28:L28)=0,0,SUM($G28:L28)),IF(Selector=8,Percent_Waste,Ref_Result))),"") -> 10 | N28: =IFERROR(IF(OR($C28=0,N$12=""),"",IF(N$12="Total",IF(SUM($G28:M28)=0,0,SUM($G28:M28)),IF(Selector=8,Percent_Waste,Ref_Result))),"") -> 0 | O28: =IFERROR(IF(OR($C28=0,O$12=""),"",IF(O$12="Total",IF(SUM($G28:N28)=0,0,SUM($G28:N28)),IF(Selector=8,Percent_Waste,Ref_Result))),"") -> 0 | P28: =IFERROR(IF(OR($C28=0,P$12=""),"",IF(P$12="Total",IF(SUM($G28:O28)=0,0,SUM($G28:O28)),IF(Selector=8,Percent_Waste,Ref_Result))),"") -> 10 | Q28: =IFERROR(IF(OR($C28=0,Q$12=""),"",IF(Q$12="Total",IF(SUM($G28:P28)=0,0,SUM($G28:P28)),IF(Selector=8,Percent_Waste,Ref_Result))),"") -> 60 | R28: =IFERROR(IF(OR($C28=0,R$12=""),"",IF(R$12="Total",IF(SUM($G28:Q28)=0,0,SUM($G28:Q28)),IF(Selector=8,Percent_Waste,Ref_Result))),"") ->  | S28: =IFERROR(IF(OR($C28=0,S$12=""),"",IF(S$12="Total",IF(SUM($G28:R28)=0,0,SUM($G28:R28)),IF(Selector=8,Percent_Waste,Ref_Result))),"") ->  | T28: =IFERROR(IF(OR($C28=0,T$12=""),"",IF(T$12="Total",IF(SUM($G28:S28)=0,0,SUM($G28:S28)),IF(Selector=8,Percent_Waste,Ref_Result))),"") ->  | U28: =IFERROR(IF(OR($C28=0,U$12=""),"",IF(U$12="Total",IF(SUM($G28:T28)=0,0,SUM($G28:T28)),IF(Selector=8,Percent_Waste,Ref_Result))),"") ->  | V28: =IFERROR(IF(OR($C28=0,V$12=""),"",IF(V$12="Total",IF(SUM($G28:U28)=0,0,SUM($G28:U28)),IF(Selector=8,Percent_Waste,Ref_Result))),"") ->  | W28: =IFERROR(IF(OR($C28=0,W$12=""),"",IF(W$12="Total",IF(SUM($G28:V28)=0,0,SUM($G28:V28)),IF(Selector=8,Percent_Waste,Ref_Result))),"") ->  | X28: =IFERROR(IF(OR($C28=0,X$12=""),"",IF(X$12="Total",IF(SUM($G28:W28)=0,0,SUM($G28:W28)),IF(Selector=8,Percent_Waste,Ref_Result))),"") ->  | Y28: =IFERROR(IF(OR($C28=0,Y$12=""),"",IF(Y$12="Total",IF(SUM($G28:X28)=0,0,SUM($G28:X28)),IF(Selector=8,Percent_Waste,Ref_Result))),"") ->  | Z28: =IFERROR(IF(OR($C28=0,Z$12=""),"",IF(Z$12="Total",IF(SUM($G28:Y28)=0,0,SUM($G28:Y28)),IF(Selector=8,Percent_Waste,Ref_Result))),"") ->  | AA28: 0 | AF28: =IFERROR(IF($AF$11="FRY",INDEX(Conn_FRY_Delivery,ROWS($13:28),COLUMNS($A:A)),""),"") -> 2019-02-02 | AG28: =IFERROR(IF($AF$11="FRY",INDEX(Conn_FRY_Delivery,ROWS($13:28),COLUMNS($A:B)),""),"") -> FRY | AH28: =IFERROR(IF($AF$11="FRY",INDEX(Conn_FRY_Delivery,ROWS($13:28),COLUMNS($A:C)),""),"") -> รับ | AI28: =IFERROR(IF($AF$11="FRY",INDEX(Conn_FRY_Delivery,ROWS($13:28),COLUMNS($A:D)),""),"") -> 16-ขนมปังไส้หมูหยองใหญ่ | AJ28: =IFERROR(IF($AF$11="FRY",INDEX(Conn_FRY_Delivery,ROWS($13:28),COLUMNS($A:E)),""),"") -> 60 | AL28: =IFERROR(IF($AL$11="FRK",INDEX(Conn_FRK_Delivery,ROWS($13:28),COLUMNS($A:A)),""),"") ->  | AM28: =IFERROR(IF($AL$11="FRK",INDEX(Conn_FRK_Delivery,ROWS($13:28),COLUMNS($A:B)),""),"") ->  | AN28: =IFERROR(IF($AL$11="FRK",INDEX(Conn_FRK_Delivery,ROWS($13:28),COLUMNS($A:C)),""),"") ->  | AO28: =IFERROR(IF($AL$11="FRK",INDEX(Conn_FRK_Delivery,ROWS($13:28),COLUMNS($A:D)),""),"") ->  | AP28: =IFERROR(IF($AL$11="FRK",INDEX(Conn_FRK_Delivery,ROWS($13:28),COLUMNS($A:E)),""),"") ->  | AR28: =IF(ROWS($13:28)<=IFERROR(ROWS(FRY_Delivery_Data),0),"FRY",IF(ROWS($13:28)<=IFERROR(ROWS(FRY_Delivery_Data),0)+IFERROR(ROWS(FRK_Delivery_Data),0),"FRK","")) -> FRY | AS28: =IF($AR28="FRY",INDEX(FRY_Delivery_Data,COUNTIF($AR$13:$AR28,$AR28),COLUMNS($A:A)),IF($AR28="FRK",INDEX(FRK_Delivery_Data,COUNTIF($AR$13:$AR28,$AR28),COLUMNS($A:A)),"")) -> 2019-02-02 | AT28: =IF($AR28="FRY",INDEX(FRY_Delivery_Data,COUNTIF($AR$13:$AR28,$AR28),COLUMNS($A:B)),IF($AR28="FRK",INDEX(FRK_Delivery_Data,COUNTIF($AR$13:$AR28,$AR28),COLUMNS($A:B)),"")) -> FRY | AU28: =IF($AR28="FRY",INDEX(FRY_Delivery_Data,COUNTIF($AR$13:$AR28,$AR28),COLUMNS($A:C)),IF($AR28="FRK",INDEX(FRK_Delivery_Data,COUNTIF($AR$13:$AR28,$AR28),COLUMNS($A:C)),"")) -> รับ | AV28: =IF($AR28="FRY",INDEX(FRY_Delivery_Data,COUNTIF($AR$13:$AR28,$AR28),COLUMNS($A:D)),IF($AR28="FRK",INDEX(FRK_Delivery_Data,COUNTIF($AR$13:$AR28,$AR28),COLUMNS($A:D)),"")) -> 16-ขนมปังไส้หมูหยองใหญ่ | AW28: =IF($AR28="FRY",INDEX(FRY_Delivery_Data,COUNTIF($AR$13:$AR28,$AR28),COLUMNS($A:E)),IF($AR28="FRK",INDEX(FRK_Delivery_Data,COUNTIF($AR$13:$AR28,$AR28),COLUMNS($A:E)),"")) -> 60
B29: =IF(OR($C29="",$C29=0,ROWS($13:29)>ROWS(Product_List)),"",COUNTIF($C$13:$C29,"*?")) -> 17 | C29: =IFERROR(IF($C$9="No File In Folder","",INDEX(Product_List,ROWS($13:29))),"") -> 17-ขนมปังไส้ครีมสลัด | D29: 500 | E29: =IFERROR(INDEX(Brch_FileNameList,ROWS($11:27)),"") ->  | F29: =IF(E29="","",SL_BranchCode&"-"&MID(E29,7,2)) ->  | G29: =IFERROR(IF(OR($C29=0,G$12=""),"",IF(G$12="Total",IF(SUM(F29:$G29)=0,0,SUM(F29:$G29)),IF(Selector=8,Percent_Waste,Ref_Result))),"") -> 50 | H29: =IFERROR(IF(OR($C29=0,H$12=""),"",IF(H$12="Total",IF(SUM(G29:$G29)=0,0,SUM(G29:$G29)),IF(Selector=8,Percent_Waste,Ref_Result))),"") -> 40 | I29: =IFERROR(IF(OR($C29=0,I$12=""),"",IF(I$12="Total",IF(SUM($G29:H29)=0,0,SUM($G29:H29)),IF(Selector=8,Percent_Waste,Ref_Result))),"") -> 50 | J29: =IFERROR(IF(OR($C29=0,J$12=""),"",IF(J$12="Total",IF(SUM($G29:I29)=0,0,SUM($G29:I29)),IF(Selector=8,Percent_Waste,Ref_Result))),"") -> 50 | K29: =IFERROR(IF(OR($C29=0,K$12=""),"",IF(K$12="Total",IF(SUM($G29:J29)=0,0,SUM($G29:J29)),IF(Selector=8,Percent_Waste,Ref_Result))),"") -> 50 | L29: =IFERROR(IF(OR($C29=0,L$12=""),"",IF(L$12="Total",IF(SUM($G29:K29)=0,0,SUM($G29:K29)),IF(Selector=8,Percent_Waste,Ref_Result))),"") -> 50 | M29: =IFERROR(IF(OR($C29=0,M$12=""),"",IF(M$12="Total",IF(SUM($G29:L29)=0,0,SUM($G29:L29)),IF(Selector=8,Percent_Waste,Ref_Result))),"") -> 40 | N29: =IFERROR(IF(OR($C29=0,N$12=""),"",IF(N$12="Total",IF(SUM($G29:M29)=0,0,SUM($G29:M29)),IF(Selector=8,Percent_Waste,Ref_Result))),"") -> 50 | O29: =IFERROR(IF(OR($C29=0,O$12=""),"",IF(O$12="Total",IF(SUM($G29:N29)=0,0,SUM($G29:N29)),IF(Selector=8,Percent_Waste,Ref_Result))),"") -> 20 | P29: =IFERROR(IF(OR($C29=0,P$12=""),"",IF(P$12="Total",IF(SUM($G29:O29)=0,0,SUM($G29:O29)),IF(Selector=8,Percent_Waste,Ref_Result))),"") -> 50 | Q29: =IFERROR(IF(OR($C29=0,Q$12=""),"",IF(Q$12="Total",IF(SUM($G29:P29)=0,0,SUM($G29:P29)),IF(Selector=8,Percent_Waste,Ref_Result))),"") -> 450 | R29: =IFERROR(IF(OR($C29=0,R$12=""),"",IF(R$12="Total",IF(SUM($G29:Q29)=0,0,SUM($G29:Q29)),IF(Selector=8,Percent_Waste,Ref_Result))),"") ->  | S29: =IFERROR(IF(OR($C29=0,S$12=""),"",IF(S$12="Total",IF(SUM($G29:R29)=0,0,SUM($G29:R29)),IF(Selector=8,Percent_Waste,Ref_Result))),"") ->  | T29: =IFERROR(IF(OR($C29=0,T$12=""),"",IF(T$12="Total",IF(SUM($G29:S29)=0,0,SUM($G29:S29)),IF(Selector=8,Percent_Waste,Ref_Result))),"") ->  | U29: =IFERROR(IF(OR($C29=0,U$12=""),"",IF(U$12="Total",IF(SUM($G29:T29)=0,0,SUM($G29:T29)),IF(Selector=8,Percent_Waste,Ref_Result))),"") ->  | V29: =IFERROR(IF(OR($C29=0,V$12=""),"",IF(V$12="Total",IF(SUM($G29:U29)=0,0,SUM($G29:U29)),IF(Selector=8,Percent_Waste,Ref_Result))),"") ->  | W29: =IFERROR(IF(OR($C29=0,W$12=""),"",IF(W$12="Total",IF(SUM($G29:V29)=0,0,SUM($G29:V29)),IF(Selector=8,Percent_Waste,Ref_Result))),"") ->  | X29: =IFERROR(IF(OR($C29=0,X$12=""),"",IF(X$12="Total",IF(SUM($G29:W29)=0,0,SUM($G29:W29)),IF(Selector=8,Percent_Waste,Ref_Result))),"") ->  | Y29: =IFERROR(IF(OR($C29=0,Y$12=""),"",IF(Y$12="Total",IF(SUM($G29:X29)=0,0,SUM($G29:X29)),IF(Selector=8,Percent_Waste,Ref_Result))),"") ->  | Z29: =IFERROR(IF(OR($C29=0,Z$12=""),"",IF(Z$12="Total",IF(SUM($G29:Y29)=0,0,SUM($G29:Y29)),IF(Selector=8,Percent_Waste,Ref_Result))),"") ->  | AA29: 50 | AF29: =IFERROR(IF($AF$11="FRY",INDEX(Conn_FRY_Delivery,ROWS($13:29),COLUMNS($A:A)),""),"") -> 2019-02-02 | AG29: =IFERROR(IF($AF$11="FRY",INDEX(Conn_FRY_Delivery,ROWS($13:29),COLUMNS($A:B)),""),"") -> FRY | AH29: =IFERROR(IF($AF$11="FRY",INDEX(Conn_FRY_Delivery,ROWS($13:29),COLUMNS($A:C)),""),"") -> รับ | AI29: =IFERROR(IF($AF$11="FRY",INDEX(Conn_FRY_Delivery,ROWS($13:29),COLUMNS($A:D)),""),"") -> 17-ขนมปังไส้ครีมสลัด | AJ29: =IFERROR(IF($AF$11="FRY",INDEX(Conn_FRY_Delivery,ROWS($13:29),COLUMNS($A:E)),""),"") -> 500 | AL29: =IFERROR(IF($AL$11="FRK",INDEX(Conn_FRK_Delivery,ROWS($13:29),COLUMNS($A:A)),""),"") ->  | AM29: =IFERROR(IF($AL$11="FRK",INDEX(Conn_FRK_Delivery,ROWS($13:29),COLUMNS($A:B)),""),"") ->  | AN29: =IFERROR(IF($AL$11="FRK",INDEX(Conn_FRK_Delivery,ROWS($13:29),COLUMNS($A:C)),""),"") ->  | AO29: =IFERROR(IF($AL$11="FRK",INDEX(Conn_FRK_Delivery,ROWS($13:29),COLUMNS($A:D)),""),"") ->  | AP29: =IFERROR(IF($AL$11="FRK",INDEX(Conn_FRK_Delivery,ROWS($13:29),COLUMNS($A:E)),""),"") ->  | AR29: =IF(ROWS($13:29)<=IFERROR(ROWS(FRY_Delivery_Data),0),"FRY",IF(ROWS($13:29)<=IFERROR(ROWS(FRY_Delivery_Data),0)+IFERROR(ROWS(FRK_Delivery_Data),0),"FRK","")) -> FRY | AS29: =IF($AR29="FRY",INDEX(FRY_Delivery_Data,COUNTIF($AR$13:$AR29,$AR29),COLUMNS($A:A)),IF($AR29="FRK",INDEX(FRK_Delivery_Data,COUNTIF($AR$13:$AR29,$AR29),COLUMNS($A:A)),"")) -> 2019-02-02 | AT29: =IF($AR29="FRY",INDEX(FRY_Delivery_Data,COUNTIF($AR$13:$AR29,$AR29),COLUMNS($A:B)),IF($AR29="FRK",INDEX(FRK_Delivery_Data,COUNTIF($AR$13:$AR29,$AR29),COLUMNS($A:B)),"")) -> FRY | AU29: =IF($AR29="FRY",INDEX(FRY_Delivery_Data,COUNTIF($AR$13:$AR29,$AR29),COLUMNS($A:C)),IF($AR29="FRK",INDEX(FRK_Delivery_Data,COUNTIF($AR$13:$AR29,$AR29),COLUMNS($A:C)),"")) -> รับ | AV29: =IF($AR29="FRY",INDEX(FRY_Delivery_Data,COUNTIF($AR$13:$AR29,$AR29),COLUMNS($A:D)),IF($AR29="FRK",INDEX(FRK_Delivery_Data,COUNTIF($AR$13:$AR29,$AR29),COLUMNS($A:D)),"")) -> 17-ขนมปังไส้ครีมสลัด | AW29: =IF($AR29="FRY",INDEX(FRY_Delivery_Data,COUNTIF($AR$13:$AR29,$AR29),COLUMNS($A:E)),IF($AR29="FRK",INDEX(FRK_Delivery_Data,COUNTIF($AR$13:$AR29,$AR29),COLUMNS($A:E)),"")) -> 500
B30: =IF(OR($C30="",$C30=0,ROWS($13:30)>ROWS(Product_List)),"",COUNTIF($C$13:$C30,"*?")) -> 18 | C30: =IFERROR(IF($C$9="No File In Folder","",INDEX(Product_List,ROWS($13:30))),"") -> 18-ขนมปังไก่หยองน้ำสลัด | D30: 480 | E30: =IFERROR(INDEX(Brch_FileNameList,ROWS($11:28)),"") ->  | F30: =IF(E30="","",SL_BranchCode&"-"&MID(E30,7,2)) ->  | G30: =IFERROR(IF(OR($C30=0,G$12=""),"",IF(G$12="Total",IF(SUM(F30:$G30)=0,0,SUM(F30:$G30)),IF(Selector=8,Percent_Waste,Ref_Result))),"") -> 40 | H30: =IFERROR(IF(OR($C30=0,H$12=""),"",IF(H$12="Total",IF(SUM(G30:$G30)=0,0,SUM(G30:$G30)),IF(Selector=8,Percent_Waste,Ref_Result))),"") -> 30 | I30: =IFERROR(IF(OR($C30=0,I$12=""),"",IF(I$12="Total",IF(SUM($G30:H30)=0,0,SUM($G30:H30)),IF(Selector=8,Percent_Waste,Ref_Result))),"") -> 60 | J30: =IFERROR(IF(OR($C30=0,J$12=""),"",IF(J$12="Total",IF(SUM($G30:I30)=0,0,SUM($G30:I30)),IF(Selector=8,Percent_Waste,Ref_Result))),"") -> 50 | K30: =IFERROR(IF(OR($C30=0,K$12=""),"",IF(K$12="Total",IF(SUM($G30:J30)=0,0,SUM($G30:J30)),IF(Selector=8,Percent_Waste,Ref_Result))),"") -> 50 | L30: =IFERROR(IF(OR($C30=0,L$12=""),"",IF(L$12="Total",IF(SUM($G30:K30)=0,0,SUM($G30:K30)),IF(Selector=8,Percent_Waste,Ref_Result))),"") -> 40 | M30: =IFERROR(IF(OR($C30=0,M$12=""),"",IF(M$12="Total",IF(SUM($G30:L30)=0,0,SUM($G30:L30)),IF(Selector=8,Percent_Waste,Ref_Result))),"") -> 40 | N30: =IFERROR(IF(OR($C30=0,N$12=""),"",IF(N$12="Total",IF(SUM($G30:M30)=0,0,SUM($G30:M30)),IF(Selector=8,Percent_Waste,Ref_Result))),"") -> 40 | O30: =IFERROR(IF(OR($C30=0,O$12=""),"",IF(O$12="Total",IF(SUM($G30:N30)=0,0,SUM($G30:N30)),IF(Selector=8,Percent_Waste,Ref_Result))),"") -> 40 | P30: =IFERROR(IF(OR($C30=0,P$12=""),"",IF(P$12="Total",IF(SUM($G30:O30)=0,0,SUM($G30:O30)),IF(Selector=8,Percent_Waste,Ref_Result))),"") -> 50 | Q30: =IFERROR(IF(OR($C30=0,Q$12=""),"",IF(Q$12="Total",IF(SUM($G30:P30)=0,0,SUM($G30:P30)),IF(Selector=8,Percent_Waste,Ref_Result))),"") -> 440 | R30: =IFERROR(IF(OR($C30=0,R$12=""),"",IF(R$12="Total",IF(SUM($G30:Q30)=0,0,SUM($G30:Q30)),IF(Selector=8,Percent_Waste,Ref_Result))),"") ->  | S30: =IFERROR(IF(OR($C30=0,S$12=""),"",IF(S$12="Total",IF(SUM($G30:R30)=0,0,SUM($G30:R30)),IF(Selector=8,Percent_Waste,Ref_Result))),"") ->  | T30: =IFERROR(IF(OR($C30=0,T$12=""),"",IF(T$12="Total",IF(SUM($G30:S30)=0,0,SUM($G30:S30)),IF(Selector=8,Percent_Waste,Ref_Result))),"") ->  | U30: =IFERROR(IF(OR($C30=0,U$12=""),"",IF(U$12="Total",IF(SUM($G30:T30)=0,0,SUM($G30:T30)),IF(Selector=8,Percent_Waste,Ref_Result))),"") ->  | V30: =IFERROR(IF(OR($C30=0,V$12=""),"",IF(V$12="Total",IF(SUM($G30:U30)=0,0,SUM($G30:U30)),IF(Selector=8,Percent_Waste,Ref_Result))),"") ->  | W30: =IFERROR(IF(OR($C30=0,W$12=""),"",IF(W$12="Total",IF(SUM($G30:V30)=0,0,SUM($G30:V30)),IF(Selector=8,Percent_Waste,Ref_Result))),"") ->  | X30: =IFERROR(IF(OR($C30=0,X$12=""),"",IF(X$12="Total",IF(SUM($G30:W30)=0,0,SUM($G30:W30)),IF(Selector=8,Percent_Waste,Ref_Result))),"") ->  | Y30: =IFERROR(IF(OR($C30=0,Y$12=""),"",IF(Y$12="Total",IF(SUM($G30:X30)=0,0,SUM($G30:X30)),IF(Selector=8,Percent_Waste,Ref_Result))),"") ->  | Z30: =IFERROR(IF(OR($C30=0,Z$12=""),"",IF(Z$12="Total",IF(SUM($G30:Y30)=0,0,SUM($G30:Y30)),IF(Selector=8,Percent_Waste,Ref_Result))),"") ->  | AA30: 40 | AF30: =IFERROR(IF($AF$11="FRY",INDEX(Conn_FRY_Delivery,ROWS($13:30),COLUMNS($A:A)),""),"") -> 2019-02-02 | AG30: =IFERROR(IF($AF$11="FRY",INDEX(Conn_FRY_Delivery,ROWS($13:30),COLUMNS($A:B)),""),"") -> FRY | AH30: =IFERROR(IF($AF$11="FRY",INDEX(Conn_FRY_Delivery,ROWS($13:30),COLUMNS($A:C)),""),"") -> รับ | AI30: =IFERROR(IF($AF$11="FRY",INDEX(Conn_FRY_Delivery,ROWS($13:30),COLUMNS($A:D)),""),"") -> 18-ขนมปังไก่หยองน้ำสลัด | AJ30: =IFERROR(IF($AF$11="FRY",INDEX(Conn_FRY_Delivery,ROWS($13:30),COLUMNS($A:E)),""),"") -> 480 | AL30: =IFERROR(IF($AL$11="FRK",INDEX(Conn_FRK_Delivery,ROWS($13:30),COLUMNS($A:A)),""),"") ->  | AM30: =IFERROR(IF($AL$11="FRK",INDEX(Conn_FRK_Delivery,ROWS($13:30),COLUMNS($A:B)),""),"") ->  | AN30: =IFERROR(IF($AL$11="FRK",INDEX(Conn_FRK_Delivery,ROWS($13:30),COLUMNS($A:C)),""),"") ->  | AO30: =IFERROR(IF($AL$11="FRK",INDEX(Conn_FRK_Delivery,ROWS($13:30),COLUMNS($A:D)),""),"") ->  | AP30: =IFERROR(IF($AL$11="FRK",INDEX(Conn_FRK_Delivery,ROWS($13:30),COLUMNS($A:E)),""),"") ->  | AR30: =IF(ROWS($13:30)<=IFERROR(ROWS(FRY_Delivery_Data),0),"FRY",IF(ROWS($13:30)<=IFERROR(ROWS(FRY_Delivery_Data),0)+IFERROR(ROWS(FRK_Delivery_Data),0),"FRK","")) -> FRY | AS30: =IF($AR30="FRY",INDEX(FRY_Delivery_Data,COUNTIF($AR$13:$AR30,$AR30),COLUMNS($A:A)),IF($AR30="FRK",INDEX(FRK_Delivery_Data,COUNTIF($AR$13:$AR30,$AR30),COLUMNS($A:A)),"")) -> 2019-02-02 | AT30: =IF($AR30="FRY",INDEX(FRY_Delivery_Data,COUNTIF($AR$13:$AR30,$AR30),COLUMNS($A:B)),IF($AR30="FRK",INDEX(FRK_Delivery_Data,COUNTIF($AR$13:$AR30,$AR30),COLUMNS($A:B)),"")) -> FRY | AU30: =IF($AR30="FRY",INDEX(FRY_Delivery_Data,COUNTIF($AR$13:$AR30,$AR30),COLUMNS($A:C)),IF($AR30="FRK",INDEX(FRK_Delivery_Data,COUNTIF($AR$13:$AR30,$AR30),COLUMNS($A:C)),"")) -> รับ | AV30: =IF($AR30="FRY",INDEX(FRY_Delivery_Data,COUNTIF($AR$13:$AR30,$AR30),COLUMNS($A:D)),IF($AR30="FRK",INDEX(FRK_Delivery_Data,COUNTIF($AR$13:$AR30,$AR30),COLUMNS($A:D)),"")) -> 18-ขนมปังไก่หยองน้ำสลัด | AW30: =IF($AR30="FRY",INDEX(FRY_Delivery_Data,COUNTIF($AR$13:$AR30,$AR30),COLUMNS($A:E)),IF($AR30="FRK",INDEX(FRK_Delivery_Data,COUNTIF($AR$13:$AR30,$AR30),COLUMNS($A:E)),"")) -> 480
B31: =IF(OR($C31="",$C31=0,ROWS($13:31)>ROWS(Product_List)),"",COUNTIF($C$13:$C31,"*?")) -> 19 | C31: =IFERROR(IF($C$9="No File In Folder","",INDEX(Product_List,ROWS($13:31))),"") -> 19-ขนมก้านบัว 90 กรัม | D31: 0 | E31: =IFERROR(INDEX(Brch_FileNameList,ROWS($11:29)),"") ->  | F31: =IF(E31="","",SL_BranchCode&"-"&MID(E31,7,2)) ->  | G31: =IFERROR(IF(OR($C31=0,G$12=""),"",IF(G$12="Total",IF(SUM(F31:$G31)=0,0,SUM(F31:$G31)),IF(Selector=8,Percent_Waste,Ref_Result))),"") -> 0 | H31: =IFERROR(IF(OR($C31=0,H$12=""),"",IF(H$12="Total",IF(SUM(G31:$G31)=0,0,SUM(G31:$G31)),IF(Selector=8,Percent_Waste,Ref_Result))),"") -> 0 | I31: =IFERROR(IF(OR($C31=0,I$12=""),"",IF(I$12="Total",IF(SUM($G31:H31)=0,0,SUM($G31:H31)),IF(Selector=8,Percent_Waste,Ref_Result))),"") -> 0 | J31: =IFERROR(IF(OR($C31=0,J$12=""),"",IF(J$12="Total",IF(SUM($G31:I31)=0,0,SUM($G31:I31)),IF(Selector=8,Percent_Waste,Ref_Result))),"") -> 0 | K31: =IFERROR(IF(OR($C31=0,K$12=""),"",IF(K$12="Total",IF(SUM($G31:J31)=0,0,SUM($G31:J31)),IF(Selector=8,Percent_Waste,Ref_Result))),"") -> 0 | L31: =IFERROR(IF(OR($C31=0,L$12=""),"",IF(L$12="Total",IF(SUM($G31:K31)=0,0,SUM($G31:K31)),IF(Selector=8,Percent_Waste,Ref_Result))),"") -> 0 | M31: =IFERROR(IF(OR($C31=0,M$12=""),"",IF(M$12="Total",IF(SUM($G31:L31)=0,0,SUM($G31:L31)),IF(Selector=8,Percent_Waste,Ref_Result))),"") -> 0 | N31: =IFERROR(IF(OR($C31=0,N$12=""),"",IF(N$12="Total",IF(SUM($G31:M31)=0,0,SUM($G31:M31)),IF(Selector=8,Percent_Waste,Ref_Result))),"") -> 0 | O31: =IFERROR(IF(OR($C31=0,O$12=""),"",IF(O$12="Total",IF(SUM($G31:N31)=0,0,SUM($G31:N31)),IF(Selector=8,Percent_Waste,Ref_Result))),"") -> 0 | P31: =IFERROR(IF(OR($C31=0,P$12=""),"",IF(P$12="Total",IF(SUM($G31:O31)=0,0,SUM($G31:O31)),IF(Selector=8,Percent_Waste,Ref_Result))),"") -> 0 | Q31: =IFERROR(IF(OR($C31=0,Q$12=""),"",IF(Q$12="Total",IF(SUM($G31:P31)=0,0,SUM($G31:P31)),IF(Selector=8,Percent_Waste,Ref_Result))),"") -> 0 | R31: =IFERROR(IF(OR($C31=0,R$12=""),"",IF(R$12="Total",IF(SUM($G31:Q31)=0,0,SUM($G31:Q31)),IF(Selector=8,Percent_Waste,Ref_Result))),"") ->  | S31: =IFERROR(IF(OR($C31=0,S$12=""),"",IF(S$12="Total",IF(SUM($G31:R31)=0,0,SUM($G31:R31)),IF(Selector=8,Percent_Waste,Ref_Result))),"") ->  | T31: =IFERROR(IF(OR($C31=0,T$12=""),"",IF(T$12="Total",IF(SUM($G31:S31)=0,0,SUM($G31:S31)),IF(Selector=8,Percent_Waste,Ref_Result))),"") ->  | U31: =IFERROR(IF(OR($C31=0,U$12=""),"",IF(U$12="Total",IF(SUM($G31:T31)=0,0,SUM($G31:T31)),IF(Selector=8,Percent_Waste,Ref_Result))),"") ->  | V31: =IFERROR(IF(OR($C31=0,V$12=""),"",IF(V$12="Total",IF(SUM($G31:U31)=0,0,SUM($G31:U31)),IF(Selector=8,Percent_Waste,Ref_Result))),"") ->  | W31: =IFERROR(IF(OR($C31=0,W$12=""),"",IF(W$12="Total",IF(SUM($G31:V31)=0,0,SUM($G31:V31)),IF(Selector=8,Percent_Waste,Ref_Result))),"") ->  | X31: =IFERROR(IF(OR($C31=0,X$12=""),"",IF(X$12="Total",IF(SUM($G31:W31)=0,0,SUM($G31:W31)),IF(Selector=8,Percent_Waste,Ref_Result))),"") ->  | Y31: =IFERROR(IF(OR($C31=0,Y$12=""),"",IF(Y$12="Total",IF(SUM($G31:X31)=0,0,SUM($G31:X31)),IF(Selector=8,Percent_Waste,Ref_Result))),"") ->  | Z31: =IFERROR(IF(OR($C31=0,Z$12=""),"",IF(Z$12="Total",IF(SUM($G31:Y31)=0,0,SUM($G31:Y31)),IF(Selector=8,Percent_Waste,Ref_Result))),"") ->  | AA31: 0 | AF31: =IFERROR(IF($AF$11="FRY",INDEX(Conn_FRY_Delivery,ROWS($13:31),COLUMNS($A:A)),""),"") -> 2019-02-02 | AG31: =IFERROR(IF($AF$11="FRY",INDEX(Conn_FRY_Delivery,ROWS($13:31),COLUMNS($A:B)),""),"") -> FRY | AH31: =IFERROR(IF($AF$11="FRY",INDEX(Conn_FRY_Delivery,ROWS($13:31),COLUMNS($A:C)),""),"") -> รับ | AI31: =IFERROR(IF($AF$11="FRY",INDEX(Conn_FRY_Delivery,ROWS($13:31),COLUMNS($A:D)),""),"") -> 23-ขนมปังหมูหยองน้ำพริกเผา | AJ31: =IFERROR(IF($AF$11="FRY",INDEX(Conn_FRY_Delivery,ROWS($13:31),COLUMNS($A:E)),""),"") -> 480 | AL31: =IFERROR(IF($AL$11="FRK",INDEX(Conn_FRK_Delivery,ROWS($13:31),COLUMNS($A:A)),""),"") ->  | AM31: =IFERROR(IF($AL$11="FRK",INDEX(Conn_FRK_Delivery,ROWS($13:31),COLUMNS($A:B)),""),"") ->  | AN31: =IFERROR(IF($AL$11="FRK",INDEX(Conn_FRK_Delivery,ROWS($13:31),COLUMNS($A:C)),""),"") ->  | AO31: =IFERROR(IF($AL$11="FRK",INDEX(Conn_FRK_Delivery,ROWS($13:31),COLUMNS($A:D)),""),"") ->  | AP31: =IFERROR(IF($AL$11="FRK",INDEX(Conn_FRK_Delivery,ROWS($13:31),COLUMNS($A:E)),""),"") ->  | AR31: =IF(ROWS($13:31)<=IFERROR(ROWS(FRY_Delivery_Data),0),"FRY",IF(ROWS($13:31)<=IFERROR(ROWS(FRY_Delivery_Data),0)+IFERROR(ROWS(FRK_Delivery_Data),0),"FRK","")) -> FRY | AS31: =IF($AR31="FRY",INDEX(FRY_Delivery_Data,COUNTIF($AR$13:$AR31,$AR31),COLUMNS($A:A)),IF($AR31="FRK",INDEX(FRK_Delivery_Data,COUNTIF($AR$13:$AR31,$AR31),COLUMNS($A:A)),"")) -> 2019-02-02 | AT31: =IF($AR31="FRY",INDEX(FRY_Delivery_Data,COUNTIF($AR$13:$AR31,$AR31),COLUMNS($A:B)),IF($AR31="FRK",INDEX(FRK_Delivery_Data,COUNTIF($AR$13:$AR31,$AR31),COLUMNS($A:B)),"")) -> FRY | AU31: =IF($AR31="FRY",INDEX(FRY_Delivery_Data,COUNTIF($AR$13:$AR31,$AR31),COLUMNS($A:C)),IF($AR31="FRK",INDEX(FRK_Delivery_Data,COUNTIF($AR$13:$AR31,$AR31),COLUMNS($A:C)),"")) -> รับ | AV31: =IF($AR31="FRY",INDEX(FRY_Delivery_Data,COUNTIF($AR$13:$AR31,$AR31),COLUMNS($A:D)),IF($AR31="FRK",INDEX(FRK_Delivery_Data,COUNTIF($AR$13:$AR31,$AR31),COLUMNS($A:D)),"")) -> 23-ขนมปังหมูหยองน้ำพริกเผา | AW31: =IF($AR31="FRY",INDEX(FRY_Delivery_Data,COUNTIF($AR$13:$AR31,$AR31),COLUMNS($A:E)),IF($AR31="FRK",INDEX(FRK_Delivery_Data,COUNTIF($AR$13:$AR31,$AR31),COLUMNS($A:E)),"")) -> 480
B32: =IF(OR($C32="",$C32=0,ROWS($13:32)>ROWS(Product_List)),"",COUNTIF($C$13:$C32,"*?")) -> 20 | C32: =IFERROR(IF($C$9="No File In Folder","",INDEX(Product_List,ROWS($13:32))),"") -> 20-ปังกรอบเนยสด | D32: 0 | E32: =IFERROR(INDEX(Brch_FileNameList,ROWS($11:30)),"") ->  | F32: =IF(E32="","",SL_BranchCode&"-"&MID(E32,7,2)) ->  | G32: =IFERROR(IF(OR($C32=0,G$12=""),"",IF(G$12="Total",IF(SUM(F32:$G32)=0,0,SUM(F32:$G32)),IF(Selector=8,Percent_Waste,Ref_Result))),"") -> 0 | H32: =IFERROR(IF(OR($C32=0,H$12=""),"",IF(H$12="Total",IF(SUM(G32:$G32)=0,0,SUM(G32:$G32)),IF(Selector=8,Percent_Waste,Ref_Result))),"") -> 0 | I32: =IFERROR(IF(OR($C32=0,I$12=""),"",IF(I$12="Total",IF(SUM($G32:H32)=0,0,SUM($G32:H32)),IF(Selector=8,Percent_Waste,Ref_Result))),"") -> 0 | J32: =IFERROR(IF(OR($C32=0,J$12=""),"",IF(J$12="Total",IF(SUM($G32:I32)=0,0,SUM($G32:I32)),IF(Selector=8,Percent_Waste,Ref_Result))),"") -> 0 | K32: =IFERROR(IF(OR($C32=0,K$12=""),"",IF(K$12="Total",IF(SUM($G32:J32)=0,0,SUM($G32:J32)),IF(Selector=8,Percent_Waste,Ref_Result))),"") -> 0 | L32: =IFERROR(IF(OR($C32=0,L$12=""),"",IF(L$12="Total",IF(SUM($G32:K32)=0,0,SUM($G32:K32)),IF(Selector=8,Percent_Waste,Ref_Result))),"") -> 0 | M32: =IFERROR(IF(OR($C32=0,M$12=""),"",IF(M$12="Total",IF(SUM($G32:L32)=0,0,SUM($G32:L32)),IF(Selector=8,Percent_Waste,Ref_Result))),"") -> 0 | N32: =IFERROR(IF(OR($C32=0,N$12=""),"",IF(N$12="Total",IF(SUM($G32:M32)=0,0,SUM($G32:M32)),IF(Selector=8,Percent_Waste,Ref_Result))),"") -> 0 | O32: =IFERROR(IF(OR($C32=0,O$12=""),"",IF(O$12="Total",IF(SUM($G32:N32)=0,0,SUM($G32:N32)),IF(Selector=8,Percent_Waste,Ref_Result))),"") -> 0 | P32: =IFERROR(IF(OR($C32=0,P$12=""),"",IF(P$12="Total",IF(SUM($G32:O32)=0,0,SUM($G32:O32)),IF(Selector=8,Percent_Waste,Ref_Result))),"") -> 0 | Q32: =IFERROR(IF(OR($C32=0,Q$12=""),"",IF(Q$12="Total",IF(SUM($G32:P32)=0,0,SUM($G32:P32)),IF(Selector=8,Percent_Waste,Ref_Result))),"") -> 0 | R32: =IFERROR(IF(OR($C32=0,R$12=""),"",IF(R$12="Total",IF(SUM($G32:Q32)=0,0,SUM($G32:Q32)),IF(Selector=8,Percent_Waste,Ref_Result))),"") ->  | S32: =IFERROR(IF(OR($C32=0,S$12=""),"",IF(S$12="Total",IF(SUM($G32:R32)=0,0,SUM($G32:R32)),IF(Selector=8,Percent_Waste,Ref_Result))),"") ->  | T32: =IFERROR(IF(OR($C32=0,T$12=""),"",IF(T$12="Total",IF(SUM($G32:S32)=0,0,SUM($G32:S32)),IF(Selector=8,Percent_Waste,Ref_Result))),"") ->  | U32: =IFERROR(IF(OR($C32=0,U$12=""),"",IF(U$12="Total",IF(SUM($G32:T32)=0,0,SUM($G32:T32)),IF(Selector=8,Percent_Waste,Ref_Result))),"") ->  | V32: =IFERROR(IF(OR($C32=0,V$12=""),"",IF(V$12="Total",IF(SUM($G32:U32)=0,0,SUM($G32:U32)),IF(Selector=8,Percent_Waste,Ref_Result))),"") ->  | W32: =IFERROR(IF(OR($C32=0,W$12=""),"",IF(W$12="Total",IF(SUM($G32:V32)=0,0,SUM($G32:V32)),IF(Selector=8,Percent_Waste,Ref_Result))),"") ->  | X32: =IFERROR(IF(OR($C32=0,X$12=""),"",IF(X$12="Total",IF(SUM($G32:W32)=0,0,SUM($G32:W32)),IF(Selector=8,Percent_Waste,Ref_Result))),"") ->  | Y32: =IFERROR(IF(OR($C32=0,Y$12=""),"",IF(Y$12="Total",IF(SUM($G32:X32)=0,0,SUM($G32:X32)),IF(Selector=8,Percent_Waste,Ref_Result))),"") ->  | Z32: =IFERROR(IF(OR($C32=0,Z$12=""),"",IF(Z$12="Total",IF(SUM($G32:Y32)=0,0,SUM($G32:Y32)),IF(Selector=8,Percent_Waste,Ref_Result))),"") ->  | AA32: 0 | AF32: =IFERROR(IF($AF$11="FRY",INDEX(Conn_FRY_Delivery,ROWS($13:32),COLUMNS($A:A)),""),"") -> 2019-02-02 | AG32: =IFERROR(IF($AF$11="FRY",INDEX(Conn_FRY_Delivery,ROWS($13:32),COLUMNS($A:B)),""),"") -> FRY | AH32: =IFERROR(IF($AF$11="FRY",INDEX(Conn_FRY_Delivery,ROWS($13:32),COLUMNS($A:C)),""),"") -> รับ | AI32: =IFERROR(IF($AF$11="FRY",INDEX(Conn_FRY_Delivery,ROWS($13:32),COLUMNS($A:D)),""),"") -> 28-ขนมปังชนิดแผ่น (460 กรัม) | AJ32: =IFERROR(IF($AF$11="FRY",INDEX(Conn_FRY_Delivery,ROWS($13:32),COLUMNS($A:E)),""),"") -> 70 | AL32: =IFERROR(IF($AL$11="FRK",INDEX(Conn_FRK_Delivery,ROWS($13:32),COLUMNS($A:A)),""),"") ->  | AM32: =IFERROR(IF($AL$11="FRK",INDEX(Conn_FRK_Delivery,ROWS($13:32),COLUMNS($A:B)),""),"") ->  | AN32: =IFERROR(IF($AL$11="FRK",INDEX(Conn_FRK_Delivery,ROWS($13:32),COLUMNS($A:C)),""),"") ->  | AO32: =IFERROR(IF($AL$11="FRK",INDEX(Conn_FRK_Delivery,ROWS($13:32),COLUMNS($A:D)),""),"") ->  | AP32: =IFERROR(IF($AL$11="FRK",INDEX(Conn_FRK_Delivery,ROWS($13:32),COLUMNS($A:E)),""),"") ->  | AR32: =IF(ROWS($13:32)<=IFERROR(ROWS(FRY_Delivery_Data),0),"FRY",IF(ROWS($13:32)<=IFERROR(ROWS(FRY_Delivery_Data),0)+IFERROR(ROWS(FRK_Delivery_Data),0),"FRK","")) -> FRY | AS32: =IF($AR32="FRY",INDEX(FRY_Delivery_Data,COUNTIF($AR$13:$AR32,$AR32),COLUMNS($A:A)),IF($AR32="FRK",INDEX(FRK_Delivery_Data,COUNTIF($AR$13:$AR32,$AR32),COLUMNS($A:A)),"")) -> 2019-02-02 | AT32: =IF($AR32="FRY",INDEX(FRY_Delivery_Data,COUNTIF($AR$13:$AR32,$AR32),COLUMNS($A:B)),IF($AR32="FRK",INDEX(FRK_Delivery_Data,COUNTIF($AR$13:$AR32,$AR32),COLUMNS($A:B)),"")) -> FRY | AU32: =IF($AR32="FRY",INDEX(FRY_Delivery_Data,COUNTIF($AR$13:$AR32,$AR32),COLUMNS($A:C)),IF($AR32="FRK",INDEX(FRK_Delivery_Data,COUNTIF($AR$13:$AR32,$AR32),COLUMNS($A:C)),"")) -> รับ | AV32: =IF($AR32="FRY",INDEX(FRY_Delivery_Data,COUNTIF($AR$13:$AR32,$AR32),COLUMNS($A:D)),IF($AR32="FRK",INDEX(FRK_Delivery_Data,COUNTIF($AR$13:$AR32,$AR32),COLUMNS($A:D)),"")) -> 28-ขนมปังชนิดแผ่น (460 กรัม) | AW32: =IF($AR32="FRY",INDEX(FRY_Delivery_Data,COUNTIF($AR$13:$AR32,$AR32),COLUMNS($A:E)),IF($AR32="FRK",INDEX(FRK_Delivery_Data,COUNTIF($AR$13:$AR32,$AR32),COLUMNS($A:E)),"")) -> 70
B33: =IF(OR($C33="",$C33=0,ROWS($13:33)>ROWS(Product_List)),"",COUNTIF($C$13:$C33,"*?")) -> 21 | C33: =IFERROR(IF($C$9="No File In Folder","",INDEX(Product_List,ROWS($13:33))),"") -> 21-ปังกรอบกระเทียม | D33: 0 | E33: =IFERROR(INDEX(Brch_FileNameList,ROWS($11:31)),"") ->  | F33: =IF(E33="","",SL_BranchCode&"-"&MID(E33,7,2)) ->  | G33: =IFERROR(IF(OR($C33=0,G$12=""),"",IF(G$12="Total",IF(SUM(F33:$G33)=0,0,SUM(F33:$G33)),IF(Selector=8,Percent_Waste,Ref_Result))),"") -> 0 | H33: =IFERROR(IF(OR($C33=0,H$12=""),"",IF(H$12="Total",IF(SUM(G33:$G33)=0,0,SUM(G33:$G33)),IF(Selector=8,Percent_Waste,Ref_Result))),"") -> 0 | I33: =IFERROR(IF(OR($C33=0,I$12=""),"",IF(I$12="Total",IF(SUM($G33:H33)=0,0,SUM($G33:H33)),IF(Selector=8,Percent_Waste,Ref_Result))),"") -> 0 | J33: =IFERROR(IF(OR($C33=0,J$12=""),"",IF(J$12="Total",IF(SUM($G33:I33)=0,0,SUM($G33:I33)),IF(Selector=8,Percent_Waste,Ref_Result))),"") -> 0 | K33: =IFERROR(IF(OR($C33=0,K$12=""),"",IF(K$12="Total",IF(SUM($G33:J33)=0,0,SUM($G33:J33)),IF(Selector=8,Percent_Waste,Ref_Result))),"") -> 0 | L33: =IFERROR(IF(OR($C33=0,L$12=""),"",IF(L$12="Total",IF(SUM($G33:K33)=0,0,SUM($G33:K33)),IF(Selector=8,Percent_Waste,Ref_Result))),"") -> 0 | M33: =IFERROR(IF(OR($C33=0,M$12=""),"",IF(M$12="Total",IF(SUM($G33:L33)=0,0,SUM($G33:L33)),IF(Selector=8,Percent_Waste,Ref_Result))),"") -> 0 | N33: =IFERROR(IF(OR($C33=0,N$12=""),"",IF(N$12="Total",IF(SUM($G33:M33)=0,0,SUM($G33:M33)),IF(Selector=8,Percent_Waste,Ref_Result))),"") -> 0 | O33: =IFERROR(IF(OR($C33=0,O$12=""),"",IF(O$12="Total",IF(SUM($G33:N33)=0,0,SUM($G33:N33)),IF(Selector=8,Percent_Waste,Ref_Result))),"") -> 0 | P33: =IFERROR(IF(OR($C33=0,P$12=""),"",IF(P$12="Total",IF(SUM($G33:O33)=0,0,SUM($G33:O33)),IF(Selector=8,Percent_Waste,Ref_Result))),"") -> 0 | Q33: =IFERROR(IF(OR($C33=0,Q$12=""),"",IF(Q$12="Total",IF(SUM($G33:P33)=0,0,SUM($G33:P33)),IF(Selector=8,Percent_Waste,Ref_Result))),"") -> 0 | R33: =IFERROR(IF(OR($C33=0,R$12=""),"",IF(R$12="Total",IF(SUM($G33:Q33)=0,0,SUM($G33:Q33)),IF(Selector=8,Percent_Waste,Ref_Result))),"") ->  | S33: =IFERROR(IF(OR($C33=0,S$12=""),"",IF(S$12="Total",IF(SUM($G33:R33)=0,0,SUM($G33:R33)),IF(Selector=8,Percent_Waste,Ref_Result))),"") ->  | T33: =IFERROR(IF(OR($C33=0,T$12=""),"",IF(T$12="Total",IF(SUM($G33:S33)=0,0,SUM($G33:S33)),IF(Selector=8,Percent_Waste,Ref_Result))),"") ->  | U33: =IFERROR(IF(OR($C33=0,U$12=""),"",IF(U$12="Total",IF(SUM($G33:T33)=0,0,SUM($G33:T33)),IF(Selector=8,Percent_Waste,Ref_Result))),"") ->  | V33: =IFERROR(IF(OR($C33=0,V$12=""),"",IF(V$12="Total",IF(SUM($G33:U33)=0,0,SUM($G33:U33)),IF(Selector=8,Percent_Waste,Ref_Result))),"") ->  | W33: =IFERROR(IF(OR($C33=0,W$12=""),"",IF(W$12="Total",IF(SUM($G33:V33)=0,0,SUM($G33:V33)),IF(Selector=8,Percent_Waste,Ref_Result))),"") ->  | X33: =IFERROR(IF(OR($C33=0,X$12=""),"",IF(X$12="Total",IF(SUM($G33:W33)=0,0,SUM($G33:W33)),IF(Selector=8,Percent_Waste,Ref_Result))),"") ->  | Y33: =IFERROR(IF(OR($C33=0,Y$12=""),"",IF(Y$12="Total",IF(SUM($G33:X33)=0,0,SUM($G33:X33)),IF(Selector=8,Percent_Waste,Ref_Result))),"") ->  | Z33: =IFERROR(IF(OR($C33=0,Z$12=""),"",IF(Z$12="Total",IF(SUM($G33:Y33)=0,0,SUM($G33:Y33)),IF(Selector=8,Percent_Waste,Ref_Result))),"") ->  | AA33: 0 | AF33: =IFERROR(IF($AF$11="FRY",INDEX(Conn_FRY_Delivery,ROWS($13:33),COLUMNS($A:A)),""),"") -> 2019-02-02 | AG33: =IFERROR(IF($AF$11="FRY",INDEX(Conn_FRY_Delivery,ROWS($13:33),COLUMNS($A:B)),""),"") -> FRY | AH33: =IFERROR(IF($AF$11="FRY",INDEX(Conn_FRY_Delivery,ROWS($13:33),COLUMNS($A:C)),""),"") -> รับ | AI33: =IFERROR(IF($AF$11="FRY",INDEX(Conn_FRY_Delivery,ROWS($13:33),COLUMNS($A:D)),""),"") -> 31-ขนมปังแผ่นหน้าเนยสด | AJ33: =IFERROR(IF($AF$11="FRY",INDEX(Conn_FRY_Delivery,ROWS($13:33),COLUMNS($A:E)),""),"") -> 200 | AL33: =IFERROR(IF($AL$11="FRK",INDEX(Conn_FRK_Delivery,ROWS($13:33),COLUMNS($A:A)),""),"") ->  | AM33: =IFERROR(IF($AL$11="FRK",INDEX(Conn_FRK_Delivery,ROWS($13:33),COLUMNS($A:B)),""),"") ->  | AN33: =IFERROR(IF($AL$11="FRK",INDEX(Conn_FRK_Delivery,ROWS($13:33),COLUMNS($A:C)),""),"") ->  | AO33: =IFERROR(IF($AL$11="FRK",INDEX(Conn_FRK_Delivery,ROWS($13:33),COLUMNS($A:D)),""),"") ->  | AP33: =IFERROR(IF($AL$11="FRK",INDEX(Conn_FRK_Delivery,ROWS($13:33),COLUMNS($A:E)),""),"") ->  | AR33: =IF(ROWS($13:33)<=IFERROR(ROWS(FRY_Delivery_Data),0),"FRY",IF(ROWS($13:33)<=IFERROR(ROWS(FRY_Delivery_Data),0)+IFERROR(ROWS(FRK_Delivery_Data),0),"FRK","")) -> FRY | AS33: =IF($AR33="FRY",INDEX(FRY_Delivery_Data,COUNTIF($AR$13:$AR33,$AR33),COLUMNS($A:A)),IF($AR33="FRK",INDEX(FRK_Delivery_Data,COUNTIF($AR$13:$AR33,$AR33),COLUMNS($A:A)),"")) -> 2019-02-02 | AT33: =IF($AR33="FRY",INDEX(FRY_Delivery_Data,COUNTIF($AR$13:$AR33,$AR33),COLUMNS($A:B)),IF($AR33="FRK",INDEX(FRK_Delivery_Data,COUNTIF($AR$13:$AR33,$AR33),COLUMNS($A:B)),"")) -> FRY | AU33: =IF($AR33="FRY",INDEX(FRY_Delivery_Data,COUNTIF($AR$13:$AR33,$AR33),COLUMNS($A:C)),IF($AR33="FRK",INDEX(FRK_Delivery_Data,COUNTIF($AR$13:$AR33,$AR33),COLUMNS($A:C)),"")) -> รับ | AV33: =IF($AR33="FRY",INDEX(FRY_Delivery_Data,COUNTIF($AR$13:$AR33,$AR33),COLUMNS($A:D)),IF($AR33="FRK",INDEX(FRK_Delivery_Data,COUNTIF($AR$13:$AR33,$AR33),COLUMNS($A:D)),"")) -> 31-ขนมปังแผ่นหน้าเนยสด | AW33: =IF($AR33="FRY",INDEX(FRY_Delivery_Data,COUNTIF($AR$13:$AR33,$AR33),COLUMNS($A:E)),IF($AR33="FRK",INDEX(FRK_Delivery_Data,COUNTIF($AR$13:$AR33,$AR33),COLUMNS($A:E)),"")) -> 200
B34: =IF(OR($C34="",$C34=0,ROWS($13:34)>ROWS(Product_List)),"",COUNTIF($C$13:$C34,"*?")) -> 22 | C34: =IFERROR(IF($C$9="No File In Folder","",INDEX(Product_List,ROWS($13:34))),"") -> 22-โมจิไส้ถั่วแดง | D34: 0 | E34: =IFERROR(INDEX(Brch_FileNameList,ROWS($11:32)),"") ->  | F34: =IF(E34="","",SL_BranchCode&"-"&MID(E34,7,2)) ->  | G34: =IFERROR(IF(OR($C34=0,G$12=""),"",IF(G$12="Total",IF(SUM(F34:$G34)=0,0,SUM(F34:$G34)),IF(Selector=8,Percent_Waste,Ref_Result))),"") -> 0 | H34: =IFERROR(IF(OR($C34=0,H$12=""),"",IF(H$12="Total",IF(SUM(G34:$G34)=0,0,SUM(G34:$G34)),IF(Selector=8,Percent_Waste,Ref_Result))),"") -> 0 | I34: =IFERROR(IF(OR($C34=0,I$12=""),"",IF(I$12="Total",IF(SUM($G34:H34)=0,0,SUM($G34:H34)),IF(Selector=8,Percent_Waste,Ref_Result))),"") -> 0 | J34: =IFERROR(IF(OR($C34=0,J$12=""),"",IF(J$12="Total",IF(SUM($G34:I34)=0,0,SUM($G34:I34)),IF(Selector=8,Percent_Waste,Ref_Result))),"") -> 0 | K34: =IFERROR(IF(OR($C34=0,K$12=""),"",IF(K$12="Total",IF(SUM($G34:J34)=0,0,SUM($G34:J34)),IF(Selector=8,Percent_Waste,Ref_Result))),"") -> 0 | L34: =IFERROR(IF(OR($C34=0,L$12=""),"",IF(L$12="Total",IF(SUM($G34:K34)=0,0,SUM($G34:K34)),IF(Selector=8,Percent_Waste,Ref_Result))),"") -> 0 | M34: =IFERROR(IF(OR($C34=0,M$12=""),"",IF(M$12="Total",IF(SUM($G34:L34)=0,0,SUM($G34:L34)),IF(Selector=8,Percent_Waste,Ref_Result))),"") -> 0 | N34: =IFERROR(IF(OR($C34=0,N$12=""),"",IF(N$12="Total",IF(SUM($G34:M34)=0,0,SUM($G34:M34)),IF(Selector=8,Percent_Waste,Ref_Result))),"") -> 0 | O34: =IFERROR(IF(OR($C34=0,O$12=""),"",IF(O$12="Total",IF(SUM($G34:N34)=0,0,SUM($G34:N34)),IF(Selector=8,Percent_Waste,Ref_Result))),"") -> 0 | P34: =IFERROR(IF(OR($C34=0,P$12=""),"",IF(P$12="Total",IF(SUM($G34:O34)=0,0,SUM($G34:O34)),IF(Selector=8,Percent_Waste,Ref_Result))),"") -> 0 | Q34: =IFERROR(IF(OR($C34=0,Q$12=""),"",IF(Q$12="Total",IF(SUM($G34:P34)=0,0,SUM($G34:P34)),IF(Selector=8,Percent_Waste,Ref_Result))),"") -> 0 | R34: =IFERROR(IF(OR($C34=0,R$12=""),"",IF(R$12="Total",IF(SUM($G34:Q34)=0,0,SUM($G34:Q34)),IF(Selector=8,Percent_Waste,Ref_Result))),"") ->  | S34: =IFERROR(IF(OR($C34=0,S$12=""),"",IF(S$12="Total",IF(SUM($G34:R34)=0,0,SUM($G34:R34)),IF(Selector=8,Percent_Waste,Ref_Result))),"") ->  | T34: =IFERROR(IF(OR($C34=0,T$12=""),"",IF(T$12="Total",IF(SUM($G34:S34)=0,0,SUM($G34:S34)),IF(Selector=8,Percent_Waste,Ref_Result))),"") ->  | U34: =IFERROR(IF(OR($C34=0,U$12=""),"",IF(U$12="Total",IF(SUM($G34:T34)=0,0,SUM($G34:T34)),IF(Selector=8,Percent_Waste,Ref_Result))),"") ->  | V34: =IFERROR(IF(OR($C34=0,V$12=""),"",IF(V$12="Total",IF(SUM($G34:U34)=0,0,SUM($G34:U34)),IF(Selector=8,Percent_Waste,Ref_Result))),"") ->  | W34: =IFERROR(IF(OR($C34=0,W$12=""),"",IF(W$12="Total",IF(SUM($G34:V34)=0,0,SUM($G34:V34)),IF(Selector=8,Percent_Waste,Ref_Result))),"") ->  | X34: =IFERROR(IF(OR($C34=0,X$12=""),"",IF(X$12="Total",IF(SUM($G34:W34)=0,0,SUM($G34:W34)),IF(Selector=8,Percent_Waste,Ref_Result))),"") ->  | Y34: =IFERROR(IF(OR($C34=0,Y$12=""),"",IF(Y$12="Total",IF(SUM($G34:X34)=0,0,SUM($G34:X34)),IF(Selector=8,Percent_Waste,Ref_Result))),"") ->  | Z34: =IFERROR(IF(OR($C34=0,Z$12=""),"",IF(Z$12="Total",IF(SUM($G34:Y34)=0,0,SUM($G34:Y34)),IF(Selector=8,Percent_Waste,Ref_Result))),"") ->  | AA34: 0 | AF34: =IFERROR(IF($AF$11="FRY",INDEX(Conn_FRY_Delivery,ROWS($13:34),COLUMNS($A:A)),""),"") -> 2019-02-02 | AG34: =IFERROR(IF($AF$11="FRY",INDEX(Conn_FRY_Delivery,ROWS($13:34),COLUMNS($A:B)),""),"") -> FRY | AH34: =IFERROR(IF($AF$11="FRY",INDEX(Conn_FRY_Delivery,ROWS($13:34),COLUMNS($A:C)),""),"") -> รับ | AI34: =IFERROR(IF($AF$11="FRY",INDEX(Conn_FRY_Delivery,ROWS($13:34),COLUMNS($A:D)),""),"") -> 38-ขนมปังพิซซ่าปูอัดแฮม | AJ34: =IFERROR(IF($AF$11="FRY",INDEX(Conn_FRY_Delivery,ROWS($13:34),COLUMNS($A:E)),""),"") -> 400 | AL34: =IFERROR(IF($AL$11="FRK",INDEX(Conn_FRK_Delivery,ROWS($13:34),COLUMNS($A:A)),""),"") ->  | AM34: =IFERROR(IF($AL$11="FRK",INDEX(Conn_FRK_Delivery,ROWS($13:34),COLUMNS($A:B)),""),"") ->  | AN34: =IFERROR(IF($AL$11="FRK",INDEX(Conn_FRK_Delivery,ROWS($13:34),COLUMNS($A:C)),""),"") ->  | AO34: =IFERROR(IF($AL$11="FRK",INDEX(Conn_FRK_Delivery,ROWS($13:34),COLUMNS($A:D)),""),"") ->  | AP34: =IFERROR(IF($AL$11="FRK",INDEX(Conn_FRK_Delivery,ROWS($13:34),COLUMNS($A:E)),""),"") ->  | AR34: =IF(ROWS($13:34)<=IFERROR(ROWS(FRY_Delivery_Data),0),"FRY",IF(ROWS($13:34)<=IFERROR(ROWS(FRY_Delivery_Data),0)+IFERROR(ROWS(FRK_Delivery_Data),0),"FRK","")) -> FRY | AS34: =IF($AR34="FRY",INDEX(FRY_Delivery_Data,COUNTIF($AR$13:$AR34,$AR34),COLUMNS($A:A)),IF($AR34="FRK",INDEX(FRK_Delivery_Data,COUNTIF($AR$13:$AR34,$AR34),COLUMNS($A:A)),"")) -> 2019-02-02 | AT34: =IF($AR34="FRY",INDEX(FRY_Delivery_Data,COUNTIF($AR$13:$AR34,$AR34),COLUMNS($A:B)),IF($AR34="FRK",INDEX(FRK_Delivery_Data,COUNTIF($AR$13:$AR34,$AR34),COLUMNS($A:B)),"")) -> FRY | AU34: =IF($AR34="FRY",INDEX(FRY_Delivery_Data,COUNTIF($AR$13:$AR34,$AR34),COLUMNS($A:C)),IF($AR34="FRK",INDEX(FRK_Delivery_Data,COUNTIF($AR$13:$AR34,$AR34),COLUMNS($A:C)),"")) -> รับ | AV34: =IF($AR34="FRY",INDEX(FRY_Delivery_Data,COUNTIF($AR$13:$AR34,$AR34),COLUMNS($A:D)),IF($AR34="FRK",INDEX(FRK_Delivery_Data,COUNTIF($AR$13:$AR34,$AR34),COLUMNS($A:D)),"")) -> 38-ขนมปังพิซซ่าปูอัดแฮม | AW34: =IF($AR34="FRY",INDEX(FRY_Delivery_Data,COUNTIF($AR$13:$AR34,$AR34),COLUMNS($A:E)),IF($AR34="FRK",INDEX(FRK_Delivery_Data,COUNTIF($AR$13:$AR34,$AR34),COLUMNS($A:E)),"")) -> 400
B35: =IF(OR($C35="",$C35=0,ROWS($13:35)>ROWS(Product_List)),"",COUNTIF($C$13:$C35,"*?")) -> 23 | C35: =IFERROR(IF($C$9="No File In Folder","",INDEX(Product_List,ROWS($13:35))),"") -> 23-ขนมปังหมูหยองน้ำพริกเผา | D35: 480 | E35: =IFERROR(INDEX(Brch_FileNameList,ROWS($11:33)),"") ->  | F35: =IF(E35="","",SL_BranchCode&"-"&MID(E35,7,2)) ->  | G35: =IFERROR(IF(OR($C35=0,G$12=""),"",IF(G$12="Total",IF(SUM(F35:$G35)=0,0,SUM(F35:$G35)),IF(Selector=8,Percent_Waste,Ref_Result))),"") -> 40 | H35: =IFERROR(IF(OR($C35=0,H$12=""),"",IF(H$12="Total",IF(SUM(G35:$G35)=0,0,SUM(G35:$G35)),IF(Selector=8,Percent_Waste,Ref_Result))),"") -> 40 | I35: =IFERROR(IF(OR($C35=0,I$12=""),"",IF(I$12="Total",IF(SUM($G35:H35)=0,0,SUM($G35:H35)),IF(Selector=8,Percent_Waste,Ref_Result))),"") -> 60 | J35: =IFERROR(IF(OR($C35=0,J$12=""),"",IF(J$12="Total",IF(SUM($G35:I35)=0,0,SUM($G35:I35)),IF(Selector=8,Percent_Waste,Ref_Result))),"") -> 50 | K35: =IFERROR(IF(OR($C35=0,K$12=""),"",IF(K$12="Total",IF(SUM($G35:J35)=0,0,SUM($G35:J35)),IF(Selector=8,Percent_Waste,Ref_Result))),"") -> 50 | L35: =IFERROR(IF(OR($C35=0,L$12=""),"",IF(L$12="Total",IF(SUM($G35:K35)=0,0,SUM($G35:K35)),IF(Selector=8,Percent_Waste,Ref_Result))),"") -> 40 | M35: =IFERROR(IF(OR($C35=0,M$12=""),"",IF(M$12="Total",IF(SUM($G35:L35)=0,0,SUM($G35:L35)),IF(Selector=8,Percent_Waste,Ref_Result))),"") -> 40 | N35: =IFERROR(IF(OR($C35=0,N$12=""),"",IF(N$12="Total",IF(SUM($G35:M35)=0,0,SUM($G35:M35)),IF(Selector=8,Percent_Waste,Ref_Result))),"") -> 40 | O35: =IFERROR(IF(OR($C35=0,O$12=""),"",IF(O$12="Total",IF(SUM($G35:N35)=0,0,SUM($G35:N35)),IF(Selector=8,Percent_Waste,Ref_Result))),"") -> 30 | P35: =IFERROR(IF(OR($C35=0,P$12=""),"",IF(P$12="Total",IF(SUM($G35:O35)=0,0,SUM($G35:O35)),IF(Selector=8,Percent_Waste,Ref_Result))),"") -> 50 | Q35: =IFERROR(IF(OR($C35=0,Q$12=""),"",IF(Q$12="Total",IF(SUM($G35:P35)=0,0,SUM($G35:P35)),IF(Selector=8,Percent_Waste,Ref_Result))),"") -> 440 | R35: =IFERROR(IF(OR($C35=0,R$12=""),"",IF(R$12="Total",IF(SUM($G35:Q35)=0,0,SUM($G35:Q35)),IF(Selector=8,Percent_Waste,Ref_Result))),"") ->  | S35: =IFERROR(IF(OR($C35=0,S$12=""),"",IF(S$12="Total",IF(SUM($G35:R35)=0,0,SUM($G35:R35)),IF(Selector=8,Percent_Waste,Ref_Result))),"") ->  | T35: =IFERROR(IF(OR($C35=0,T$12=""),"",IF(T$12="Total",IF(SUM($G35:S35)=0,0,SUM($G35:S35)),IF(Selector=8,Percent_Waste,Ref_Result))),"") ->  | U35: =IFERROR(IF(OR($C35=0,U$12=""),"",IF(U$12="Total",IF(SUM($G35:T35)=0,0,SUM($G35:T35)),IF(Selector=8,Percent_Waste,Ref_Result))),"") ->  | V35: =IFERROR(IF(OR($C35=0,V$12=""),"",IF(V$12="Total",IF(SUM($G35:U35)=0,0,SUM($G35:U35)),IF(Selector=8,Percent_Waste,Ref_Result))),"") ->  | W35: =IFERROR(IF(OR($C35=0,W$12=""),"",IF(W$12="Total",IF(SUM($G35:V35)=0,0,SUM($G35:V35)),IF(Selector=8,Percent_Waste,Ref_Result))),"") ->  | X35: =IFERROR(IF(OR($C35=0,X$12=""),"",IF(X$12="Total",IF(SUM($G35:W35)=0,0,SUM($G35:W35)),IF(Selector=8,Percent_Waste,Ref_Result))),"") ->  | Y35: =IFERROR(IF(OR($C35=0,Y$12=""),"",IF(Y$12="Total",IF(SUM($G35:X35)=0,0,SUM($G35:X35)),IF(Selector=8,Percent_Waste,Ref_Result))),"") ->  | Z35: =IFERROR(IF(OR($C35=0,Z$12=""),"",IF(Z$12="Total",IF(SUM($G35:Y35)=0,0,SUM($G35:Y35)),IF(Selector=8,Percent_Waste,Ref_Result))),"") ->  | AA35: 40 | AF35: =IFERROR(IF($AF$11="FRY",INDEX(Conn_FRY_Delivery,ROWS($13:35),COLUMNS($A:A)),""),"") -> 2019-02-02 | AG35: =IFERROR(IF($AF$11="FRY",INDEX(Conn_FRY_Delivery,ROWS($13:35),COLUMNS($A:B)),""),"") -> FRY | AH35: =IFERROR(IF($AF$11="FRY",INDEX(Conn_FRY_Delivery,ROWS($13:35),COLUMNS($A:C)),""),"") -> รับ | AI35: =IFERROR(IF($AF$11="FRY",INDEX(Conn_FRY_Delivery,ROWS($13:35),COLUMNS($A:D)),""),"") -> 39-ขนมปังไส้กรอกคอกเทลหมู | AJ35: =IFERROR(IF($AF$11="FRY",INDEX(Conn_FRY_Delivery,ROWS($13:35),COLUMNS($A:E)),""),"") -> 270 | AL35: =IFERROR(IF($AL$11="FRK",INDEX(Conn_FRK_Delivery,ROWS($13:35),COLUMNS($A:A)),""),"") ->  | AM35: =IFERROR(IF($AL$11="FRK",INDEX(Conn_FRK_Delivery,ROWS($13:35),COLUMNS($A:B)),""),"") ->  | AN35: =IFERROR(IF($AL$11="FRK",INDEX(Conn_FRK_Delivery,ROWS($13:35),COLUMNS($A:C)),""),"") ->  | AO35: =IFERROR(IF($AL$11="FRK",INDEX(Conn_FRK_Delivery,ROWS($13:35),COLUMNS($A:D)),""),"") ->  | AP35: =IFERROR(IF($AL$11="FRK",INDEX(Conn_FRK_Delivery,ROWS($13:35),COLUMNS($A:E)),""),"") ->  | AR35: =IF(ROWS($13:35)<=IFERROR(ROWS(FRY_Delivery_Data),0),"FRY",IF(ROWS($13:35)<=IFERROR(ROWS(FRY_Delivery_Data),0)+IFERROR(ROWS(FRK_Delivery_Data),0),"FRK","")) -> FRY | AS35: =IF($AR35="FRY",INDEX(FRY_Delivery_Data,COUNTIF($AR$13:$AR35,$AR35),COLUMNS($A:A)),IF($AR35="FRK",INDEX(FRK_Delivery_Data,COUNTIF($AR$13:$AR35,$AR35),COLUMNS($A:A)),"")) -> 2019-02-02 | AT35: =IF($AR35="FRY",INDEX(FRY_Delivery_Data,COUNTIF($AR$13:$AR35,$AR35),COLUMNS($A:B)),IF($AR35="FRK",INDEX(FRK_Delivery_Data,COUNTIF($AR$13:$AR35,$AR35),COLUMNS($A:B)),"")) -> FRY | AU35: =IF($AR35="FRY",INDEX(FRY_Delivery_Data,COUNTIF($AR$13:$AR35,$AR35),COLUMNS($A:C)),IF($AR35="FRK",INDEX(FRK_Delivery_Data,COUNTIF($AR$13:$AR35,$AR35),COLUMNS($A:C)),"")) -> รับ | AV35: =IF($AR35="FRY",INDEX(FRY_Delivery_Data,COUNTIF($AR$13:$AR35,$AR35),COLUMNS($A:D)),IF($AR35="FRK",INDEX(FRK_Delivery_Data,COUNTIF($AR$13:$AR35,$AR35),COLUMNS($A:D)),"")) -> 39-ขนมปังไส้กรอกคอกเทลหมู | AW35: =IF($AR35="FRY",INDEX(FRY_Delivery_Data,COUNTIF($AR$13:$AR35,$AR35),COLUMNS($A:E)),IF($AR35="FRK",INDEX(FRK_Delivery_Data,COUNTIF($AR$13:$AR35,$AR35),COLUMNS($A:E)),"")) -> 270
B36: =IF(OR($C36="",$C36=0,ROWS($13:36)>ROWS(Product_List)),"",COUNTIF($C$13:$C36,"*?")) -> 24 | C36: =IFERROR(IF($C$9="No File In Folder","",INDEX(Product_List,ROWS($13:36))),"") -> 24-ขนมปังเนยสด | D36: 0 | E36: =IFERROR(INDEX(Brch_FileNameList,ROWS($11:34)),"") ->  | F36: =IF(E36="","",SL_BranchCode&"-"&MID(E36,7,2)) ->  | G36: =IFERROR(IF(OR($C36=0,G$12=""),"",IF(G$12="Total",IF(SUM(F36:$G36)=0,0,SUM(F36:$G36)),IF(Selector=8,Percent_Waste,Ref_Result))),"") -> 0 | H36: =IFERROR(IF(OR($C36=0,H$12=""),"",IF(H$12="Total",IF(SUM(G36:$G36)=0,0,SUM(G36:$G36)),IF(Selector=8,Percent_Waste,Ref_Result))),"") -> 0 | I36: =IFERROR(IF(OR($C36=0,I$12=""),"",IF(I$12="Total",IF(SUM($G36:H36)=0,0,SUM($G36:H36)),IF(Selector=8,Percent_Waste,Ref_Result))),"") -> 0 | J36: =IFERROR(IF(OR($C36=0,J$12=""),"",IF(J$12="Total",IF(SUM($G36:I36)=0,0,SUM($G36:I36)),IF(Selector=8,Percent_Waste,Ref_Result))),"") -> 0 | K36: =IFERROR(IF(OR($C36=0,K$12=""),"",IF(K$12="Total",IF(SUM($G36:J36)=0,0,SUM($G36:J36)),IF(Selector=8,Percent_Waste,Ref_Result))),"") -> 0 | L36: =IFERROR(IF(OR($C36=0,L$12=""),"",IF(L$12="Total",IF(SUM($G36:K36)=0,0,SUM($G36:K36)),IF(Selector=8,Percent_Waste,Ref_Result))),"") -> 0 | M36: =IFERROR(IF(OR($C36=0,M$12=""),"",IF(M$12="Total",IF(SUM($G36:L36)=0,0,SUM($G36:L36)),IF(Selector=8,Percent_Waste,Ref_Result))),"") -> 0 | N36: =IFERROR(IF(OR($C36=0,N$12=""),"",IF(N$12="Total",IF(SUM($G36:M36)=0,0,SUM($G36:M36)),IF(Selector=8,Percent_Waste,Ref_Result))),"") -> 0 | O36: =IFERROR(IF(OR($C36=0,O$12=""),"",IF(O$12="Total",IF(SUM($G36:N36)=0,0,SUM($G36:N36)),IF(Selector=8,Percent_Waste,Ref_Result))),"") -> 0 | P36: =IFERROR(IF(OR($C36=0,P$12=""),"",IF(P$12="Total",IF(SUM($G36:O36)=0,0,SUM($G36:O36)),IF(Selector=8,Percent_Waste,Ref_Result))),"") -> 0 | Q36: =IFERROR(IF(OR($C36=0,Q$12=""),"",IF(Q$12="Total",IF(SUM($G36:P36)=0,0,SUM($G36:P36)),IF(Selector=8,Percent_Waste,Ref_Result))),"") -> 0 | R36: =IFERROR(IF(OR($C36=0,R$12=""),"",IF(R$12="Total",IF(SUM($G36:Q36)=0,0,SUM($G36:Q36)),IF(Selector=8,Percent_Waste,Ref_Result))),"") ->  | S36: =IFERROR(IF(OR($C36=0,S$12=""),"",IF(S$12="Total",IF(SUM($G36:R36)=0,0,SUM($G36:R36)),IF(Selector=8,Percent_Waste,Ref_Result))),"") ->  | T36: =IFERROR(IF(OR($C36=0,T$12=""),"",IF(T$12="Total",IF(SUM($G36:S36)=0,0,SUM($G36:S36)),IF(Selector=8,Percent_Waste,Ref_Result))),"") ->  | U36: =IFERROR(IF(OR($C36=0,U$12=""),"",IF(U$12="Total",IF(SUM($G36:T36)=0,0,SUM($G36:T36)),IF(Selector=8,Percent_Waste,Ref_Result))),"") ->  | V36: =IFERROR(IF(OR($C36=0,V$12=""),"",IF(V$12="Total",IF(SUM($G36:U36)=0,0,SUM($G36:U36)),IF(Selector=8,Percent_Waste,Ref_Result))),"") ->  | W36: =IFERROR(IF(OR($C36=0,W$12=""),"",IF(W$12="Total",IF(SUM($G36:V36)=0,0,SUM($G36:V36)),IF(Selector=8,Percent_Waste,Ref_Result))),"") ->  | X36: =IFERROR(IF(OR($C36=0,X$12=""),"",IF(X$12="Total",IF(SUM($G36:W36)=0,0,SUM($G36:W36)),IF(Selector=8,Percent_Waste,Ref_Result))),"") ->  | Y36: =IFERROR(IF(OR($C36=0,Y$12=""),"",IF(Y$12="Total",IF(SUM($G36:X36)=0,0,SUM($G36:X36)),IF(Selector=8,Percent_Waste,Ref_Result))),"") ->  | Z36: =IFERROR(IF(OR($C36=0,Z$12=""),"",IF(Z$12="Total",IF(SUM($G36:Y36)=0,0,SUM($G36:Y36)),IF(Selector=8,Percent_Waste,Ref_Result))),"") ->  | AA36: 0 | AF36: =IFERROR(IF($AF$11="FRY",INDEX(Conn_FRY_Delivery,ROWS($13:36),COLUMNS($A:A)),""),"") -> 2019-02-02 | AG36: =IFERROR(IF($AF$11="FRY",INDEX(Conn_FRY_Delivery,ROWS($13:36),COLUMNS($A:B)),""),"") -> FRY | AH36: =IFERROR(IF($AF$11="FRY",INDEX(Conn_FRY_Delivery,ROWS($13:36),COLUMNS($A:C)),""),"") -> รับ | AI36: =IFERROR(IF($AF$11="FRY",INDEX(Conn_FRY_Delivery,ROWS($13:36),COLUMNS($A:D)),""),"") -> 42-ขนมปังไส้มันม่วง | AJ36: =IFERROR(IF($AF$11="FRY",INDEX(Conn_FRY_Delivery,ROWS($13:36),COLUMNS($A:E)),""),"") -> 250 | AL36: =IFERROR(IF($AL$11="FRK",INDEX(Conn_FRK_Delivery,ROWS($13:36),COLUMNS($A:A)),""),"") ->  | AM36: =IFERROR(IF($AL$11="FRK",INDEX(Conn_FRK_Delivery,ROWS($13:36),COLUMNS($A:B)),""),"") ->  | AN36: =IFERROR(IF($AL$11="FRK",INDEX(Conn_FRK_Delivery,ROWS($13:36),COLUMNS($A:C)),""),"") ->  | AO36: =IFERROR(IF($AL$11="FRK",INDEX(Conn_FRK_Delivery,ROWS($13:36),COLUMNS($A:D)),""),"") ->  | AP36: =IFERROR(IF($AL$11="FRK",INDEX(Conn_FRK_Delivery,ROWS($13:36),COLUMNS($A:E)),""),"") ->  | AR36: =IF(ROWS($13:36)<=IFERROR(ROWS(FRY_Delivery_Data),0),"FRY",IF(ROWS($13:36)<=IFERROR(ROWS(FRY_Delivery_Data),0)+IFERROR(ROWS(FRK_Delivery_Data),0),"FRK","")) -> FRY | AS36: =IF($AR36="FRY",INDEX(FRY_Delivery_Data,COUNTIF($AR$13:$AR36,$AR36),COLUMNS($A:A)),IF($AR36="FRK",INDEX(FRK_Delivery_Data,COUNTIF($AR$13:$AR36,$AR36),COLUMNS($A:A)),"")) -> 2019-02-02 | AT36: =IF($AR36="FRY",INDEX(FRY_Delivery_Data,COUNTIF($AR$13:$AR36,$AR36),COLUMNS($A:B)),IF($AR36="FRK",INDEX(FRK_Delivery_Data,COUNTIF($AR$13:$AR36,$AR36),COLUMNS($A:B)),"")) -> FRY | AU36: =IF($AR36="FRY",INDEX(FRY_Delivery_Data,COUNTIF($AR$13:$AR36,$AR36),COLUMNS($A:C)),IF($AR36="FRK",INDEX(FRK_Delivery_Data,COUNTIF($AR$13:$AR36,$AR36),COLUMNS($A:C)),"")) -> รับ | AV36: =IF($AR36="FRY",INDEX(FRY_Delivery_Data,COUNTIF($AR$13:$AR36,$AR36),COLUMNS($A:D)),IF($AR36="FRK",INDEX(FRK_Delivery_Data,COUNTIF($AR$13:$AR36,$AR36),COLUMNS($A:D)),"")) -> 42-ขนมปังไส้มันม่วง | AW36: =IF($AR36="FRY",INDEX(FRY_Delivery_Data,COUNTIF($AR$13:$AR36,$AR36),COLUMNS($A:E)),IF($AR36="FRK",INDEX(FRK_Delivery_Data,COUNTIF($AR$13:$AR36,$AR36),COLUMNS($A:E)),"")) -> 250
B37: =IF(OR($C37="",$C37=0,ROWS($13:37)>ROWS(Product_List)),"",COUNTIF($C$13:$C37,"*?")) -> 25 | C37: =IFERROR(IF($C$9="No File In Folder","",INDEX(Product_List,ROWS($13:37))),"") -> 25-ขนมปังปอนด์ใหญ่ (L) | D37: 0 | E37: =IFERROR(INDEX(Brch_FileNameList,ROWS($11:35)),"") ->  | F37: =IF(E37="","",SL_BranchCode&"-"&MID(E37,7,2)) ->  | G37: =IFERROR(IF(OR($C37=0,G$12=""),"",IF(G$12="Total",IF(SUM(F37:$G37)=0,0,SUM(F37:$G37)),IF(Selector=8,Percent_Waste,Ref_Result))),"") -> 0 | H37: =IFERROR(IF(OR($C37=0,H$12=""),"",IF(H$12="Total",IF(SUM(G37:$G37)=0,0,SUM(G37:$G37)),IF(Selector=8,Percent_Waste,Ref_Result))),"") -> 0 | I37: =IFERROR(IF(OR($C37=0,I$12=""),"",IF(I$12="Total",IF(SUM($G37:H37)=0,0,SUM($G37:H37)),IF(Selector=8,Percent_Waste,Ref_Result))),"") -> 0 | J37: =IFERROR(IF(OR($C37=0,J$12=""),"",IF(J$12="Total",IF(SUM($G37:I37)=0,0,SUM($G37:I37)),IF(Selector=8,Percent_Waste,Ref_Result))),"") -> 0 | K37: =IFERROR(IF(OR($C37=0,K$12=""),"",IF(K$12="Total",IF(SUM($G37:J37)=0,0,SUM($G37:J37)),IF(Selector=8,Percent_Waste,Ref_Result))),"") -> 0 | L37: =IFERROR(IF(OR($C37=0,L$12=""),"",IF(L$12="Total",IF(SUM($G37:K37)=0,0,SUM($G37:K37)),IF(Selector=8,Percent_Waste,Ref_Result))),"") -> 0 | M37: =IFERROR(IF(OR($C37=0,M$12=""),"",IF(M$12="Total",IF(SUM($G37:L37)=0,0,SUM($G37:L37)),IF(Selector=8,Percent_Waste,Ref_Result))),"") -> 0 | N37: =IFERROR(IF(OR($C37=0,N$12=""),"",IF(N$12="Total",IF(SUM($G37:M37)=0,0,SUM($G37:M37)),IF(Selector=8,Percent_Waste,Ref_Result))),"") -> 0 | O37: =IFERROR(IF(OR($C37=0,O$12=""),"",IF(O$12="Total",IF(SUM($G37:N37)=0,0,SUM($G37:N37)),IF(Selector=8,Percent_Waste,Ref_Result))),"") -> 0 | P37: =IFERROR(IF(OR($C37=0,P$12=""),"",IF(P$12="Total",IF(SUM($G37:O37)=0,0,SUM($G37:O37)),IF(Selector=8,Percent_Waste,Ref_Result))),"") -> 0 | Q37: =IFERROR(IF(OR($C37=0,Q$12=""),"",IF(Q$12="Total",IF(SUM($G37:P37)=0,0,SUM($G37:P37)),IF(Selector=8,Percent_Waste,Ref_Result))),"") -> 0 | R37: =IFERROR(IF(OR($C37=0,R$12=""),"",IF(R$12="Total",IF(SUM($G37:Q37)=0,0,SUM($G37:Q37)),IF(Selector=8,Percent_Waste,Ref_Result))),"") ->  | S37: =IFERROR(IF(OR($C37=0,S$12=""),"",IF(S$12="Total",IF(SUM($G37:R37)=0,0,SUM($G37:R37)),IF(Selector=8,Percent_Waste,Ref_Result))),"") ->  | T37: =IFERROR(IF(OR($C37=0,T$12=""),"",IF(T$12="Total",IF(SUM($G37:S37)=0,0,SUM($G37:S37)),IF(Selector=8,Percent_Waste,Ref_Result))),"") ->  | U37: =IFERROR(IF(OR($C37=0,U$12=""),"",IF(U$12="Total",IF(SUM($G37:T37)=0,0,SUM($G37:T37)),IF(Selector=8,Percent_Waste,Ref_Result))),"") ->  | V37: =IFERROR(IF(OR($C37=0,V$12=""),"",IF(V$12="Total",IF(SUM($G37:U37)=0,0,SUM($G37:U37)),IF(Selector=8,Percent_Waste,Ref_Result))),"") ->  | W37: =IFERROR(IF(OR($C37=0,W$12=""),"",IF(W$12="Total",IF(SUM($G37:V37)=0,0,SUM($G37:V37)),IF(Selector=8,Percent_Waste,Ref_Result))),"") ->  | X37: =IFERROR(IF(OR($C37=0,X$12=""),"",IF(X$12="Total",IF(SUM($G37:W37)=0,0,SUM($G37:W37)),IF(Selector=8,Percent_Waste,Ref_Result))),"") ->  | Y37: =IFERROR(IF(OR($C37=0,Y$12=""),"",IF(Y$12="Total",IF(SUM($G37:X37)=0,0,SUM($G37:X37)),IF(Selector=8,Percent_Waste,Ref_Result))),"") ->  | Z37: =IFERROR(IF(OR($C37=0,Z$12=""),"",IF(Z$12="Total",IF(SUM($G37:Y37)=0,0,SUM($G37:Y37)),IF(Selector=8,Percent_Waste,Ref_Result))),"") ->  | AA37: 0 | AF37: =IFERROR(IF($AF$11="FRY",INDEX(Conn_FRY_Delivery,ROWS($13:37),COLUMNS($A:A)),""),"") -> 2019-02-02 | AG37: =IFERROR(IF($AF$11="FRY",INDEX(Conn_FRY_Delivery,ROWS($13:37),COLUMNS($A:B)),""),"") -> FRY | AH37: =IFERROR(IF($AF$11="FRY",INDEX(Conn_FRY_Delivery,ROWS($13:37),COLUMNS($A:C)),""),"") -> รับ | AI37: =IFERROR(IF($AF$11="FRY",INDEX(Conn_FRY_Delivery,ROWS($13:37),COLUMNS($A:D)),""),"") -> 44-มินิเค้กกล้วยหอม | AJ37: =IFERROR(IF($AF$11="FRY",INDEX(Conn_FRY_Delivery,ROWS($13:37),COLUMNS($A:E)),""),"") -> 210 | AL37: =IFERROR(IF($AL$11="FRK",INDEX(Conn_FRK_Delivery,ROWS($13:37),COLUMNS($A:A)),""),"") ->  | AM37: =IFERROR(IF($AL$11="FRK",INDEX(Conn_FRK_Delivery,ROWS($13:37),COLUMNS($A:B)),""),"") ->  | AN37: =IFERROR(IF($AL$11="FRK",INDEX(Conn_FRK_Delivery,ROWS($13:37),COLUMNS($A:C)),""),"") ->  | AO37: =IFERROR(IF($AL$11="FRK",INDEX(Conn_FRK_Delivery,ROWS($13:37),COLUMNS($A:D)),""),"") ->  | AP37: =IFERROR(IF($AL$11="FRK",INDEX(Conn_FRK_Delivery,ROWS($13:37),COLUMNS($A:E)),""),"") ->  | AR37: =IF(ROWS($13:37)<=IFERROR(ROWS(FRY_Delivery_Data),0),"FRY",IF(ROWS($13:37)<=IFERROR(ROWS(FRY_Delivery_Data),0)+IFERROR(ROWS(FRK_Delivery_Data),0),"FRK","")) -> FRY | AS37: =IF($AR37="FRY",INDEX(FRY_Delivery_Data,COUNTIF($AR$13:$AR37,$AR37),COLUMNS($A:A)),IF($AR37="FRK",INDEX(FRK_Delivery_Data,COUNTIF($AR$13:$AR37,$AR37),COLUMNS($A:A)),"")) -> 2019-02-02 | AT37: =IF($AR37="FRY",INDEX(FRY_Delivery_Data,COUNTIF($AR$13:$AR37,$AR37),COLUMNS($A:B)),IF($AR37="FRK",INDEX(FRK_Delivery_Data,COUNTIF($AR$13:$AR37,$AR37),COLUMNS($A:B)),"")) -> FRY | AU37: =IF($AR37="FRY",INDEX(FRY_Delivery_Data,COUNTIF($AR$13:$AR37,$AR37),COLUMNS($A:C)),IF($AR37="FRK",INDEX(FRK_Delivery_Data,COUNTIF($AR$13:$AR37,$AR37),COLUMNS($A:C)),"")) -> รับ | AV37: =IF($AR37="FRY",INDEX(FRY_Delivery_Data,COUNTIF($AR$13:$AR37,$AR37),COLUMNS($A:D)),IF($AR37="FRK",INDEX(FRK_Delivery_Data,COUNTIF($AR$13:$AR37,$AR37),COLUMNS($A:D)),"")) -> 44-มินิเค้กกล้วยหอม | AW37: =IF($AR37="FRY",INDEX(FRY_Delivery_Data,COUNTIF($AR$13:$AR37,$AR37),COLUMNS($A:E)),IF($AR37="FRK",INDEX(FRK_Delivery_Data,COUNTIF($AR$13:$AR37,$AR37),COLUMNS($A:E)),"")) -> 210
B38: =IF(OR($C38="",$C38=0,ROWS($13:38)>ROWS(Product_List)),"",COUNTIF($C$13:$C38,"*?")) -> 26 | C38: =IFERROR(IF($C$9="No File In Folder","",INDEX(Product_List,ROWS($13:38))),"") -> 26-ขนมก้านบัวบาร์บีคิว | D38: 0 | E38: =IFERROR(INDEX(Brch_FileNameList,ROWS($11:36)),"") ->  | F38: =IF(E38="","",SL_BranchCode&"-"&MID(E38,7,2)) ->  | G38: =IFERROR(IF(OR($C38=0,G$12=""),"",IF(G$12="Total",IF(SUM(F38:$G38)=0,0,SUM(F38:$G38)),IF(Selector=8,Percent_Waste,Ref_Result))),"") -> 0 | H38: =IFERROR(IF(OR($C38=0,H$12=""),"",IF(H$12="Total",IF(SUM(G38:$G38)=0,0,SUM(G38:$G38)),IF(Selector=8,Percent_Waste,Ref_Result))),"") -> 0 | I38: =IFERROR(IF(OR($C38=0,I$12=""),"",IF(I$12="Total",IF(SUM($G38:H38)=0,0,SUM($G38:H38)),IF(Selector=8,Percent_Waste,Ref_Result))),"") -> 0 | J38: =IFERROR(IF(OR($C38=0,J$12=""),"",IF(J$12="Total",IF(SUM($G38:I38)=0,0,SUM($G38:I38)),IF(Selector=8,Percent_Waste,Ref_Result))),"") -> 0 | K38: =IFERROR(IF(OR($C38=0,K$12=""),"",IF(K$12="Total",IF(SUM($G38:J38)=0,0,SUM($G38:J38)),IF(Selector=8,Percent_Waste,Ref_Result))),"") -> 0 | L38: =IFERROR(IF(OR($C38=0,L$12=""),"",IF(L$12="Total",IF(SUM($G38:K38)=0,0,SUM($G38:K38)),IF(Selector=8,Percent_Waste,Ref_Result))),"") -> 0 | M38: =IFERROR(IF(OR($C38=0,M$12=""),"",IF(M$12="Total",IF(SUM($G38:L38)=0,0,SUM($G38:L38)),IF(Selector=8,Percent_Waste,Ref_Result))),"") -> 0 | N38: =IFERROR(IF(OR($C38=0,N$12=""),"",IF(N$12="Total",IF(SUM($G38:M38)=0,0,SUM($G38:M38)),IF(Selector=8,Percent_Waste,Ref_Result))),"") -> 0 | O38: =IFERROR(IF(OR($C38=0,O$12=""),"",IF(O$12="Total",IF(SUM($G38:N38)=0,0,SUM($G38:N38)),IF(Selector=8,Percent_Waste,Ref_Result))),"") -> 0 | P38: =IFERROR(IF(OR($C38=0,P$12=""),"",IF(P$12="Total",IF(SUM($G38:O38)=0,0,SUM($G38:O38)),IF(Selector=8,Percent_Waste,Ref_Result))),"") -> 0 | Q38: =IFERROR(IF(OR($C38=0,Q$12=""),"",IF(Q$12="Total",IF(SUM($G38:P38)=0,0,SUM($G38:P38)),IF(Selector=8,Percent_Waste,Ref_Result))),"") -> 0 | R38: =IFERROR(IF(OR($C38=0,R$12=""),"",IF(R$12="Total",IF(SUM($G38:Q38)=0,0,SUM($G38:Q38)),IF(Selector=8,Percent_Waste,Ref_Result))),"") ->  | S38: =IFERROR(IF(OR($C38=0,S$12=""),"",IF(S$12="Total",IF(SUM($G38:R38)=0,0,SUM($G38:R38)),IF(Selector=8,Percent_Waste,Ref_Result))),"") ->  | T38: =IFERROR(IF(OR($C38=0,T$12=""),"",IF(T$12="Total",IF(SUM($G38:S38)=0,0,SUM($G38:S38)),IF(Selector=8,Percent_Waste,Ref_Result))),"") ->  | U38: =IFERROR(IF(OR($C38=0,U$12=""),"",IF(U$12="Total",IF(SUM($G38:T38)=0,0,SUM($G38:T38)),IF(Selector=8,Percent_Waste,Ref_Result))),"") ->  | V38: =IFERROR(IF(OR($C38=0,V$12=""),"",IF(V$12="Total",IF(SUM($G38:U38)=0,0,SUM($G38:U38)),IF(Selector=8,Percent_Waste,Ref_Result))),"") ->  | W38: =IFERROR(IF(OR($C38=0,W$12=""),"",IF(W$12="Total",IF(SUM($G38:V38)=0,0,SUM($G38:V38)),IF(Selector=8,Percent_Waste,Ref_Result))),"") ->  | X38: =IFERROR(IF(OR($C38=0,X$12=""),"",IF(X$12="Total",IF(SUM($G38:W38)=0,0,SUM($G38:W38)),IF(Selector=8,Percent_Waste,Ref_Result))),"") ->  | Y38: =IFERROR(IF(OR($C38=0,Y$12=""),"",IF(Y$12="Total",IF(SUM($G38:X38)=0,0,SUM($G38:X38)),IF(Selector=8,Percent_Waste,Ref_Result))),"") ->  | Z38: =IFERROR(IF(OR($C38=0,Z$12=""),"",IF(Z$12="Total",IF(SUM($G38:Y38)=0,0,SUM($G38:Y38)),IF(Selector=8,Percent_Waste,Ref_Result))),"") ->  | AA38: 0 | AF38: =IFERROR(IF($AF$11="FRY",INDEX(Conn_FRY_Delivery,ROWS($13:38),COLUMNS($A:A)),""),"") ->  | AG38: =IFERROR(IF($AF$11="FRY",INDEX(Conn_FRY_Delivery,ROWS($13:38),COLUMNS($A:B)),""),"") ->  | AH38: =IFERROR(IF($AF$11="FRY",INDEX(Conn_FRY_Delivery,ROWS($13:38),COLUMNS($A:C)),""),"") ->  | AI38: =IFERROR(IF($AF$11="FRY",INDEX(Conn_FRY_Delivery,ROWS($13:38),COLUMNS($A:D)),""),"") ->  | AJ38: =IFERROR(IF($AF$11="FRY",INDEX(Conn_FRY_Delivery,ROWS($13:38),COLUMNS($A:E)),""),"") ->  | AL38: =IFERROR(IF($AL$11="FRK",INDEX(Conn_FRK_Delivery,ROWS($13:38),COLUMNS($A:A)),""),"") ->  | AM38: =IFERROR(IF($AL$11="FRK",INDEX(Conn_FRK_Delivery,ROWS($13:38),COLUMNS($A:B)),""),"") ->  | AN38: =IFERROR(IF($AL$11="FRK",INDEX(Conn_FRK_Delivery,ROWS($13:38),COLUMNS($A:C)),""),"") ->  | AO38: =IFERROR(IF($AL$11="FRK",INDEX(Conn_FRK_Delivery,ROWS($13:38),COLUMNS($A:D)),""),"") ->  | AP38: =IFERROR(IF($AL$11="FRK",INDEX(Conn_FRK_Delivery,ROWS($13:38),COLUMNS($A:E)),""),"") ->  | AR38: =IF(ROWS($13:38)<=IFERROR(ROWS(FRY_Delivery_Data),0),"FRY",IF(ROWS($13:38)<=IFERROR(ROWS(FRY_Delivery_Data),0)+IFERROR(ROWS(FRK_Delivery_Data),0),"FRK","")) -> FRK | AS38: =IF($AR38="FRY",INDEX(FRY_Delivery_Data,COUNTIF($AR$13:$AR38,$AR38),COLUMNS($A:A)),IF($AR38="FRK",INDEX(FRK_Delivery_Data,COUNTIF($AR$13:$AR38,$AR38),COLUMNS($A:A)),"")) -> 2019-02-21 | AT38: =IF($AR38="FRY",INDEX(FRY_Delivery_Data,COUNTIF($AR$13:$AR38,$AR38),COLUMNS($A:B)),IF($AR38="FRK",INDEX(FRK_Delivery_Data,COUNTIF($AR$13:$AR38,$AR38),COLUMNS($A:B)),"")) -> FRK | AU38: =IF($AR38="FRY",INDEX(FRY_Delivery_Data,COUNTIF($AR$13:$AR38,$AR38),COLUMNS($A:C)),IF($AR38="FRK",INDEX(FRK_Delivery_Data,COUNTIF($AR$13:$AR38,$AR38),COLUMNS($A:C)),"")) -> รับ | AV38: =IF($AR38="FRY",INDEX(FRY_Delivery_Data,COUNTIF($AR$13:$AR38,$AR38),COLUMNS($A:D)),IF($AR38="FRK",INDEX(FRK_Delivery_Data,COUNTIF($AR$13:$AR38,$AR38),COLUMNS($A:D)),"")) -> 33-แซนด์วิชหมูหยองน้ำสลัด | AW38: =IF($AR38="FRY",INDEX(FRY_Delivery_Data,COUNTIF($AR$13:$AR38,$AR38),COLUMNS($A:E)),IF($AR38="FRK",INDEX(FRK_Delivery_Data,COUNTIF($AR$13:$AR38,$AR38),COLUMNS($A:E)),"")) -> 300
B39: =IF(OR($C39="",$C39=0,ROWS($13:39)>ROWS(Product_List)),"",COUNTIF($C$13:$C39,"*?")) -> 27 | C39: =IFERROR(IF($C$9="No File In Folder","",INDEX(Product_List,ROWS($13:39))),"") -> 27-ขนมปังเนยสดอัลมอนด์ | D39: 0 | E39: =IFERROR(INDEX(Brch_FileNameList,ROWS($11:37)),"") ->  | F39: =IF(E39="","",SL_BranchCode&"-"&MID(E39,7,2)) ->  | G39: =IFERROR(IF(OR($C39=0,G$12=""),"",IF(G$12="Total",IF(SUM(F39:$G39)=0,0,SUM(F39:$G39)),IF(Selector=8,Percent_Waste,Ref_Result))),"") -> 0 | H39: =IFERROR(IF(OR($C39=0,H$12=""),"",IF(H$12="Total",IF(SUM(G39:$G39)=0,0,SUM(G39:$G39)),IF(Selector=8,Percent_Waste,Ref_Result))),"") -> 0 | I39: =IFERROR(IF(OR($C39=0,I$12=""),"",IF(I$12="Total",IF(SUM($G39:H39)=0,0,SUM($G39:H39)),IF(Selector=8,Percent_Waste,Ref_Result))),"") -> 0 | J39: =IFERROR(IF(OR($C39=0,J$12=""),"",IF(J$12="Total",IF(SUM($G39:I39)=0,0,SUM($G39:I39)),IF(Selector=8,Percent_Waste,Ref_Result))),"") -> 0 | K39: =IFERROR(IF(OR($C39=0,K$12=""),"",IF(K$12="Total",IF(SUM($G39:J39)=0,0,SUM($G39:J39)),IF(Selector=8,Percent_Waste,Ref_Result))),"") -> 0 | L39: =IFERROR(IF(OR($C39=0,L$12=""),"",IF(L$12="Total",IF(SUM($G39:K39)=0,0,SUM($G39:K39)),IF(Selector=8,Percent_Waste,Ref_Result))),"") -> 0 | M39: =IFERROR(IF(OR($C39=0,M$12=""),"",IF(M$12="Total",IF(SUM($G39:L39)=0,0,SUM($G39:L39)),IF(Selector=8,Percent_Waste,Ref_Result))),"") -> 0 | N39: =IFERROR(IF(OR($C39=0,N$12=""),"",IF(N$12="Total",IF(SUM($G39:M39)=0,0,SUM($G39:M39)),IF(Selector=8,Percent_Waste,Ref_Result))),"") -> 0 | O39: =IFERROR(IF(OR($C39=0,O$12=""),"",IF(O$12="Total",IF(SUM($G39:N39)=0,0,SUM($G39:N39)),IF(Selector=8,Percent_Waste,Ref_Result))),"") -> 0 | P39: =IFERROR(IF(OR($C39=0,P$12=""),"",IF(P$12="Total",IF(SUM($G39:O39)=0,0,SUM($G39:O39)),IF(Selector=8,Percent_Waste,Ref_Result))),"") -> 0 | Q39: =IFERROR(IF(OR($C39=0,Q$12=""),"",IF(Q$12="Total",IF(SUM($G39:P39)=0,0,SUM($G39:P39)),IF(Selector=8,Percent_Waste,Ref_Result))),"") -> 0 | R39: =IFERROR(IF(OR($C39=0,R$12=""),"",IF(R$12="Total",IF(SUM($G39:Q39)=0,0,SUM($G39:Q39)),IF(Selector=8,Percent_Waste,Ref_Result))),"") ->  | S39: =IFERROR(IF(OR($C39=0,S$12=""),"",IF(S$12="Total",IF(SUM($G39:R39)=0,0,SUM($G39:R39)),IF(Selector=8,Percent_Waste,Ref_Result))),"") ->  | T39: =IFERROR(IF(OR($C39=0,T$12=""),"",IF(T$12="Total",IF(SUM($G39:S39)=0,0,SUM($G39:S39)),IF(Selector=8,Percent_Waste,Ref_Result))),"") ->  | U39: =IFERROR(IF(OR($C39=0,U$12=""),"",IF(U$12="Total",IF(SUM($G39:T39)=0,0,SUM($G39:T39)),IF(Selector=8,Percent_Waste,Ref_Result))),"") ->  | V39: =IFERROR(IF(OR($C39=0,V$12=""),"",IF(V$12="Total",IF(SUM($G39:U39)=0,0,SUM($G39:U39)),IF(Selector=8,Percent_Waste,Ref_Result))),"") ->  | W39: =IFERROR(IF(OR($C39=0,W$12=""),"",IF(W$12="Total",IF(SUM($G39:V39)=0,0,SUM($G39:V39)),IF(Selector=8,Percent_Waste,Ref_Result))),"") ->  | X39: =IFERROR(IF(OR($C39=0,X$12=""),"",IF(X$12="Total",IF(SUM($G39:W39)=0,0,SUM($G39:W39)),IF(Selector=8,Percent_Waste,Ref_Result))),"") ->  | Y39: =IFERROR(IF(OR($C39=0,Y$12=""),"",IF(Y$12="Total",IF(SUM($G39:X39)=0,0,SUM($G39:X39)),IF(Selector=8,Percent_Waste,Ref_Result))),"") ->  | Z39: =IFERROR(IF(OR($C39=0,Z$12=""),"",IF(Z$12="Total",IF(SUM($G39:Y39)=0,0,SUM($G39:Y39)),IF(Selector=8,Percent_Waste,Ref_Result))),"") ->  | AA39: 0 | AF39: =IFERROR(IF($AF$11="FRY",INDEX(Conn_FRY_Delivery,ROWS($13:39),COLUMNS($A:A)),""),"") ->  | AG39: =IFERROR(IF($AF$11="FRY",INDEX(Conn_FRY_Delivery,ROWS($13:39),COLUMNS($A:B)),""),"") ->  | AH39: =IFERROR(IF($AF$11="FRY",INDEX(Conn_FRY_Delivery,ROWS($13:39),COLUMNS($A:C)),""),"") ->  | AI39: =IFERROR(IF($AF$11="FRY",INDEX(Conn_FRY_Delivery,ROWS($13:39),COLUMNS($A:D)),""),"") ->  | AJ39: =IFERROR(IF($AF$11="FRY",INDEX(Conn_FRY_Delivery,ROWS($13:39),COLUMNS($A:E)),""),"") ->  | AL39: =IFERROR(IF($AL$11="FRK",INDEX(Conn_FRK_Delivery,ROWS($13:39),COLUMNS($A:A)),""),"") ->  | AM39: =IFERROR(IF($AL$11="FRK",INDEX(Conn_FRK_Delivery,ROWS($13:39),COLUMNS($A:B)),""),"") ->  | AN39: =IFERROR(IF($AL$11="FRK",INDEX(Conn_FRK_Delivery,ROWS($13:39),COLUMNS($A:C)),""),"") ->  | AO39: =IFERROR(IF($AL$11="FRK",INDEX(Conn_FRK_Delivery,ROWS($13:39),COLUMNS($A:D)),""),"") ->  | AP39: =IFERROR(IF($AL$11="FRK",INDEX(Conn_FRK_Delivery,ROWS($13:39),COLUMNS($A:E)),""),"") ->  | AR39: =IF(ROWS($13:39)<=IFERROR(ROWS(FRY_Delivery_Data),0),"FRY",IF(ROWS($13:39)<=IFERROR(ROWS(FRY_Delivery_Data),0)+IFERROR(ROWS(FRK_Delivery_Data),0),"FRK","")) -> FRK | AS39: =IF($AR39="FRY",INDEX(FRY_Delivery_Data,COUNTIF($AR$13:$AR39,$AR39),COLUMNS($A:A)),IF($AR39="FRK",INDEX(FRK_Delivery_Data,COUNTIF($AR$13:$AR39,$AR39),COLUMNS($A:A)),"")) -> 2019-02-21 | AT39: =IF($AR39="FRY",INDEX(FRY_Delivery_Data,COUNTIF($AR$13:$AR39,$AR39),COLUMNS($A:B)),IF($AR39="FRK",INDEX(FRK_Delivery_Data,COUNTIF($AR$13:$AR39,$AR39),COLUMNS($A:B)),"")) -> FRK | AU39: =IF($AR39="FRY",INDEX(FRY_Delivery_Data,COUNTIF($AR$13:$AR39,$AR39),COLUMNS($A:C)),IF($AR39="FRK",INDEX(FRK_Delivery_Data,COUNTIF($AR$13:$AR39,$AR39),COLUMNS($A:C)),"")) -> รับ | AV39: =IF($AR39="FRY",INDEX(FRY_Delivery_Data,COUNTIF($AR$13:$AR39,$AR39),COLUMNS($A:D)),IF($AR39="FRK",INDEX(FRK_Delivery_Data,COUNTIF($AR$13:$AR39,$AR39),COLUMNS($A:D)),"")) -> 34-แซนด์วิชไก่หยองน้ำสลัด | AW39: =IF($AR39="FRY",INDEX(FRY_Delivery_Data,COUNTIF($AR$13:$AR39,$AR39),COLUMNS($A:E)),IF($AR39="FRK",INDEX(FRK_Delivery_Data,COUNTIF($AR$13:$AR39,$AR39),COLUMNS($A:E)),"")) -> 300
B40: =IF(OR($C40="",$C40=0,ROWS($13:40)>ROWS(Product_List)),"",COUNTIF($C$13:$C40,"*?")) -> 28 | C40: =IFERROR(IF($C$9="No File In Folder","",INDEX(Product_List,ROWS($13:40))),"") -> 28-ขนมปังชนิดแผ่น (460 กรัม) | D40: 70 | E40: =IFERROR(INDEX(Brch_FileNameList,ROWS($11:38)),"") ->  | F40: =IF(E40="","",SL_BranchCode&"-"&MID(E40,7,2)) ->  | G40: =IFERROR(IF(OR($C40=0,G$12=""),"",IF(G$12="Total",IF(SUM(F40:$G40)=0,0,SUM(F40:$G40)),IF(Selector=8,Percent_Waste,Ref_Result))),"") -> 15 | H40: =IFERROR(IF(OR($C40=0,H$12=""),"",IF(H$12="Total",IF(SUM(G40:$G40)=0,0,SUM(G40:$G40)),IF(Selector=8,Percent_Waste,Ref_Result))),"") -> 0 | I40: =IFERROR(IF(OR($C40=0,I$12=""),"",IF(I$12="Total",IF(SUM($G40:H40)=0,0,SUM($G40:H40)),IF(Selector=8,Percent_Waste,Ref_Result))),"") -> 0 | J40: =IFERROR(IF(OR($C40=0,J$12=""),"",IF(J$12="Total",IF(SUM($G40:I40)=0,0,SUM($G40:I40)),IF(Selector=8,Percent_Waste,Ref_Result))),"") -> 30 | K40: =IFERROR(IF(OR($C40=0,K$12=""),"",IF(K$12="Total",IF(SUM($G40:J40)=0,0,SUM($G40:J40)),IF(Selector=8,Percent_Waste,Ref_Result))),"") -> 10 | L40: =IFERROR(IF(OR($C40=0,L$12=""),"",IF(L$12="Total",IF(SUM($G40:K40)=0,0,SUM($G40:K40)),IF(Selector=8,Percent_Waste,Ref_Result))),"") -> 0 | M40: =IFERROR(IF(OR($C40=0,M$12=""),"",IF(M$12="Total",IF(SUM($G40:L40)=0,0,SUM($G40:L40)),IF(Selector=8,Percent_Waste,Ref_Result))),"") -> 5 | N40: =IFERROR(IF(OR($C40=0,N$12=""),"",IF(N$12="Total",IF(SUM($G40:M40)=0,0,SUM($G40:M40)),IF(Selector=8,Percent_Waste,Ref_Result))),"") -> 0 | O40: =IFERROR(IF(OR($C40=0,O$12=""),"",IF(O$12="Total",IF(SUM($G40:N40)=0,0,SUM($G40:N40)),IF(Selector=8,Percent_Waste,Ref_Result))),"") -> 10 | P40: =IFERROR(IF(OR($C40=0,P$12=""),"",IF(P$12="Total",IF(SUM($G40:O40)=0,0,SUM($G40:O40)),IF(Selector=8,Percent_Waste,Ref_Result))),"") -> 0 | Q40: =IFERROR(IF(OR($C40=0,Q$12=""),"",IF(Q$12="Total",IF(SUM($G40:P40)=0,0,SUM($G40:P40)),IF(Selector=8,Percent_Waste,Ref_Result))),"") -> 70 | R40: =IFERROR(IF(OR($C40=0,R$12=""),"",IF(R$12="Total",IF(SUM($G40:Q40)=0,0,SUM($G40:Q40)),IF(Selector=8,Percent_Waste,Ref_Result))),"") ->  | S40: =IFERROR(IF(OR($C40=0,S$12=""),"",IF(S$12="Total",IF(SUM($G40:R40)=0,0,SUM($G40:R40)),IF(Selector=8,Percent_Waste,Ref_Result))),"") ->  | T40: =IFERROR(IF(OR($C40=0,T$12=""),"",IF(T$12="Total",IF(SUM($G40:S40)=0,0,SUM($G40:S40)),IF(Selector=8,Percent_Waste,Ref_Result))),"") ->  | U40: =IFERROR(IF(OR($C40=0,U$12=""),"",IF(U$12="Total",IF(SUM($G40:T40)=0,0,SUM($G40:T40)),IF(Selector=8,Percent_Waste,Ref_Result))),"") ->  | V40: =IFERROR(IF(OR($C40=0,V$12=""),"",IF(V$12="Total",IF(SUM($G40:U40)=0,0,SUM($G40:U40)),IF(Selector=8,Percent_Waste,Ref_Result))),"") ->  | W40: =IFERROR(IF(OR($C40=0,W$12=""),"",IF(W$12="Total",IF(SUM($G40:V40)=0,0,SUM($G40:V40)),IF(Selector=8,Percent_Waste,Ref_Result))),"") ->  | X40: =IFERROR(IF(OR($C40=0,X$12=""),"",IF(X$12="Total",IF(SUM($G40:W40)=0,0,SUM($G40:W40)),IF(Selector=8,Percent_Waste,Ref_Result))),"") ->  | Y40: =IFERROR(IF(OR($C40=0,Y$12=""),"",IF(Y$12="Total",IF(SUM($G40:X40)=0,0,SUM($G40:X40)),IF(Selector=8,Percent_Waste,Ref_Result))),"") ->  | Z40: =IFERROR(IF(OR($C40=0,Z$12=""),"",IF(Z$12="Total",IF(SUM($G40:Y40)=0,0,SUM($G40:Y40)),IF(Selector=8,Percent_Waste,Ref_Result))),"") ->  | AA40: 0 | AF40: =IFERROR(IF($AF$11="FRY",INDEX(Conn_FRY_Delivery,ROWS($13:40),COLUMNS($A:A)),""),"") ->  | AG40: =IFERROR(IF($AF$11="FRY",INDEX(Conn_FRY_Delivery,ROWS($13:40),COLUMNS($A:B)),""),"") ->  | AH40: =IFERROR(IF($AF$11="FRY",INDEX(Conn_FRY_Delivery,ROWS($13:40),COLUMNS($A:C)),""),"") ->  | AI40: =IFERROR(IF($AF$11="FRY",INDEX(Conn_FRY_Delivery,ROWS($13:40),COLUMNS($A:D)),""),"") ->  | AJ40: =IFERROR(IF($AF$11="FRY",INDEX(Conn_FRY_Delivery,ROWS($13:40),COLUMNS($A:E)),""),"") ->  | AL40: =IFERROR(IF($AL$11="FRK",INDEX(Conn_FRK_Delivery,ROWS($13:40),COLUMNS($A:A)),""),"") ->  | AM40: =IFERROR(IF($AL$11="FRK",INDEX(Conn_FRK_Delivery,ROWS($13:40),COLUMNS($A:B)),""),"") ->  | AN40: =IFERROR(IF($AL$11="FRK",INDEX(Conn_FRK_Delivery,ROWS($13:40),COLUMNS($A:C)),""),"") ->  | AO40: =IFERROR(IF($AL$11="FRK",INDEX(Conn_FRK_Delivery,ROWS($13:40),COLUMNS($A:D)),""),"") ->  | AP40: =IFERROR(IF($AL$11="FRK",INDEX(Conn_FRK_Delivery,ROWS($13:40),COLUMNS($A:E)),""),"") ->  | AR40: =IF(ROWS($13:40)<=IFERROR(ROWS(FRY_Delivery_Data),0),"FRY",IF(ROWS($13:40)<=IFERROR(ROWS(FRY_Delivery_Data),0)+IFERROR(ROWS(FRK_Delivery_Data),0),"FRK","")) ->  | AS40: =IF($AR40="FRY",INDEX(FRY_Delivery_Data,COUNTIF($AR$13:$AR40,$AR40),COLUMNS($A:A)),IF($AR40="FRK",INDEX(FRK_Delivery_Data,COUNTIF($AR$13:$AR40,$AR40),COLUMNS($A:A)),"")) ->  | AT40: =IF($AR40="FRY",INDEX(FRY_Delivery_Data,COUNTIF($AR$13:$AR40,$AR40),COLUMNS($A:B)),IF($AR40="FRK",INDEX(FRK_Delivery_Data,COUNTIF($AR$13:$AR40,$AR40),COLUMNS($A:B)),"")) ->  | AU40: =IF($AR40="FRY",INDEX(FRY_Delivery_Data,COUNTIF($AR$13:$AR40,$AR40),COLUMNS($A:C)),IF($AR40="FRK",INDEX(FRK_Delivery_Data,COUNTIF($AR$13:$AR40,$AR40),COLUMNS($A:C)),"")) ->  | AV40: =IF($AR40="FRY",INDEX(FRY_Delivery_Data,COUNTIF($AR$13:$AR40,$AR40),COLUMNS($A:D)),IF($AR40="FRK",INDEX(FRK_Delivery_Data,COUNTIF($AR$13:$AR40,$AR40),COLUMNS($A:D)),"")) ->  | AW40: =IF($AR40="FRY",INDEX(FRY_Delivery_Data,COUNTIF($AR$13:$AR40,$AR40),COLUMNS($A:E)),IF($AR40="FRK",INDEX(FRK_Delivery_Data,COUNTIF($AR$13:$AR40,$AR40),COLUMNS($A:E)),"")) -> 
B41: =IF(OR($C41="",$C41=0,ROWS($13:41)>ROWS(Product_List)),"",COUNTIF($C$13:$C41,"*?")) -> 29 | C41: =IFERROR(IF($C$9="No File In Folder","",INDEX(Product_List,ROWS($13:41))),"") -> 29-ขนมปังโรลฟักทอง | D41: 0 | G41: =IFERROR(IF(OR($C41=0,G$12=""),"",IF(G$12="Total",IF(SUM(F41:$G41)=0,0,SUM(F41:$G41)),IF(Selector=8,Percent_Waste,Ref_Result))),"") -> 0 | H41: =IFERROR(IF(OR($C41=0,H$12=""),"",IF(H$12="Total",IF(SUM(G41:$G41)=0,0,SUM(G41:$G41)),IF(Selector=8,Percent_Waste,Ref_Result))),"") -> 0 | I41: =IFERROR(IF(OR($C41=0,I$12=""),"",IF(I$12="Total",IF(SUM($G41:H41)=0,0,SUM($G41:H41)),IF(Selector=8,Percent_Waste,Ref_Result))),"") -> 0 | J41: =IFERROR(IF(OR($C41=0,J$12=""),"",IF(J$12="Total",IF(SUM($G41:I41)=0,0,SUM($G41:I41)),IF(Selector=8,Percent_Waste,Ref_Result))),"") -> 0 | K41: =IFERROR(IF(OR($C41=0,K$12=""),"",IF(K$12="Total",IF(SUM($G41:J41)=0,0,SUM($G41:J41)),IF(Selector=8,Percent_Waste,Ref_Result))),"") -> 0 | L41: =IFERROR(IF(OR($C41=0,L$12=""),"",IF(L$12="Total",IF(SUM($G41:K41)=0,0,SUM($G41:K41)),IF(Selector=8,Percent_Waste,Ref_Result))),"") -> 0 | M41: =IFERROR(IF(OR($C41=0,M$12=""),"",IF(M$12="Total",IF(SUM($G41:L41)=0,0,SUM($G41:L41)),IF(Selector=8,Percent_Waste,Ref_Result))),"") -> 0 | N41: =IFERROR(IF(OR($C41=0,N$12=""),"",IF(N$12="Total",IF(SUM($G41:M41)=0,0,SUM($G41:M41)),IF(Selector=8,Percent_Waste,Ref_Result))),"") -> 0 | O41: =IFERROR(IF(OR($C41=0,O$12=""),"",IF(O$12="Total",IF(SUM($G41:N41)=0,0,SUM($G41:N41)),IF(Selector=8,Percent_Waste,Ref_Result))),"") -> 0 | P41: =IFERROR(IF(OR($C41=0,P$12=""),"",IF(P$12="Total",IF(SUM($G41:O41)=0,0,SUM($G41:O41)),IF(Selector=8,Percent_Waste,Ref_Result))),"") -> 0 | Q41: =IFERROR(IF(OR($C41=0,Q$12=""),"",IF(Q$12="Total",IF(SUM($G41:P41)=0,0,SUM($G41:P41)),IF(Selector=8,Percent_Waste,Ref_Result))),"") -> 0 | R41: =IFERROR(IF(OR($C41=0,R$12=""),"",IF(R$12="Total",IF(SUM($G41:Q41)=0,0,SUM($G41:Q41)),IF(Selector=8,Percent_Waste,Ref_Result))),"") ->  | S41: =IFERROR(IF(OR($C41=0,S$12=""),"",IF(S$12="Total",IF(SUM($G41:R41)=0,0,SUM($G41:R41)),IF(Selector=8,Percent_Waste,Ref_Result))),"") ->  | T41: =IFERROR(IF(OR($C41=0,T$12=""),"",IF(T$12="Total",IF(SUM($G41:S41)=0,0,SUM($G41:S41)),IF(Selector=8,Percent_Waste,Ref_Result))),"") ->  | U41: =IFERROR(IF(OR($C41=0,U$12=""),"",IF(U$12="Total",IF(SUM($G41:T41)=0,0,SUM($G41:T41)),IF(Selector=8,Percent_Waste,Ref_Result))),"") ->  | V41: =IFERROR(IF(OR($C41=0,V$12=""),"",IF(V$12="Total",IF(SUM($G41:U41)=0,0,SUM($G41:U41)),IF(Selector=8,Percent_Waste,Ref_Result))),"") ->  | W41: =IFERROR(IF(OR($C41=0,W$12=""),"",IF(W$12="Total",IF(SUM($G41:V41)=0,0,SUM($G41:V41)),IF(Selector=8,Percent_Waste,Ref_Result))),"") ->  | X41: =IFERROR(IF(OR($C41=0,X$12=""),"",IF(X$12="Total",IF(SUM($G41:W41)=0,0,SUM($G41:W41)),IF(Selector=8,Percent_Waste,Ref_Result))),"") ->  | Y41: =IFERROR(IF(OR($C41=0,Y$12=""),"",IF(Y$12="Total",IF(SUM($G41:X41)=0,0,SUM($G41:X41)),IF(Selector=8,Percent_Waste,Ref_Result))),"") ->  | Z41: =IFERROR(IF(OR($C41=0,Z$12=""),"",IF(Z$12="Total",IF(SUM($G41:Y41)=0,0,SUM($G41:Y41)),IF(Selector=8,Percent_Waste,Ref_Result))),"") ->  | AA41: 0 | AF41: =IFERROR(IF($AF$11="FRY",INDEX(Conn_FRY_Delivery,ROWS($13:41),COLUMNS($A:A)),""),"") ->  | AG41: =IFERROR(IF($AF$11="FRY",INDEX(Conn_FRY_Delivery,ROWS($13:41),COLUMNS($A:B)),""),"") ->  | AH41: =IFERROR(IF($AF$11="FRY",INDEX(Conn_FRY_Delivery,ROWS($13:41),COLUMNS($A:C)),""),"") ->  | AI41: =IFERROR(IF($AF$11="FRY",INDEX(Conn_FRY_Delivery,ROWS($13:41),COLUMNS($A:D)),""),"") ->  | AJ41: =IFERROR(IF($AF$11="FRY",INDEX(Conn_FRY_Delivery,ROWS($13:41),COLUMNS($A:E)),""),"") ->  | AL41: =IFERROR(IF($AL$11="FRK",INDEX(Conn_FRK_Delivery,ROWS($13:41),COLUMNS($A:A)),""),"") ->  | AM41: =IFERROR(IF($AL$11="FRK",INDEX(Conn_FRK_Delivery,ROWS($13:41),COLUMNS($A:B)),""),"") ->  | AN41: =IFERROR(IF($AL$11="FRK",INDEX(Conn_FRK_Delivery,ROWS($13:41),COLUMNS($A:C)),""),"") ->  | AO41: =IFERROR(IF($AL$11="FRK",INDEX(Conn_FRK_Delivery,ROWS($13:41),COLUMNS($A:D)),""),"") ->  | AP41: =IFERROR(IF($AL$11="FRK",INDEX(Conn_FRK_Delivery,ROWS($13:41),COLUMNS($A:E)),""),"") ->  | AR41: =IF(ROWS($13:41)<=IFERROR(ROWS(FRY_Delivery_Data),0),"FRY",IF(ROWS($13:41)<=IFERROR(ROWS(FRY_Delivery_Data),0)+IFERROR(ROWS(FRK_Delivery_Data),0),"FRK","")) ->  | AS41: =IF($AR41="FRY",INDEX(FRY_Delivery_Data,COUNTIF($AR$13:$AR41,$AR41),COLUMNS($A:A)),IF($AR41="FRK",INDEX(FRK_Delivery_Data,COUNTIF($AR$13:$AR41,$AR41),COLUMNS($A:A)),"")) ->  | AT41: =IF($AR41="FRY",INDEX(FRY_Delivery_Data,COUNTIF($AR$13:$AR41,$AR41),COLUMNS($A:B)),IF($AR41="FRK",INDEX(FRK_Delivery_Data,COUNTIF($AR$13:$AR41,$AR41),COLUMNS($A:B)),"")) ->  | AU41: =IF($AR41="FRY",INDEX(FRY_Delivery_Data,COUNTIF($AR$13:$AR41,$AR41),COLUMNS($A:C)),IF($AR41="FRK",INDEX(FRK_Delivery_Data,COUNTIF($AR$13:$AR41,$AR41),COLUMNS($A:C)),"")) ->  | AV41: =IF($AR41="FRY",INDEX(FRY_Delivery_Data,COUNTIF($AR$13:$AR41,$AR41),COLUMNS($A:D)),IF($AR41="FRK",INDEX(FRK_Delivery_Data,COUNTIF($AR$13:$AR41,$AR41),COLUMNS($A:D)),"")) ->  | AW41: =IF($AR41="FRY",INDEX(FRY_Delivery_Data,COUNTIF($AR$13:$AR41,$AR41),COLUMNS($A:E)),IF($AR41="FRK",INDEX(FRK_Delivery_Data,COUNTIF($AR$13:$AR41,$AR41),COLUMNS($A:E)),"")) -> 
B42: =IF(OR($C42="",$C42=0,ROWS($13:42)>ROWS(Product_List)),"",COUNTIF($C$13:$C42,"*?")) -> 30 | C42: =IFERROR(IF($C$9="No File In Folder","",INDEX(Product_List,ROWS($13:42))),"") -> 30-ขนมปังโรลงาดำ | D42: 0 | G42: =IFERROR(IF(OR($C42=0,G$12=""),"",IF(G$12="Total",IF(SUM(F42:$G42)=0,0,SUM(F42:$G42)),IF(Selector=8,Percent_Waste,Ref_Result))),"") -> 0 | H42: =IFERROR(IF(OR($C42=0,H$12=""),"",IF(H$12="Total",IF(SUM(G42:$G42)=0,0,SUM(G42:$G42)),IF(Selector=8,Percent_Waste,Ref_Result))),"") -> 0 | I42: =IFERROR(IF(OR($C42=0,I$12=""),"",IF(I$12="Total",IF(SUM($G42:H42)=0,0,SUM($G42:H42)),IF(Selector=8,Percent_Waste,Ref_Result))),"") -> 0 | J42: =IFERROR(IF(OR($C42=0,J$12=""),"",IF(J$12="Total",IF(SUM($G42:I42)=0,0,SUM($G42:I42)),IF(Selector=8,Percent_Waste,Ref_Result))),"") -> 0 | K42: =IFERROR(IF(OR($C42=0,K$12=""),"",IF(K$12="Total",IF(SUM($G42:J42)=0,0,SUM($G42:J42)),IF(Selector=8,Percent_Waste,Ref_Result))),"") -> 0 | L42: =IFERROR(IF(OR($C42=0,L$12=""),"",IF(L$12="Total",IF(SUM($G42:K42)=0,0,SUM($G42:K42)),IF(Selector=8,Percent_Waste,Ref_Result))),"") -> 0 | M42: =IFERROR(IF(OR($C42=0,M$12=""),"",IF(M$12="Total",IF(SUM($G42:L42)=0,0,SUM($G42:L42)),IF(Selector=8,Percent_Waste,Ref_Result))),"") -> 0 | N42: =IFERROR(IF(OR($C42=0,N$12=""),"",IF(N$12="Total",IF(SUM($G42:M42)=0,0,SUM($G42:M42)),IF(Selector=8,Percent_Waste,Ref_Result))),"") -> 0 | O42: =IFERROR(IF(OR($C42=0,O$12=""),"",IF(O$12="Total",IF(SUM($G42:N42)=0,0,SUM($G42:N42)),IF(Selector=8,Percent_Waste,Ref_Result))),"") -> 0 | P42: =IFERROR(IF(OR($C42=0,P$12=""),"",IF(P$12="Total",IF(SUM($G42:O42)=0,0,SUM($G42:O42)),IF(Selector=8,Percent_Waste,Ref_Result))),"") -> 0 | Q42: =IFERROR(IF(OR($C42=0,Q$12=""),"",IF(Q$12="Total",IF(SUM($G42:P42)=0,0,SUM($G42:P42)),IF(Selector=8,Percent_Waste,Ref_Result))),"") -> 0 | R42: =IFERROR(IF(OR($C42=0,R$12=""),"",IF(R$12="Total",IF(SUM($G42:Q42)=0,0,SUM($G42:Q42)),IF(Selector=8,Percent_Waste,Ref_Result))),"") ->  | S42: =IFERROR(IF(OR($C42=0,S$12=""),"",IF(S$12="Total",IF(SUM($G42:R42)=0,0,SUM($G42:R42)),IF(Selector=8,Percent_Waste,Ref_Result))),"") ->  | T42: =IFERROR(IF(OR($C42=0,T$12=""),"",IF(T$12="Total",IF(SUM($G42:S42)=0,0,SUM($G42:S42)),IF(Selector=8,Percent_Waste,Ref_Result))),"") ->  | U42: =IFERROR(IF(OR($C42=0,U$12=""),"",IF(U$12="Total",IF(SUM($G42:T42)=0,0,SUM($G42:T42)),IF(Selector=8,Percent_Waste,Ref_Result))),"") ->  | V42: =IFERROR(IF(OR($C42=0,V$12=""),"",IF(V$12="Total",IF(SUM($G42:U42)=0,0,SUM($G42:U42)),IF(Selector=8,Percent_Waste,Ref_Result))),"") ->  | W42: =IFERROR(IF(OR($C42=0,W$12=""),"",IF(W$12="Total",IF(SUM($G42:V42)=0,0,SUM($G42:V42)),IF(Selector=8,Percent_Waste,Ref_Result))),"") ->  | X42: =IFERROR(IF(OR($C42=0,X$12=""),"",IF(X$12="Total",IF(SUM($G42:W42)=0,0,SUM($G42:W42)),IF(Selector=8,Percent_Waste,Ref_Result))),"") ->  | Y42: =IFERROR(IF(OR($C42=0,Y$12=""),"",IF(Y$12="Total",IF(SUM($G42:X42)=0,0,SUM($G42:X42)),IF(Selector=8,Percent_Waste,Ref_Result))),"") ->  | Z42: =IFERROR(IF(OR($C42=0,Z$12=""),"",IF(Z$12="Total",IF(SUM($G42:Y42)=0,0,SUM($G42:Y42)),IF(Selector=8,Percent_Waste,Ref_Result))),"") ->  | AA42: 0 | AF42: =IFERROR(IF($AF$11="FRY",INDEX(Conn_FRY_Delivery,ROWS($13:42),COLUMNS($A:A)),""),"") ->  | AG42: =IFERROR(IF($AF$11="FRY",INDEX(Conn_FRY_Delivery,ROWS($13:42),COLUMNS($A:B)),""),"") ->  | AH42: =IFERROR(IF($AF$11="FRY",INDEX(Conn_FRY_Delivery,ROWS($13:42),COLUMNS($A:C)),""),"") ->  | AI42: =IFERROR(IF($AF$11="FRY",INDEX(Conn_FRY_Delivery,ROWS($13:42),COLUMNS($A:D)),""),"") ->  | AJ42: =IFERROR(IF($AF$11="FRY",INDEX(Conn_FRY_Delivery,ROWS($13:42),COLUMNS($A:E)),""),"") ->  | AL42: =IFERROR(IF($AL$11="FRK",INDEX(Conn_FRK_Delivery,ROWS($13:42),COLUMNS($A:A)),""),"") ->  | AM42: =IFERROR(IF($AL$11="FRK",INDEX(Conn_FRK_Delivery,ROWS($13:42),COLUMNS($A:B)),""),"") ->  | AN42: =IFERROR(IF($AL$11="FRK",INDEX(Conn_FRK_Delivery,ROWS($13:42),COLUMNS($A:C)),""),"") ->  | AO42: =IFERROR(IF($AL$11="FRK",INDEX(Conn_FRK_Delivery,ROWS($13:42),COLUMNS($A:D)),""),"") ->  | AP42: =IFERROR(IF($AL$11="FRK",INDEX(Conn_FRK_Delivery,ROWS($13:42),COLUMNS($A:E)),""),"") ->  | AR42: =IF(ROWS($13:42)<=IFERROR(ROWS(FRY_Delivery_Data),0),"FRY",IF(ROWS($13:42)<=IFERROR(ROWS(FRY_Delivery_Data),0)+IFERROR(ROWS(FRK_Delivery_Data),0),"FRK","")) ->  | AS42: =IF($AR42="FRY",INDEX(FRY_Delivery_Data,COUNTIF($AR$13:$AR42,$AR42),COLUMNS($A:A)),IF($AR42="FRK",INDEX(FRK_Delivery_Data,COUNTIF($AR$13:$AR42,$AR42),COLUMNS($A:A)),"")) ->  | AT42: =IF($AR42="FRY",INDEX(FRY_Delivery_Data,COUNTIF($AR$13:$AR42,$AR42),COLUMNS($A:B)),IF($AR42="FRK",INDEX(FRK_Delivery_Data,COUNTIF($AR$13:$AR42,$AR42),COLUMNS($A:B)),"")) ->  | AU42: =IF($AR42="FRY",INDEX(FRY_Delivery_Data,COUNTIF($AR$13:$AR42,$AR42),COLUMNS($A:C)),IF($AR42="FRK",INDEX(FRK_Delivery_Data,COUNTIF($AR$13:$AR42,$AR42),COLUMNS($A:C)),"")) ->  | AV42: =IF($AR42="FRY",INDEX(FRY_Delivery_Data,COUNTIF($AR$13:$AR42,$AR42),COLUMNS($A:D)),IF($AR42="FRK",INDEX(FRK_Delivery_Data,COUNTIF($AR$13:$AR42,$AR42),COLUMNS($A:D)),"")) ->  | AW42: =IF($AR42="FRY",INDEX(FRY_Delivery_Data,COUNTIF($AR$13:$AR42,$AR42),COLUMNS($A:E)),IF($AR42="FRK",INDEX(FRK_Delivery_Data,COUNTIF($AR$13:$AR42,$AR42),COLUMNS($A:E)),"")) -> 
B43: =IF(OR($C43="",$C43=0,ROWS($13:43)>ROWS(Product_List)),"",COUNTIF($C$13:$C43,"*?")) -> 31 | C43: =IFERROR(IF($C$9="No File In Folder","",INDEX(Product_List,ROWS($13:43))),"") -> 31-ขนมปังแผ่นหน้าเนยสด | D43: 200 | G43: =IFERROR(IF(OR($C43=0,G$12=""),"",IF(G$12="Total",IF(SUM(F43:$G43)=0,0,SUM(F43:$G43)),IF(Selector=8,Percent_Waste,Ref_Result))),"") -> 0 | H43: =IFERROR(IF(OR($C43=0,H$12=""),"",IF(H$12="Total",IF(SUM(G43:$G43)=0,0,SUM(G43:$G43)),IF(Selector=8,Percent_Waste,Ref_Result))),"") -> 50 | I43: =IFERROR(IF(OR($C43=0,I$12=""),"",IF(I$12="Total",IF(SUM($G43:H43)=0,0,SUM($G43:H43)),IF(Selector=8,Percent_Waste,Ref_Result))),"") -> 0 | J43: =IFERROR(IF(OR($C43=0,J$12=""),"",IF(J$12="Total",IF(SUM($G43:I43)=0,0,SUM($G43:I43)),IF(Selector=8,Percent_Waste,Ref_Result))),"") -> 50 | K43: =IFERROR(IF(OR($C43=0,K$12=""),"",IF(K$12="Total",IF(SUM($G43:J43)=0,0,SUM($G43:J43)),IF(Selector=8,Percent_Waste,Ref_Result))),"") -> 20 | L43: =IFERROR(IF(OR($C43=0,L$12=""),"",IF(L$12="Total",IF(SUM($G43:K43)=0,0,SUM($G43:K43)),IF(Selector=8,Percent_Waste,Ref_Result))),"") -> 10 | M43: =IFERROR(IF(OR($C43=0,M$12=""),"",IF(M$12="Total",IF(SUM($G43:L43)=0,0,SUM($G43:L43)),IF(Selector=8,Percent_Waste,Ref_Result))),"") -> 20 | N43: =IFERROR(IF(OR($C43=0,N$12=""),"",IF(N$12="Total",IF(SUM($G43:M43)=0,0,SUM($G43:M43)),IF(Selector=8,Percent_Waste,Ref_Result))),"") -> 0 | O43: =IFERROR(IF(OR($C43=0,O$12=""),"",IF(O$12="Total",IF(SUM($G43:N43)=0,0,SUM($G43:N43)),IF(Selector=8,Percent_Waste,Ref_Result))),"") -> 0 | P43: =IFERROR(IF(OR($C43=0,P$12=""),"",IF(P$12="Total",IF(SUM($G43:O43)=0,0,SUM($G43:O43)),IF(Selector=8,Percent_Waste,Ref_Result))),"") -> 30 | Q43: =IFERROR(IF(OR($C43=0,Q$12=""),"",IF(Q$12="Total",IF(SUM($G43:P43)=0,0,SUM($G43:P43)),IF(Selector=8,Percent_Waste,Ref_Result))),"") -> 180 | R43: =IFERROR(IF(OR($C43=0,R$12=""),"",IF(R$12="Total",IF(SUM($G43:Q43)=0,0,SUM($G43:Q43)),IF(Selector=8,Percent_Waste,Ref_Result))),"") ->  | S43: =IFERROR(IF(OR($C43=0,S$12=""),"",IF(S$12="Total",IF(SUM($G43:R43)=0,0,SUM($G43:R43)),IF(Selector=8,Percent_Waste,Ref_Result))),"") ->  | T43: =IFERROR(IF(OR($C43=0,T$12=""),"",IF(T$12="Total",IF(SUM($G43:S43)=0,0,SUM($G43:S43)),IF(Selector=8,Percent_Waste,Ref_Result))),"") ->  | U43: =IFERROR(IF(OR($C43=0,U$12=""),"",IF(U$12="Total",IF(SUM($G43:T43)=0,0,SUM($G43:T43)),IF(Selector=8,Percent_Waste,Ref_Result))),"") ->  | V43: =IFERROR(IF(OR($C43=0,V$12=""),"",IF(V$12="Total",IF(SUM($G43:U43)=0,0,SUM($G43:U43)),IF(Selector=8,Percent_Waste,Ref_Result))),"") ->  | W43: =IFERROR(IF(OR($C43=0,W$12=""),"",IF(W$12="Total",IF(SUM($G43:V43)=0,0,SUM($G43:V43)),IF(Selector=8,Percent_Waste,Ref_Result))),"") ->  | X43: =IFERROR(IF(OR($C43=0,X$12=""),"",IF(X$12="Total",IF(SUM($G43:W43)=0,0,SUM($G43:W43)),IF(Selector=8,Percent_Waste,Ref_Result))),"") ->  | Y43: =IFERROR(IF(OR($C43=0,Y$12=""),"",IF(Y$12="Total",IF(SUM($G43:X43)=0,0,SUM($G43:X43)),IF(Selector=8,Percent_Waste,Ref_Result))),"") ->  | Z43: =IFERROR(IF(OR($C43=0,Z$12=""),"",IF(Z$12="Total",IF(SUM($G43:Y43)=0,0,SUM($G43:Y43)),IF(Selector=8,Percent_Waste,Ref_Result))),"") ->  | AA43: 20 | AF43: =IFERROR(IF($AF$11="FRY",INDEX(Conn_FRY_Delivery,ROWS($13:43),COLUMNS($A:A)),""),"") ->  | AG43: =IFERROR(IF($AF$11="FRY",INDEX(Conn_FRY_Delivery,ROWS($13:43),COLUMNS($A:B)),""),"") ->  | AH43: =IFERROR(IF($AF$11="FRY",INDEX(Conn_FRY_Delivery,ROWS($13:43),COLUMNS($A:C)),""),"") ->  | AI43: =IFERROR(IF($AF$11="FRY",INDEX(Conn_FRY_Delivery,ROWS($13:43),COLUMNS($A:D)),""),"") ->  | AJ43: =IFERROR(IF($AF$11="FRY",INDEX(Conn_FRY_Delivery,ROWS($13:43),COLUMNS($A:E)),""),"") ->  | AL43: =IFERROR(IF($AL$11="FRK",INDEX(Conn_FRK_Delivery,ROWS($13:43),COLUMNS($A:A)),""),"") ->  | AM43: =IFERROR(IF($AL$11="FRK",INDEX(Conn_FRK_Delivery,ROWS($13:43),COLUMNS($A:B)),""),"") ->  | AN43: =IFERROR(IF($AL$11="FRK",INDEX(Conn_FRK_Delivery,ROWS($13:43),COLUMNS($A:C)),""),"") ->  | AO43: =IFERROR(IF($AL$11="FRK",INDEX(Conn_FRK_Delivery,ROWS($13:43),COLUMNS($A:D)),""),"") ->  | AP43: =IFERROR(IF($AL$11="FRK",INDEX(Conn_FRK_Delivery,ROWS($13:43),COLUMNS($A:E)),""),"") ->  | AR43: =IF(ROWS($13:43)<=IFERROR(ROWS(FRY_Delivery_Data),0),"FRY",IF(ROWS($13:43)<=IFERROR(ROWS(FRY_Delivery_Data),0)+IFERROR(ROWS(FRK_Delivery_Data),0),"FRK","")) ->  | AS43: =IF($AR43="FRY",INDEX(FRY_Delivery_Data,COUNTIF($AR$13:$AR43,$AR43),COLUMNS($A:A)),IF($AR43="FRK",INDEX(FRK_Delivery_Data,COUNTIF($AR$13:$AR43,$AR43),COLUMNS($A:A)),"")) ->  | AT43: =IF($AR43="FRY",INDEX(FRY_Delivery_Data,COUNTIF($AR$13:$AR43,$AR43),COLUMNS($A:B)),IF($AR43="FRK",INDEX(FRK_Delivery_Data,COUNTIF($AR$13:$AR43,$AR43),COLUMNS($A:B)),"")) ->  | AU43: =IF($AR43="FRY",INDEX(FRY_Delivery_Data,COUNTIF($AR$13:$AR43,$AR43),COLUMNS($A:C)),IF($AR43="FRK",INDEX(FRK_Delivery_Data,COUNTIF($AR$13:$AR43,$AR43),COLUMNS($A:C)),"")) ->  | AV43: =IF($AR43="FRY",INDEX(FRY_Delivery_Data,COUNTIF($AR$13:$AR43,$AR43),COLUMNS($A:D)),IF($AR43="FRK",INDEX(FRK_Delivery_Data,COUNTIF($AR$13:$AR43,$AR43),COLUMNS($A:D)),"")) ->  | AW43: =IF($AR43="FRY",INDEX(FRY_Delivery_Data,COUNTIF($AR$13:$AR43,$AR43),COLUMNS($A:E)),IF($AR43="FRK",INDEX(FRK_Delivery_Data,COUNTIF($AR$13:$AR43,$AR43),COLUMNS($A:E)),"")) -> 
B44: =IF(OR($C44="",$C44=0,ROWS($13:44)>ROWS(Product_List)),"",COUNTIF($C$13:$C44,"*?")) -> 32 | C44: =IFERROR(IF($C$9="No File In Folder","",INDEX(Product_List,ROWS($13:44))),"") -> 32-ขนมโมจิไส้เผือก แพ็ค 4 ชิ้น | D44: 0 | G44: =IFERROR(IF(OR($C44=0,G$12=""),"",IF(G$12="Total",IF(SUM(F44:$G44)=0,0,SUM(F44:$G44)),IF(Selector=8,Percent_Waste,Ref_Result))),"") -> 0 | H44: =IFERROR(IF(OR($C44=0,H$12=""),"",IF(H$12="Total",IF(SUM(G44:$G44)=0,0,SUM(G44:$G44)),IF(Selector=8,Percent_Waste,Ref_Result))),"") -> 0 | I44: =IFERROR(IF(OR($C44=0,I$12=""),"",IF(I$12="Total",IF(SUM($G44:H44)=0,0,SUM($G44:H44)),IF(Selector=8,Percent_Waste,Ref_Result))),"") -> 0 | J44: =IFERROR(IF(OR($C44=0,J$12=""),"",IF(J$12="Total",IF(SUM($G44:I44)=0,0,SUM($G44:I44)),IF(Selector=8,Percent_Waste,Ref_Result))),"") -> 0 | K44: =IFERROR(IF(OR($C44=0,K$12=""),"",IF(K$12="Total",IF(SUM($G44:J44)=0,0,SUM($G44:J44)),IF(Selector=8,Percent_Waste,Ref_Result))),"") -> 0 | L44: =IFERROR(IF(OR($C44=0,L$12=""),"",IF(L$12="Total",IF(SUM($G44:K44)=0,0,SUM($G44:K44)),IF(Selector=8,Percent_Waste,Ref_Result))),"") -> 0 | M44: =IFERROR(IF(OR($C44=0,M$12=""),"",IF(M$12="Total",IF(SUM($G44:L44)=0,0,SUM($G44:L44)),IF(Selector=8,Percent_Waste,Ref_Result))),"") -> 0 | N44: =IFERROR(IF(OR($C44=0,N$12=""),"",IF(N$12="Total",IF(SUM($G44:M44)=0,0,SUM($G44:M44)),IF(Selector=8,Percent_Waste,Ref_Result))),"") -> 0 | O44: =IFERROR(IF(OR($C44=0,O$12=""),"",IF(O$12="Total",IF(SUM($G44:N44)=0,0,SUM($G44:N44)),IF(Selector=8,Percent_Waste,Ref_Result))),"") -> 0 | P44: =IFERROR(IF(OR($C44=0,P$12=""),"",IF(P$12="Total",IF(SUM($G44:O44)=0,0,SUM($G44:O44)),IF(Selector=8,Percent_Waste,Ref_Result))),"") -> 0 | Q44: =IFERROR(IF(OR($C44=0,Q$12=""),"",IF(Q$12="Total",IF(SUM($G44:P44)=0,0,SUM($G44:P44)),IF(Selector=8,Percent_Waste,Ref_Result))),"") -> 0 | R44: =IFERROR(IF(OR($C44=0,R$12=""),"",IF(R$12="Total",IF(SUM($G44:Q44)=0,0,SUM($G44:Q44)),IF(Selector=8,Percent_Waste,Ref_Result))),"") ->  | S44: =IFERROR(IF(OR($C44=0,S$12=""),"",IF(S$12="Total",IF(SUM($G44:R44)=0,0,SUM($G44:R44)),IF(Selector=8,Percent_Waste,Ref_Result))),"") ->  | T44: =IFERROR(IF(OR($C44=0,T$12=""),"",IF(T$12="Total",IF(SUM($G44:S44)=0,0,SUM($G44:S44)),IF(Selector=8,Percent_Waste,Ref_Result))),"") ->  | U44: =IFERROR(IF(OR($C44=0,U$12=""),"",IF(U$12="Total",IF(SUM($G44:T44)=0,0,SUM($G44:T44)),IF(Selector=8,Percent_Waste,Ref_Result))),"") ->  | V44: =IFERROR(IF(OR($C44=0,V$12=""),"",IF(V$12="Total",IF(SUM($G44:U44)=0,0,SUM($G44:U44)),IF(Selector=8,Percent_Waste,Ref_Result))),"") ->  | W44: =IFERROR(IF(OR($C44=0,W$12=""),"",IF(W$12="Total",IF(SUM($G44:V44)=0,0,SUM($G44:V44)),IF(Selector=8,Percent_Waste,Ref_Result))),"") ->  | X44: =IFERROR(IF(OR($C44=0,X$12=""),"",IF(X$12="Total",IF(SUM($G44:W44)=0,0,SUM($G44:W44)),IF(Selector=8,Percent_Waste,Ref_Result))),"") ->  | Y44: =IFERROR(IF(OR($C44=0,Y$12=""),"",IF(Y$12="Total",IF(SUM($G44:X44)=0,0,SUM($G44:X44)),IF(Selector=8,Percent_Waste,Ref_Result))),"") ->  | Z44: =IFERROR(IF(OR($C44=0,Z$12=""),"",IF(Z$12="Total",IF(SUM($G44:Y44)=0,0,SUM($G44:Y44)),IF(Selector=8,Percent_Waste,Ref_Result))),"") ->  | AA44: 0 | AF44: =IFERROR(IF($AF$11="FRY",INDEX(Conn_FRY_Delivery,ROWS($13:44),COLUMNS($A:A)),""),"") ->  | AG44: =IFERROR(IF($AF$11="FRY",INDEX(Conn_FRY_Delivery,ROWS($13:44),COLUMNS($A:B)),""),"") ->  | AH44: =IFERROR(IF($AF$11="FRY",INDEX(Conn_FRY_Delivery,ROWS($13:44),COLUMNS($A:C)),""),"") ->  | AI44: =IFERROR(IF($AF$11="FRY",INDEX(Conn_FRY_Delivery,ROWS($13:44),COLUMNS($A:D)),""),"") ->  | AJ44: =IFERROR(IF($AF$11="FRY",INDEX(Conn_FRY_Delivery,ROWS($13:44),COLUMNS($A:E)),""),"") ->  | AL44: =IFERROR(IF($AL$11="FRK",INDEX(Conn_FRK_Delivery,ROWS($13:44),COLUMNS($A:A)),""),"") ->  | AM44: =IFERROR(IF($AL$11="FRK",INDEX(Conn_FRK_Delivery,ROWS($13:44),COLUMNS($A:B)),""),"") ->  | AN44: =IFERROR(IF($AL$11="FRK",INDEX(Conn_FRK_Delivery,ROWS($13:44),COLUMNS($A:C)),""),"") ->  | AO44: =IFERROR(IF($AL$11="FRK",INDEX(Conn_FRK_Delivery,ROWS($13:44),COLUMNS($A:D)),""),"") ->  | AP44: =IFERROR(IF($AL$11="FRK",INDEX(Conn_FRK_Delivery,ROWS($13:44),COLUMNS($A:E)),""),"") ->  | AR44: =IF(ROWS($13:44)<=IFERROR(ROWS(FRY_Delivery_Data),0),"FRY",IF(ROWS($13:44)<=IFERROR(ROWS(FRY_Delivery_Data),0)+IFERROR(ROWS(FRK_Delivery_Data),0),"FRK","")) ->  | AS44: =IF($AR44="FRY",INDEX(FRY_Delivery_Data,COUNTIF($AR$13:$AR44,$AR44),COLUMNS($A:A)),IF($AR44="FRK",INDEX(FRK_Delivery_Data,COUNTIF($AR$13:$AR44,$AR44),COLUMNS($A:A)),"")) ->  | AT44: =IF($AR44="FRY",INDEX(FRY_Delivery_Data,COUNTIF($AR$13:$AR44,$AR44),COLUMNS($A:B)),IF($AR44="FRK",INDEX(FRK_Delivery_Data,COUNTIF($AR$13:$AR44,$AR44),COLUMNS($A:B)),"")) ->  | AU44: =IF($AR44="FRY",INDEX(FRY_Delivery_Data,COUNTIF($AR$13:$AR44,$AR44),COLUMNS($A:C)),IF($AR44="FRK",INDEX(FRK_Delivery_Data,COUNTIF($AR$13:$AR44,$AR44),COLUMNS($A:C)),"")) ->  | AV44: =IF($AR44="FRY",INDEX(FRY_Delivery_Data,COUNTIF($AR$13:$AR44,$AR44),COLUMNS($A:D)),IF($AR44="FRK",INDEX(FRK_Delivery_Data,COUNTIF($AR$13:$AR44,$AR44),COLUMNS($A:D)),"")) ->  | AW44: =IF($AR44="FRY",INDEX(FRY_Delivery_Data,COUNTIF($AR$13:$AR44,$AR44),COLUMNS($A:E)),IF($AR44="FRK",INDEX(FRK_Delivery_Data,COUNTIF($AR$13:$AR44,$AR44),COLUMNS($A:E)),"")) -> 
B45: =IF(OR($C45="",$C45=0,ROWS($13:45)>ROWS(Product_List)),"",COUNTIF($C$13:$C45,"*?")) -> 33 | C45: =IFERROR(IF($C$9="No File In Folder","",INDEX(Product_List,ROWS($13:45))),"") -> 33-แซนด์วิชหมูหยองน้ำสลัด | D45: =IF($C$13="","",IF(C45=0,0,IFERROR(INDEX(FR_Qty,MATCH($C45,FR_Product,0)),0))) -> 300 | G45: =IFERROR(IF(OR($C45=0,G$12=""),"",IF(G$12="Total",IF(SUM(F45:$G45)=0,0,SUM(F45:$G45)),IF(Selector=8,Percent_Waste,Ref_Result))),"") -> 0 | H45: =IFERROR(IF(OR($C45=0,H$12=""),"",IF(H$12="Total",IF(SUM(G45:$G45)=0,0,SUM(G45:$G45)),IF(Selector=8,Percent_Waste,Ref_Result))),"") -> 0 | I45: =IFERROR(IF(OR($C45=0,I$12=""),"",IF(I$12="Total",IF(SUM($G45:H45)=0,0,SUM($G45:H45)),IF(Selector=8,Percent_Waste,Ref_Result))),"") -> 0 | J45: =IFERROR(IF(OR($C45=0,J$12=""),"",IF(J$12="Total",IF(SUM($G45:I45)=0,0,SUM($G45:I45)),IF(Selector=8,Percent_Waste,Ref_Result))),"") -> 0 | K45: =IFERROR(IF(OR($C45=0,K$12=""),"",IF(K$12="Total",IF(SUM($G45:J45)=0,0,SUM($G45:J45)),IF(Selector=8,Percent_Waste,Ref_Result))),"") -> 0 | L45: =IFERROR(IF(OR($C45=0,L$12=""),"",IF(L$12="Total",IF(SUM($G45:K45)=0,0,SUM($G45:K45)),IF(Selector=8,Percent_Waste,Ref_Result))),"") -> 0 | M45: =IFERROR(IF(OR($C45=0,M$12=""),"",IF(M$12="Total",IF(SUM($G45:L45)=0,0,SUM($G45:L45)),IF(Selector=8,Percent_Waste,Ref_Result))),"") -> 0 | N45: =IFERROR(IF(OR($C45=0,N$12=""),"",IF(N$12="Total",IF(SUM($G45:M45)=0,0,SUM($G45:M45)),IF(Selector=8,Percent_Waste,Ref_Result))),"") -> 0 | O45: =IFERROR(IF(OR($C45=0,O$12=""),"",IF(O$12="Total",IF(SUM($G45:N45)=0,0,SUM($G45:N45)),IF(Selector=8,Percent_Waste,Ref_Result))),"") -> 0 | P45: =IFERROR(IF(OR($C45=0,P$12=""),"",IF(P$12="Total",IF(SUM($G45:O45)=0,0,SUM($G45:O45)),IF(Selector=8,Percent_Waste,Ref_Result))),"") -> 0 | Q45: =IFERROR(IF(OR($C45=0,Q$12=""),"",IF(Q$12="Total",IF(SUM($G45:P45)=0,0,SUM($G45:P45)),IF(Selector=8,Percent_Waste,Ref_Result))),"") -> 0 | R45: =IFERROR(IF(OR($C45=0,R$12=""),"",IF(R$12="Total",IF(SUM($G45:Q45)=0,0,SUM($G45:Q45)),IF(Selector=8,Percent_Waste,Ref_Result))),"") ->  | S45: =IFERROR(IF(OR($C45=0,S$12=""),"",IF(S$12="Total",IF(SUM($G45:R45)=0,0,SUM($G45:R45)),IF(Selector=8,Percent_Waste,Ref_Result))),"") ->  | T45: =IFERROR(IF(OR($C45=0,T$12=""),"",IF(T$12="Total",IF(SUM($G45:S45)=0,0,SUM($G45:S45)),IF(Selector=8,Percent_Waste,Ref_Result))),"") ->  | U45: =IFERROR(IF(OR($C45=0,U$12=""),"",IF(U$12="Total",IF(SUM($G45:T45)=0,0,SUM($G45:T45)),IF(Selector=8,Percent_Waste,Ref_Result))),"") ->  | V45: =IFERROR(IF(OR($C45=0,V$12=""),"",IF(V$12="Total",IF(SUM($G45:U45)=0,0,SUM($G45:U45)),IF(Selector=8,Percent_Waste,Ref_Result))),"") ->  | W45: =IFERROR(IF(OR($C45=0,W$12=""),"",IF(W$12="Total",IF(SUM($G45:V45)=0,0,SUM($G45:V45)),IF(Selector=8,Percent_Waste,Ref_Result))),"") ->  | X45: =IFERROR(IF(OR($C45=0,X$12=""),"",IF(X$12="Total",IF(SUM($G45:W45)=0,0,SUM($G45:W45)),IF(Selector=8,Percent_Waste,Ref_Result))),"") ->  | Y45: =IFERROR(IF(OR($C45=0,Y$12=""),"",IF(Y$12="Total",IF(SUM($G45:X45)=0,0,SUM($G45:X45)),IF(Selector=8,Percent_Waste,Ref_Result))),"") ->  | Z45: =IFERROR(IF(OR($C45=0,Z$12=""),"",IF(Z$12="Total",IF(SUM($G45:Y45)=0,0,SUM($G45:Y45)),IF(Selector=8,Percent_Waste,Ref_Result))),"") ->  | AA45: =IF(OR(Selector<>1,$G45=""),"",D45-INDEX(G45:Z45,MATCH("Total",$G$12:$Z$12,0))) -> 300 | AF45: =IFERROR(IF($AF$11="FRY",INDEX(Conn_FRY_Delivery,ROWS($13:45),COLUMNS($A:A)),""),"") ->  | AG45: =IFERROR(IF($AF$11="FRY",INDEX(Conn_FRY_Delivery,ROWS($13:45),COLUMNS($A:B)),""),"") ->  | AH45: =IFERROR(IF($AF$11="FRY",INDEX(Conn_FRY_Delivery,ROWS($13:45),COLUMNS($A:C)),""),"") ->  | AI45: =IFERROR(IF($AF$11="FRY",INDEX(Conn_FRY_Delivery,ROWS($13:45),COLUMNS($A:D)),""),"") ->  | AJ45: =IFERROR(IF($AF$11="FRY",INDEX(Conn_FRY_Delivery,ROWS($13:45),COLUMNS($A:E)),""),"") ->  | AL45: =IFERROR(IF($AL$11="FRK",INDEX(Conn_FRK_Delivery,ROWS($13:45),COLUMNS($A:A)),""),"") ->  | AM45: =IFERROR(IF($AL$11="FRK",INDEX(Conn_FRK_Delivery,ROWS($13:45),COLUMNS($A:B)),""),"") ->  | AN45: =IFERROR(IF($AL$11="FRK",INDEX(Conn_FRK_Delivery,ROWS($13:45),COLUMNS($A:C)),""),"") ->  | AO45: =IFERROR(IF($AL$11="FRK",INDEX(Conn_FRK_Delivery,ROWS($13:45),COLUMNS($A:D)),""),"") ->  | AP45: =IFERROR(IF($AL$11="FRK",INDEX(Conn_FRK_Delivery,ROWS($13:45),COLUMNS($A:E)),""),"") ->  | AR45: =IF(ROWS($13:45)<=IFERROR(ROWS(FRY_Delivery_Data),0),"FRY",IF(ROWS($13:45)<=IFERROR(ROWS(FRY_Delivery_Data),0)+IFERROR(ROWS(FRK_Delivery_Data),0),"FRK","")) ->  | AS45: =IF($AR45="FRY",INDEX(FRY_Delivery_Data,COUNTIF($AR$13:$AR45,$AR45),COLUMNS($A:A)),IF($AR45="FRK",INDEX(FRK_Delivery_Data,COUNTIF($AR$13:$AR45,$AR45),COLUMNS($A:A)),"")) ->  | AT45: =IF($AR45="FRY",INDEX(FRY_Delivery_Data,COUNTIF($AR$13:$AR45,$AR45),COLUMNS($A:B)),IF($AR45="FRK",INDEX(FRK_Delivery_Data,COUNTIF($AR$13:$AR45,$AR45),COLUMNS($A:B)),"")) ->  | AU45: =IF($AR45="FRY",INDEX(FRY_Delivery_Data,COUNTIF($AR$13:$AR45,$AR45),COLUMNS($A:C)),IF($AR45="FRK",INDEX(FRK_Delivery_Data,COUNTIF($AR$13:$AR45,$AR45),COLUMNS($A:C)),"")) ->  | AV45: =IF($AR45="FRY",INDEX(FRY_Delivery_Data,COUNTIF($AR$13:$AR45,$AR45),COLUMNS($A:D)),IF($AR45="FRK",INDEX(FRK_Delivery_Data,COUNTIF($AR$13:$AR45,$AR45),COLUMNS($A:D)),"")) ->  | AW45: =IF($AR45="FRY",INDEX(FRY_Delivery_Data,COUNTIF($AR$13:$AR45,$AR45),COLUMNS($A:E)),IF($AR45="FRK",INDEX(FRK_Delivery_Data,COUNTIF($AR$13:$AR45,$AR45),COLUMNS($A:E)),"")) -> 
B46: =IF(OR($C46="",$C46=0,ROWS($13:46)>ROWS(Product_List)),"",COUNTIF($C$13:$C46,"*?")) -> 34 | C46: =IFERROR(IF($C$9="No File In Folder","",INDEX(Product_List,ROWS($13:46))),"") -> 34-แซนด์วิชไก่หยองน้ำสลัด | D46: 300 | G46: =IFERROR(IF(OR($C46=0,G$12=""),"",IF(G$12="Total",IF(SUM(F46:$G46)=0,0,SUM(F46:$G46)),IF(Selector=8,Percent_Waste,Ref_Result))),"") -> 0 | H46: =IFERROR(IF(OR($C46=0,H$12=""),"",IF(H$12="Total",IF(SUM(G46:$G46)=0,0,SUM(G46:$G46)),IF(Selector=8,Percent_Waste,Ref_Result))),"") -> 0 | I46: =IFERROR(IF(OR($C46=0,I$12=""),"",IF(I$12="Total",IF(SUM($G46:H46)=0,0,SUM($G46:H46)),IF(Selector=8,Percent_Waste,Ref_Result))),"") -> 0 | J46: =IFERROR(IF(OR($C46=0,J$12=""),"",IF(J$12="Total",IF(SUM($G46:I46)=0,0,SUM($G46:I46)),IF(Selector=8,Percent_Waste,Ref_Result))),"") -> 0 | K46: =IFERROR(IF(OR($C46=0,K$12=""),"",IF(K$12="Total",IF(SUM($G46:J46)=0,0,SUM($G46:J46)),IF(Selector=8,Percent_Waste,Ref_Result))),"") -> 0 | L46: =IFERROR(IF(OR($C46=0,L$12=""),"",IF(L$12="Total",IF(SUM($G46:K46)=0,0,SUM($G46:K46)),IF(Selector=8,Percent_Waste,Ref_Result))),"") -> 0 | M46: =IFERROR(IF(OR($C46=0,M$12=""),"",IF(M$12="Total",IF(SUM($G46:L46)=0,0,SUM($G46:L46)),IF(Selector=8,Percent_Waste,Ref_Result))),"") -> 0 | N46: =IFERROR(IF(OR($C46=0,N$12=""),"",IF(N$12="Total",IF(SUM($G46:M46)=0,0,SUM($G46:M46)),IF(Selector=8,Percent_Waste,Ref_Result))),"") -> 0 | O46: =IFERROR(IF(OR($C46=0,O$12=""),"",IF(O$12="Total",IF(SUM($G46:N46)=0,0,SUM($G46:N46)),IF(Selector=8,Percent_Waste,Ref_Result))),"") -> 0 | P46: =IFERROR(IF(OR($C46=0,P$12=""),"",IF(P$12="Total",IF(SUM($G46:O46)=0,0,SUM($G46:O46)),IF(Selector=8,Percent_Waste,Ref_Result))),"") -> 0 | Q46: =IFERROR(IF(OR($C46=0,Q$12=""),"",IF(Q$12="Total",IF(SUM($G46:P46)=0,0,SUM($G46:P46)),IF(Selector=8,Percent_Waste,Ref_Result))),"") -> 0 | R46: =IFERROR(IF(OR($C46=0,R$12=""),"",IF(R$12="Total",IF(SUM($G46:Q46)=0,0,SUM($G46:Q46)),IF(Selector=8,Percent_Waste,Ref_Result))),"") ->  | S46: =IFERROR(IF(OR($C46=0,S$12=""),"",IF(S$12="Total",IF(SUM($G46:R46)=0,0,SUM($G46:R46)),IF(Selector=8,Percent_Waste,Ref_Result))),"") ->  | T46: =IFERROR(IF(OR($C46=0,T$12=""),"",IF(T$12="Total",IF(SUM($G46:S46)=0,0,SUM($G46:S46)),IF(Selector=8,Percent_Waste,Ref_Result))),"") ->  | U46: =IFERROR(IF(OR($C46=0,U$12=""),"",IF(U$12="Total",IF(SUM($G46:T46)=0,0,SUM($G46:T46)),IF(Selector=8,Percent_Waste,Ref_Result))),"") ->  | V46: =IFERROR(IF(OR($C46=0,V$12=""),"",IF(V$12="Total",IF(SUM($G46:U46)=0,0,SUM($G46:U46)),IF(Selector=8,Percent_Waste,Ref_Result))),"") ->  | W46: =IFERROR(IF(OR($C46=0,W$12=""),"",IF(W$12="Total",IF(SUM($G46:V46)=0,0,SUM($G46:V46)),IF(Selector=8,Percent_Waste,Ref_Result))),"") ->  | X46: =IFERROR(IF(OR($C46=0,X$12=""),"",IF(X$12="Total",IF(SUM($G46:W46)=0,0,SUM($G46:W46)),IF(Selector=8,Percent_Waste,Ref_Result))),"") ->  | Y46: =IFERROR(IF(OR($C46=0,Y$12=""),"",IF(Y$12="Total",IF(SUM($G46:X46)=0,0,SUM($G46:X46)),IF(Selector=8,Percent_Waste,Ref_Result))),"") ->  | Z46: =IFERROR(IF(OR($C46=0,Z$12=""),"",IF(Z$12="Total",IF(SUM($G46:Y46)=0,0,SUM($G46:Y46)),IF(Selector=8,Percent_Waste,Ref_Result))),"") ->  | AA46: 300 | AF46: =IFERROR(IF($AF$11="FRY",INDEX(Conn_FRY_Delivery,ROWS($13:46),COLUMNS($A:A)),""),"") ->  | AG46: =IFERROR(IF($AF$11="FRY",INDEX(Conn_FRY_Delivery,ROWS($13:46),COLUMNS($A:B)),""),"") ->  | AH46: =IFERROR(IF($AF$11="FRY",INDEX(Conn_FRY_Delivery,ROWS($13:46),COLUMNS($A:C)),""),"") ->  | AI46: =IFERROR(IF($AF$11="FRY",INDEX(Conn_FRY_Delivery,ROWS($13:46),COLUMNS($A:D)),""),"") ->  | AJ46: =IFERROR(IF($AF$11="FRY",INDEX(Conn_FRY_Delivery,ROWS($13:46),COLUMNS($A:E)),""),"") ->  | AL46: =IFERROR(IF($AL$11="FRK",INDEX(Conn_FRK_Delivery,ROWS($13:46),COLUMNS($A:A)),""),"") ->  | AM46: =IFERROR(IF($AL$11="FRK",INDEX(Conn_FRK_Delivery,ROWS($13:46),COLUMNS($A:B)),""),"") ->  | AN46: =IFERROR(IF($AL$11="FRK",INDEX(Conn_FRK_Delivery,ROWS($13:46),COLUMNS($A:C)),""),"") ->  | AO46: =IFERROR(IF($AL$11="FRK",INDEX(Conn_FRK_Delivery,ROWS($13:46),COLUMNS($A:D)),""),"") ->  | AP46: =IFERROR(IF($AL$11="FRK",INDEX(Conn_FRK_Delivery,ROWS($13:46),COLUMNS($A:E)),""),"") ->  | AR46: =IF(ROWS($13:46)<=IFERROR(ROWS(FRY_Delivery_Data),0),"FRY",IF(ROWS($13:46)<=IFERROR(ROWS(FRY_Delivery_Data),0)+IFERROR(ROWS(FRK_Delivery_Data),0),"FRK","")) ->  | AS46: =IF($AR46="FRY",INDEX(FRY_Delivery_Data,COUNTIF($AR$13:$AR46,$AR46),COLUMNS($A:A)),IF($AR46="FRK",INDEX(FRK_Delivery_Data,COUNTIF($AR$13:$AR46,$AR46),COLUMNS($A:A)),"")) ->  | AT46: =IF($AR46="FRY",INDEX(FRY_Delivery_Data,COUNTIF($AR$13:$AR46,$AR46),COLUMNS($A:B)),IF($AR46="FRK",INDEX(FRK_Delivery_Data,COUNTIF($AR$13:$AR46,$AR46),COLUMNS($A:B)),"")) ->  | AU46: =IF($AR46="FRY",INDEX(FRY_Delivery_Data,COUNTIF($AR$13:$AR46,$AR46),COLUMNS($A:C)),IF($AR46="FRK",INDEX(FRK_Delivery_Data,COUNTIF($AR$13:$AR46,$AR46),COLUMNS($A:C)),"")) ->  | AV46: =IF($AR46="FRY",INDEX(FRY_Delivery_Data,COUNTIF($AR$13:$AR46,$AR46),COLUMNS($A:D)),IF($AR46="FRK",INDEX(FRK_Delivery_Data,COUNTIF($AR$13:$AR46,$AR46),COLUMNS($A:D)),"")) ->  | AW46: =IF($AR46="FRY",INDEX(FRY_Delivery_Data,COUNTIF($AR$13:$AR46,$AR46),COLUMNS($A:E)),IF($AR46="FRK",INDEX(FRK_Delivery_Data,COUNTIF($AR$13:$AR46,$AR46),COLUMNS($A:E)),"")) -> 
B47: =IF(OR($C47="",$C47=0,ROWS($13:47)>ROWS(Product_List)),"",COUNTIF($C$13:$C47,"*?")) -> 35 | C47: =IFERROR(IF($C$9="No File In Folder","",INDEX(Product_List,ROWS($13:47))),"") -> 35-ขนมปังโรลมันม่วง | D47: 0 | G47: =IFERROR(IF(OR($C47=0,G$12=""),"",IF(G$12="Total",IF(SUM(F47:$G47)=0,0,SUM(F47:$G47)),IF(Selector=8,Percent_Waste,Ref_Result))),"") -> 0 | H47: =IFERROR(IF(OR($C47=0,H$12=""),"",IF(H$12="Total",IF(SUM(G47:$G47)=0,0,SUM(G47:$G47)),IF(Selector=8,Percent_Waste,Ref_Result))),"") -> 0 | I47: =IFERROR(IF(OR($C47=0,I$12=""),"",IF(I$12="Total",IF(SUM($G47:H47)=0,0,SUM($G47:H47)),IF(Selector=8,Percent_Waste,Ref_Result))),"") -> 0 | J47: =IFERROR(IF(OR($C47=0,J$12=""),"",IF(J$12="Total",IF(SUM($G47:I47)=0,0,SUM($G47:I47)),IF(Selector=8,Percent_Waste,Ref_Result))),"") -> 0 | K47: =IFERROR(IF(OR($C47=0,K$12=""),"",IF(K$12="Total",IF(SUM($G47:J47)=0,0,SUM($G47:J47)),IF(Selector=8,Percent_Waste,Ref_Result))),"") -> 0 | L47: =IFERROR(IF(OR($C47=0,L$12=""),"",IF(L$12="Total",IF(SUM($G47:K47)=0,0,SUM($G47:K47)),IF(Selector=8,Percent_Waste,Ref_Result))),"") -> 0 | M47: =IFERROR(IF(OR($C47=0,M$12=""),"",IF(M$12="Total",IF(SUM($G47:L47)=0,0,SUM($G47:L47)),IF(Selector=8,Percent_Waste,Ref_Result))),"") -> 0 | N47: =IFERROR(IF(OR($C47=0,N$12=""),"",IF(N$12="Total",IF(SUM($G47:M47)=0,0,SUM($G47:M47)),IF(Selector=8,Percent_Waste,Ref_Result))),"") -> 0 | O47: =IFERROR(IF(OR($C47=0,O$12=""),"",IF(O$12="Total",IF(SUM($G47:N47)=0,0,SUM($G47:N47)),IF(Selector=8,Percent_Waste,Ref_Result))),"") -> 0 | P47: =IFERROR(IF(OR($C47=0,P$12=""),"",IF(P$12="Total",IF(SUM($G47:O47)=0,0,SUM($G47:O47)),IF(Selector=8,Percent_Waste,Ref_Result))),"") -> 0 | Q47: =IFERROR(IF(OR($C47=0,Q$12=""),"",IF(Q$12="Total",IF(SUM($G47:P47)=0,0,SUM($G47:P47)),IF(Selector=8,Percent_Waste,Ref_Result))),"") -> 0 | R47: =IFERROR(IF(OR($C47=0,R$12=""),"",IF(R$12="Total",IF(SUM($G47:Q47)=0,0,SUM($G47:Q47)),IF(Selector=8,Percent_Waste,Ref_Result))),"") ->  | S47: =IFERROR(IF(OR($C47=0,S$12=""),"",IF(S$12="Total",IF(SUM($G47:R47)=0,0,SUM($G47:R47)),IF(Selector=8,Percent_Waste,Ref_Result))),"") ->  | T47: =IFERROR(IF(OR($C47=0,T$12=""),"",IF(T$12="Total",IF(SUM($G47:S47)=0,0,SUM($G47:S47)),IF(Selector=8,Percent_Waste,Ref_Result))),"") ->  | U47: =IFERROR(IF(OR($C47=0,U$12=""),"",IF(U$12="Total",IF(SUM($G47:T47)=0,0,SUM($G47:T47)),IF(Selector=8,Percent_Waste,Ref_Result))),"") ->  | V47: =IFERROR(IF(OR($C47=0,V$12=""),"",IF(V$12="Total",IF(SUM($G47:U47)=0,0,SUM($G47:U47)),IF(Selector=8,Percent_Waste,Ref_Result))),"") ->  | W47: =IFERROR(IF(OR($C47=0,W$12=""),"",IF(W$12="Total",IF(SUM($G47:V47)=0,0,SUM($G47:V47)),IF(Selector=8,Percent_Waste,Ref_Result))),"") ->  | X47: =IFERROR(IF(OR($C47=0,X$12=""),"",IF(X$12="Total",IF(SUM($G47:W47)=0,0,SUM($G47:W47)),IF(Selector=8,Percent_Waste,Ref_Result))),"") ->  | Y47: =IFERROR(IF(OR($C47=0,Y$12=""),"",IF(Y$12="Total",IF(SUM($G47:X47)=0,0,SUM($G47:X47)),IF(Selector=8,Percent_Waste,Ref_Result))),"") ->  | Z47: =IFERROR(IF(OR($C47=0,Z$12=""),"",IF(Z$12="Total",IF(SUM($G47:Y47)=0,0,SUM($G47:Y47)),IF(Selector=8,Percent_Waste,Ref_Result))),"") ->  | AA47: 0 | AF47: =IFERROR(IF($AF$11="FRY",INDEX(Conn_FRY_Delivery,ROWS($13:47),COLUMNS($A:A)),""),"") ->  | AG47: =IFERROR(IF($AF$11="FRY",INDEX(Conn_FRY_Delivery,ROWS($13:47),COLUMNS($A:B)),""),"") ->  | AH47: =IFERROR(IF($AF$11="FRY",INDEX(Conn_FRY_Delivery,ROWS($13:47),COLUMNS($A:C)),""),"") ->  | AI47: =IFERROR(IF($AF$11="FRY",INDEX(Conn_FRY_Delivery,ROWS($13:47),COLUMNS($A:D)),""),"") ->  | AJ47: =IFERROR(IF($AF$11="FRY",INDEX(Conn_FRY_Delivery,ROWS($13:47),COLUMNS($A:E)),""),"") ->  | AL47: =IFERROR(IF($AL$11="FRK",INDEX(Conn_FRK_Delivery,ROWS($13:47),COLUMNS($A:A)),""),"") ->  | AM47: =IFERROR(IF($AL$11="FRK",INDEX(Conn_FRK_Delivery,ROWS($13:47),COLUMNS($A:B)),""),"") ->  | AN47: =IFERROR(IF($AL$11="FRK",INDEX(Conn_FRK_Delivery,ROWS($13:47),COLUMNS($A:C)),""),"") ->  | AO47: =IFERROR(IF($AL$11="FRK",INDEX(Conn_FRK_Delivery,ROWS($13:47),COLUMNS($A:D)),""),"") ->  | AP47: =IFERROR(IF($AL$11="FRK",INDEX(Conn_FRK_Delivery,ROWS($13:47),COLUMNS($A:E)),""),"") ->  | AR47: =IF(ROWS($13:47)<=IFERROR(ROWS(FRY_Delivery_Data),0),"FRY",IF(ROWS($13:47)<=IFERROR(ROWS(FRY_Delivery_Data),0)+IFERROR(ROWS(FRK_Delivery_Data),0),"FRK","")) ->  | AS47: =IF($AR47="FRY",INDEX(FRY_Delivery_Data,COUNTIF($AR$13:$AR47,$AR47),COLUMNS($A:A)),IF($AR47="FRK",INDEX(FRK_Delivery_Data,COUNTIF($AR$13:$AR47,$AR47),COLUMNS($A:A)),"")) ->  | AT47: =IF($AR47="FRY",INDEX(FRY_Delivery_Data,COUNTIF($AR$13:$AR47,$AR47),COLUMNS($A:B)),IF($AR47="FRK",INDEX(FRK_Delivery_Data,COUNTIF($AR$13:$AR47,$AR47),COLUMNS($A:B)),"")) ->  | AU47: =IF($AR47="FRY",INDEX(FRY_Delivery_Data,COUNTIF($AR$13:$AR47,$AR47),COLUMNS($A:C)),IF($AR47="FRK",INDEX(FRK_Delivery_Data,COUNTIF($AR$13:$AR47,$AR47),COLUMNS($A:C)),"")) ->  | AV47: =IF($AR47="FRY",INDEX(FRY_Delivery_Data,COUNTIF($AR$13:$AR47,$AR47),COLUMNS($A:D)),IF($AR47="FRK",INDEX(FRK_Delivery_Data,COUNTIF($AR$13:$AR47,$AR47),COLUMNS($A:D)),"")) ->  | AW47: =IF($AR47="FRY",INDEX(FRY_Delivery_Data,COUNTIF($AR$13:$AR47,$AR47),COLUMNS($A:E)),IF($AR47="FRK",INDEX(FRK_Delivery_Data,COUNTIF($AR$13:$AR47,$AR47),COLUMNS($A:E)),"")) -> 
B48: =IF(OR($C48="",$C48=0,ROWS($13:48)>ROWS(Product_List)),"",COUNTIF($C$13:$C48,"*?")) -> 36 | C48: =IFERROR(IF($C$9="No File In Folder","",INDEX(Product_List,ROWS($13:48))),"") -> 36-ขนมปังโรลมันส้มผสมแครอท | D48: 0 | G48: =IFERROR(IF(OR($C48=0,G$12=""),"",IF(G$12="Total",IF(SUM(F48:$G48)=0,0,SUM(F48:$G48)),IF(Selector=8,Percent_Waste,Ref_Result))),"") -> 0 | H48: =IFERROR(IF(OR($C48=0,H$12=""),"",IF(H$12="Total",IF(SUM(G48:$G48)=0,0,SUM(G48:$G48)),IF(Selector=8,Percent_Waste,Ref_Result))),"") -> 0 | I48: =IFERROR(IF(OR($C48=0,I$12=""),"",IF(I$12="Total",IF(SUM($G48:H48)=0,0,SUM($G48:H48)),IF(Selector=8,Percent_Waste,Ref_Result))),"") -> 0 | J48: =IFERROR(IF(OR($C48=0,J$12=""),"",IF(J$12="Total",IF(SUM($G48:I48)=0,0,SUM($G48:I48)),IF(Selector=8,Percent_Waste,Ref_Result))),"") -> 0 | K48: =IFERROR(IF(OR($C48=0,K$12=""),"",IF(K$12="Total",IF(SUM($G48:J48)=0,0,SUM($G48:J48)),IF(Selector=8,Percent_Waste,Ref_Result))),"") -> 0 | L48: =IFERROR(IF(OR($C48=0,L$12=""),"",IF(L$12="Total",IF(SUM($G48:K48)=0,0,SUM($G48:K48)),IF(Selector=8,Percent_Waste,Ref_Result))),"") -> 0 | M48: =IFERROR(IF(OR($C48=0,M$12=""),"",IF(M$12="Total",IF(SUM($G48:L48)=0,0,SUM($G48:L48)),IF(Selector=8,Percent_Waste,Ref_Result))),"") -> 0 | N48: =IFERROR(IF(OR($C48=0,N$12=""),"",IF(N$12="Total",IF(SUM($G48:M48)=0,0,SUM($G48:M48)),IF(Selector=8,Percent_Waste,Ref_Result))),"") -> 0 | O48: =IFERROR(IF(OR($C48=0,O$12=""),"",IF(O$12="Total",IF(SUM($G48:N48)=0,0,SUM($G48:N48)),IF(Selector=8,Percent_Waste,Ref_Result))),"") -> 0 | P48: =IFERROR(IF(OR($C48=0,P$12=""),"",IF(P$12="Total",IF(SUM($G48:O48)=0,0,SUM($G48:O48)),IF(Selector=8,Percent_Waste,Ref_Result))),"") -> 0 | Q48: =IFERROR(IF(OR($C48=0,Q$12=""),"",IF(Q$12="Total",IF(SUM($G48:P48)=0,0,SUM($G48:P48)),IF(Selector=8,Percent_Waste,Ref_Result))),"") -> 0 | R48: =IFERROR(IF(OR($C48=0,R$12=""),"",IF(R$12="Total",IF(SUM($G48:Q48)=0,0,SUM($G48:Q48)),IF(Selector=8,Percent_Waste,Ref_Result))),"") ->  | S48: =IFERROR(IF(OR($C48=0,S$12=""),"",IF(S$12="Total",IF(SUM($G48:R48)=0,0,SUM($G48:R48)),IF(Selector=8,Percent_Waste,Ref_Result))),"") ->  | T48: =IFERROR(IF(OR($C48=0,T$12=""),"",IF(T$12="Total",IF(SUM($G48:S48)=0,0,SUM($G48:S48)),IF(Selector=8,Percent_Waste,Ref_Result))),"") ->  | U48: =IFERROR(IF(OR($C48=0,U$12=""),"",IF(U$12="Total",IF(SUM($G48:T48)=0,0,SUM($G48:T48)),IF(Selector=8,Percent_Waste,Ref_Result))),"") ->  | V48: =IFERROR(IF(OR($C48=0,V$12=""),"",IF(V$12="Total",IF(SUM($G48:U48)=0,0,SUM($G48:U48)),IF(Selector=8,Percent_Waste,Ref_Result))),"") ->  | W48: =IFERROR(IF(OR($C48=0,W$12=""),"",IF(W$12="Total",IF(SUM($G48:V48)=0,0,SUM($G48:V48)),IF(Selector=8,Percent_Waste,Ref_Result))),"") ->  | X48: =IFERROR(IF(OR($C48=0,X$12=""),"",IF(X$12="Total",IF(SUM($G48:W48)=0,0,SUM($G48:W48)),IF(Selector=8,Percent_Waste,Ref_Result))),"") ->  | Y48: =IFERROR(IF(OR($C48=0,Y$12=""),"",IF(Y$12="Total",IF(SUM($G48:X48)=0,0,SUM($G48:X48)),IF(Selector=8,Percent_Waste,Ref_Result))),"") ->  | Z48: =IFERROR(IF(OR($C48=0,Z$12=""),"",IF(Z$12="Total",IF(SUM($G48:Y48)=0,0,SUM($G48:Y48)),IF(Selector=8,Percent_Waste,Ref_Result))),"") ->  | AA48: 0 | AF48: =IFERROR(IF($AF$11="FRY",INDEX(Conn_FRY_Delivery,ROWS($13:48),COLUMNS($A:A)),""),"") ->  | AG48: =IFERROR(IF($AF$11="FRY",INDEX(Conn_FRY_Delivery,ROWS($13:48),COLUMNS($A:B)),""),"") ->  | AH48: =IFERROR(IF($AF$11="FRY",INDEX(Conn_FRY_Delivery,ROWS($13:48),COLUMNS($A:C)),""),"") ->  | AI48: =IFERROR(IF($AF$11="FRY",INDEX(Conn_FRY_Delivery,ROWS($13:48),COLUMNS($A:D)),""),"") ->  | AJ48: =IFERROR(IF($AF$11="FRY",INDEX(Conn_FRY_Delivery,ROWS($13:48),COLUMNS($A:E)),""),"") ->  | AL48: =IFERROR(IF($AL$11="FRK",INDEX(Conn_FRK_Delivery,ROWS($13:48),COLUMNS($A:A)),""),"") ->  | AM48: =IFERROR(IF($AL$11="FRK",INDEX(Conn_FRK_Delivery,ROWS($13:48),COLUMNS($A:B)),""),"") ->  | AN48: =IFERROR(IF($AL$11="FRK",INDEX(Conn_FRK_Delivery,ROWS($13:48),COLUMNS($A:C)),""),"") ->  | AO48: =IFERROR(IF($AL$11="FRK",INDEX(Conn_FRK_Delivery,ROWS($13:48),COLUMNS($A:D)),""),"") ->  | AP48: =IFERROR(IF($AL$11="FRK",INDEX(Conn_FRK_Delivery,ROWS($13:48),COLUMNS($A:E)),""),"") ->  | AR48: =IF(ROWS($13:48)<=IFERROR(ROWS(FRY_Delivery_Data),0),"FRY",IF(ROWS($13:48)<=IFERROR(ROWS(FRY_Delivery_Data),0)+IFERROR(ROWS(FRK_Delivery_Data),0),"FRK","")) ->  | AS48: =IF($AR48="FRY",INDEX(FRY_Delivery_Data,COUNTIF($AR$13:$AR48,$AR48),COLUMNS($A:A)),IF($AR48="FRK",INDEX(FRK_Delivery_Data,COUNTIF($AR$13:$AR48,$AR48),COLUMNS($A:A)),"")) ->  | AT48: =IF($AR48="FRY",INDEX(FRY_Delivery_Data,COUNTIF($AR$13:$AR48,$AR48),COLUMNS($A:B)),IF($AR48="FRK",INDEX(FRK_Delivery_Data,COUNTIF($AR$13:$AR48,$AR48),COLUMNS($A:B)),"")) ->  | AU48: =IF($AR48="FRY",INDEX(FRY_Delivery_Data,COUNTIF($AR$13:$AR48,$AR48),COLUMNS($A:C)),IF($AR48="FRK",INDEX(FRK_Delivery_Data,COUNTIF($AR$13:$AR48,$AR48),COLUMNS($A:C)),"")) ->  | AV48: =IF($AR48="FRY",INDEX(FRY_Delivery_Data,COUNTIF($AR$13:$AR48,$AR48),COLUMNS($A:D)),IF($AR48="FRK",INDEX(FRK_Delivery_Data,COUNTIF($AR$13:$AR48,$AR48),COLUMNS($A:D)),"")) ->  | AW48: =IF($AR48="FRY",INDEX(FRY_Delivery_Data,COUNTIF($AR$13:$AR48,$AR48),COLUMNS($A:E)),IF($AR48="FRK",INDEX(FRK_Delivery_Data,COUNTIF($AR$13:$AR48,$AR48),COLUMNS($A:E)),"")) -> 
B49: =IF(OR($C49="",$C49=0,ROWS($13:49)>ROWS(Product_List)),"",COUNTIF($C$13:$C49,"*?")) -> 37 | C49: =IFERROR(IF($C$9="No File In Folder","",INDEX(Product_List,ROWS($13:49))),"") -> 37-ขนมก้านบัวน้ำขิง | D49: 0 | G49: =IFERROR(IF(OR($C49=0,G$12=""),"",IF(G$12="Total",IF(SUM(F49:$G49)=0,0,SUM(F49:$G49)),IF(Selector=8,Percent_Waste,Ref_Result))),"") -> 0 | H49: =IFERROR(IF(OR($C49=0,H$12=""),"",IF(H$12="Total",IF(SUM(G49:$G49)=0,0,SUM(G49:$G49)),IF(Selector=8,Percent_Waste,Ref_Result))),"") -> 0 | I49: =IFERROR(IF(OR($C49=0,I$12=""),"",IF(I$12="Total",IF(SUM($G49:H49)=0,0,SUM($G49:H49)),IF(Selector=8,Percent_Waste,Ref_Result))),"") -> 0 | J49: =IFERROR(IF(OR($C49=0,J$12=""),"",IF(J$12="Total",IF(SUM($G49:I49)=0,0,SUM($G49:I49)),IF(Selector=8,Percent_Waste,Ref_Result))),"") -> 0 | K49: =IFERROR(IF(OR($C49=0,K$12=""),"",IF(K$12="Total",IF(SUM($G49:J49)=0,0,SUM($G49:J49)),IF(Selector=8,Percent_Waste,Ref_Result))),"") -> 0 | L49: =IFERROR(IF(OR($C49=0,L$12=""),"",IF(L$12="Total",IF(SUM($G49:K49)=0,0,SUM($G49:K49)),IF(Selector=8,Percent_Waste,Ref_Result))),"") -> 0 | M49: =IFERROR(IF(OR($C49=0,M$12=""),"",IF(M$12="Total",IF(SUM($G49:L49)=0,0,SUM($G49:L49)),IF(Selector=8,Percent_Waste,Ref_Result))),"") -> 0 | N49: =IFERROR(IF(OR($C49=0,N$12=""),"",IF(N$12="Total",IF(SUM($G49:M49)=0,0,SUM($G49:M49)),IF(Selector=8,Percent_Waste,Ref_Result))),"") -> 0 | O49: =IFERROR(IF(OR($C49=0,O$12=""),"",IF(O$12="Total",IF(SUM($G49:N49)=0,0,SUM($G49:N49)),IF(Selector=8,Percent_Waste,Ref_Result))),"") -> 0 | P49: =IFERROR(IF(OR($C49=0,P$12=""),"",IF(P$12="Total",IF(SUM($G49:O49)=0,0,SUM($G49:O49)),IF(Selector=8,Percent_Waste,Ref_Result))),"") -> 0 | Q49: =IFERROR(IF(OR($C49=0,Q$12=""),"",IF(Q$12="Total",IF(SUM($G49:P49)=0,0,SUM($G49:P49)),IF(Selector=8,Percent_Waste,Ref_Result))),"") -> 0 | R49: =IFERROR(IF(OR($C49=0,R$12=""),"",IF(R$12="Total",IF(SUM($G49:Q49)=0,0,SUM($G49:Q49)),IF(Selector=8,Percent_Waste,Ref_Result))),"") ->  | S49: =IFERROR(IF(OR($C49=0,S$12=""),"",IF(S$12="Total",IF(SUM($G49:R49)=0,0,SUM($G49:R49)),IF(Selector=8,Percent_Waste,Ref_Result))),"") ->  | T49: =IFERROR(IF(OR($C49=0,T$12=""),"",IF(T$12="Total",IF(SUM($G49:S49)=0,0,SUM($G49:S49)),IF(Selector=8,Percent_Waste,Ref_Result))),"") ->  | U49: =IFERROR(IF(OR($C49=0,U$12=""),"",IF(U$12="Total",IF(SUM($G49:T49)=0,0,SUM($G49:T49)),IF(Selector=8,Percent_Waste,Ref_Result))),"") ->  | V49: =IFERROR(IF(OR($C49=0,V$12=""),"",IF(V$12="Total",IF(SUM($G49:U49)=0,0,SUM($G49:U49)),IF(Selector=8,Percent_Waste,Ref_Result))),"") ->  | W49: =IFERROR(IF(OR($C49=0,W$12=""),"",IF(W$12="Total",IF(SUM($G49:V49)=0,0,SUM($G49:V49)),IF(Selector=8,Percent_Waste,Ref_Result))),"") ->  | X49: =IFERROR(IF(OR($C49=0,X$12=""),"",IF(X$12="Total",IF(SUM($G49:W49)=0,0,SUM($G49:W49)),IF(Selector=8,Percent_Waste,Ref_Result))),"") ->  | Y49: =IFERROR(IF(OR($C49=0,Y$12=""),"",IF(Y$12="Total",IF(SUM($G49:X49)=0,0,SUM($G49:X49)),IF(Selector=8,Percent_Waste,Ref_Result))),"") ->  | Z49: =IFERROR(IF(OR($C49=0,Z$12=""),"",IF(Z$12="Total",IF(SUM($G49:Y49)=0,0,SUM($G49:Y49)),IF(Selector=8,Percent_Waste,Ref_Result))),"") ->  | AA49: 0 | AF49: =IFERROR(IF($AF$11="FRY",INDEX(Conn_FRY_Delivery,ROWS($13:49),COLUMNS($A:A)),""),"") ->  | AG49: =IFERROR(IF($AF$11="FRY",INDEX(Conn_FRY_Delivery,ROWS($13:49),COLUMNS($A:B)),""),"") ->  | AH49: =IFERROR(IF($AF$11="FRY",INDEX(Conn_FRY_Delivery,ROWS($13:49),COLUMNS($A:C)),""),"") ->  | AI49: =IFERROR(IF($AF$11="FRY",INDEX(Conn_FRY_Delivery,ROWS($13:49),COLUMNS($A:D)),""),"") ->  | AJ49: =IFERROR(IF($AF$11="FRY",INDEX(Conn_FRY_Delivery,ROWS($13:49),COLUMNS($A:E)),""),"") ->  | AL49: =IFERROR(IF($AL$11="FRK",INDEX(Conn_FRK_Delivery,ROWS($13:49),COLUMNS($A:A)),""),"") ->  | AM49: =IFERROR(IF($AL$11="FRK",INDEX(Conn_FRK_Delivery,ROWS($13:49),COLUMNS($A:B)),""),"") ->  | AN49: =IFERROR(IF($AL$11="FRK",INDEX(Conn_FRK_Delivery,ROWS($13:49),COLUMNS($A:C)),""),"") ->  | AO49: =IFERROR(IF($AL$11="FRK",INDEX(Conn_FRK_Delivery,ROWS($13:49),COLUMNS($A:D)),""),"") ->  | AP49: =IFERROR(IF($AL$11="FRK",INDEX(Conn_FRK_Delivery,ROWS($13:49),COLUMNS($A:E)),""),"") ->  | AR49: =IF(ROWS($13:49)<=IFERROR(ROWS(FRY_Delivery_Data),0),"FRY",IF(ROWS($13:49)<=IFERROR(ROWS(FRY_Delivery_Data),0)+IFERROR(ROWS(FRK_Delivery_Data),0),"FRK","")) ->  | AS49: =IF($AR49="FRY",INDEX(FRY_Delivery_Data,COUNTIF($AR$13:$AR49,$AR49),COLUMNS($A:A)),IF($AR49="FRK",INDEX(FRK_Delivery_Data,COUNTIF($AR$13:$AR49,$AR49),COLUMNS($A:A)),"")) ->  | AT49: =IF($AR49="FRY",INDEX(FRY_Delivery_Data,COUNTIF($AR$13:$AR49,$AR49),COLUMNS($A:B)),IF($AR49="FRK",INDEX(FRK_Delivery_Data,COUNTIF($AR$13:$AR49,$AR49),COLUMNS($A:B)),"")) ->  | AU49: =IF($AR49="FRY",INDEX(FRY_Delivery_Data,COUNTIF($AR$13:$AR49,$AR49),COLUMNS($A:C)),IF($AR49="FRK",INDEX(FRK_Delivery_Data,COUNTIF($AR$13:$AR49,$AR49),COLUMNS($A:C)),"")) ->  | AV49: =IF($AR49="FRY",INDEX(FRY_Delivery_Data,COUNTIF($AR$13:$AR49,$AR49),COLUMNS($A:D)),IF($AR49="FRK",INDEX(FRK_Delivery_Data,COUNTIF($AR$13:$AR49,$AR49),COLUMNS($A:D)),"")) ->  | AW49: =IF($AR49="FRY",INDEX(FRY_Delivery_Data,COUNTIF($AR$13:$AR49,$AR49),COLUMNS($A:E)),IF($AR49="FRK",INDEX(FRK_Delivery_Data,COUNTIF($AR$13:$AR49,$AR49),COLUMNS($A:E)),"")) -> 
B50: =IF(OR($C50="",$C50=0,ROWS($13:50)>ROWS(Product_List)),"",COUNTIF($C$13:$C50,"*?")) -> 38 | C50: =IFERROR(IF($C$9="No File In Folder","",INDEX(Product_List,ROWS($13:50))),"") -> 38-ขนมปังพิซซ่าปูอัดแฮม | D50: 400 | G50: =IFERROR(IF(OR($C50=0,G$12=""),"",IF(G$12="Total",IF(SUM(F50:$G50)=0,0,SUM(F50:$G50)),IF(Selector=8,Percent_Waste,Ref_Result))),"") -> 40 | H50: =IFERROR(IF(OR($C50=0,H$12=""),"",IF(H$12="Total",IF(SUM(G50:$G50)=0,0,SUM(G50:$G50)),IF(Selector=8,Percent_Waste,Ref_Result))),"") -> 30 | I50: =IFERROR(IF(OR($C50=0,I$12=""),"",IF(I$12="Total",IF(SUM($G50:H50)=0,0,SUM($G50:H50)),IF(Selector=8,Percent_Waste,Ref_Result))),"") -> 30 | J50: =IFERROR(IF(OR($C50=0,J$12=""),"",IF(J$12="Total",IF(SUM($G50:I50)=0,0,SUM($G50:I50)),IF(Selector=8,Percent_Waste,Ref_Result))),"") -> 50 | K50: =IFERROR(IF(OR($C50=0,K$12=""),"",IF(K$12="Total",IF(SUM($G50:J50)=0,0,SUM($G50:J50)),IF(Selector=8,Percent_Waste,Ref_Result))),"") -> 50 | L50: =IFERROR(IF(OR($C50=0,L$12=""),"",IF(L$12="Total",IF(SUM($G50:K50)=0,0,SUM($G50:K50)),IF(Selector=8,Percent_Waste,Ref_Result))),"") -> 30 | M50: =IFERROR(IF(OR($C50=0,M$12=""),"",IF(M$12="Total",IF(SUM($G50:L50)=0,0,SUM($G50:L50)),IF(Selector=8,Percent_Waste,Ref_Result))),"") -> 40 | N50: =IFERROR(IF(OR($C50=0,N$12=""),"",IF(N$12="Total",IF(SUM($G50:M50)=0,0,SUM($G50:M50)),IF(Selector=8,Percent_Waste,Ref_Result))),"") -> 20 | O50: =IFERROR(IF(OR($C50=0,O$12=""),"",IF(O$12="Total",IF(SUM($G50:N50)=0,0,SUM($G50:N50)),IF(Selector=8,Percent_Waste,Ref_Result))),"") -> 30 | P50: =IFERROR(IF(OR($C50=0,P$12=""),"",IF(P$12="Total",IF(SUM($G50:O50)=0,0,SUM($G50:O50)),IF(Selector=8,Percent_Waste,Ref_Result))),"") -> 50 | Q50: =IFERROR(IF(OR($C50=0,Q$12=""),"",IF(Q$12="Total",IF(SUM($G50:P50)=0,0,SUM($G50:P50)),IF(Selector=8,Percent_Waste,Ref_Result))),"") -> 370 | R50: =IFERROR(IF(OR($C50=0,R$12=""),"",IF(R$12="Total",IF(SUM($G50:Q50)=0,0,SUM($G50:Q50)),IF(Selector=8,Percent_Waste,Ref_Result))),"") ->  | S50: =IFERROR(IF(OR($C50=0,S$12=""),"",IF(S$12="Total",IF(SUM($G50:R50)=0,0,SUM($G50:R50)),IF(Selector=8,Percent_Waste,Ref_Result))),"") ->  | T50: =IFERROR(IF(OR($C50=0,T$12=""),"",IF(T$12="Total",IF(SUM($G50:S50)=0,0,SUM($G50:S50)),IF(Selector=8,Percent_Waste,Ref_Result))),"") ->  | U50: =IFERROR(IF(OR($C50=0,U$12=""),"",IF(U$12="Total",IF(SUM($G50:T50)=0,0,SUM($G50:T50)),IF(Selector=8,Percent_Waste,Ref_Result))),"") ->  | V50: =IFERROR(IF(OR($C50=0,V$12=""),"",IF(V$12="Total",IF(SUM($G50:U50)=0,0,SUM($G50:U50)),IF(Selector=8,Percent_Waste,Ref_Result))),"") ->  | W50: =IFERROR(IF(OR($C50=0,W$12=""),"",IF(W$12="Total",IF(SUM($G50:V50)=0,0,SUM($G50:V50)),IF(Selector=8,Percent_Waste,Ref_Result))),"") ->  | X50: =IFERROR(IF(OR($C50=0,X$12=""),"",IF(X$12="Total",IF(SUM($G50:W50)=0,0,SUM($G50:W50)),IF(Selector=8,Percent_Waste,Ref_Result))),"") ->  | Y50: =IFERROR(IF(OR($C50=0,Y$12=""),"",IF(Y$12="Total",IF(SUM($G50:X50)=0,0,SUM($G50:X50)),IF(Selector=8,Percent_Waste,Ref_Result))),"") ->  | Z50: =IFERROR(IF(OR($C50=0,Z$12=""),"",IF(Z$12="Total",IF(SUM($G50:Y50)=0,0,SUM($G50:Y50)),IF(Selector=8,Percent_Waste,Ref_Result))),"") ->  | AA50: 30 | AF50: =IFERROR(IF($AF$11="FRY",INDEX(Conn_FRY_Delivery,ROWS($13:50),COLUMNS($A:A)),""),"") ->  | AG50: =IFERROR(IF($AF$11="FRY",INDEX(Conn_FRY_Delivery,ROWS($13:50),COLUMNS($A:B)),""),"") ->  | AH50: =IFERROR(IF($AF$11="FRY",INDEX(Conn_FRY_Delivery,ROWS($13:50),COLUMNS($A:C)),""),"") ->  | AI50: =IFERROR(IF($AF$11="FRY",INDEX(Conn_FRY_Delivery,ROWS($13:50),COLUMNS($A:D)),""),"") ->  | AJ50: =IFERROR(IF($AF$11="FRY",INDEX(Conn_FRY_Delivery,ROWS($13:50),COLUMNS($A:E)),""),"") ->  | AL50: =IFERROR(IF($AL$11="FRK",INDEX(Conn_FRK_Delivery,ROWS($13:50),COLUMNS($A:A)),""),"") ->  | AM50: =IFERROR(IF($AL$11="FRK",INDEX(Conn_FRK_Delivery,ROWS($13:50),COLUMNS($A:B)),""),"") ->  | AN50: =IFERROR(IF($AL$11="FRK",INDEX(Conn_FRK_Delivery,ROWS($13:50),COLUMNS($A:C)),""),"") ->  | AO50: =IFERROR(IF($AL$11="FRK",INDEX(Conn_FRK_Delivery,ROWS($13:50),COLUMNS($A:D)),""),"") ->  | AP50: =IFERROR(IF($AL$11="FRK",INDEX(Conn_FRK_Delivery,ROWS($13:50),COLUMNS($A:E)),""),"") ->  | AR50: =IF(ROWS($13:50)<=IFERROR(ROWS(FRY_Delivery_Data),0),"FRY",IF(ROWS($13:50)<=IFERROR(ROWS(FRY_Delivery_Data),0)+IFERROR(ROWS(FRK_Delivery_Data),0),"FRK","")) ->  | AS50: =IF($AR50="FRY",INDEX(FRY_Delivery_Data,COUNTIF($AR$13:$AR50,$AR50),COLUMNS($A:A)),IF($AR50="FRK",INDEX(FRK_Delivery_Data,COUNTIF($AR$13:$AR50,$AR50),COLUMNS($A:A)),"")) ->  | AT50: =IF($AR50="FRY",INDEX(FRY_Delivery_Data,COUNTIF($AR$13:$AR50,$AR50),COLUMNS($A:B)),IF($AR50="FRK",INDEX(FRK_Delivery_Data,COUNTIF($AR$13:$AR50,$AR50),COLUMNS($A:B)),"")) ->  | AU50: =IF($AR50="FRY",INDEX(FRY_Delivery_Data,COUNTIF($AR$13:$AR50,$AR50),COLUMNS($A:C)),IF($AR50="FRK",INDEX(FRK_Delivery_Data,COUNTIF($AR$13:$AR50,$AR50),COLUMNS($A:C)),"")) ->  | AV50: =IF($AR50="FRY",INDEX(FRY_Delivery_Data,COUNTIF($AR$13:$AR50,$AR50),COLUMNS($A:D)),IF($AR50="FRK",INDEX(FRK_Delivery_Data,COUNTIF($AR$13:$AR50,$AR50),COLUMNS($A:D)),"")) ->  | AW50: =IF($AR50="FRY",INDEX(FRY_Delivery_Data,COUNTIF($AR$13:$AR50,$AR50),COLUMNS($A:E)),IF($AR50="FRK",INDEX(FRK_Delivery_Data,COUNTIF($AR$13:$AR50,$AR50),COLUMNS($A:E)),"")) -> 
B51: =IF(OR($C51="",$C51=0,ROWS($13:51)>ROWS(Product_List)),"",COUNTIF($C$13:$C51,"*?")) -> 39 | C51: =IFERROR(IF($C$9="No File In Folder","",INDEX(Product_List,ROWS($13:51))),"") -> 39-ขนมปังไส้กรอกคอกเทลหมู | D51: 270 | G51: =IFERROR(IF(OR($C51=0,G$12=""),"",IF(G$12="Total",IF(SUM(F51:$G51)=0,0,SUM(F51:$G51)),IF(Selector=8,Percent_Waste,Ref_Result))),"") -> 30 | H51: =IFERROR(IF(OR($C51=0,H$12=""),"",IF(H$12="Total",IF(SUM(G51:$G51)=0,0,SUM(G51:$G51)),IF(Selector=8,Percent_Waste,Ref_Result))),"") -> 20 | I51: =IFERROR(IF(OR($C51=0,I$12=""),"",IF(I$12="Total",IF(SUM($G51:H51)=0,0,SUM($G51:H51)),IF(Selector=8,Percent_Waste,Ref_Result))),"") -> 30 | J51: =IFERROR(IF(OR($C51=0,J$12=""),"",IF(J$12="Total",IF(SUM($G51:I51)=0,0,SUM($G51:I51)),IF(Selector=8,Percent_Waste,Ref_Result))),"") -> 30 | K51: =IFERROR(IF(OR($C51=0,K$12=""),"",IF(K$12="Total",IF(SUM($G51:J51)=0,0,SUM($G51:J51)),IF(Selector=8,Percent_Waste,Ref_Result))),"") -> 30 | L51: =IFERROR(IF(OR($C51=0,L$12=""),"",IF(L$12="Total",IF(SUM($G51:K51)=0,0,SUM($G51:K51)),IF(Selector=8,Percent_Waste,Ref_Result))),"") -> 20 | M51: =IFERROR(IF(OR($C51=0,M$12=""),"",IF(M$12="Total",IF(SUM($G51:L51)=0,0,SUM($G51:L51)),IF(Selector=8,Percent_Waste,Ref_Result))),"") -> 20 | N51: =IFERROR(IF(OR($C51=0,N$12=""),"",IF(N$12="Total",IF(SUM($G51:M51)=0,0,SUM($G51:M51)),IF(Selector=8,Percent_Waste,Ref_Result))),"") -> 20 | O51: =IFERROR(IF(OR($C51=0,O$12=""),"",IF(O$12="Total",IF(SUM($G51:N51)=0,0,SUM($G51:N51)),IF(Selector=8,Percent_Waste,Ref_Result))),"") -> 0 | P51: =IFERROR(IF(OR($C51=0,P$12=""),"",IF(P$12="Total",IF(SUM($G51:O51)=0,0,SUM($G51:O51)),IF(Selector=8,Percent_Waste,Ref_Result))),"") -> 20 | Q51: =IFERROR(IF(OR($C51=0,Q$12=""),"",IF(Q$12="Total",IF(SUM($G51:P51)=0,0,SUM($G51:P51)),IF(Selector=8,Percent_Waste,Ref_Result))),"") -> 220 | R51: =IFERROR(IF(OR($C51=0,R$12=""),"",IF(R$12="Total",IF(SUM($G51:Q51)=0,0,SUM($G51:Q51)),IF(Selector=8,Percent_Waste,Ref_Result))),"") ->  | S51: =IFERROR(IF(OR($C51=0,S$12=""),"",IF(S$12="Total",IF(SUM($G51:R51)=0,0,SUM($G51:R51)),IF(Selector=8,Percent_Waste,Ref_Result))),"") ->  | T51: =IFERROR(IF(OR($C51=0,T$12=""),"",IF(T$12="Total",IF(SUM($G51:S51)=0,0,SUM($G51:S51)),IF(Selector=8,Percent_Waste,Ref_Result))),"") ->  | U51: =IFERROR(IF(OR($C51=0,U$12=""),"",IF(U$12="Total",IF(SUM($G51:T51)=0,0,SUM($G51:T51)),IF(Selector=8,Percent_Waste,Ref_Result))),"") ->  | V51: =IFERROR(IF(OR($C51=0,V$12=""),"",IF(V$12="Total",IF(SUM($G51:U51)=0,0,SUM($G51:U51)),IF(Selector=8,Percent_Waste,Ref_Result))),"") ->  | W51: =IFERROR(IF(OR($C51=0,W$12=""),"",IF(W$12="Total",IF(SUM($G51:V51)=0,0,SUM($G51:V51)),IF(Selector=8,Percent_Waste,Ref_Result))),"") ->  | X51: =IFERROR(IF(OR($C51=0,X$12=""),"",IF(X$12="Total",IF(SUM($G51:W51)=0,0,SUM($G51:W51)),IF(Selector=8,Percent_Waste,Ref_Result))),"") ->  | Y51: =IFERROR(IF(OR($C51=0,Y$12=""),"",IF(Y$12="Total",IF(SUM($G51:X51)=0,0,SUM($G51:X51)),IF(Selector=8,Percent_Waste,Ref_Result))),"") ->  | Z51: =IFERROR(IF(OR($C51=0,Z$12=""),"",IF(Z$12="Total",IF(SUM($G51:Y51)=0,0,SUM($G51:Y51)),IF(Selector=8,Percent_Waste,Ref_Result))),"") ->  | AA51: 50 | AF51: =IFERROR(IF($AF$11="FRY",INDEX(Conn_FRY_Delivery,ROWS($13:51),COLUMNS($A:A)),""),"") ->  | AG51: =IFERROR(IF($AF$11="FRY",INDEX(Conn_FRY_Delivery,ROWS($13:51),COLUMNS($A:B)),""),"") ->  | AH51: =IFERROR(IF($AF$11="FRY",INDEX(Conn_FRY_Delivery,ROWS($13:51),COLUMNS($A:C)),""),"") ->  | AI51: =IFERROR(IF($AF$11="FRY",INDEX(Conn_FRY_Delivery,ROWS($13:51),COLUMNS($A:D)),""),"") ->  | AJ51: =IFERROR(IF($AF$11="FRY",INDEX(Conn_FRY_Delivery,ROWS($13:51),COLUMNS($A:E)),""),"") ->  | AL51: =IFERROR(IF($AL$11="FRK",INDEX(Conn_FRK_Delivery,ROWS($13:51),COLUMNS($A:A)),""),"") ->  | AM51: =IFERROR(IF($AL$11="FRK",INDEX(Conn_FRK_Delivery,ROWS($13:51),COLUMNS($A:B)),""),"") ->  | AN51: =IFERROR(IF($AL$11="FRK",INDEX(Conn_FRK_Delivery,ROWS($13:51),COLUMNS($A:C)),""),"") ->  | AO51: =IFERROR(IF($AL$11="FRK",INDEX(Conn_FRK_Delivery,ROWS($13:51),COLUMNS($A:D)),""),"") ->  | AP51: =IFERROR(IF($AL$11="FRK",INDEX(Conn_FRK_Delivery,ROWS($13:51),COLUMNS($A:E)),""),"") ->  | AR51: =IF(ROWS($13:51)<=IFERROR(ROWS(FRY_Delivery_Data),0),"FRY",IF(ROWS($13:51)<=IFERROR(ROWS(FRY_Delivery_Data),0)+IFERROR(ROWS(FRK_Delivery_Data),0),"FRK","")) ->  | AS51: =IF($AR51="FRY",INDEX(FRY_Delivery_Data,COUNTIF($AR$13:$AR51,$AR51),COLUMNS($A:A)),IF($AR51="FRK",INDEX(FRK_Delivery_Data,COUNTIF($AR$13:$AR51,$AR51),COLUMNS($A:A)),"")) ->  | AT51: =IF($AR51="FRY",INDEX(FRY_Delivery_Data,COUNTIF($AR$13:$AR51,$AR51),COLUMNS($A:B)),IF($AR51="FRK",INDEX(FRK_Delivery_Data,COUNTIF($AR$13:$AR51,$AR51),COLUMNS($A:B)),"")) ->  | AU51: =IF($AR51="FRY",INDEX(FRY_Delivery_Data,COUNTIF($AR$13:$AR51,$AR51),COLUMNS($A:C)),IF($AR51="FRK",INDEX(FRK_Delivery_Data,COUNTIF($AR$13:$AR51,$AR51),COLUMNS($A:C)),"")) ->  | AV51: =IF($AR51="FRY",INDEX(FRY_Delivery_Data,COUNTIF($AR$13:$AR51,$AR51),COLUMNS($A:D)),IF($AR51="FRK",INDEX(FRK_Delivery_Data,COUNTIF($AR$13:$AR51,$AR51),COLUMNS($A:D)),"")) ->  | AW51: =IF($AR51="FRY",INDEX(FRY_Delivery_Data,COUNTIF($AR$13:$AR51,$AR51),COLUMNS($A:E)),IF($AR51="FRK",INDEX(FRK_Delivery_Data,COUNTIF($AR$13:$AR51,$AR51),COLUMNS($A:E)),"")) -> 
B52: =IF(OR($C52="",$C52=0,ROWS($13:52)>ROWS(Product_List)),"",COUNTIF($C$13:$C52,"*?")) -> 40 | C52: =IFERROR(IF($C$9="No File In Folder","",INDEX(Product_List,ROWS($13:52))),"") -> 40-บัตเตอร์เค้กสไลด์ | D52: 0 | G52: =IFERROR(IF(OR($C52=0,G$12=""),"",IF(G$12="Total",IF(SUM(F52:$G52)=0,0,SUM(F52:$G52)),IF(Selector=8,Percent_Waste,Ref_Result))),"") -> 0 | H52: =IFERROR(IF(OR($C52=0,H$12=""),"",IF(H$12="Total",IF(SUM(G52:$G52)=0,0,SUM(G52:$G52)),IF(Selector=8,Percent_Waste,Ref_Result))),"") -> 0 | I52: =IFERROR(IF(OR($C52=0,I$12=""),"",IF(I$12="Total",IF(SUM($G52:H52)=0,0,SUM($G52:H52)),IF(Selector=8,Percent_Waste,Ref_Result))),"") -> 0 | J52: =IFERROR(IF(OR($C52=0,J$12=""),"",IF(J$12="Total",IF(SUM($G52:I52)=0,0,SUM($G52:I52)),IF(Selector=8,Percent_Waste,Ref_Result))),"") -> 0 | K52: =IFERROR(IF(OR($C52=0,K$12=""),"",IF(K$12="Total",IF(SUM($G52:J52)=0,0,SUM($G52:J52)),IF(Selector=8,Percent_Waste,Ref_Result))),"") -> 0 | L52: =IFERROR(IF(OR($C52=0,L$12=""),"",IF(L$12="Total",IF(SUM($G52:K52)=0,0,SUM($G52:K52)),IF(Selector=8,Percent_Waste,Ref_Result))),"") -> 0 | M52: =IFERROR(IF(OR($C52=0,M$12=""),"",IF(M$12="Total",IF(SUM($G52:L52)=0,0,SUM($G52:L52)),IF(Selector=8,Percent_Waste,Ref_Result))),"") -> 0 | N52: =IFERROR(IF(OR($C52=0,N$12=""),"",IF(N$12="Total",IF(SUM($G52:M52)=0,0,SUM($G52:M52)),IF(Selector=8,Percent_Waste,Ref_Result))),"") -> 0 | O52: =IFERROR(IF(OR($C52=0,O$12=""),"",IF(O$12="Total",IF(SUM($G52:N52)=0,0,SUM($G52:N52)),IF(Selector=8,Percent_Waste,Ref_Result))),"") -> 0 | P52: =IFERROR(IF(OR($C52=0,P$12=""),"",IF(P$12="Total",IF(SUM($G52:O52)=0,0,SUM($G52:O52)),IF(Selector=8,Percent_Waste,Ref_Result))),"") -> 0 | Q52: =IFERROR(IF(OR($C52=0,Q$12=""),"",IF(Q$12="Total",IF(SUM($G52:P52)=0,0,SUM($G52:P52)),IF(Selector=8,Percent_Waste,Ref_Result))),"") -> 0 | R52: =IFERROR(IF(OR($C52=0,R$12=""),"",IF(R$12="Total",IF(SUM($G52:Q52)=0,0,SUM($G52:Q52)),IF(Selector=8,Percent_Waste,Ref_Result))),"") ->  | S52: =IFERROR(IF(OR($C52=0,S$12=""),"",IF(S$12="Total",IF(SUM($G52:R52)=0,0,SUM($G52:R52)),IF(Selector=8,Percent_Waste,Ref_Result))),"") ->  | T52: =IFERROR(IF(OR($C52=0,T$12=""),"",IF(T$12="Total",IF(SUM($G52:S52)=0,0,SUM($G52:S52)),IF(Selector=8,Percent_Waste,Ref_Result))),"") ->  | U52: =IFERROR(IF(OR($C52=0,U$12=""),"",IF(U$12="Total",IF(SUM($G52:T52)=0,0,SUM($G52:T52)),IF(Selector=8,Percent_Waste,Ref_Result))),"") ->  | V52: =IFERROR(IF(OR($C52=0,V$12=""),"",IF(V$12="Total",IF(SUM($G52:U52)=0,0,SUM($G52:U52)),IF(Selector=8,Percent_Waste,Ref_Result))),"") ->  | W52: =IFERROR(IF(OR($C52=0,W$12=""),"",IF(W$12="Total",IF(SUM($G52:V52)=0,0,SUM($G52:V52)),IF(Selector=8,Percent_Waste,Ref_Result))),"") ->  | X52: =IFERROR(IF(OR($C52=0,X$12=""),"",IF(X$12="Total",IF(SUM($G52:W52)=0,0,SUM($G52:W52)),IF(Selector=8,Percent_Waste,Ref_Result))),"") ->  | Y52: =IFERROR(IF(OR($C52=0,Y$12=""),"",IF(Y$12="Total",IF(SUM($G52:X52)=0,0,SUM($G52:X52)),IF(Selector=8,Percent_Waste,Ref_Result))),"") ->  | Z52: =IFERROR(IF(OR($C52=0,Z$12=""),"",IF(Z$12="Total",IF(SUM($G52:Y52)=0,0,SUM($G52:Y52)),IF(Selector=8,Percent_Waste,Ref_Result))),"") ->  | AA52: 0 | AF52: =IFERROR(IF($AF$11="FRY",INDEX(Conn_FRY_Delivery,ROWS($13:52),COLUMNS($A:A)),""),"") ->  | AG52: =IFERROR(IF($AF$11="FRY",INDEX(Conn_FRY_Delivery,ROWS($13:52),COLUMNS($A:B)),""),"") ->  | AH52: =IFERROR(IF($AF$11="FRY",INDEX(Conn_FRY_Delivery,ROWS($13:52),COLUMNS($A:C)),""),"") ->  | AI52: =IFERROR(IF($AF$11="FRY",INDEX(Conn_FRY_Delivery,ROWS($13:52),COLUMNS($A:D)),""),"") ->  | AJ52: =IFERROR(IF($AF$11="FRY",INDEX(Conn_FRY_Delivery,ROWS($13:52),COLUMNS($A:E)),""),"") ->  | AL52: =IFERROR(IF($AL$11="FRK",INDEX(Conn_FRK_Delivery,ROWS($13:52),COLUMNS($A:A)),""),"") ->  | AM52: =IFERROR(IF($AL$11="FRK",INDEX(Conn_FRK_Delivery,ROWS($13:52),COLUMNS($A:B)),""),"") ->  | AN52: =IFERROR(IF($AL$11="FRK",INDEX(Conn_FRK_Delivery,ROWS($13:52),COLUMNS($A:C)),""),"") ->  | AO52: =IFERROR(IF($AL$11="FRK",INDEX(Conn_FRK_Delivery,ROWS($13:52),COLUMNS($A:D)),""),"") ->  | AP52: =IFERROR(IF($AL$11="FRK",INDEX(Conn_FRK_Delivery,ROWS($13:52),COLUMNS($A:E)),""),"") ->  | AR52: =IF(ROWS($13:52)<=IFERROR(ROWS(FRY_Delivery_Data),0),"FRY",IF(ROWS($13:52)<=IFERROR(ROWS(FRY_Delivery_Data),0)+IFERROR(ROWS(FRK_Delivery_Data),0),"FRK","")) ->  | AS52: =IF($AR52="FRY",INDEX(FRY_Delivery_Data,COUNTIF($AR$13:$AR52,$AR52),COLUMNS($A:A)),IF($AR52="FRK",INDEX(FRK_Delivery_Data,COUNTIF($AR$13:$AR52,$AR52),COLUMNS($A:A)),"")) ->  | AT52: =IF($AR52="FRY",INDEX(FRY_Delivery_Data,COUNTIF($AR$13:$AR52,$AR52),COLUMNS($A:B)),IF($AR52="FRK",INDEX(FRK_Delivery_Data,COUNTIF($AR$13:$AR52,$AR52),COLUMNS($A:B)),"")) ->  | AU52: =IF($AR52="FRY",INDEX(FRY_Delivery_Data,COUNTIF($AR$13:$AR52,$AR52),COLUMNS($A:C)),IF($AR52="FRK",INDEX(FRK_Delivery_Data,COUNTIF($AR$13:$AR52,$AR52),COLUMNS($A:C)),"")) ->  | AV52: =IF($AR52="FRY",INDEX(FRY_Delivery_Data,COUNTIF($AR$13:$AR52,$AR52),COLUMNS($A:D)),IF($AR52="FRK",INDEX(FRK_Delivery_Data,COUNTIF($AR$13:$AR52,$AR52),COLUMNS($A:D)),"")) ->  | AW52: =IF($AR52="FRY",INDEX(FRY_Delivery_Data,COUNTIF($AR$13:$AR52,$AR52),COLUMNS($A:E)),IF($AR52="FRK",INDEX(FRK_Delivery_Data,COUNTIF($AR$13:$AR52,$AR52),COLUMNS($A:E)),"")) -> 
B53: =IF(OR($C53="",$C53=0,ROWS($13:53)>ROWS(Product_List)),"",COUNTIF($C$13:$C53,"*?")) -> 41 | C53: =IFERROR(IF($C$9="No File In Folder","",INDEX(Product_List,ROWS($13:53))),"") -> 41-บัตเตอร์เค้กมิกซ์ฟรุต | D53: 0 | G53: =IFERROR(IF(OR($C53=0,G$12=""),"",IF(G$12="Total",IF(SUM(F53:$G53)=0,0,SUM(F53:$G53)),IF(Selector=8,Percent_Waste,Ref_Result))),"") -> 0 | H53: =IFERROR(IF(OR($C53=0,H$12=""),"",IF(H$12="Total",IF(SUM(G53:$G53)=0,0,SUM(G53:$G53)),IF(Selector=8,Percent_Waste,Ref_Result))),"") -> 0 | I53: =IFERROR(IF(OR($C53=0,I$12=""),"",IF(I$12="Total",IF(SUM($G53:H53)=0,0,SUM($G53:H53)),IF(Selector=8,Percent_Waste,Ref_Result))),"") -> 0 | J53: =IFERROR(IF(OR($C53=0,J$12=""),"",IF(J$12="Total",IF(SUM($G53:I53)=0,0,SUM($G53:I53)),IF(Selector=8,Percent_Waste,Ref_Result))),"") -> 0 | K53: =IFERROR(IF(OR($C53=0,K$12=""),"",IF(K$12="Total",IF(SUM($G53:J53)=0,0,SUM($G53:J53)),IF(Selector=8,Percent_Waste,Ref_Result))),"") -> 0 | L53: =IFERROR(IF(OR($C53=0,L$12=""),"",IF(L$12="Total",IF(SUM($G53:K53)=0,0,SUM($G53:K53)),IF(Selector=8,Percent_Waste,Ref_Result))),"") -> 0 | M53: =IFERROR(IF(OR($C53=0,M$12=""),"",IF(M$12="Total",IF(SUM($G53:L53)=0,0,SUM($G53:L53)),IF(Selector=8,Percent_Waste,Ref_Result))),"") -> 0 | N53: =IFERROR(IF(OR($C53=0,N$12=""),"",IF(N$12="Total",IF(SUM($G53:M53)=0,0,SUM($G53:M53)),IF(Selector=8,Percent_Waste,Ref_Result))),"") -> 0 | O53: =IFERROR(IF(OR($C53=0,O$12=""),"",IF(O$12="Total",IF(SUM($G53:N53)=0,0,SUM($G53:N53)),IF(Selector=8,Percent_Waste,Ref_Result))),"") -> 0 | P53: =IFERROR(IF(OR($C53=0,P$12=""),"",IF(P$12="Total",IF(SUM($G53:O53)=0,0,SUM($G53:O53)),IF(Selector=8,Percent_Waste,Ref_Result))),"") -> 0 | Q53: =IFERROR(IF(OR($C53=0,Q$12=""),"",IF(Q$12="Total",IF(SUM($G53:P53)=0,0,SUM($G53:P53)),IF(Selector=8,Percent_Waste,Ref_Result))),"") -> 0 | R53: =IFERROR(IF(OR($C53=0,R$12=""),"",IF(R$12="Total",IF(SUM($G53:Q53)=0,0,SUM($G53:Q53)),IF(Selector=8,Percent_Waste,Ref_Result))),"") ->  | S53: =IFERROR(IF(OR($C53=0,S$12=""),"",IF(S$12="Total",IF(SUM($G53:R53)=0,0,SUM($G53:R53)),IF(Selector=8,Percent_Waste,Ref_Result))),"") ->  | T53: =IFERROR(IF(OR($C53=0,T$12=""),"",IF(T$12="Total",IF(SUM($G53:S53)=0,0,SUM($G53:S53)),IF(Selector=8,Percent_Waste,Ref_Result))),"") ->  | U53: =IFERROR(IF(OR($C53=0,U$12=""),"",IF(U$12="Total",IF(SUM($G53:T53)=0,0,SUM($G53:T53)),IF(Selector=8,Percent_Waste,Ref_Result))),"") ->  | V53: =IFERROR(IF(OR($C53=0,V$12=""),"",IF(V$12="Total",IF(SUM($G53:U53)=0,0,SUM($G53:U53)),IF(Selector=8,Percent_Waste,Ref_Result))),"") ->  | W53: =IFERROR(IF(OR($C53=0,W$12=""),"",IF(W$12="Total",IF(SUM($G53:V53)=0,0,SUM($G53:V53)),IF(Selector=8,Percent_Waste,Ref_Result))),"") ->  | X53: =IFERROR(IF(OR($C53=0,X$12=""),"",IF(X$12="Total",IF(SUM($G53:W53)=0,0,SUM($G53:W53)),IF(Selector=8,Percent_Waste,Ref_Result))),"") ->  | Y53: =IFERROR(IF(OR($C53=0,Y$12=""),"",IF(Y$12="Total",IF(SUM($G53:X53)=0,0,SUM($G53:X53)),IF(Selector=8,Percent_Waste,Ref_Result))),"") ->  | Z53: =IFERROR(IF(OR($C53=0,Z$12=""),"",IF(Z$12="Total",IF(SUM($G53:Y53)=0,0,SUM($G53:Y53)),IF(Selector=8,Percent_Waste,Ref_Result))),"") ->  | AA53: 0 | AF53: =IFERROR(IF($AF$11="FRY",INDEX(Conn_FRY_Delivery,ROWS($13:53),COLUMNS($A:A)),""),"") ->  | AG53: =IFERROR(IF($AF$11="FRY",INDEX(Conn_FRY_Delivery,ROWS($13:53),COLUMNS($A:B)),""),"") ->  | AH53: =IFERROR(IF($AF$11="FRY",INDEX(Conn_FRY_Delivery,ROWS($13:53),COLUMNS($A:C)),""),"") ->  | AI53: =IFERROR(IF($AF$11="FRY",INDEX(Conn_FRY_Delivery,ROWS($13:53),COLUMNS($A:D)),""),"") ->  | AJ53: =IFERROR(IF($AF$11="FRY",INDEX(Conn_FRY_Delivery,ROWS($13:53),COLUMNS($A:E)),""),"") ->  | AL53: =IFERROR(IF($AL$11="FRK",INDEX(Conn_FRK_Delivery,ROWS($13:53),COLUMNS($A:A)),""),"") ->  | AM53: =IFERROR(IF($AL$11="FRK",INDEX(Conn_FRK_Delivery,ROWS($13:53),COLUMNS($A:B)),""),"") ->  | AN53: =IFERROR(IF($AL$11="FRK",INDEX(Conn_FRK_Delivery,ROWS($13:53),COLUMNS($A:C)),""),"") ->  | AO53: =IFERROR(IF($AL$11="FRK",INDEX(Conn_FRK_Delivery,ROWS($13:53),COLUMNS($A:D)),""),"") ->  | AP53: =IFERROR(IF($AL$11="FRK",INDEX(Conn_FRK_Delivery,ROWS($13:53),COLUMNS($A:E)),""),"") ->  | AR53: =IF(ROWS($13:53)<=IFERROR(ROWS(FRY_Delivery_Data),0),"FRY",IF(ROWS($13:53)<=IFERROR(ROWS(FRY_Delivery_Data),0)+IFERROR(ROWS(FRK_Delivery_Data),0),"FRK","")) ->  | AS53: =IF($AR53="FRY",INDEX(FRY_Delivery_Data,COUNTIF($AR$13:$AR53,$AR53),COLUMNS($A:A)),IF($AR53="FRK",INDEX(FRK_Delivery_Data,COUNTIF($AR$13:$AR53,$AR53),COLUMNS($A:A)),"")) ->  | AT53: =IF($AR53="FRY",INDEX(FRY_Delivery_Data,COUNTIF($AR$13:$AR53,$AR53),COLUMNS($A:B)),IF($AR53="FRK",INDEX(FRK_Delivery_Data,COUNTIF($AR$13:$AR53,$AR53),COLUMNS($A:B)),"")) ->  | AU53: =IF($AR53="FRY",INDEX(FRY_Delivery_Data,COUNTIF($AR$13:$AR53,$AR53),COLUMNS($A:C)),IF($AR53="FRK",INDEX(FRK_Delivery_Data,COUNTIF($AR$13:$AR53,$AR53),COLUMNS($A:C)),"")) ->  | AV53: =IF($AR53="FRY",INDEX(FRY_Delivery_Data,COUNTIF($AR$13:$AR53,$AR53),COLUMNS($A:D)),IF($AR53="FRK",INDEX(FRK_Delivery_Data,COUNTIF($AR$13:$AR53,$AR53),COLUMNS($A:D)),"")) ->  | AW53: =IF($AR53="FRY",INDEX(FRY_Delivery_Data,COUNTIF($AR$13:$AR53,$AR53),COLUMNS($A:E)),IF($AR53="FRK",INDEX(FRK_Delivery_Data,COUNTIF($AR$13:$AR53,$AR53),COLUMNS($A:E)),"")) -> 
B54: =IF(OR($C54="",$C54=0,ROWS($13:54)>ROWS(Product_List)),"",COUNTIF($C$13:$C54,"*?")) -> 42 | C54: =IFERROR(IF($C$9="No File In Folder","",INDEX(Product_List,ROWS($13:54))),"") -> 42-ขนมปังไส้มันม่วง | D54: 250 | G54: =IFERROR(IF(OR($C54=0,G$12=""),"",IF(G$12="Total",IF(SUM(F54:$G54)=0,0,SUM(F54:$G54)),IF(Selector=8,Percent_Waste,Ref_Result))),"") -> 20 | H54: =IFERROR(IF(OR($C54=0,H$12=""),"",IF(H$12="Total",IF(SUM(G54:$G54)=0,0,SUM(G54:$G54)),IF(Selector=8,Percent_Waste,Ref_Result))),"") -> 20 | I54: =IFERROR(IF(OR($C54=0,I$12=""),"",IF(I$12="Total",IF(SUM($G54:H54)=0,0,SUM($G54:H54)),IF(Selector=8,Percent_Waste,Ref_Result))),"") -> 20 | J54: =IFERROR(IF(OR($C54=0,J$12=""),"",IF(J$12="Total",IF(SUM($G54:I54)=0,0,SUM($G54:I54)),IF(Selector=8,Percent_Waste,Ref_Result))),"") -> 50 | K54: =IFERROR(IF(OR($C54=0,K$12=""),"",IF(K$12="Total",IF(SUM($G54:J54)=0,0,SUM($G54:J54)),IF(Selector=8,Percent_Waste,Ref_Result))),"") -> 30 | L54: =IFERROR(IF(OR($C54=0,L$12=""),"",IF(L$12="Total",IF(SUM($G54:K54)=0,0,SUM($G54:K54)),IF(Selector=8,Percent_Waste,Ref_Result))),"") -> 20 | M54: =IFERROR(IF(OR($C54=0,M$12=""),"",IF(M$12="Total",IF(SUM($G54:L54)=0,0,SUM($G54:L54)),IF(Selector=8,Percent_Waste,Ref_Result))),"") -> 10 | N54: =IFERROR(IF(OR($C54=0,N$12=""),"",IF(N$12="Total",IF(SUM($G54:M54)=0,0,SUM($G54:M54)),IF(Selector=8,Percent_Waste,Ref_Result))),"") -> 20 | O54: =IFERROR(IF(OR($C54=0,O$12=""),"",IF(O$12="Total",IF(SUM($G54:N54)=0,0,SUM($G54:N54)),IF(Selector=8,Percent_Waste,Ref_Result))),"") -> 20 | P54: =IFERROR(IF(OR($C54=0,P$12=""),"",IF(P$12="Total",IF(SUM($G54:O54)=0,0,SUM($G54:O54)),IF(Selector=8,Percent_Waste,Ref_Result))),"") -> 20 | Q54: =IFERROR(IF(OR($C54=0,Q$12=""),"",IF(Q$12="Total",IF(SUM($G54:P54)=0,0,SUM($G54:P54)),IF(Selector=8,Percent_Waste,Ref_Result))),"") -> 230 | R54: =IFERROR(IF(OR($C54=0,R$12=""),"",IF(R$12="Total",IF(SUM($G54:Q54)=0,0,SUM($G54:Q54)),IF(Selector=8,Percent_Waste,Ref_Result))),"") ->  | S54: =IFERROR(IF(OR($C54=0,S$12=""),"",IF(S$12="Total",IF(SUM($G54:R54)=0,0,SUM($G54:R54)),IF(Selector=8,Percent_Waste,Ref_Result))),"") ->  | T54: =IFERROR(IF(OR($C54=0,T$12=""),"",IF(T$12="Total",IF(SUM($G54:S54)=0,0,SUM($G54:S54)),IF(Selector=8,Percent_Waste,Ref_Result))),"") ->  | U54: =IFERROR(IF(OR($C54=0,U$12=""),"",IF(U$12="Total",IF(SUM($G54:T54)=0,0,SUM($G54:T54)),IF(Selector=8,Percent_Waste,Ref_Result))),"") ->  | V54: =IFERROR(IF(OR($C54=0,V$12=""),"",IF(V$12="Total",IF(SUM($G54:U54)=0,0,SUM($G54:U54)),IF(Selector=8,Percent_Waste,Ref_Result))),"") ->  | W54: =IFERROR(IF(OR($C54=0,W$12=""),"",IF(W$12="Total",IF(SUM($G54:V54)=0,0,SUM($G54:V54)),IF(Selector=8,Percent_Waste,Ref_Result))),"") ->  | X54: =IFERROR(IF(OR($C54=0,X$12=""),"",IF(X$12="Total",IF(SUM($G54:W54)=0,0,SUM($G54:W54)),IF(Selector=8,Percent_Waste,Ref_Result))),"") ->  | Y54: =IFERROR(IF(OR($C54=0,Y$12=""),"",IF(Y$12="Total",IF(SUM($G54:X54)=0,0,SUM($G54:X54)),IF(Selector=8,Percent_Waste,Ref_Result))),"") ->  | Z54: =IFERROR(IF(OR($C54=0,Z$12=""),"",IF(Z$12="Total",IF(SUM($G54:Y54)=0,0,SUM($G54:Y54)),IF(Selector=8,Percent_Waste,Ref_Result))),"") ->  | AA54: 20 | AF54: =IFERROR(IF($AF$11="FRY",INDEX(Conn_FRY_Delivery,ROWS($13:54),COLUMNS($A:A)),""),"") ->  | AG54: =IFERROR(IF($AF$11="FRY",INDEX(Conn_FRY_Delivery,ROWS($13:54),COLUMNS($A:B)),""),"") ->  | AH54: =IFERROR(IF($AF$11="FRY",INDEX(Conn_FRY_Delivery,ROWS($13:54),COLUMNS($A:C)),""),"") ->  | AI54: =IFERROR(IF($AF$11="FRY",INDEX(Conn_FRY_Delivery,ROWS($13:54),COLUMNS($A:D)),""),"") ->  | AJ54: =IFERROR(IF($AF$11="FRY",INDEX(Conn_FRY_Delivery,ROWS($13:54),COLUMNS($A:E)),""),"") ->  | AL54: =IFERROR(IF($AL$11="FRK",INDEX(Conn_FRK_Delivery,ROWS($13:54),COLUMNS($A:A)),""),"") ->  | AM54: =IFERROR(IF($AL$11="FRK",INDEX(Conn_FRK_Delivery,ROWS($13:54),COLUMNS($A:B)),""),"") ->  | AN54: =IFERROR(IF($AL$11="FRK",INDEX(Conn_FRK_Delivery,ROWS($13:54),COLUMNS($A:C)),""),"") ->  | AO54: =IFERROR(IF($AL$11="FRK",INDEX(Conn_FRK_Delivery,ROWS($13:54),COLUMNS($A:D)),""),"") ->  | AP54: =IFERROR(IF($AL$11="FRK",INDEX(Conn_FRK_Delivery,ROWS($13:54),COLUMNS($A:E)),""),"") ->  | AR54: =IF(ROWS($13:54)<=IFERROR(ROWS(FRY_Delivery_Data),0),"FRY",IF(ROWS($13:54)<=IFERROR(ROWS(FRY_Delivery_Data),0)+IFERROR(ROWS(FRK_Delivery_Data),0),"FRK","")) ->  | AS54: =IF($AR54="FRY",INDEX(FRY_Delivery_Data,COUNTIF($AR$13:$AR54,$AR54),COLUMNS($A:A)),IF($AR54="FRK",INDEX(FRK_Delivery_Data,COUNTIF($AR$13:$AR54,$AR54),COLUMNS($A:A)),"")) ->  | AT54: =IF($AR54="FRY",INDEX(FRY_Delivery_Data,COUNTIF($AR$13:$AR54,$AR54),COLUMNS($A:B)),IF($AR54="FRK",INDEX(FRK_Delivery_Data,COUNTIF($AR$13:$AR54,$AR54),COLUMNS($A:B)),"")) ->  | AU54: =IF($AR54="FRY",INDEX(FRY_Delivery_Data,COUNTIF($AR$13:$AR54,$AR54),COLUMNS($A:C)),IF($AR54="FRK",INDEX(FRK_Delivery_Data,COUNTIF($AR$13:$AR54,$AR54),COLUMNS($A:C)),"")) ->  | AV54: =IF($AR54="FRY",INDEX(FRY_Delivery_Data,COUNTIF($AR$13:$AR54,$AR54),COLUMNS($A:D)),IF($AR54="FRK",INDEX(FRK_Delivery_Data,COUNTIF($AR$13:$AR54,$AR54),COLUMNS($A:D)),"")) ->  | AW54: =IF($AR54="FRY",INDEX(FRY_Delivery_Data,COUNTIF($AR$13:$AR54,$AR54),COLUMNS($A:E)),IF($AR54="FRK",INDEX(FRK_Delivery_Data,COUNTIF($AR$13:$AR54,$AR54),COLUMNS($A:E)),"")) -> 
B55: =IF(OR($C55="",$C55=0,ROWS($13:55)>ROWS(Product_List)),"",COUNTIF($C$13:$C55,"*?")) -> 43 | C55: =IFERROR(IF($C$9="No File In Folder","",INDEX(Product_List,ROWS($13:55))),"") -> 43-ขนมปังโรลเนยสดหมูหยอง | D55: 0 | G55: =IFERROR(IF(OR($C55=0,G$12=""),"",IF(G$12="Total",IF(SUM(F55:$G55)=0,0,SUM(F55:$G55)),IF(Selector=8,Percent_Waste,Ref_Result))),"") -> 0 | H55: =IFERROR(IF(OR($C55=0,H$12=""),"",IF(H$12="Total",IF(SUM(G55:$G55)=0,0,SUM(G55:$G55)),IF(Selector=8,Percent_Waste,Ref_Result))),"") -> 0 | I55: =IFERROR(IF(OR($C55=0,I$12=""),"",IF(I$12="Total",IF(SUM($G55:H55)=0,0,SUM($G55:H55)),IF(Selector=8,Percent_Waste,Ref_Result))),"") -> 0 | J55: =IFERROR(IF(OR($C55=0,J$12=""),"",IF(J$12="Total",IF(SUM($G55:I55)=0,0,SUM($G55:I55)),IF(Selector=8,Percent_Waste,Ref_Result))),"") -> 0 | K55: =IFERROR(IF(OR($C55=0,K$12=""),"",IF(K$12="Total",IF(SUM($G55:J55)=0,0,SUM($G55:J55)),IF(Selector=8,Percent_Waste,Ref_Result))),"") -> 0 | L55: =IFERROR(IF(OR($C55=0,L$12=""),"",IF(L$12="Total",IF(SUM($G55:K55)=0,0,SUM($G55:K55)),IF(Selector=8,Percent_Waste,Ref_Result))),"") -> 0 | M55: =IFERROR(IF(OR($C55=0,M$12=""),"",IF(M$12="Total",IF(SUM($G55:L55)=0,0,SUM($G55:L55)),IF(Selector=8,Percent_Waste,Ref_Result))),"") -> 0 | N55: =IFERROR(IF(OR($C55=0,N$12=""),"",IF(N$12="Total",IF(SUM($G55:M55)=0,0,SUM($G55:M55)),IF(Selector=8,Percent_Waste,Ref_Result))),"") -> 0 | O55: =IFERROR(IF(OR($C55=0,O$12=""),"",IF(O$12="Total",IF(SUM($G55:N55)=0,0,SUM($G55:N55)),IF(Selector=8,Percent_Waste,Ref_Result))),"") -> 0 | P55: =IFERROR(IF(OR($C55=0,P$12=""),"",IF(P$12="Total",IF(SUM($G55:O55)=0,0,SUM($G55:O55)),IF(Selector=8,Percent_Waste,Ref_Result))),"") -> 0 | Q55: =IFERROR(IF(OR($C55=0,Q$12=""),"",IF(Q$12="Total",IF(SUM($G55:P55)=0,0,SUM($G55:P55)),IF(Selector=8,Percent_Waste,Ref_Result))),"") -> 0 | R55: =IFERROR(IF(OR($C55=0,R$12=""),"",IF(R$12="Total",IF(SUM($G55:Q55)=0,0,SUM($G55:Q55)),IF(Selector=8,Percent_Waste,Ref_Result))),"") ->  | S55: =IFERROR(IF(OR($C55=0,S$12=""),"",IF(S$12="Total",IF(SUM($G55:R55)=0,0,SUM($G55:R55)),IF(Selector=8,Percent_Waste,Ref_Result))),"") ->  | T55: =IFERROR(IF(OR($C55=0,T$12=""),"",IF(T$12="Total",IF(SUM($G55:S55)=0,0,SUM($G55:S55)),IF(Selector=8,Percent_Waste,Ref_Result))),"") ->  | U55: =IFERROR(IF(OR($C55=0,U$12=""),"",IF(U$12="Total",IF(SUM($G55:T55)=0,0,SUM($G55:T55)),IF(Selector=8,Percent_Waste,Ref_Result))),"") ->  | V55: =IFERROR(IF(OR($C55=0,V$12=""),"",IF(V$12="Total",IF(SUM($G55:U55)=0,0,SUM($G55:U55)),IF(Selector=8,Percent_Waste,Ref_Result))),"") ->  | W55: =IFERROR(IF(OR($C55=0,W$12=""),"",IF(W$12="Total",IF(SUM($G55:V55)=0,0,SUM($G55:V55)),IF(Selector=8,Percent_Waste,Ref_Result))),"") ->  | X55: =IFERROR(IF(OR($C55=0,X$12=""),"",IF(X$12="Total",IF(SUM($G55:W55)=0,0,SUM($G55:W55)),IF(Selector=8,Percent_Waste,Ref_Result))),"") ->  | Y55: =IFERROR(IF(OR($C55=0,Y$12=""),"",IF(Y$12="Total",IF(SUM($G55:X55)=0,0,SUM($G55:X55)),IF(Selector=8,Percent_Waste,Ref_Result))),"") ->  | Z55: =IFERROR(IF(OR($C55=0,Z$12=""),"",IF(Z$12="Total",IF(SUM($G55:Y55)=0,0,SUM($G55:Y55)),IF(Selector=8,Percent_Waste,Ref_Result))),"") ->  | AA55: 0 | AF55: =IFERROR(IF($AF$11="FRY",INDEX(Conn_FRY_Delivery,ROWS($13:55),COLUMNS($A:A)),""),"") ->  | AG55: =IFERROR(IF($AF$11="FRY",INDEX(Conn_FRY_Delivery,ROWS($13:55),COLUMNS($A:B)),""),"") ->  | AH55: =IFERROR(IF($AF$11="FRY",INDEX(Conn_FRY_Delivery,ROWS($13:55),COLUMNS($A:C)),""),"") ->  | AI55: =IFERROR(IF($AF$11="FRY",INDEX(Conn_FRY_Delivery,ROWS($13:55),COLUMNS($A:D)),""),"") ->  | AJ55: =IFERROR(IF($AF$11="FRY",INDEX(Conn_FRY_Delivery,ROWS($13:55),COLUMNS($A:E)),""),"") ->  | AL55: =IFERROR(IF($AL$11="FRK",INDEX(Conn_FRK_Delivery,ROWS($13:55),COLUMNS($A:A)),""),"") ->  | AM55: =IFERROR(IF($AL$11="FRK",INDEX(Conn_FRK_Delivery,ROWS($13:55),COLUMNS($A:B)),""),"") ->  | AN55: =IFERROR(IF($AL$11="FRK",INDEX(Conn_FRK_Delivery,ROWS($13:55),COLUMNS($A:C)),""),"") ->  | AO55: =IFERROR(IF($AL$11="FRK",INDEX(Conn_FRK_Delivery,ROWS($13:55),COLUMNS($A:D)),""),"") ->  | AP55: =IFERROR(IF($AL$11="FRK",INDEX(Conn_FRK_Delivery,ROWS($13:55),COLUMNS($A:E)),""),"") ->  | AR55: =IF(ROWS($13:55)<=IFERROR(ROWS(FRY_Delivery_Data),0),"FRY",IF(ROWS($13:55)<=IFERROR(ROWS(FRY_Delivery_Data),0)+IFERROR(ROWS(FRK_Delivery_Data),0),"FRK","")) ->  | AS55: =IF($AR55="FRY",INDEX(FRY_Delivery_Data,COUNTIF($AR$13:$AR55,$AR55),COLUMNS($A:A)),IF($AR55="FRK",INDEX(FRK_Delivery_Data,COUNTIF($AR$13:$AR55,$AR55),COLUMNS($A:A)),"")) ->  | AT55: =IF($AR55="FRY",INDEX(FRY_Delivery_Data,COUNTIF($AR$13:$AR55,$AR55),COLUMNS($A:B)),IF($AR55="FRK",INDEX(FRK_Delivery_Data,COUNTIF($AR$13:$AR55,$AR55),COLUMNS($A:B)),"")) ->  | AU55: =IF($AR55="FRY",INDEX(FRY_Delivery_Data,COUNTIF($AR$13:$AR55,$AR55),COLUMNS($A:C)),IF($AR55="FRK",INDEX(FRK_Delivery_Data,COUNTIF($AR$13:$AR55,$AR55),COLUMNS($A:C)),"")) ->  | AV55: =IF($AR55="FRY",INDEX(FRY_Delivery_Data,COUNTIF($AR$13:$AR55,$AR55),COLUMNS($A:D)),IF($AR55="FRK",INDEX(FRK_Delivery_Data,COUNTIF($AR$13:$AR55,$AR55),COLUMNS($A:D)),"")) ->  | AW55: =IF($AR55="FRY",INDEX(FRY_Delivery_Data,COUNTIF($AR$13:$AR55,$AR55),COLUMNS($A:E)),IF($AR55="FRK",INDEX(FRK_Delivery_Data,COUNTIF($AR$13:$AR55,$AR55),COLUMNS($A:E)),"")) -> 
B56: =IF(OR($C56="",$C56=0,ROWS($13:56)>ROWS(Product_List)),"",COUNTIF($C$13:$C56,"*?")) -> 44 | C56: =IFERROR(IF($C$9="No File In Folder","",INDEX(Product_List,ROWS($13:56))),"") -> 44-มินิเค้กกล้วยหอม | D56: 210 | G56: =IFERROR(IF(OR($C56=0,G$12=""),"",IF(G$12="Total",IF(SUM(F56:$G56)=0,0,SUM(F56:$G56)),IF(Selector=8,Percent_Waste,Ref_Result))),"") -> 20 | H56: =IFERROR(IF(OR($C56=0,H$12=""),"",IF(H$12="Total",IF(SUM(G56:$G56)=0,0,SUM(G56:$G56)),IF(Selector=8,Percent_Waste,Ref_Result))),"") -> 20 | I56: =IFERROR(IF(OR($C56=0,I$12=""),"",IF(I$12="Total",IF(SUM($G56:H56)=0,0,SUM($G56:H56)),IF(Selector=8,Percent_Waste,Ref_Result))),"") -> 20 | J56: =IFERROR(IF(OR($C56=0,J$12=""),"",IF(J$12="Total",IF(SUM($G56:I56)=0,0,SUM($G56:I56)),IF(Selector=8,Percent_Waste,Ref_Result))),"") -> 20 | K56: =IFERROR(IF(OR($C56=0,K$12=""),"",IF(K$12="Total",IF(SUM($G56:J56)=0,0,SUM($G56:J56)),IF(Selector=8,Percent_Waste,Ref_Result))),"") -> 20 | L56: =IFERROR(IF(OR($C56=0,L$12=""),"",IF(L$12="Total",IF(SUM($G56:K56)=0,0,SUM($G56:K56)),IF(Selector=8,Percent_Waste,Ref_Result))),"") -> 20 | M56: =IFERROR(IF(OR($C56=0,M$12=""),"",IF(M$12="Total",IF(SUM($G56:L56)=0,0,SUM($G56:L56)),IF(Selector=8,Percent_Waste,Ref_Result))),"") -> 10 | N56: =IFERROR(IF(OR($C56=0,N$12=""),"",IF(N$12="Total",IF(SUM($G56:M56)=0,0,SUM($G56:M56)),IF(Selector=8,Percent_Waste,Ref_Result))),"") -> 20 | O56: =IFERROR(IF(OR($C56=0,O$12=""),"",IF(O$12="Total",IF(SUM($G56:N56)=0,0,SUM($G56:N56)),IF(Selector=8,Percent_Waste,Ref_Result))),"") -> 10 | P56: =IFERROR(IF(OR($C56=0,P$12=""),"",IF(P$12="Total",IF(SUM($G56:O56)=0,0,SUM($G56:O56)),IF(Selector=8,Percent_Waste,Ref_Result))),"") -> 30 | Q56: =IFERROR(IF(OR($C56=0,Q$12=""),"",IF(Q$12="Total",IF(SUM($G56:P56)=0,0,SUM($G56:P56)),IF(Selector=8,Percent_Waste,Ref_Result))),"") -> 190 | R56: =IFERROR(IF(OR($C56=0,R$12=""),"",IF(R$12="Total",IF(SUM($G56:Q56)=0,0,SUM($G56:Q56)),IF(Selector=8,Percent_Waste,Ref_Result))),"") ->  | S56: =IFERROR(IF(OR($C56=0,S$12=""),"",IF(S$12="Total",IF(SUM($G56:R56)=0,0,SUM($G56:R56)),IF(Selector=8,Percent_Waste,Ref_Result))),"") ->  | T56: =IFERROR(IF(OR($C56=0,T$12=""),"",IF(T$12="Total",IF(SUM($G56:S56)=0,0,SUM($G56:S56)),IF(Selector=8,Percent_Waste,Ref_Result))),"") ->  | U56: =IFERROR(IF(OR($C56=0,U$12=""),"",IF(U$12="Total",IF(SUM($G56:T56)=0,0,SUM($G56:T56)),IF(Selector=8,Percent_Waste,Ref_Result))),"") ->  | V56: =IFERROR(IF(OR($C56=0,V$12=""),"",IF(V$12="Total",IF(SUM($G56:U56)=0,0,SUM($G56:U56)),IF(Selector=8,Percent_Waste,Ref_Result))),"") ->  | W56: =IFERROR(IF(OR($C56=0,W$12=""),"",IF(W$12="Total",IF(SUM($G56:V56)=0,0,SUM($G56:V56)),IF(Selector=8,Percent_Waste,Ref_Result))),"") ->  | X56: =IFERROR(IF(OR($C56=0,X$12=""),"",IF(X$12="Total",IF(SUM($G56:W56)=0,0,SUM($G56:W56)),IF(Selector=8,Percent_Waste,Ref_Result))),"") ->  | Y56: =IFERROR(IF(OR($C56=0,Y$12=""),"",IF(Y$12="Total",IF(SUM($G56:X56)=0,0,SUM($G56:X56)),IF(Selector=8,Percent_Waste,Ref_Result))),"") ->  | Z56: =IFERROR(IF(OR($C56=0,Z$12=""),"",IF(Z$12="Total",IF(SUM($G56:Y56)=0,0,SUM($G56:Y56)),IF(Selector=8,Percent_Waste,Ref_Result))),"") ->  | AA56: 20 | AF56: =IFERROR(IF($AF$11="FRY",INDEX(Conn_FRY_Delivery,ROWS($13:56),COLUMNS($A:A)),""),"") ->  | AG56: =IFERROR(IF($AF$11="FRY",INDEX(Conn_FRY_Delivery,ROWS($13:56),COLUMNS($A:B)),""),"") ->  | AH56: =IFERROR(IF($AF$11="FRY",INDEX(Conn_FRY_Delivery,ROWS($13:56),COLUMNS($A:C)),""),"") ->  | AI56: =IFERROR(IF($AF$11="FRY",INDEX(Conn_FRY_Delivery,ROWS($13:56),COLUMNS($A:D)),""),"") ->  | AJ56: =IFERROR(IF($AF$11="FRY",INDEX(Conn_FRY_Delivery,ROWS($13:56),COLUMNS($A:E)),""),"") ->  | AL56: =IFERROR(IF($AL$11="FRK",INDEX(Conn_FRK_Delivery,ROWS($13:56),COLUMNS($A:A)),""),"") ->  | AM56: =IFERROR(IF($AL$11="FRK",INDEX(Conn_FRK_Delivery,ROWS($13:56),COLUMNS($A:B)),""),"") ->  | AN56: =IFERROR(IF($AL$11="FRK",INDEX(Conn_FRK_Delivery,ROWS($13:56),COLUMNS($A:C)),""),"") ->  | AO56: =IFERROR(IF($AL$11="FRK",INDEX(Conn_FRK_Delivery,ROWS($13:56),COLUMNS($A:D)),""),"") ->  | AP56: =IFERROR(IF($AL$11="FRK",INDEX(Conn_FRK_Delivery,ROWS($13:56),COLUMNS($A:E)),""),"") ->  | AR56: =IF(ROWS($13:56)<=IFERROR(ROWS(FRY_Delivery_Data),0),"FRY",IF(ROWS($13:56)<=IFERROR(ROWS(FRY_Delivery_Data),0)+IFERROR(ROWS(FRK_Delivery_Data),0),"FRK","")) ->  | AS56: =IF($AR56="FRY",INDEX(FRY_Delivery_Data,COUNTIF($AR$13:$AR56,$AR56),COLUMNS($A:A)),IF($AR56="FRK",INDEX(FRK_Delivery_Data,COUNTIF($AR$13:$AR56,$AR56),COLUMNS($A:A)),"")) ->  | AT56: =IF($AR56="FRY",INDEX(FRY_Delivery_Data,COUNTIF($AR$13:$AR56,$AR56),COLUMNS($A:B)),IF($AR56="FRK",INDEX(FRK_Delivery_Data,COUNTIF($AR$13:$AR56,$AR56),COLUMNS($A:B)),"")) ->  | AU56: =IF($AR56="FRY",INDEX(FRY_Delivery_Data,COUNTIF($AR$13:$AR56,$AR56),COLUMNS($A:C)),IF($AR56="FRK",INDEX(FRK_Delivery_Data,COUNTIF($AR$13:$AR56,$AR56),COLUMNS($A:C)),"")) ->  | AV56: =IF($AR56="FRY",INDEX(FRY_Delivery_Data,COUNTIF($AR$13:$AR56,$AR56),COLUMNS($A:D)),IF($AR56="FRK",INDEX(FRK_Delivery_Data,COUNTIF($AR$13:$AR56,$AR56),COLUMNS($A:D)),"")) ->  | AW56: =IF($AR56="FRY",INDEX(FRY_Delivery_Data,COUNTIF($AR$13:$AR56,$AR56),COLUMNS($A:E)),IF($AR56="FRK",INDEX(FRK_Delivery_Data,COUNTIF($AR$13:$AR56,$AR56),COLUMNS($A:E)),"")) -> 
B57: =IF(OR($C57="",$C57=0,ROWS($13:57)>ROWS(Product_List)),"",COUNTIF($C$13:$C57,"*?")) -> 45 | C57: =IFERROR(IF($C$9="No File In Folder","",INDEX(Product_List,ROWS($13:57))),"") -> 45-บันเตยหอมไส้มันเทศ | D57: 0 | G57: =IFERROR(IF(OR($C57=0,G$12=""),"",IF(G$12="Total",IF(SUM(F57:$G57)=0,0,SUM(F57:$G57)),IF(Selector=8,Percent_Waste,Ref_Result))),"") -> 0 | H57: =IFERROR(IF(OR($C57=0,H$12=""),"",IF(H$12="Total",IF(SUM(G57:$G57)=0,0,SUM(G57:$G57)),IF(Selector=8,Percent_Waste,Ref_Result))),"") -> 0 | I57: =IFERROR(IF(OR($C57=0,I$12=""),"",IF(I$12="Total",IF(SUM($G57:H57)=0,0,SUM($G57:H57)),IF(Selector=8,Percent_Waste,Ref_Result))),"") -> 0 | J57: =IFERROR(IF(OR($C57=0,J$12=""),"",IF(J$12="Total",IF(SUM($G57:I57)=0,0,SUM($G57:I57)),IF(Selector=8,Percent_Waste,Ref_Result))),"") -> 0 | K57: =IFERROR(IF(OR($C57=0,K$12=""),"",IF(K$12="Total",IF(SUM($G57:J57)=0,0,SUM($G57:J57)),IF(Selector=8,Percent_Waste,Ref_Result))),"") -> 0 | L57: =IFERROR(IF(OR($C57=0,L$12=""),"",IF(L$12="Total",IF(SUM($G57:K57)=0,0,SUM($G57:K57)),IF(Selector=8,Percent_Waste,Ref_Result))),"") -> 0 | M57: =IFERROR(IF(OR($C57=0,M$12=""),"",IF(M$12="Total",IF(SUM($G57:L57)=0,0,SUM($G57:L57)),IF(Selector=8,Percent_Waste,Ref_Result))),"") -> 0 | N57: =IFERROR(IF(OR($C57=0,N$12=""),"",IF(N$12="Total",IF(SUM($G57:M57)=0,0,SUM($G57:M57)),IF(Selector=8,Percent_Waste,Ref_Result))),"") -> 0 | O57: =IFERROR(IF(OR($C57=0,O$12=""),"",IF(O$12="Total",IF(SUM($G57:N57)=0,0,SUM($G57:N57)),IF(Selector=8,Percent_Waste,Ref_Result))),"") -> 0 | P57: =IFERROR(IF(OR($C57=0,P$12=""),"",IF(P$12="Total",IF(SUM($G57:O57)=0,0,SUM($G57:O57)),IF(Selector=8,Percent_Waste,Ref_Result))),"") -> 0 | Q57: =IFERROR(IF(OR($C57=0,Q$12=""),"",IF(Q$12="Total",IF(SUM($G57:P57)=0,0,SUM($G57:P57)),IF(Selector=8,Percent_Waste,Ref_Result))),"") -> 0 | R57: =IFERROR(IF(OR($C57=0,R$12=""),"",IF(R$12="Total",IF(SUM($G57:Q57)=0,0,SUM($G57:Q57)),IF(Selector=8,Percent_Waste,Ref_Result))),"") ->  | S57: =IFERROR(IF(OR($C57=0,S$12=""),"",IF(S$12="Total",IF(SUM($G57:R57)=0,0,SUM($G57:R57)),IF(Selector=8,Percent_Waste,Ref_Result))),"") ->  | T57: =IFERROR(IF(OR($C57=0,T$12=""),"",IF(T$12="Total",IF(SUM($G57:S57)=0,0,SUM($G57:S57)),IF(Selector=8,Percent_Waste,Ref_Result))),"") ->  | U57: =IFERROR(IF(OR($C57=0,U$12=""),"",IF(U$12="Total",IF(SUM($G57:T57)=0,0,SUM($G57:T57)),IF(Selector=8,Percent_Waste,Ref_Result))),"") ->  | V57: =IFERROR(IF(OR($C57=0,V$12=""),"",IF(V$12="Total",IF(SUM($G57:U57)=0,0,SUM($G57:U57)),IF(Selector=8,Percent_Waste,Ref_Result))),"") ->  | W57: =IFERROR(IF(OR($C57=0,W$12=""),"",IF(W$12="Total",IF(SUM($G57:V57)=0,0,SUM($G57:V57)),IF(Selector=8,Percent_Waste,Ref_Result))),"") ->  | X57: =IFERROR(IF(OR($C57=0,X$12=""),"",IF(X$12="Total",IF(SUM($G57:W57)=0,0,SUM($G57:W57)),IF(Selector=8,Percent_Waste,Ref_Result))),"") ->  | Y57: =IFERROR(IF(OR($C57=0,Y$12=""),"",IF(Y$12="Total",IF(SUM($G57:X57)=0,0,SUM($G57:X57)),IF(Selector=8,Percent_Waste,Ref_Result))),"") ->  | Z57: =IFERROR(IF(OR($C57=0,Z$12=""),"",IF(Z$12="Total",IF(SUM($G57:Y57)=0,0,SUM($G57:Y57)),IF(Selector=8,Percent_Waste,Ref_Result))),"") ->  | AA57: 0 | AF57: =IFERROR(IF($AF$11="FRY",INDEX(Conn_FRY_Delivery,ROWS($13:57),COLUMNS($A:A)),""),"") ->  | AG57: =IFERROR(IF($AF$11="FRY",INDEX(Conn_FRY_Delivery,ROWS($13:57),COLUMNS($A:B)),""),"") ->  | AH57: =IFERROR(IF($AF$11="FRY",INDEX(Conn_FRY_Delivery,ROWS($13:57),COLUMNS($A:C)),""),"") ->  | AI57: =IFERROR(IF($AF$11="FRY",INDEX(Conn_FRY_Delivery,ROWS($13:57),COLUMNS($A:D)),""),"") ->  | AJ57: =IFERROR(IF($AF$11="FRY",INDEX(Conn_FRY_Delivery,ROWS($13:57),COLUMNS($A:E)),""),"") ->  | AL57: =IFERROR(IF($AL$11="FRK",INDEX(Conn_FRK_Delivery,ROWS($13:57),COLUMNS($A:A)),""),"") ->  | AM57: =IFERROR(IF($AL$11="FRK",INDEX(Conn_FRK_Delivery,ROWS($13:57),COLUMNS($A:B)),""),"") ->  | AN57: =IFERROR(IF($AL$11="FRK",INDEX(Conn_FRK_Delivery,ROWS($13:57),COLUMNS($A:C)),""),"") ->  | AO57: =IFERROR(IF($AL$11="FRK",INDEX(Conn_FRK_Delivery,ROWS($13:57),COLUMNS($A:D)),""),"") ->  | AP57: =IFERROR(IF($AL$11="FRK",INDEX(Conn_FRK_Delivery,ROWS($13:57),COLUMNS($A:E)),""),"") ->  | AR57: =IF(ROWS($13:57)<=IFERROR(ROWS(FRY_Delivery_Data),0),"FRY",IF(ROWS($13:57)<=IFERROR(ROWS(FRY_Delivery_Data),0)+IFERROR(ROWS(FRK_Delivery_Data),0),"FRK","")) ->  | AS57: =IF($AR57="FRY",INDEX(FRY_Delivery_Data,COUNTIF($AR$13:$AR57,$AR57),COLUMNS($A:A)),IF($AR57="FRK",INDEX(FRK_Delivery_Data,COUNTIF($AR$13:$AR57,$AR57),COLUMNS($A:A)),"")) ->  | AT57: =IF($AR57="FRY",INDEX(FRY_Delivery_Data,COUNTIF($AR$13:$AR57,$AR57),COLUMNS($A:B)),IF($AR57="FRK",INDEX(FRK_Delivery_Data,COUNTIF($AR$13:$AR57,$AR57),COLUMNS($A:B)),"")) ->  | AU57: =IF($AR57="FRY",INDEX(FRY_Delivery_Data,COUNTIF($AR$13:$AR57,$AR57),COLUMNS($A:C)),IF($AR57="FRK",INDEX(FRK_Delivery_Data,COUNTIF($AR$13:$AR57,$AR57),COLUMNS($A:C)),"")) ->  | AV57: =IF($AR57="FRY",INDEX(FRY_Delivery_Data,COUNTIF($AR$13:$AR57,$AR57),COLUMNS($A:D)),IF($AR57="FRK",INDEX(FRK_Delivery_Data,COUNTIF($AR$13:$AR57,$AR57),COLUMNS($A:D)),"")) ->  | AW57: =IF($AR57="FRY",INDEX(FRY_Delivery_Data,COUNTIF($AR$13:$AR57,$AR57),COLUMNS($A:E)),IF($AR57="FRK",INDEX(FRK_Delivery_Data,COUNTIF($AR$13:$AR57,$AR57),COLUMNS($A:E)),"")) -> 
B58: =IF(OR($C58="",$C58=0,ROWS($13:58)>ROWS(Product_List)),"",COUNTIF($C$13:$C58,"*?")) -> 46 | C58: =IFERROR(IF($C$9="No File In Folder","",INDEX(Product_List,ROWS($13:58))),"") -> 46-มินิปังไส้หมูหยองมายองเนส | D58: 0 | G58: =IFERROR(IF(OR($C58=0,G$12=""),"",IF(G$12="Total",IF(SUM(F58:$G58)=0,0,SUM(F58:$G58)),IF(Selector=8,Percent_Waste,Ref_Result))),"") -> 0 | H58: =IFERROR(IF(OR($C58=0,H$12=""),"",IF(H$12="Total",IF(SUM(G58:$G58)=0,0,SUM(G58:$G58)),IF(Selector=8,Percent_Waste,Ref_Result))),"") -> 0 | I58: =IFERROR(IF(OR($C58=0,I$12=""),"",IF(I$12="Total",IF(SUM($G58:H58)=0,0,SUM($G58:H58)),IF(Selector=8,Percent_Waste,Ref_Result))),"") -> 0 | J58: =IFERROR(IF(OR($C58=0,J$12=""),"",IF(J$12="Total",IF(SUM($G58:I58)=0,0,SUM($G58:I58)),IF(Selector=8,Percent_Waste,Ref_Result))),"") -> 0 | K58: =IFERROR(IF(OR($C58=0,K$12=""),"",IF(K$12="Total",IF(SUM($G58:J58)=0,0,SUM($G58:J58)),IF(Selector=8,Percent_Waste,Ref_Result))),"") -> 0 | L58: =IFERROR(IF(OR($C58=0,L$12=""),"",IF(L$12="Total",IF(SUM($G58:K58)=0,0,SUM($G58:K58)),IF(Selector=8,Percent_Waste,Ref_Result))),"") -> 0 | M58: =IFERROR(IF(OR($C58=0,M$12=""),"",IF(M$12="Total",IF(SUM($G58:L58)=0,0,SUM($G58:L58)),IF(Selector=8,Percent_Waste,Ref_Result))),"") -> 0 | N58: =IFERROR(IF(OR($C58=0,N$12=""),"",IF(N$12="Total",IF(SUM($G58:M58)=0,0,SUM($G58:M58)),IF(Selector=8,Percent_Waste,Ref_Result))),"") -> 0 | O58: =IFERROR(IF(OR($C58=0,O$12=""),"",IF(O$12="Total",IF(SUM($G58:N58)=0,0,SUM($G58:N58)),IF(Selector=8,Percent_Waste,Ref_Result))),"") -> 0 | P58: =IFERROR(IF(OR($C58=0,P$12=""),"",IF(P$12="Total",IF(SUM($G58:O58)=0,0,SUM($G58:O58)),IF(Selector=8,Percent_Waste,Ref_Result))),"") -> 0 | Q58: =IFERROR(IF(OR($C58=0,Q$12=""),"",IF(Q$12="Total",IF(SUM($G58:P58)=0,0,SUM($G58:P58)),IF(Selector=8,Percent_Waste,Ref_Result))),"") -> 0 | R58: =IFERROR(IF(OR($C58=0,R$12=""),"",IF(R$12="Total",IF(SUM($G58:Q58)=0,0,SUM($G58:Q58)),IF(Selector=8,Percent_Waste,Ref_Result))),"") ->  | S58: =IFERROR(IF(OR($C58=0,S$12=""),"",IF(S$12="Total",IF(SUM($G58:R58)=0,0,SUM($G58:R58)),IF(Selector=8,Percent_Waste,Ref_Result))),"") ->  | T58: =IFERROR(IF(OR($C58=0,T$12=""),"",IF(T$12="Total",IF(SUM($G58:S58)=0,0,SUM($G58:S58)),IF(Selector=8,Percent_Waste,Ref_Result))),"") ->  | U58: =IFERROR(IF(OR($C58=0,U$12=""),"",IF(U$12="Total",IF(SUM($G58:T58)=0,0,SUM($G58:T58)),IF(Selector=8,Percent_Waste,Ref_Result))),"") ->  | V58: =IFERROR(IF(OR($C58=0,V$12=""),"",IF(V$12="Total",IF(SUM($G58:U58)=0,0,SUM($G58:U58)),IF(Selector=8,Percent_Waste,Ref_Result))),"") ->  | W58: =IFERROR(IF(OR($C58=0,W$12=""),"",IF(W$12="Total",IF(SUM($G58:V58)=0,0,SUM($G58:V58)),IF(Selector=8,Percent_Waste,Ref_Result))),"") ->  | X58: =IFERROR(IF(OR($C58=0,X$12=""),"",IF(X$12="Total",IF(SUM($G58:W58)=0,0,SUM($G58:W58)),IF(Selector=8,Percent_Waste,Ref_Result))),"") ->  | Y58: =IFERROR(IF(OR($C58=0,Y$12=""),"",IF(Y$12="Total",IF(SUM($G58:X58)=0,0,SUM($G58:X58)),IF(Selector=8,Percent_Waste,Ref_Result))),"") ->  | Z58: =IFERROR(IF(OR($C58=0,Z$12=""),"",IF(Z$12="Total",IF(SUM($G58:Y58)=0,0,SUM($G58:Y58)),IF(Selector=8,Percent_Waste,Ref_Result))),"") ->  | AA58: 0 | AF58: =IFERROR(IF($AF$11="FRY",INDEX(Conn_FRY_Delivery,ROWS($13:58),COLUMNS($A:A)),""),"") ->  | AG58: =IFERROR(IF($AF$11="FRY",INDEX(Conn_FRY_Delivery,ROWS($13:58),COLUMNS($A:B)),""),"") ->  | AH58: =IFERROR(IF($AF$11="FRY",INDEX(Conn_FRY_Delivery,ROWS($13:58),COLUMNS($A:C)),""),"") ->  | AI58: =IFERROR(IF($AF$11="FRY",INDEX(Conn_FRY_Delivery,ROWS($13:58),COLUMNS($A:D)),""),"") ->  | AJ58: =IFERROR(IF($AF$11="FRY",INDEX(Conn_FRY_Delivery,ROWS($13:58),COLUMNS($A:E)),""),"") ->  | AL58: =IFERROR(IF($AL$11="FRK",INDEX(Conn_FRK_Delivery,ROWS($13:58),COLUMNS($A:A)),""),"") ->  | AM58: =IFERROR(IF($AL$11="FRK",INDEX(Conn_FRK_Delivery,ROWS($13:58),COLUMNS($A:B)),""),"") ->  | AN58: =IFERROR(IF($AL$11="FRK",INDEX(Conn_FRK_Delivery,ROWS($13:58),COLUMNS($A:C)),""),"") ->  | AO58: =IFERROR(IF($AL$11="FRK",INDEX(Conn_FRK_Delivery,ROWS($13:58),COLUMNS($A:D)),""),"") ->  | AP58: =IFERROR(IF($AL$11="FRK",INDEX(Conn_FRK_Delivery,ROWS($13:58),COLUMNS($A:E)),""),"") ->  | AR58: =IF(ROWS($13:58)<=IFERROR(ROWS(FRY_Delivery_Data),0),"FRY",IF(ROWS($13:58)<=IFERROR(ROWS(FRY_Delivery_Data),0)+IFERROR(ROWS(FRK_Delivery_Data),0),"FRK","")) ->  | AS58: =IF($AR58="FRY",INDEX(FRY_Delivery_Data,COUNTIF($AR$13:$AR58,$AR58),COLUMNS($A:A)),IF($AR58="FRK",INDEX(FRK_Delivery_Data,COUNTIF($AR$13:$AR58,$AR58),COLUMNS($A:A)),"")) ->  | AT58: =IF($AR58="FRY",INDEX(FRY_Delivery_Data,COUNTIF($AR$13:$AR58,$AR58),COLUMNS($A:B)),IF($AR58="FRK",INDEX(FRK_Delivery_Data,COUNTIF($AR$13:$AR58,$AR58),COLUMNS($A:B)),"")) ->  | AU58: =IF($AR58="FRY",INDEX(FRY_Delivery_Data,COUNTIF($AR$13:$AR58,$AR58),COLUMNS($A:C)),IF($AR58="FRK",INDEX(FRK_Delivery_Data,COUNTIF($AR$13:$AR58,$AR58),COLUMNS($A:C)),"")) ->  | AV58: =IF($AR58="FRY",INDEX(FRY_Delivery_Data,COUNTIF($AR$13:$AR58,$AR58),COLUMNS($A:D)),IF($AR58="FRK",INDEX(FRK_Delivery_Data,COUNTIF($AR$13:$AR58,$AR58),COLUMNS($A:D)),"")) ->  | AW58: =IF($AR58="FRY",INDEX(FRY_Delivery_Data,COUNTIF($AR$13:$AR58,$AR58),COLUMNS($A:E)),IF($AR58="FRK",INDEX(FRK_Delivery_Data,COUNTIF($AR$13:$AR58,$AR58),COLUMNS($A:E)),"")) -> 
B59: =IF(OR($C59="",$C59=0,ROWS($13:59)>ROWS(Product_List)),"",COUNTIF($C$13:$C59,"*?")) -> 47 | C59: =IFERROR(IF($C$9="No File In Folder","",INDEX(Product_List,ROWS($13:59))),"") -> 47-โมจิไส้ถั่วไข่เค็ม | D59: 0 | G59: =IFERROR(IF(OR($C59=0,G$12=""),"",IF(G$12="Total",IF(SUM(F59:$G59)=0,0,SUM(F59:$G59)),IF(Selector=8,Percent_Waste,Ref_Result))),"") -> 0 | H59: =IFERROR(IF(OR($C59=0,H$12=""),"",IF(H$12="Total",IF(SUM(G59:$G59)=0,0,SUM(G59:$G59)),IF(Selector=8,Percent_Waste,Ref_Result))),"") -> 0 | I59: =IFERROR(IF(OR($C59=0,I$12=""),"",IF(I$12="Total",IF(SUM($G59:H59)=0,0,SUM($G59:H59)),IF(Selector=8,Percent_Waste,Ref_Result))),"") -> 0 | J59: =IFERROR(IF(OR($C59=0,J$12=""),"",IF(J$12="Total",IF(SUM($G59:I59)=0,0,SUM($G59:I59)),IF(Selector=8,Percent_Waste,Ref_Result))),"") -> 0 | K59: =IFERROR(IF(OR($C59=0,K$12=""),"",IF(K$12="Total",IF(SUM($G59:J59)=0,0,SUM($G59:J59)),IF(Selector=8,Percent_Waste,Ref_Result))),"") -> 0 | L59: =IFERROR(IF(OR($C59=0,L$12=""),"",IF(L$12="Total",IF(SUM($G59:K59)=0,0,SUM($G59:K59)),IF(Selector=8,Percent_Waste,Ref_Result))),"") -> 0 | M59: =IFERROR(IF(OR($C59=0,M$12=""),"",IF(M$12="Total",IF(SUM($G59:L59)=0,0,SUM($G59:L59)),IF(Selector=8,Percent_Waste,Ref_Result))),"") -> 0 | N59: =IFERROR(IF(OR($C59=0,N$12=""),"",IF(N$12="Total",IF(SUM($G59:M59)=0,0,SUM($G59:M59)),IF(Selector=8,Percent_Waste,Ref_Result))),"") -> 0 | O59: =IFERROR(IF(OR($C59=0,O$12=""),"",IF(O$12="Total",IF(SUM($G59:N59)=0,0,SUM($G59:N59)),IF(Selector=8,Percent_Waste,Ref_Result))),"") -> 0 | P59: =IFERROR(IF(OR($C59=0,P$12=""),"",IF(P$12="Total",IF(SUM($G59:O59)=0,0,SUM($G59:O59)),IF(Selector=8,Percent_Waste,Ref_Result))),"") -> 0 | Q59: =IFERROR(IF(OR($C59=0,Q$12=""),"",IF(Q$12="Total",IF(SUM($G59:P59)=0,0,SUM($G59:P59)),IF(Selector=8,Percent_Waste,Ref_Result))),"") -> 0 | R59: =IFERROR(IF(OR($C59=0,R$12=""),"",IF(R$12="Total",IF(SUM($G59:Q59)=0,0,SUM($G59:Q59)),IF(Selector=8,Percent_Waste,Ref_Result))),"") ->  | S59: =IFERROR(IF(OR($C59=0,S$12=""),"",IF(S$12="Total",IF(SUM($G59:R59)=0,0,SUM($G59:R59)),IF(Selector=8,Percent_Waste,Ref_Result))),"") ->  | T59: =IFERROR(IF(OR($C59=0,T$12=""),"",IF(T$12="Total",IF(SUM($G59:S59)=0,0,SUM($G59:S59)),IF(Selector=8,Percent_Waste,Ref_Result))),"") ->  | U59: =IFERROR(IF(OR($C59=0,U$12=""),"",IF(U$12="Total",IF(SUM($G59:T59)=0,0,SUM($G59:T59)),IF(Selector=8,Percent_Waste,Ref_Result))),"") ->  | V59: =IFERROR(IF(OR($C59=0,V$12=""),"",IF(V$12="Total",IF(SUM($G59:U59)=0,0,SUM($G59:U59)),IF(Selector=8,Percent_Waste,Ref_Result))),"") ->  | W59: =IFERROR(IF(OR($C59=0,W$12=""),"",IF(W$12="Total",IF(SUM($G59:V59)=0,0,SUM($G59:V59)),IF(Selector=8,Percent_Waste,Ref_Result))),"") ->  | X59: =IFERROR(IF(OR($C59=0,X$12=""),"",IF(X$12="Total",IF(SUM($G59:W59)=0,0,SUM($G59:W59)),IF(Selector=8,Percent_Waste,Ref_Result))),"") ->  | Y59: =IFERROR(IF(OR($C59=0,Y$12=""),"",IF(Y$12="Total",IF(SUM($G59:X59)=0,0,SUM($G59:X59)),IF(Selector=8,Percent_Waste,Ref_Result))),"") ->  | Z59: =IFERROR(IF(OR($C59=0,Z$12=""),"",IF(Z$12="Total",IF(SUM($G59:Y59)=0,0,SUM($G59:Y59)),IF(Selector=8,Percent_Waste,Ref_Result))),"") ->  | AA59: 0 | AF59: =IFERROR(IF($AF$11="FRY",INDEX(Conn_FRY_Delivery,ROWS($13:59),COLUMNS($A:A)),""),"") ->  | AG59: =IFERROR(IF($AF$11="FRY",INDEX(Conn_FRY_Delivery,ROWS($13:59),COLUMNS($A:B)),""),"") ->  | AH59: =IFERROR(IF($AF$11="FRY",INDEX(Conn_FRY_Delivery,ROWS($13:59),COLUMNS($A:C)),""),"") ->  | AI59: =IFERROR(IF($AF$11="FRY",INDEX(Conn_FRY_Delivery,ROWS($13:59),COLUMNS($A:D)),""),"") ->  | AJ59: =IFERROR(IF($AF$11="FRY",INDEX(Conn_FRY_Delivery,ROWS($13:59),COLUMNS($A:E)),""),"") ->  | AL59: =IFERROR(IF($AL$11="FRK",INDEX(Conn_FRK_Delivery,ROWS($13:59),COLUMNS($A:A)),""),"") ->  | AM59: =IFERROR(IF($AL$11="FRK",INDEX(Conn_FRK_Delivery,ROWS($13:59),COLUMNS($A:B)),""),"") ->  | AN59: =IFERROR(IF($AL$11="FRK",INDEX(Conn_FRK_Delivery,ROWS($13:59),COLUMNS($A:C)),""),"") ->  | AO59: =IFERROR(IF($AL$11="FRK",INDEX(Conn_FRK_Delivery,ROWS($13:59),COLUMNS($A:D)),""),"") ->  | AP59: =IFERROR(IF($AL$11="FRK",INDEX(Conn_FRK_Delivery,ROWS($13:59),COLUMNS($A:E)),""),"") ->  | AR59: =IF(ROWS($13:59)<=IFERROR(ROWS(FRY_Delivery_Data),0),"FRY",IF(ROWS($13:59)<=IFERROR(ROWS(FRY_Delivery_Data),0)+IFERROR(ROWS(FRK_Delivery_Data),0),"FRK","")) ->  | AS59: =IF($AR59="FRY",INDEX(FRY_Delivery_Data,COUNTIF($AR$13:$AR59,$AR59),COLUMNS($A:A)),IF($AR59="FRK",INDEX(FRK_Delivery_Data,COUNTIF($AR$13:$AR59,$AR59),COLUMNS($A:A)),"")) ->  | AT59: =IF($AR59="FRY",INDEX(FRY_Delivery_Data,COUNTIF($AR$13:$AR59,$AR59),COLUMNS($A:B)),IF($AR59="FRK",INDEX(FRK_Delivery_Data,COUNTIF($AR$13:$AR59,$AR59),COLUMNS($A:B)),"")) ->  | AU59: =IF($AR59="FRY",INDEX(FRY_Delivery_Data,COUNTIF($AR$13:$AR59,$AR59),COLUMNS($A:C)),IF($AR59="FRK",INDEX(FRK_Delivery_Data,COUNTIF($AR$13:$AR59,$AR59),COLUMNS($A:C)),"")) ->  | AV59: =IF($AR59="FRY",INDEX(FRY_Delivery_Data,COUNTIF($AR$13:$AR59,$AR59),COLUMNS($A:D)),IF($AR59="FRK",INDEX(FRK_Delivery_Data,COUNTIF($AR$13:$AR59,$AR59),COLUMNS($A:D)),"")) ->  | AW59: =IF($AR59="FRY",INDEX(FRY_Delivery_Data,COUNTIF($AR$13:$AR59,$AR59),COLUMNS($A:E)),IF($AR59="FRK",INDEX(FRK_Delivery_Data,COUNTIF($AR$13:$AR59,$AR59),COLUMNS($A:E)),"")) -> 
B60: =IF(OR($C60="",$C60=0,ROWS($13:60)>ROWS(Product_List)),"",COUNTIF($C$13:$C60,"*?")) ->  | C60: =IFERROR(IF($C$9="No File In Folder","",INDEX(Product_List,ROWS($13:60))),"") -> 0 | D60: 0 | G60: =IFERROR(IF(OR($C60=0,G$12=""),"",IF(G$12="Total",IF(SUM(F60:$G60)=0,0,SUM(F60:$G60)),IF(Selector=8,Percent_Waste,Ref_Result))),"") ->  | H60: =IFERROR(IF(OR($C60=0,H$12=""),"",IF(H$12="Total",IF(SUM(G60:$G60)=0,0,SUM(G60:$G60)),IF(Selector=8,Percent_Waste,Ref_Result))),"") ->  | I60: =IFERROR(IF(OR($C60=0,I$12=""),"",IF(I$12="Total",IF(SUM($G60:H60)=0,0,SUM($G60:H60)),IF(Selector=8,Percent_Waste,Ref_Result))),"") ->  | J60: =IFERROR(IF(OR($C60=0,J$12=""),"",IF(J$12="Total",IF(SUM($G60:I60)=0,0,SUM($G60:I60)),IF(Selector=8,Percent_Waste,Ref_Result))),"") ->  | K60: =IFERROR(IF(OR($C60=0,K$12=""),"",IF(K$12="Total",IF(SUM($G60:J60)=0,0,SUM($G60:J60)),IF(Selector=8,Percent_Waste,Ref_Result))),"") ->  | L60: =IFERROR(IF(OR($C60=0,L$12=""),"",IF(L$12="Total",IF(SUM($G60:K60)=0,0,SUM($G60:K60)),IF(Selector=8,Percent_Waste,Ref_Result))),"") ->  | M60: =IFERROR(IF(OR($C60=0,M$12=""),"",IF(M$12="Total",IF(SUM($G60:L60)=0,0,SUM($G60:L60)),IF(Selector=8,Percent_Waste,Ref_Result))),"") ->  | N60: =IFERROR(IF(OR($C60=0,N$12=""),"",IF(N$12="Total",IF(SUM($G60:M60)=0,0,SUM($G60:M60)),IF(Selector=8,Percent_Waste,Ref_Result))),"") ->  | O60: =IFERROR(IF(OR($C60=0,O$12=""),"",IF(O$12="Total",IF(SUM($G60:N60)=0,0,SUM($G60:N60)),IF(Selector=8,Percent_Waste,Ref_Result))),"") ->  | P60: =IFERROR(IF(OR($C60=0,P$12=""),"",IF(P$12="Total",IF(SUM($G60:O60)=0,0,SUM($G60:O60)),IF(Selector=8,Percent_Waste,Ref_Result))),"") ->  | Q60: =IFERROR(IF(OR($C60=0,Q$12=""),"",IF(Q$12="Total",IF(SUM($G60:P60)=0,0,SUM($G60:P60)),IF(Selector=8,Percent_Waste,Ref_Result))),"") ->  | R60: =IFERROR(IF(OR($C60=0,R$12=""),"",IF(R$12="Total",IF(SUM($G60:Q60)=0,0,SUM($G60:Q60)),IF(Selector=8,Percent_Waste,Ref_Result))),"") ->  | S60: =IFERROR(IF(OR($C60=0,S$12=""),"",IF(S$12="Total",IF(SUM($G60:R60)=0,0,SUM($G60:R60)),IF(Selector=8,Percent_Waste,Ref_Result))),"") ->  | T60: =IFERROR(IF(OR($C60=0,T$12=""),"",IF(T$12="Total",IF(SUM($G60:S60)=0,0,SUM($G60:S60)),IF(Selector=8,Percent_Waste,Ref_Result))),"") ->  | U60: =IFERROR(IF(OR($C60=0,U$12=""),"",IF(U$12="Total",IF(SUM($G60:T60)=0,0,SUM($G60:T60)),IF(Selector=8,Percent_Waste,Ref_Result))),"") ->  | V60: =IFERROR(IF(OR($C60=0,V$12=""),"",IF(V$12="Total",IF(SUM($G60:U60)=0,0,SUM($G60:U60)),IF(Selector=8,Percent_Waste,Ref_Result))),"") ->  | W60: =IFERROR(IF(OR($C60=0,W$12=""),"",IF(W$12="Total",IF(SUM($G60:V60)=0,0,SUM($G60:V60)),IF(Selector=8,Percent_Waste,Ref_Result))),"") ->  | X60: =IFERROR(IF(OR($C60=0,X$12=""),"",IF(X$12="Total",IF(SUM($G60:W60)=0,0,SUM($G60:W60)),IF(Selector=8,Percent_Waste,Ref_Result))),"") ->  | Y60: =IFERROR(IF(OR($C60=0,Y$12=""),"",IF(Y$12="Total",IF(SUM($G60:X60)=0,0,SUM($G60:X60)),IF(Selector=8,Percent_Waste,Ref_Result))),"") ->  | Z60: =IFERROR(IF(OR($C60=0,Z$12=""),"",IF(Z$12="Total",IF(SUM($G60:Y60)=0,0,SUM($G60:Y60)),IF(Selector=8,Percent_Waste,Ref_Result))),"") ->  | AF60: =IFERROR(IF($AF$11="FRY",INDEX(Conn_FRY_Delivery,ROWS($13:60),COLUMNS($A:A)),""),"") ->  | AG60: =IFERROR(IF($AF$11="FRY",INDEX(Conn_FRY_Delivery,ROWS($13:60),COLUMNS($A:B)),""),"") ->  | AH60: =IFERROR(IF($AF$11="FRY",INDEX(Conn_FRY_Delivery,ROWS($13:60),COLUMNS($A:C)),""),"") ->  | AI60: =IFERROR(IF($AF$11="FRY",INDEX(Conn_FRY_Delivery,ROWS($13:60),COLUMNS($A:D)),""),"") ->  | AJ60: =IFERROR(IF($AF$11="FRY",INDEX(Conn_FRY_Delivery,ROWS($13:60),COLUMNS($A:E)),""),"") ->  | AL60: =IFERROR(IF($AL$11="FRK",INDEX(Conn_FRK_Delivery,ROWS($13:60),COLUMNS($A:A)),""),"") ->  | AM60: =IFERROR(IF($AL$11="FRK",INDEX(Conn_FRK_Delivery,ROWS($13:60),COLUMNS($A:B)),""),"") ->  | AN60: =IFERROR(IF($AL$11="FRK",INDEX(Conn_FRK_Delivery,ROWS($13:60),COLUMNS($A:C)),""),"") ->  | AO60: =IFERROR(IF($AL$11="FRK",INDEX(Conn_FRK_Delivery,ROWS($13:60),COLUMNS($A:D)),""),"") ->  | AP60: =IFERROR(IF($AL$11="FRK",INDEX(Conn_FRK_Delivery,ROWS($13:60),COLUMNS($A:E)),""),"") ->  | AR60: =IF(ROWS($13:60)<=IFERROR(ROWS(FRY_Delivery_Data),0),"FRY",IF(ROWS($13:60)<=IFERROR(ROWS(FRY_Delivery_Data),0)+IFERROR(ROWS(FRK_Delivery_Data),0),"FRK","")) ->  | AS60: =IF($AR60="FRY",INDEX(FRY_Delivery_Data,COUNTIF($AR$13:$AR60,$AR60),COLUMNS($A:A)),IF($AR60="FRK",INDEX(FRK_Delivery_Data,COUNTIF($AR$13:$AR60,$AR60),COLUMNS($A:A)),"")) ->  | AT60: =IF($AR60="FRY",INDEX(FRY_Delivery_Data,COUNTIF($AR$13:$AR60,$AR60),COLUMNS($A:B)),IF($AR60="FRK",INDEX(FRK_Delivery_Data,COUNTIF($AR$13:$AR60,$AR60),COLUMNS($A:B)),"")) ->  | AU60: =IF($AR60="FRY",INDEX(FRY_Delivery_Data,COUNTIF($AR$13:$AR60,$AR60),COLUMNS($A:C)),IF($AR60="FRK",INDEX(FRK_Delivery_Data,COUNTIF($AR$13:$AR60,$AR60),COLUMNS($A:C)),"")) ->  | AV60: =IF($AR60="FRY",INDEX(FRY_Delivery_Data,COUNTIF($AR$13:$AR60,$AR60),COLUMNS($A:D)),IF($AR60="FRK",INDEX(FRK_Delivery_Data,COUNTIF($AR$13:$AR60,$AR60),COLUMNS($A:D)),"")) ->  | AW60: =IF($AR60="FRY",INDEX(FRY_Delivery_Data,COUNTIF($AR$13:$AR60,$AR60),COLUMNS($A:E)),IF($AR60="FRK",INDEX(FRK_Delivery_Data,COUNTIF($AR$13:$AR60,$AR60),COLUMNS($A:E)),"")) -> 
B61: =IF(OR($C61="",$C61=0,ROWS($13:61)>ROWS(Product_List)),"",COUNTIF($C$13:$C61,"*?")) ->  | C61: =IFERROR(IF($C$9="No File In Folder","",INDEX(Product_List,ROWS($13:61))),"") -> 0 | D61: 0 | G61: =IFERROR(IF(OR($C61=0,G$12=""),"",IF(G$12="Total",IF(SUM(F61:$G61)=0,0,SUM(F61:$G61)),IF(Selector=8,Percent_Waste,Ref_Result))),"") ->  | H61: =IFERROR(IF(OR($C61=0,H$12=""),"",IF(H$12="Total",IF(SUM(G61:$G61)=0,0,SUM(G61:$G61)),IF(Selector=8,Percent_Waste,Ref_Result))),"") ->  | I61: =IFERROR(IF(OR($C61=0,I$12=""),"",IF(I$12="Total",IF(SUM($G61:H61)=0,0,SUM($G61:H61)),IF(Selector=8,Percent_Waste,Ref_Result))),"") ->  | J61: =IFERROR(IF(OR($C61=0,J$12=""),"",IF(J$12="Total",IF(SUM($G61:I61)=0,0,SUM($G61:I61)),IF(Selector=8,Percent_Waste,Ref_Result))),"") ->  | K61: =IFERROR(IF(OR($C61=0,K$12=""),"",IF(K$12="Total",IF(SUM($G61:J61)=0,0,SUM($G61:J61)),IF(Selector=8,Percent_Waste,Ref_Result))),"") ->  | L61: =IFERROR(IF(OR($C61=0,L$12=""),"",IF(L$12="Total",IF(SUM($G61:K61)=0,0,SUM($G61:K61)),IF(Selector=8,Percent_Waste,Ref_Result))),"") ->  | M61: =IFERROR(IF(OR($C61=0,M$12=""),"",IF(M$12="Total",IF(SUM($G61:L61)=0,0,SUM($G61:L61)),IF(Selector=8,Percent_Waste,Ref_Result))),"") ->  | N61: =IFERROR(IF(OR($C61=0,N$12=""),"",IF(N$12="Total",IF(SUM($G61:M61)=0,0,SUM($G61:M61)),IF(Selector=8,Percent_Waste,Ref_Result))),"") ->  | O61: =IFERROR(IF(OR($C61=0,O$12=""),"",IF(O$12="Total",IF(SUM($G61:N61)=0,0,SUM($G61:N61)),IF(Selector=8,Percent_Waste,Ref_Result))),"") ->  | P61: =IFERROR(IF(OR($C61=0,P$12=""),"",IF(P$12="Total",IF(SUM($G61:O61)=0,0,SUM($G61:O61)),IF(Selector=8,Percent_Waste,Ref_Result))),"") ->  | Q61: =IFERROR(IF(OR($C61=0,Q$12=""),"",IF(Q$12="Total",IF(SUM($G61:P61)=0,0,SUM($G61:P61)),IF(Selector=8,Percent_Waste,Ref_Result))),"") ->  | R61: =IFERROR(IF(OR($C61=0,R$12=""),"",IF(R$12="Total",IF(SUM($G61:Q61)=0,0,SUM($G61:Q61)),IF(Selector=8,Percent_Waste,Ref_Result))),"") ->  | S61: =IFERROR(IF(OR($C61=0,S$12=""),"",IF(S$12="Total",IF(SUM($G61:R61)=0,0,SUM($G61:R61)),IF(Selector=8,Percent_Waste,Ref_Result))),"") ->  | T61: =IFERROR(IF(OR($C61=0,T$12=""),"",IF(T$12="Total",IF(SUM($G61:S61)=0,0,SUM($G61:S61)),IF(Selector=8,Percent_Waste,Ref_Result))),"") ->  | U61: =IFERROR(IF(OR($C61=0,U$12=""),"",IF(U$12="Total",IF(SUM($G61:T61)=0,0,SUM($G61:T61)),IF(Selector=8,Percent_Waste,Ref_Result))),"") ->  | V61: =IFERROR(IF(OR($C61=0,V$12=""),"",IF(V$12="Total",IF(SUM($G61:U61)=0,0,SUM($G61:U61)),IF(Selector=8,Percent_Waste,Ref_Result))),"") ->  | W61: =IFERROR(IF(OR($C61=0,W$12=""),"",IF(W$12="Total",IF(SUM($G61:V61)=0,0,SUM($G61:V61)),IF(Selector=8,Percent_Waste,Ref_Result))),"") ->  | X61: =IFERROR(IF(OR($C61=0,X$12=""),"",IF(X$12="Total",IF(SUM($G61:W61)=0,0,SUM($G61:W61)),IF(Selector=8,Percent_Waste,Ref_Result))),"") ->  | Y61: =IFERROR(IF(OR($C61=0,Y$12=""),"",IF(Y$12="Total",IF(SUM($G61:X61)=0,0,SUM($G61:X61)),IF(Selector=8,Percent_Waste,Ref_Result))),"") ->  | Z61: =IFERROR(IF(OR($C61=0,Z$12=""),"",IF(Z$12="Total",IF(SUM($G61:Y61)=0,0,SUM($G61:Y61)),IF(Selector=8,Percent_Waste,Ref_Result))),"") ->  | AF61: =IFERROR(IF($AF$11="FRY",INDEX(Conn_FRY_Delivery,ROWS($13:61),COLUMNS($A:A)),""),"") ->  | AG61: =IFERROR(IF($AF$11="FRY",INDEX(Conn_FRY_Delivery,ROWS($13:61),COLUMNS($A:B)),""),"") ->  | AH61: =IFERROR(IF($AF$11="FRY",INDEX(Conn_FRY_Delivery,ROWS($13:61),COLUMNS($A:C)),""),"") ->  | AI61: =IFERROR(IF($AF$11="FRY",INDEX(Conn_FRY_Delivery,ROWS($13:61),COLUMNS($A:D)),""),"") ->  | AJ61: =IFERROR(IF($AF$11="FRY",INDEX(Conn_FRY_Delivery,ROWS($13:61),COLUMNS($A:E)),""),"") ->  | AL61: =IFERROR(IF($AL$11="FRK",INDEX(Conn_FRK_Delivery,ROWS($13:61),COLUMNS($A:A)),""),"") ->  | AM61: =IFERROR(IF($AL$11="FRK",INDEX(Conn_FRK_Delivery,ROWS($13:61),COLUMNS($A:B)),""),"") ->  | AN61: =IFERROR(IF($AL$11="FRK",INDEX(Conn_FRK_Delivery,ROWS($13:61),COLUMNS($A:C)),""),"") ->  | AO61: =IFERROR(IF($AL$11="FRK",INDEX(Conn_FRK_Delivery,ROWS($13:61),COLUMNS($A:D)),""),"") ->  | AP61: =IFERROR(IF($AL$11="FRK",INDEX(Conn_FRK_Delivery,ROWS($13:61),COLUMNS($A:E)),""),"") ->  | AR61: =IF(ROWS($13:61)<=IFERROR(ROWS(FRY_Delivery_Data),0),"FRY",IF(ROWS($13:61)<=IFERROR(ROWS(FRY_Delivery_Data),0)+IFERROR(ROWS(FRK_Delivery_Data),0),"FRK","")) ->  | AS61: =IF($AR61="FRY",INDEX(FRY_Delivery_Data,COUNTIF($AR$13:$AR61,$AR61),COLUMNS($A:A)),IF($AR61="FRK",INDEX(FRK_Delivery_Data,COUNTIF($AR$13:$AR61,$AR61),COLUMNS($A:A)),"")) ->  | AT61: =IF($AR61="FRY",INDEX(FRY_Delivery_Data,COUNTIF($AR$13:$AR61,$AR61),COLUMNS($A:B)),IF($AR61="FRK",INDEX(FRK_Delivery_Data,COUNTIF($AR$13:$AR61,$AR61),COLUMNS($A:B)),"")) ->  | AU61: =IF($AR61="FRY",INDEX(FRY_Delivery_Data,COUNTIF($AR$13:$AR61,$AR61),COLUMNS($A:C)),IF($AR61="FRK",INDEX(FRK_Delivery_Data,COUNTIF($AR$13:$AR61,$AR61),COLUMNS($A:C)),"")) ->  | AV61: =IF($AR61="FRY",INDEX(FRY_Delivery_Data,COUNTIF($AR$13:$AR61,$AR61),COLUMNS($A:D)),IF($AR61="FRK",INDEX(FRK_Delivery_Data,COUNTIF($AR$13:$AR61,$AR61),COLUMNS($A:D)),"")) ->  | AW61: =IF($AR61="FRY",INDEX(FRY_Delivery_Data,COUNTIF($AR$13:$AR61,$AR61),COLUMNS($A:E)),IF($AR61="FRK",INDEX(FRK_Delivery_Data,COUNTIF($AR$13:$AR61,$AR61),COLUMNS($A:E)),"")) -> 
B62: =IF(OR($C62="",$C62=0,ROWS($13:62)>ROWS(Product_List)),"",COUNTIF($C$13:$C62,"*?")) ->  | C62: =IFERROR(IF($C$9="No File In Folder","",INDEX(Product_List,ROWS($13:62))),"") -> 0 | D62: 0 | G62: =IFERROR(IF(OR($C62=0,G$12=""),"",IF(G$12="Total",IF(SUM(F62:$G62)=0,0,SUM(F62:$G62)),IF(Selector=8,Percent_Waste,Ref_Result))),"") ->  | H62: =IFERROR(IF(OR($C62=0,H$12=""),"",IF(H$12="Total",IF(SUM(G62:$G62)=0,0,SUM(G62:$G62)),IF(Selector=8,Percent_Waste,Ref_Result))),"") ->  | I62: =IFERROR(IF(OR($C62=0,I$12=""),"",IF(I$12="Total",IF(SUM($G62:H62)=0,0,SUM($G62:H62)),IF(Selector=8,Percent_Waste,Ref_Result))),"") ->  | J62: =IFERROR(IF(OR($C62=0,J$12=""),"",IF(J$12="Total",IF(SUM($G62:I62)=0,0,SUM($G62:I62)),IF(Selector=8,Percent_Waste,Ref_Result))),"") ->  | K62: =IFERROR(IF(OR($C62=0,K$12=""),"",IF(K$12="Total",IF(SUM($G62:J62)=0,0,SUM($G62:J62)),IF(Selector=8,Percent_Waste,Ref_Result))),"") ->  | L62: =IFERROR(IF(OR($C62=0,L$12=""),"",IF(L$12="Total",IF(SUM($G62:K62)=0,0,SUM($G62:K62)),IF(Selector=8,Percent_Waste,Ref_Result))),"") ->  | M62: =IFERROR(IF(OR($C62=0,M$12=""),"",IF(M$12="Total",IF(SUM($G62:L62)=0,0,SUM($G62:L62)),IF(Selector=8,Percent_Waste,Ref_Result))),"") ->  | N62: =IFERROR(IF(OR($C62=0,N$12=""),"",IF(N$12="Total",IF(SUM($G62:M62)=0,0,SUM($G62:M62)),IF(Selector=8,Percent_Waste,Ref_Result))),"") ->  | O62: =IFERROR(IF(OR($C62=0,O$12=""),"",IF(O$12="Total",IF(SUM($G62:N62)=0,0,SUM($G62:N62)),IF(Selector=8,Percent_Waste,Ref_Result))),"") ->  | P62: =IFERROR(IF(OR($C62=0,P$12=""),"",IF(P$12="Total",IF(SUM($G62:O62)=0,0,SUM($G62:O62)),IF(Selector=8,Percent_Waste,Ref_Result))),"") ->  | Q62: =IFERROR(IF(OR($C62=0,Q$12=""),"",IF(Q$12="Total",IF(SUM($G62:P62)=0,0,SUM($G62:P62)),IF(Selector=8,Percent_Waste,Ref_Result))),"") ->  | R62: =IFERROR(IF(OR($C62=0,R$12=""),"",IF(R$12="Total",IF(SUM($G62:Q62)=0,0,SUM($G62:Q62)),IF(Selector=8,Percent_Waste,Ref_Result))),"") ->  | S62: =IFERROR(IF(OR($C62=0,S$12=""),"",IF(S$12="Total",IF(SUM($G62:R62)=0,0,SUM($G62:R62)),IF(Selector=8,Percent_Waste,Ref_Result))),"") ->  | T62: =IFERROR(IF(OR($C62=0,T$12=""),"",IF(T$12="Total",IF(SUM($G62:S62)=0,0,SUM($G62:S62)),IF(Selector=8,Percent_Waste,Ref_Result))),"") ->  | U62: =IFERROR(IF(OR($C62=0,U$12=""),"",IF(U$12="Total",IF(SUM($G62:T62)=0,0,SUM($G62:T62)),IF(Selector=8,Percent_Waste,Ref_Result))),"") ->  | V62: =IFERROR(IF(OR($C62=0,V$12=""),"",IF(V$12="Total",IF(SUM($G62:U62)=0,0,SUM($G62:U62)),IF(Selector=8,Percent_Waste,Ref_Result))),"") ->  | W62: =IFERROR(IF(OR($C62=0,W$12=""),"",IF(W$12="Total",IF(SUM($G62:V62)=0,0,SUM($G62:V62)),IF(Selector=8,Percent_Waste,Ref_Result))),"") ->  | X62: =IFERROR(IF(OR($C62=0,X$12=""),"",IF(X$12="Total",IF(SUM($G62:W62)=0,0,SUM($G62:W62)),IF(Selector=8,Percent_Waste,Ref_Result))),"") ->  | Y62: =IFERROR(IF(OR($C62=0,Y$12=""),"",IF(Y$12="Total",IF(SUM($G62:X62)=0,0,SUM($G62:X62)),IF(Selector=8,Percent_Waste,Ref_Result))),"") ->  | Z62: =IFERROR(IF(OR($C62=0,Z$12=""),"",IF(Z$12="Total",IF(SUM($G62:Y62)=0,0,SUM($G62:Y62)),IF(Selector=8,Percent_Waste,Ref_Result))),"") ->  | AF62: =IFERROR(IF($AF$11="FRY",INDEX(Conn_FRY_Delivery,ROWS($13:62),COLUMNS($A:A)),""),"") ->  | AG62: =IFERROR(IF($AF$11="FRY",INDEX(Conn_FRY_Delivery,ROWS($13:62),COLUMNS($A:B)),""),"") ->  | AH62: =IFERROR(IF($AF$11="FRY",INDEX(Conn_FRY_Delivery,ROWS($13:62),COLUMNS($A:C)),""),"") ->  | AI62: =IFERROR(IF($AF$11="FRY",INDEX(Conn_FRY_Delivery,ROWS($13:62),COLUMNS($A:D)),""),"") ->  | AJ62: =IFERROR(IF($AF$11="FRY",INDEX(Conn_FRY_Delivery,ROWS($13:62),COLUMNS($A:E)),""),"") ->  | AL62: =IFERROR(IF($AL$11="FRK",INDEX(Conn_FRK_Delivery,ROWS($13:62),COLUMNS($A:A)),""),"") ->  | AM62: =IFERROR(IF($AL$11="FRK",INDEX(Conn_FRK_Delivery,ROWS($13:62),COLUMNS($A:B)),""),"") ->  | AN62: =IFERROR(IF($AL$11="FRK",INDEX(Conn_FRK_Delivery,ROWS($13:62),COLUMNS($A:C)),""),"") ->  | AO62: =IFERROR(IF($AL$11="FRK",INDEX(Conn_FRK_Delivery,ROWS($13:62),COLUMNS($A:D)),""),"") ->  | AP62: =IFERROR(IF($AL$11="FRK",INDEX(Conn_FRK_Delivery,ROWS($13:62),COLUMNS($A:E)),""),"") ->  | AR62: =IF(ROWS($13:62)<=IFERROR(ROWS(FRY_Delivery_Data),0),"FRY",IF(ROWS($13:62)<=IFERROR(ROWS(FRY_Delivery_Data),0)+IFERROR(ROWS(FRK_Delivery_Data),0),"FRK","")) ->  | AS62: =IF($AR62="FRY",INDEX(FRY_Delivery_Data,COUNTIF($AR$13:$AR62,$AR62),COLUMNS($A:A)),IF($AR62="FRK",INDEX(FRK_Delivery_Data,COUNTIF($AR$13:$AR62,$AR62),COLUMNS($A:A)),"")) ->  | AT62: =IF($AR62="FRY",INDEX(FRY_Delivery_Data,COUNTIF($AR$13:$AR62,$AR62),COLUMNS($A:B)),IF($AR62="FRK",INDEX(FRK_Delivery_Data,COUNTIF($AR$13:$AR62,$AR62),COLUMNS($A:B)),"")) ->  | AU62: =IF($AR62="FRY",INDEX(FRY_Delivery_Data,COUNTIF($AR$13:$AR62,$AR62),COLUMNS($A:C)),IF($AR62="FRK",INDEX(FRK_Delivery_Data,COUNTIF($AR$13:$AR62,$AR62),COLUMNS($A:C)),"")) ->  | AV62: =IF($AR62="FRY",INDEX(FRY_Delivery_Data,COUNTIF($AR$13:$AR62,$AR62),COLUMNS($A:D)),IF($AR62="FRK",INDEX(FRK_Delivery_Data,COUNTIF($AR$13:$AR62,$AR62),COLUMNS($A:D)),"")) ->  | AW62: =IF($AR62="FRY",INDEX(FRY_Delivery_Data,COUNTIF($AR$13:$AR62,$AR62),COLUMNS($A:E)),IF($AR62="FRK",INDEX(FRK_Delivery_Data,COUNTIF($AR$13:$AR62,$AR62),COLUMNS($A:E)),"")) -> 
B63: =IF(OR($C63="",$C63=0,ROWS($13:63)>ROWS(Product_List)),"",COUNTIF($C$13:$C63,"*?")) -> 48 | C63: =IFERROR(IF($C$9="No File In Folder","",INDEX(Product_List,ROWS($13:63))),"") -> 80-ขนมปังไส้สังขยา (8บาท) | D63: 0 | G63: =IFERROR(IF(OR($C63=0,G$12=""),"",IF(G$12="Total",IF(SUM(F63:$G63)=0,0,SUM(F63:$G63)),IF(Selector=8,Percent_Waste,Ref_Result))),"") -> 0 | H63: =IFERROR(IF(OR($C63=0,H$12=""),"",IF(H$12="Total",IF(SUM(G63:$G63)=0,0,SUM(G63:$G63)),IF(Selector=8,Percent_Waste,Ref_Result))),"") -> 0 | I63: =IFERROR(IF(OR($C63=0,I$12=""),"",IF(I$12="Total",IF(SUM($G63:H63)=0,0,SUM($G63:H63)),IF(Selector=8,Percent_Waste,Ref_Result))),"") -> 0 | J63: =IFERROR(IF(OR($C63=0,J$12=""),"",IF(J$12="Total",IF(SUM($G63:I63)=0,0,SUM($G63:I63)),IF(Selector=8,Percent_Waste,Ref_Result))),"") -> 0 | K63: =IFERROR(IF(OR($C63=0,K$12=""),"",IF(K$12="Total",IF(SUM($G63:J63)=0,0,SUM($G63:J63)),IF(Selector=8,Percent_Waste,Ref_Result))),"") -> 0 | L63: =IFERROR(IF(OR($C63=0,L$12=""),"",IF(L$12="Total",IF(SUM($G63:K63)=0,0,SUM($G63:K63)),IF(Selector=8,Percent_Waste,Ref_Result))),"") -> 0 | M63: =IFERROR(IF(OR($C63=0,M$12=""),"",IF(M$12="Total",IF(SUM($G63:L63)=0,0,SUM($G63:L63)),IF(Selector=8,Percent_Waste,Ref_Result))),"") -> 0 | N63: =IFERROR(IF(OR($C63=0,N$12=""),"",IF(N$12="Total",IF(SUM($G63:M63)=0,0,SUM($G63:M63)),IF(Selector=8,Percent_Waste,Ref_Result))),"") -> 0 | O63: =IFERROR(IF(OR($C63=0,O$12=""),"",IF(O$12="Total",IF(SUM($G63:N63)=0,0,SUM($G63:N63)),IF(Selector=8,Percent_Waste,Ref_Result))),"") -> 0 | P63: =IFERROR(IF(OR($C63=0,P$12=""),"",IF(P$12="Total",IF(SUM($G63:O63)=0,0,SUM($G63:O63)),IF(Selector=8,Percent_Waste,Ref_Result))),"") -> 0 | Q63: =IFERROR(IF(OR($C63=0,Q$12=""),"",IF(Q$12="Total",IF(SUM($G63:P63)=0,0,SUM($G63:P63)),IF(Selector=8,Percent_Waste,Ref_Result))),"") -> 0 | R63: =IFERROR(IF(OR($C63=0,R$12=""),"",IF(R$12="Total",IF(SUM($G63:Q63)=0,0,SUM($G63:Q63)),IF(Selector=8,Percent_Waste,Ref_Result))),"") ->  | S63: =IFERROR(IF(OR($C63=0,S$12=""),"",IF(S$12="Total",IF(SUM($G63:R63)=0,0,SUM($G63:R63)),IF(Selector=8,Percent_Waste,Ref_Result))),"") ->  | T63: =IFERROR(IF(OR($C63=0,T$12=""),"",IF(T$12="Total",IF(SUM($G63:S63)=0,0,SUM($G63:S63)),IF(Selector=8,Percent_Waste,Ref_Result))),"") ->  | U63: =IFERROR(IF(OR($C63=0,U$12=""),"",IF(U$12="Total",IF(SUM($G63:T63)=0,0,SUM($G63:T63)),IF(Selector=8,Percent_Waste,Ref_Result))),"") ->  | V63: =IFERROR(IF(OR($C63=0,V$12=""),"",IF(V$12="Total",IF(SUM($G63:U63)=0,0,SUM($G63:U63)),IF(Selector=8,Percent_Waste,Ref_Result))),"") ->  | W63: =IFERROR(IF(OR($C63=0,W$12=""),"",IF(W$12="Total",IF(SUM($G63:V63)=0,0,SUM($G63:V63)),IF(Selector=8,Percent_Waste,Ref_Result))),"") ->  | X63: =IFERROR(IF(OR($C63=0,X$12=""),"",IF(X$12="Total",IF(SUM($G63:W63)=0,0,SUM($G63:W63)),IF(Selector=8,Percent_Waste,Ref_Result))),"") ->  | Y63: =IFERROR(IF(OR($C63=0,Y$12=""),"",IF(Y$12="Total",IF(SUM($G63:X63)=0,0,SUM($G63:X63)),IF(Selector=8,Percent_Waste,Ref_Result))),"") ->  | Z63: =IFERROR(IF(OR($C63=0,Z$12=""),"",IF(Z$12="Total",IF(SUM($G63:Y63)=0,0,SUM($G63:Y63)),IF(Selector=8,Percent_Waste,Ref_Result))),"") ->  | AA63: 0 | AF63: =IFERROR(IF($AF$11="FRY",INDEX(Conn_FRY_Delivery,ROWS($13:63),COLUMNS($A:A)),""),"") ->  | AG63: =IFERROR(IF($AF$11="FRY",INDEX(Conn_FRY_Delivery,ROWS($13:63),COLUMNS($A:B)),""),"") ->  | AH63: =IFERROR(IF($AF$11="FRY",INDEX(Conn_FRY_Delivery,ROWS($13:63),COLUMNS($A:C)),""),"") ->  | AI63: =IFERROR(IF($AF$11="FRY",INDEX(Conn_FRY_Delivery,ROWS($13:63),COLUMNS($A:D)),""),"") ->  | AJ63: =IFERROR(IF($AF$11="FRY",INDEX(Conn_FRY_Delivery,ROWS($13:63),COLUMNS($A:E)),""),"") ->  | AL63: =IFERROR(IF($AL$11="FRK",INDEX(Conn_FRK_Delivery,ROWS($13:63),COLUMNS($A:A)),""),"") ->  | AM63: =IFERROR(IF($AL$11="FRK",INDEX(Conn_FRK_Delivery,ROWS($13:63),COLUMNS($A:B)),""),"") ->  | AN63: =IFERROR(IF($AL$11="FRK",INDEX(Conn_FRK_Delivery,ROWS($13:63),COLUMNS($A:C)),""),"") ->  | AO63: =IFERROR(IF($AL$11="FRK",INDEX(Conn_FRK_Delivery,ROWS($13:63),COLUMNS($A:D)),""),"") ->  | AP63: =IFERROR(IF($AL$11="FRK",INDEX(Conn_FRK_Delivery,ROWS($13:63),COLUMNS($A:E)),""),"") ->  | AR63: =IF(ROWS($13:63)<=IFERROR(ROWS(FRY_Delivery_Data),0),"FRY",IF(ROWS($13:63)<=IFERROR(ROWS(FRY_Delivery_Data),0)+IFERROR(ROWS(FRK_Delivery_Data),0),"FRK","")) ->  | AS63: =IF($AR63="FRY",INDEX(FRY_Delivery_Data,COUNTIF($AR$13:$AR63,$AR63),COLUMNS($A:A)),IF($AR63="FRK",INDEX(FRK_Delivery_Data,COUNTIF($AR$13:$AR63,$AR63),COLUMNS($A:A)),"")) ->  | AT63: =IF($AR63="FRY",INDEX(FRY_Delivery_Data,COUNTIF($AR$13:$AR63,$AR63),COLUMNS($A:B)),IF($AR63="FRK",INDEX(FRK_Delivery_Data,COUNTIF($AR$13:$AR63,$AR63),COLUMNS($A:B)),"")) ->  | AU63: =IF($AR63="FRY",INDEX(FRY_Delivery_Data,COUNTIF($AR$13:$AR63,$AR63),COLUMNS($A:C)),IF($AR63="FRK",INDEX(FRK_Delivery_Data,COUNTIF($AR$13:$AR63,$AR63),COLUMNS($A:C)),"")) ->  | AV63: =IF($AR63="FRY",INDEX(FRY_Delivery_Data,COUNTIF($AR$13:$AR63,$AR63),COLUMNS($A:D)),IF($AR63="FRK",INDEX(FRK_Delivery_Data,COUNTIF($AR$13:$AR63,$AR63),COLUMNS($A:D)),"")) ->  | AW63: =IF($AR63="FRY",INDEX(FRY_Delivery_Data,COUNTIF($AR$13:$AR63,$AR63),COLUMNS($A:E)),IF($AR63="FRK",INDEX(FRK_Delivery_Data,COUNTIF($AR$13:$AR63,$AR63),COLUMNS($A:E)),"")) -> 
B64: =IF(OR($C64="",$C64=0,ROWS($13:64)>ROWS(Product_List)),"",COUNTIF($C$13:$C64,"*?")) -> 49 | C64: =IFERROR(IF($C$9="No File In Folder","",INDEX(Product_List,ROWS($13:64))),"") -> 81-ขนมปังไส้เผือก (8บาท) | D64: 0 | G64: =IFERROR(IF(OR($C64=0,G$12=""),"",IF(G$12="Total",IF(SUM(F64:$G64)=0,0,SUM(F64:$G64)),IF(Selector=8,Percent_Waste,Ref_Result))),"") -> 0 | H64: =IFERROR(IF(OR($C64=0,H$12=""),"",IF(H$12="Total",IF(SUM(G64:$G64)=0,0,SUM(G64:$G64)),IF(Selector=8,Percent_Waste,Ref_Result))),"") -> 0 | I64: =IFERROR(IF(OR($C64=0,I$12=""),"",IF(I$12="Total",IF(SUM($G64:H64)=0,0,SUM($G64:H64)),IF(Selector=8,Percent_Waste,Ref_Result))),"") -> 0 | J64: =IFERROR(IF(OR($C64=0,J$12=""),"",IF(J$12="Total",IF(SUM($G64:I64)=0,0,SUM($G64:I64)),IF(Selector=8,Percent_Waste,Ref_Result))),"") -> 0 | K64: =IFERROR(IF(OR($C64=0,K$12=""),"",IF(K$12="Total",IF(SUM($G64:J64)=0,0,SUM($G64:J64)),IF(Selector=8,Percent_Waste,Ref_Result))),"") -> 0 | L64: =IFERROR(IF(OR($C64=0,L$12=""),"",IF(L$12="Total",IF(SUM($G64:K64)=0,0,SUM($G64:K64)),IF(Selector=8,Percent_Waste,Ref_Result))),"") -> 0 | M64: =IFERROR(IF(OR($C64=0,M$12=""),"",IF(M$12="Total",IF(SUM($G64:L64)=0,0,SUM($G64:L64)),IF(Selector=8,Percent_Waste,Ref_Result))),"") -> 0 | N64: =IFERROR(IF(OR($C64=0,N$12=""),"",IF(N$12="Total",IF(SUM($G64:M64)=0,0,SUM($G64:M64)),IF(Selector=8,Percent_Waste,Ref_Result))),"") -> 0 | O64: =IFERROR(IF(OR($C64=0,O$12=""),"",IF(O$12="Total",IF(SUM($G64:N64)=0,0,SUM($G64:N64)),IF(Selector=8,Percent_Waste,Ref_Result))),"") -> 0 | P64: =IFERROR(IF(OR($C64=0,P$12=""),"",IF(P$12="Total",IF(SUM($G64:O64)=0,0,SUM($G64:O64)),IF(Selector=8,Percent_Waste,Ref_Result))),"") -> 0 | Q64: =IFERROR(IF(OR($C64=0,Q$12=""),"",IF(Q$12="Total",IF(SUM($G64:P64)=0,0,SUM($G64:P64)),IF(Selector=8,Percent_Waste,Ref_Result))),"") -> 0 | R64: =IFERROR(IF(OR($C64=0,R$12=""),"",IF(R$12="Total",IF(SUM($G64:Q64)=0,0,SUM($G64:Q64)),IF(Selector=8,Percent_Waste,Ref_Result))),"") ->  | S64: =IFERROR(IF(OR($C64=0,S$12=""),"",IF(S$12="Total",IF(SUM($G64:R64)=0,0,SUM($G64:R64)),IF(Selector=8,Percent_Waste,Ref_Result))),"") ->  | T64: =IFERROR(IF(OR($C64=0,T$12=""),"",IF(T$12="Total",IF(SUM($G64:S64)=0,0,SUM($G64:S64)),IF(Selector=8,Percent_Waste,Ref_Result))),"") ->  | U64: =IFERROR(IF(OR($C64=0,U$12=""),"",IF(U$12="Total",IF(SUM($G64:T64)=0,0,SUM($G64:T64)),IF(Selector=8,Percent_Waste,Ref_Result))),"") ->  | V64: =IFERROR(IF(OR($C64=0,V$12=""),"",IF(V$12="Total",IF(SUM($G64:U64)=0,0,SUM($G64:U64)),IF(Selector=8,Percent_Waste,Ref_Result))),"") ->  | W64: =IFERROR(IF(OR($C64=0,W$12=""),"",IF(W$12="Total",IF(SUM($G64:V64)=0,0,SUM($G64:V64)),IF(Selector=8,Percent_Waste,Ref_Result))),"") ->  | X64: =IFERROR(IF(OR($C64=0,X$12=""),"",IF(X$12="Total",IF(SUM($G64:W64)=0,0,SUM($G64:W64)),IF(Selector=8,Percent_Waste,Ref_Result))),"") ->  | Y64: =IFERROR(IF(OR($C64=0,Y$12=""),"",IF(Y$12="Total",IF(SUM($G64:X64)=0,0,SUM($G64:X64)),IF(Selector=8,Percent_Waste,Ref_Result))),"") ->  | Z64: =IFERROR(IF(OR($C64=0,Z$12=""),"",IF(Z$12="Total",IF(SUM($G64:Y64)=0,0,SUM($G64:Y64)),IF(Selector=8,Percent_Waste,Ref_Result))),"") ->  | AA64: 0 | AF64: =IFERROR(IF($AF$11="FRY",INDEX(Conn_FRY_Delivery,ROWS($13:64),COLUMNS($A:A)),""),"") ->  | AG64: =IFERROR(IF($AF$11="FRY",INDEX(Conn_FRY_Delivery,ROWS($13:64),COLUMNS($A:B)),""),"") ->  | AH64: =IFERROR(IF($AF$11="FRY",INDEX(Conn_FRY_Delivery,ROWS($13:64),COLUMNS($A:C)),""),"") ->  | AI64: =IFERROR(IF($AF$11="FRY",INDEX(Conn_FRY_Delivery,ROWS($13:64),COLUMNS($A:D)),""),"") ->  | AJ64: =IFERROR(IF($AF$11="FRY",INDEX(Conn_FRY_Delivery,ROWS($13:64),COLUMNS($A:E)),""),"") ->  | AL64: =IFERROR(IF($AL$11="FRK",INDEX(Conn_FRK_Delivery,ROWS($13:64),COLUMNS($A:A)),""),"") ->  | AM64: =IFERROR(IF($AL$11="FRK",INDEX(Conn_FRK_Delivery,ROWS($13:64),COLUMNS($A:B)),""),"") ->  | AN64: =IFERROR(IF($AL$11="FRK",INDEX(Conn_FRK_Delivery,ROWS($13:64),COLUMNS($A:C)),""),"") ->  | AO64: =IFERROR(IF($AL$11="FRK",INDEX(Conn_FRK_Delivery,ROWS($13:64),COLUMNS($A:D)),""),"") ->  | AP64: =IFERROR(IF($AL$11="FRK",INDEX(Conn_FRK_Delivery,ROWS($13:64),COLUMNS($A:E)),""),"") ->  | AR64: =IF(ROWS($13:64)<=IFERROR(ROWS(FRY_Delivery_Data),0),"FRY",IF(ROWS($13:64)<=IFERROR(ROWS(FRY_Delivery_Data),0)+IFERROR(ROWS(FRK_Delivery_Data),0),"FRK","")) ->  | AS64: =IF($AR64="FRY",INDEX(FRY_Delivery_Data,COUNTIF($AR$13:$AR64,$AR64),COLUMNS($A:A)),IF($AR64="FRK",INDEX(FRK_Delivery_Data,COUNTIF($AR$13:$AR64,$AR64),COLUMNS($A:A)),"")) ->  | AT64: =IF($AR64="FRY",INDEX(FRY_Delivery_Data,COUNTIF($AR$13:$AR64,$AR64),COLUMNS($A:B)),IF($AR64="FRK",INDEX(FRK_Delivery_Data,COUNTIF($AR$13:$AR64,$AR64),COLUMNS($A:B)),"")) ->  | AU64: =IF($AR64="FRY",INDEX(FRY_Delivery_Data,COUNTIF($AR$13:$AR64,$AR64),COLUMNS($A:C)),IF($AR64="FRK",INDEX(FRK_Delivery_Data,COUNTIF($AR$13:$AR64,$AR64),COLUMNS($A:C)),"")) ->  | AV64: =IF($AR64="FRY",INDEX(FRY_Delivery_Data,COUNTIF($AR$13:$AR64,$AR64),COLUMNS($A:D)),IF($AR64="FRK",INDEX(FRK_Delivery_Data,COUNTIF($AR$13:$AR64,$AR64),COLUMNS($A:D)),"")) ->  | AW64: =IF($AR64="FRY",INDEX(FRY_Delivery_Data,COUNTIF($AR$13:$AR64,$AR64),COLUMNS($A:E)),IF($AR64="FRK",INDEX(FRK_Delivery_Data,COUNTIF($AR$13:$AR64,$AR64),COLUMNS($A:E)),"")) -> 
B65: =IF(OR($C65="",$C65=0,ROWS($13:65)>ROWS(Product_List)),"",COUNTIF($C$13:$C65,"*?")) -> 50 | C65: =IFERROR(IF($C$9="No File In Folder","",INDEX(Product_List,ROWS($13:65))),"") -> 82-ขนมปังไส้ถั่วแดง (8บาท) | D65: 0 | G65: =IFERROR(IF(OR($C65=0,G$12=""),"",IF(G$12="Total",IF(SUM(F65:$G65)=0,0,SUM(F65:$G65)),IF(Selector=8,Percent_Waste,Ref_Result))),"") -> 0 | H65: =IFERROR(IF(OR($C65=0,H$12=""),"",IF(H$12="Total",IF(SUM(G65:$G65)=0,0,SUM(G65:$G65)),IF(Selector=8,Percent_Waste,Ref_Result))),"") -> 0 | I65: =IFERROR(IF(OR($C65=0,I$12=""),"",IF(I$12="Total",IF(SUM($G65:H65)=0,0,SUM($G65:H65)),IF(Selector=8,Percent_Waste,Ref_Result))),"") -> 0 | J65: =IFERROR(IF(OR($C65=0,J$12=""),"",IF(J$12="Total",IF(SUM($G65:I65)=0,0,SUM($G65:I65)),IF(Selector=8,Percent_Waste,Ref_Result))),"") -> 0 | K65: =IFERROR(IF(OR($C65=0,K$12=""),"",IF(K$12="Total",IF(SUM($G65:J65)=0,0,SUM($G65:J65)),IF(Selector=8,Percent_Waste,Ref_Result))),"") -> 0 | L65: =IFERROR(IF(OR($C65=0,L$12=""),"",IF(L$12="Total",IF(SUM($G65:K65)=0,0,SUM($G65:K65)),IF(Selector=8,Percent_Waste,Ref_Result))),"") -> 0 | M65: =IFERROR(IF(OR($C65=0,M$12=""),"",IF(M$12="Total",IF(SUM($G65:L65)=0,0,SUM($G65:L65)),IF(Selector=8,Percent_Waste,Ref_Result))),"") -> 0 | N65: =IFERROR(IF(OR($C65=0,N$12=""),"",IF(N$12="Total",IF(SUM($G65:M65)=0,0,SUM($G65:M65)),IF(Selector=8,Percent_Waste,Ref_Result))),"") -> 0 | O65: =IFERROR(IF(OR($C65=0,O$12=""),"",IF(O$12="Total",IF(SUM($G65:N65)=0,0,SUM($G65:N65)),IF(Selector=8,Percent_Waste,Ref_Result))),"") -> 0 | P65: =IFERROR(IF(OR($C65=0,P$12=""),"",IF(P$12="Total",IF(SUM($G65:O65)=0,0,SUM($G65:O65)),IF(Selector=8,Percent_Waste,Ref_Result))),"") -> 0 | Q65: =IFERROR(IF(OR($C65=0,Q$12=""),"",IF(Q$12="Total",IF(SUM($G65:P65)=0,0,SUM($G65:P65)),IF(Selector=8,Percent_Waste,Ref_Result))),"") -> 0 | R65: =IFERROR(IF(OR($C65=0,R$12=""),"",IF(R$12="Total",IF(SUM($G65:Q65)=0,0,SUM($G65:Q65)),IF(Selector=8,Percent_Waste,Ref_Result))),"") ->  | S65: =IFERROR(IF(OR($C65=0,S$12=""),"",IF(S$12="Total",IF(SUM($G65:R65)=0,0,SUM($G65:R65)),IF(Selector=8,Percent_Waste,Ref_Result))),"") ->  | T65: =IFERROR(IF(OR($C65=0,T$12=""),"",IF(T$12="Total",IF(SUM($G65:S65)=0,0,SUM($G65:S65)),IF(Selector=8,Percent_Waste,Ref_Result))),"") ->  | U65: =IFERROR(IF(OR($C65=0,U$12=""),"",IF(U$12="Total",IF(SUM($G65:T65)=0,0,SUM($G65:T65)),IF(Selector=8,Percent_Waste,Ref_Result))),"") ->  | V65: =IFERROR(IF(OR($C65=0,V$12=""),"",IF(V$12="Total",IF(SUM($G65:U65)=0,0,SUM($G65:U65)),IF(Selector=8,Percent_Waste,Ref_Result))),"") ->  | W65: =IFERROR(IF(OR($C65=0,W$12=""),"",IF(W$12="Total",IF(SUM($G65:V65)=0,0,SUM($G65:V65)),IF(Selector=8,Percent_Waste,Ref_Result))),"") ->  | X65: =IFERROR(IF(OR($C65=0,X$12=""),"",IF(X$12="Total",IF(SUM($G65:W65)=0,0,SUM($G65:W65)),IF(Selector=8,Percent_Waste,Ref_Result))),"") ->  | Y65: =IFERROR(IF(OR($C65=0,Y$12=""),"",IF(Y$12="Total",IF(SUM($G65:X65)=0,0,SUM($G65:X65)),IF(Selector=8,Percent_Waste,Ref_Result))),"") ->  | Z65: =IFERROR(IF(OR($C65=0,Z$12=""),"",IF(Z$12="Total",IF(SUM($G65:Y65)=0,0,SUM($G65:Y65)),IF(Selector=8,Percent_Waste,Ref_Result))),"") ->  | AA65: 0 | AF65: =IFERROR(IF($AF$11="FRY",INDEX(Conn_FRY_Delivery,ROWS($13:65),COLUMNS($A:A)),""),"") ->  | AG65: =IFERROR(IF($AF$11="FRY",INDEX(Conn_FRY_Delivery,ROWS($13:65),COLUMNS($A:B)),""),"") ->  | AH65: =IFERROR(IF($AF$11="FRY",INDEX(Conn_FRY_Delivery,ROWS($13:65),COLUMNS($A:C)),""),"") ->  | AI65: =IFERROR(IF($AF$11="FRY",INDEX(Conn_FRY_Delivery,ROWS($13:65),COLUMNS($A:D)),""),"") ->  | AJ65: =IFERROR(IF($AF$11="FRY",INDEX(Conn_FRY_Delivery,ROWS($13:65),COLUMNS($A:E)),""),"") ->  | AL65: =IFERROR(IF($AL$11="FRK",INDEX(Conn_FRK_Delivery,ROWS($13:65),COLUMNS($A:A)),""),"") ->  | AM65: =IFERROR(IF($AL$11="FRK",INDEX(Conn_FRK_Delivery,ROWS($13:65),COLUMNS($A:B)),""),"") ->  | AN65: =IFERROR(IF($AL$11="FRK",INDEX(Conn_FRK_Delivery,ROWS($13:65),COLUMNS($A:C)),""),"") ->  | AO65: =IFERROR(IF($AL$11="FRK",INDEX(Conn_FRK_Delivery,ROWS($13:65),COLUMNS($A:D)),""),"") ->  | AP65: =IFERROR(IF($AL$11="FRK",INDEX(Conn_FRK_Delivery,ROWS($13:65),COLUMNS($A:E)),""),"") ->  | AR65: =IF(ROWS($13:65)<=IFERROR(ROWS(FRY_Delivery_Data),0),"FRY",IF(ROWS($13:65)<=IFERROR(ROWS(FRY_Delivery_Data),0)+IFERROR(ROWS(FRK_Delivery_Data),0),"FRK","")) ->  | AS65: =IF($AR65="FRY",INDEX(FRY_Delivery_Data,COUNTIF($AR$13:$AR65,$AR65),COLUMNS($A:A)),IF($AR65="FRK",INDEX(FRK_Delivery_Data,COUNTIF($AR$13:$AR65,$AR65),COLUMNS($A:A)),"")) ->  | AT65: =IF($AR65="FRY",INDEX(FRY_Delivery_Data,COUNTIF($AR$13:$AR65,$AR65),COLUMNS($A:B)),IF($AR65="FRK",INDEX(FRK_Delivery_Data,COUNTIF($AR$13:$AR65,$AR65),COLUMNS($A:B)),"")) ->  | AU65: =IF($AR65="FRY",INDEX(FRY_Delivery_Data,COUNTIF($AR$13:$AR65,$AR65),COLUMNS($A:C)),IF($AR65="FRK",INDEX(FRK_Delivery_Data,COUNTIF($AR$13:$AR65,$AR65),COLUMNS($A:C)),"")) ->  | AV65: =IF($AR65="FRY",INDEX(FRY_Delivery_Data,COUNTIF($AR$13:$AR65,$AR65),COLUMNS($A:D)),IF($AR65="FRK",INDEX(FRK_Delivery_Data,COUNTIF($AR$13:$AR65,$AR65),COLUMNS($A:D)),"")) ->  | AW65: =IF($AR65="FRY",INDEX(FRY_Delivery_Data,COUNTIF($AR$13:$AR65,$AR65),COLUMNS($A:E)),IF($AR65="FRK",INDEX(FRK_Delivery_Data,COUNTIF($AR$13:$AR65,$AR65),COLUMNS($A:E)),"")) -> 
B66: =IF(OR($C66="",$C66=0,ROWS($13:66)>ROWS(Product_List)),"",COUNTIF($C$13:$C66,"*?")) -> 51 | C66: =IFERROR(IF($C$9="No File In Folder","",INDEX(Product_List,ROWS($13:66))),"") -> สินค้าพิเศษ 1 | D66: 0 | G66: =IFERROR(IF(OR($C66=0,G$12=""),"",IF(G$12="Total",IF(SUM(F66:$G66)=0,0,SUM(F66:$G66)),IF(Selector=8,Percent_Waste,Ref_Result))),"") -> 0 | H66: =IFERROR(IF(OR($C66=0,H$12=""),"",IF(H$12="Total",IF(SUM(G66:$G66)=0,0,SUM(G66:$G66)),IF(Selector=8,Percent_Waste,Ref_Result))),"") -> 0 | I66: =IFERROR(IF(OR($C66=0,I$12=""),"",IF(I$12="Total",IF(SUM($G66:H66)=0,0,SUM($G66:H66)),IF(Selector=8,Percent_Waste,Ref_Result))),"") -> 0 | J66: =IFERROR(IF(OR($C66=0,J$12=""),"",IF(J$12="Total",IF(SUM($G66:I66)=0,0,SUM($G66:I66)),IF(Selector=8,Percent_Waste,Ref_Result))),"") -> 0 | K66: =IFERROR(IF(OR($C66=0,K$12=""),"",IF(K$12="Total",IF(SUM($G66:J66)=0,0,SUM($G66:J66)),IF(Selector=8,Percent_Waste,Ref_Result))),"") -> 0 | L66: =IFERROR(IF(OR($C66=0,L$12=""),"",IF(L$12="Total",IF(SUM($G66:K66)=0,0,SUM($G66:K66)),IF(Selector=8,Percent_Waste,Ref_Result))),"") -> 0 | M66: =IFERROR(IF(OR($C66=0,M$12=""),"",IF(M$12="Total",IF(SUM($G66:L66)=0,0,SUM($G66:L66)),IF(Selector=8,Percent_Waste,Ref_Result))),"") -> 0 | N66: =IFERROR(IF(OR($C66=0,N$12=""),"",IF(N$12="Total",IF(SUM($G66:M66)=0,0,SUM($G66:M66)),IF(Selector=8,Percent_Waste,Ref_Result))),"") -> 0 | O66: =IFERROR(IF(OR($C66=0,O$12=""),"",IF(O$12="Total",IF(SUM($G66:N66)=0,0,SUM($G66:N66)),IF(Selector=8,Percent_Waste,Ref_Result))),"") -> 0 | P66: =IFERROR(IF(OR($C66=0,P$12=""),"",IF(P$12="Total",IF(SUM($G66:O66)=0,0,SUM($G66:O66)),IF(Selector=8,Percent_Waste,Ref_Result))),"") -> 0 | Q66: =IFERROR(IF(OR($C66=0,Q$12=""),"",IF(Q$12="Total",IF(SUM($G66:P66)=0,0,SUM($G66:P66)),IF(Selector=8,Percent_Waste,Ref_Result))),"") -> 0 | R66: =IFERROR(IF(OR($C66=0,R$12=""),"",IF(R$12="Total",IF(SUM($G66:Q66)=0,0,SUM($G66:Q66)),IF(Selector=8,Percent_Waste,Ref_Result))),"") ->  | S66: =IFERROR(IF(OR($C66=0,S$12=""),"",IF(S$12="Total",IF(SUM($G66:R66)=0,0,SUM($G66:R66)),IF(Selector=8,Percent_Waste,Ref_Result))),"") ->  | T66: =IFERROR(IF(OR($C66=0,T$12=""),"",IF(T$12="Total",IF(SUM($G66:S66)=0,0,SUM($G66:S66)),IF(Selector=8,Percent_Waste,Ref_Result))),"") ->  | U66: =IFERROR(IF(OR($C66=0,U$12=""),"",IF(U$12="Total",IF(SUM($G66:T66)=0,0,SUM($G66:T66)),IF(Selector=8,Percent_Waste,Ref_Result))),"") ->  | V66: =IFERROR(IF(OR($C66=0,V$12=""),"",IF(V$12="Total",IF(SUM($G66:U66)=0,0,SUM($G66:U66)),IF(Selector=8,Percent_Waste,Ref_Result))),"") ->  | W66: =IFERROR(IF(OR($C66=0,W$12=""),"",IF(W$12="Total",IF(SUM($G66:V66)=0,0,SUM($G66:V66)),IF(Selector=8,Percent_Waste,Ref_Result))),"") ->  | X66: =IFERROR(IF(OR($C66=0,X$12=""),"",IF(X$12="Total",IF(SUM($G66:W66)=0,0,SUM($G66:W66)),IF(Selector=8,Percent_Waste,Ref_Result))),"") ->  | Y66: =IFERROR(IF(OR($C66=0,Y$12=""),"",IF(Y$12="Total",IF(SUM($G66:X66)=0,0,SUM($G66:X66)),IF(Selector=8,Percent_Waste,Ref_Result))),"") ->  | Z66: =IFERROR(IF(OR($C66=0,Z$12=""),"",IF(Z$12="Total",IF(SUM($G66:Y66)=0,0,SUM($G66:Y66)),IF(Selector=8,Percent_Waste,Ref_Result))),"") ->  | AA66: 0 | AF66: =IFERROR(IF($AF$11="FRY",INDEX(Conn_FRY_Delivery,ROWS($13:66),COLUMNS($A:A)),""),"") ->  | AG66: =IFERROR(IF($AF$11="FRY",INDEX(Conn_FRY_Delivery,ROWS($13:66),COLUMNS($A:B)),""),"") ->  | AH66: =IFERROR(IF($AF$11="FRY",INDEX(Conn_FRY_Delivery,ROWS($13:66),COLUMNS($A:C)),""),"") ->  | AI66: =IFERROR(IF($AF$11="FRY",INDEX(Conn_FRY_Delivery,ROWS($13:66),COLUMNS($A:D)),""),"") ->  | AJ66: =IFERROR(IF($AF$11="FRY",INDEX(Conn_FRY_Delivery,ROWS($13:66),COLUMNS($A:E)),""),"") ->  | AL66: =IFERROR(IF($AL$11="FRK",INDEX(Conn_FRK_Delivery,ROWS($13:66),COLUMNS($A:A)),""),"") ->  | AM66: =IFERROR(IF($AL$11="FRK",INDEX(Conn_FRK_Delivery,ROWS($13:66),COLUMNS($A:B)),""),"") ->  | AN66: =IFERROR(IF($AL$11="FRK",INDEX(Conn_FRK_Delivery,ROWS($13:66),COLUMNS($A:C)),""),"") ->  | AO66: =IFERROR(IF($AL$11="FRK",INDEX(Conn_FRK_Delivery,ROWS($13:66),COLUMNS($A:D)),""),"") ->  | AP66: =IFERROR(IF($AL$11="FRK",INDEX(Conn_FRK_Delivery,ROWS($13:66),COLUMNS($A:E)),""),"") ->  | AR66: =IF(ROWS($13:66)<=IFERROR(ROWS(FRY_Delivery_Data),0),"FRY",IF(ROWS($13:66)<=IFERROR(ROWS(FRY_Delivery_Data),0)+IFERROR(ROWS(FRK_Delivery_Data),0),"FRK","")) ->  | AS66: =IF($AR66="FRY",INDEX(FRY_Delivery_Data,COUNTIF($AR$13:$AR66,$AR66),COLUMNS($A:A)),IF($AR66="FRK",INDEX(FRK_Delivery_Data,COUNTIF($AR$13:$AR66,$AR66),COLUMNS($A:A)),"")) ->  | AT66: =IF($AR66="FRY",INDEX(FRY_Delivery_Data,COUNTIF($AR$13:$AR66,$AR66),COLUMNS($A:B)),IF($AR66="FRK",INDEX(FRK_Delivery_Data,COUNTIF($AR$13:$AR66,$AR66),COLUMNS($A:B)),"")) ->  | AU66: =IF($AR66="FRY",INDEX(FRY_Delivery_Data,COUNTIF($AR$13:$AR66,$AR66),COLUMNS($A:C)),IF($AR66="FRK",INDEX(FRK_Delivery_Data,COUNTIF($AR$13:$AR66,$AR66),COLUMNS($A:C)),"")) ->  | AV66: =IF($AR66="FRY",INDEX(FRY_Delivery_Data,COUNTIF($AR$13:$AR66,$AR66),COLUMNS($A:D)),IF($AR66="FRK",INDEX(FRK_Delivery_Data,COUNTIF($AR$13:$AR66,$AR66),COLUMNS($A:D)),"")) ->  | AW66: =IF($AR66="FRY",INDEX(FRY_Delivery_Data,COUNTIF($AR$13:$AR66,$AR66),COLUMNS($A:E)),IF($AR66="FRK",INDEX(FRK_Delivery_Data,COUNTIF($AR$13:$AR66,$AR66),COLUMNS($A:E)),"")) -> 
B67: =IF(OR($C67="",$C67=0,ROWS($13:67)>ROWS(Product_List)),"",COUNTIF($C$13:$C67,"*?")) -> 52 | C67: =IFERROR(IF($C$9="No File In Folder","",INDEX(Product_List,ROWS($13:67))),"") -> สินค้าพิเศษ 2 | D67: 0 | G67: =IFERROR(IF(OR($C67=0,G$12=""),"",IF(G$12="Total",IF(SUM(F67:$G67)=0,0,SUM(F67:$G67)),IF(Selector=8,Percent_Waste,Ref_Result))),"") -> 0 | H67: =IFERROR(IF(OR($C67=0,H$12=""),"",IF(H$12="Total",IF(SUM(G67:$G67)=0,0,SUM(G67:$G67)),IF(Selector=8,Percent_Waste,Ref_Result))),"") -> 0 | I67: =IFERROR(IF(OR($C67=0,I$12=""),"",IF(I$12="Total",IF(SUM($G67:H67)=0,0,SUM($G67:H67)),IF(Selector=8,Percent_Waste,Ref_Result))),"") -> 0 | J67: =IFERROR(IF(OR($C67=0,J$12=""),"",IF(J$12="Total",IF(SUM($G67:I67)=0,0,SUM($G67:I67)),IF(Selector=8,Percent_Waste,Ref_Result))),"") -> 0 | K67: =IFERROR(IF(OR($C67=0,K$12=""),"",IF(K$12="Total",IF(SUM($G67:J67)=0,0,SUM($G67:J67)),IF(Selector=8,Percent_Waste,Ref_Result))),"") -> 0 | L67: =IFERROR(IF(OR($C67=0,L$12=""),"",IF(L$12="Total",IF(SUM($G67:K67)=0,0,SUM($G67:K67)),IF(Selector=8,Percent_Waste,Ref_Result))),"") -> 0 | M67: =IFERROR(IF(OR($C67=0,M$12=""),"",IF(M$12="Total",IF(SUM($G67:L67)=0,0,SUM($G67:L67)),IF(Selector=8,Percent_Waste,Ref_Result))),"") -> 0 | N67: =IFERROR(IF(OR($C67=0,N$12=""),"",IF(N$12="Total",IF(SUM($G67:M67)=0,0,SUM($G67:M67)),IF(Selector=8,Percent_Waste,Ref_Result))),"") -> 0 | O67: =IFERROR(IF(OR($C67=0,O$12=""),"",IF(O$12="Total",IF(SUM($G67:N67)=0,0,SUM($G67:N67)),IF(Selector=8,Percent_Waste,Ref_Result))),"") -> 0 | P67: =IFERROR(IF(OR($C67=0,P$12=""),"",IF(P$12="Total",IF(SUM($G67:O67)=0,0,SUM($G67:O67)),IF(Selector=8,Percent_Waste,Ref_Result))),"") -> 0 | Q67: =IFERROR(IF(OR($C67=0,Q$12=""),"",IF(Q$12="Total",IF(SUM($G67:P67)=0,0,SUM($G67:P67)),IF(Selector=8,Percent_Waste,Ref_Result))),"") -> 0 | R67: =IFERROR(IF(OR($C67=0,R$12=""),"",IF(R$12="Total",IF(SUM($G67:Q67)=0,0,SUM($G67:Q67)),IF(Selector=8,Percent_Waste,Ref_Result))),"") ->  | S67: =IFERROR(IF(OR($C67=0,S$12=""),"",IF(S$12="Total",IF(SUM($G67:R67)=0,0,SUM($G67:R67)),IF(Selector=8,Percent_Waste,Ref_Result))),"") ->  | T67: =IFERROR(IF(OR($C67=0,T$12=""),"",IF(T$12="Total",IF(SUM($G67:S67)=0,0,SUM($G67:S67)),IF(Selector=8,Percent_Waste,Ref_Result))),"") ->  | U67: =IFERROR(IF(OR($C67=0,U$12=""),"",IF(U$12="Total",IF(SUM($G67:T67)=0,0,SUM($G67:T67)),IF(Selector=8,Percent_Waste,Ref_Result))),"") ->  | V67: =IFERROR(IF(OR($C67=0,V$12=""),"",IF(V$12="Total",IF(SUM($G67:U67)=0,0,SUM($G67:U67)),IF(Selector=8,Percent_Waste,Ref_Result))),"") ->  | W67: =IFERROR(IF(OR($C67=0,W$12=""),"",IF(W$12="Total",IF(SUM($G67:V67)=0,0,SUM($G67:V67)),IF(Selector=8,Percent_Waste,Ref_Result))),"") ->  | X67: =IFERROR(IF(OR($C67=0,X$12=""),"",IF(X$12="Total",IF(SUM($G67:W67)=0,0,SUM($G67:W67)),IF(Selector=8,Percent_Waste,Ref_Result))),"") ->  | Y67: =IFERROR(IF(OR($C67=0,Y$12=""),"",IF(Y$12="Total",IF(SUM($G67:X67)=0,0,SUM($G67:X67)),IF(Selector=8,Percent_Waste,Ref_Result))),"") ->  | Z67: =IFERROR(IF(OR($C67=0,Z$12=""),"",IF(Z$12="Total",IF(SUM($G67:Y67)=0,0,SUM($G67:Y67)),IF(Selector=8,Percent_Waste,Ref_Result))),"") ->  | AA67: 0 | AF67: =IFERROR(INDEX(Conn_FRY_Delivery,ROWS($13:67),COLUMNS($A:A)),"") ->  | AG67: =IFERROR(INDEX(Conn_FRY_Delivery,ROWS($13:67),COLUMNS($A:B)),"") ->  | AH67: =IFERROR(INDEX(Conn_FRY_Delivery,ROWS($13:67),COLUMNS($A:C)),"") ->  | AI67: =IFERROR(INDEX(Conn_FRY_Delivery,ROWS($13:67),COLUMNS($A:D)),"") ->  | AR67: =IF(ROWS($13:67)<=IFERROR(ROWS(FRY_Delivery_Data),0),"FRY",IF(ROWS($13:67)<=IFERROR(ROWS(FRY_Delivery_Data),0)+IFERROR(ROWS(FRK_Delivery_Data),0),"FRK","")) ->  | AS67: =IF($AR67="FRY",INDEX(FRY_Delivery_Data,COUNTIF($AR$13:$AR67,$AR67),COLUMNS($A:A)),IF($AR67="FRK",INDEX(FRK_Delivery_Data,COUNTIF($AR$13:$AR67,$AR67),COLUMNS($A:A)),"")) ->  | AT67: =IF($AR67="FRY",INDEX(FRY_Delivery_Data,COUNTIF($AR$13:$AR67,$AR67),COLUMNS($A:B)),IF($AR67="FRK",INDEX(FRK_Delivery_Data,COUNTIF($AR$13:$AR67,$AR67),COLUMNS($A:B)),"")) ->  | AU67: =IF($AR67="FRY",INDEX(FRY_Delivery_Data,COUNTIF($AR$13:$AR67,$AR67),COLUMNS($A:C)),IF($AR67="FRK",INDEX(FRK_Delivery_Data,COUNTIF($AR$13:$AR67,$AR67),COLUMNS($A:C)),"")) ->  | AV67: =IF($AR67="FRY",INDEX(FRY_Delivery_Data,COUNTIF($AR$13:$AR67,$AR67),COLUMNS($A:D)),IF($AR67="FRK",INDEX(FRK_Delivery_Data,COUNTIF($AR$13:$AR67,$AR67),COLUMNS($A:D)),"")) ->  | AW67: =IF($AR67="FRY",INDEX(FRY_Delivery_Data,COUNTIF($AR$13:$AR67,$AR67),COLUMNS($A:E)),IF($AR67="FRK",INDEX(FRK_Delivery_Data,COUNTIF($AR$13:$AR67,$AR67),COLUMNS($A:E)),"")) -> 
B68: =IF($C$9="No File In Folder","","Total") -> Total | D68: =IF(AND(D12<>"",$B$68<>""),SUM(D13:D51),"") -> 9690 | E68: 0 | F68: 0 | G68: 885 | H68: 830 | I68: 810 | J68: 1060 | K68: 1010 | L68: 700 | M68: 785 | N68: 700 | O68: 500 | P68: 970 | Q68: 8250 | AA68: 1440 | AR68: =IF(ROWS($13:68)<=IFERROR(ROWS(FRY_Delivery_Data),0),"FRY",IF(ROWS($13:68)<=IFERROR(ROWS(FRY_Delivery_Data),0)+IFERROR(ROWS(FRK_Delivery_Data),0),"FRK","")) ->  | AS68: =IF($AR68="FRY",INDEX(FRY_Delivery_Data,COUNTIF($AR$13:$AR68,$AR68),COLUMNS($A:A)),IF($AR68="FRK",INDEX(FRK_Delivery_Data,COUNTIF($AR$13:$AR68,$AR68),COLUMNS($A:A)),"")) ->  | AT68: =IF($AR68="FRY",INDEX(FRY_Delivery_Data,COUNTIF($AR$13:$AR68,$AR68),COLUMNS($A:B)),IF($AR68="FRK",INDEX(FRK_Delivery_Data,COUNTIF($AR$13:$AR68,$AR68),COLUMNS($A:B)),"")) ->  | AU68: =IF($AR68="FRY",INDEX(FRY_Delivery_Data,COUNTIF($AR$13:$AR68,$AR68),COLUMNS($A:C)),IF($AR68="FRK",INDEX(FRK_Delivery_Data,COUNTIF($AR$13:$AR68,$AR68),COLUMNS($A:C)),"")) ->  | AV68: =IF($AR68="FRY",INDEX(FRY_Delivery_Data,COUNTIF($AR$13:$AR68,$AR68),COLUMNS($A:D)),IF($AR68="FRK",INDEX(FRK_Delivery_Data,COUNTIF($AR$13:$AR68,$AR68),COLUMNS($A:D)),"")) ->  | AW68: =IF($AR68="FRY",INDEX(FRY_Delivery_Data,COUNTIF($AR$13:$AR68,$AR68),COLUMNS($A:E)),IF($AR68="FRK",INDEX(FRK_Delivery_Data,COUNTIF($AR$13:$AR68,$AR68),COLUMNS($A:E)),"")) -> 
AR69: =IF(ROWS($13:69)<=IFERROR(ROWS(FRY_Delivery_Data),0),"FRY",IF(ROWS($13:69)<=IFERROR(ROWS(FRY_Delivery_Data),0)+IFERROR(ROWS(FRK_Delivery_Data),0),"FRK","")) ->  | AS69: =IF($AR69="FRY",INDEX(FRY_Delivery_Data,COUNTIF($AR$13:$AR69,$AR69),COLUMNS($A:A)),IF($AR69="FRK",INDEX(FRK_Delivery_Data,COUNTIF($AR$13:$AR69,$AR69),COLUMNS($A:A)),"")) ->  | AT69: =IF($AR69="FRY",INDEX(FRY_Delivery_Data,COUNTIF($AR$13:$AR69,$AR69),COLUMNS($A:B)),IF($AR69="FRK",INDEX(FRK_Delivery_Data,COUNTIF($AR$13:$AR69,$AR69),COLUMNS($A:B)),"")) ->  | AU69: =IF($AR69="FRY",INDEX(FRY_Delivery_Data,COUNTIF($AR$13:$AR69,$AR69),COLUMNS($A:C)),IF($AR69="FRK",INDEX(FRK_Delivery_Data,COUNTIF($AR$13:$AR69,$AR69),COLUMNS($A:C)),"")) ->  | AV69: =IF($AR69="FRY",INDEX(FRY_Delivery_Data,COUNTIF($AR$13:$AR69,$AR69),COLUMNS($A:D)),IF($AR69="FRK",INDEX(FRK_Delivery_Data,COUNTIF($AR$13:$AR69,$AR69),COLUMNS($A:D)),"")) ->  | AW69: =IF($AR69="FRY",INDEX(FRY_Delivery_Data,COUNTIF($AR$13:$AR69,$AR69),COLUMNS($A:E)),IF($AR69="FRK",INDEX(FRK_Delivery_Data,COUNTIF($AR$13:$AR69,$AR69),COLUMNS($A:E)),"")) -> 
AR70: =IF(ROWS($13:70)<=IFERROR(ROWS(FRY_Delivery_Data),0),"FRY",IF(ROWS($13:70)<=IFERROR(ROWS(FRY_Delivery_Data),0)+IFERROR(ROWS(FRK_Delivery_Data),0),"FRK","")) ->  | AS70: =IF($AR70="FRY",INDEX(FRY_Delivery_Data,COUNTIF($AR$13:$AR70,$AR70),COLUMNS($A:A)),IF($AR70="FRK",INDEX(FRK_Delivery_Data,COUNTIF($AR$13:$AR70,$AR70),COLUMNS($A:A)),"")) ->  | AT70: =IF($AR70="FRY",INDEX(FRY_Delivery_Data,COUNTIF($AR$13:$AR70,$AR70),COLUMNS($A:B)),IF($AR70="FRK",INDEX(FRK_Delivery_Data,COUNTIF($AR$13:$AR70,$AR70),COLUMNS($A:B)),"")) ->  | AU70: =IF($AR70="FRY",INDEX(FRY_Delivery_Data,COUNTIF($AR$13:$AR70,$AR70),COLUMNS($A:C)),IF($AR70="FRK",INDEX(FRK_Delivery_Data,COUNTIF($AR$13:$AR70,$AR70),COLUMNS($A:C)),"")) ->  | AV70: =IF($AR70="FRY",INDEX(FRY_Delivery_Data,COUNTIF($AR$13:$AR70,$AR70),COLUMNS($A:D)),IF($AR70="FRK",INDEX(FRK_Delivery_Data,COUNTIF($AR$13:$AR70,$AR70),COLUMNS($A:D)),"")) ->  | AW70: =IF($AR70="FRY",INDEX(FRY_Delivery_Data,COUNTIF($AR$13:$AR70,$AR70),COLUMNS($A:E)),IF($AR70="FRK",INDEX(FRK_Delivery_Data,COUNTIF($AR$13:$AR70,$AR70),COLUMNS($A:E)),"")) -> 

Sheet NP-01
A1: :::: รายงานการขายประจำวัน (Sale Daily Report) :::: | O1: เวลากลับ : | R1: 17:30:00 | X1: Print Date : | AA1: 2019-02-04T09:01:24.760 | AN1: จำนวนร้าน : | AR1: 32 | AT1: ร้าน | AV1: 43498
A3: วันที่ : | C3: 2019-02-02 | E3: พนักงานขาย | G3: นายคณิณ | O3: ไมล์ออก : | R3: 173254 | V3: Km | X3: รวมยอดเบิก : | AA3: 925 | AD3: ชิ้น | AF3: ใหญ่สด(40) | AJ3: 4291.94 | AN3: ใหญ่เชื่อ(42) | AR3: 4233.79 | AV3: บิลใหญ่ : | AY3: 8525.73
A4: เขตการขาย : | C4: โพธาราม | E4: ผช.ขาย | G4: ณธนณ | O4: ไมล์เข้า : | R4: 173523 | V4: Km | X4: ของเหลือ : | AA4: 46 | AD4: ชิ้น | AF4: เล็กสด(41) | AJ4: 0 | AN4: เล็กเชื่อ(43) | AR4: 0 | AV4: บิลเล็ก : | AY4: 0
A5: สายส่ง : | C5: Sale NP-01 | E5: พนักงานเสริม | G5: 0 | O5: ระยะทาง : | R5: 269 | V5: Km | X5: ของเสีย : | AA5: 103 | AD5: ชิ้น | AF5: น้ำหนักของเสีย | AJ5: 8.68 | AN5: Kg. | AP5: %ของเสีย | AS5: 11.0982659 | AU5: % | AV5: VAT : | AY5: 596.79
